Workbook

Sheet AER only (hidden)
B1: Data in these columns used for data validation and database purposes.
B2: Date last modified: | C2: 2017-01-16 | D2: added (Albury and Victora) for AGN
C3: 2016-10-17 | D3: updated TransGrid's correct legal name, corrected TasNetworks (T) to June financial year
C4: 2017-02-01 | D4: inserted Power and Water, added NRs (dms_FeederCat_1 and dms_FeederCat_2)
C5: 2017-03-03 | D5: inserted AEMO as a business | AB5: FOR ELECTRICITY BUSINESSES ONLY
C6: 2018-03-28 | D6: major changes to accommodate STPIS
C7: Template Version | D7: 5 | AB7: Feeder Types | AF7: TasNetworks (D) | AG7: MAIFI flag | AH7: Feeder Names
AB8: CBD | AC8: Urban | AD8: Short rural | AE8: long rural | AF8: EXTRA
B9: dms_TradingName_List | C9: dms_TradingNameFull_List | D9: dms_ABN_List | E9: dms_JurisdictionList | F9: dms_Sector_List | G9: dms_Segment_List | H9: dms_FormControl_List | I9: dms_RPT_List | J9: dms_RPTMonth_List | K9: dms_CRCPlength_List | L9: dms_FRCPlength_List | M9: dms_663_List | N9: dms_DeterminationRef_List | O9: dms_Addr1_List | P9: dms_Addr2_List | Q9: dms_Suburb_List | R9: dms_State_List | S9: dms_PostCode_List | T9: dms_PAddr1_List | U9: dms_PAddr2_List | V9: dms_PSuburb_List | W9: dms_PState_List | X9: dms_PPostCode_List | Y9: dms_ContactName1_List | Z9: dms_ContactPh1_List | AA9: dms_ContactEmail_List | AB9: dms_CBD_flag | AC9: dms_Urban_flag | AD9: dms_ShortRural_flag | AE9: dms_LongRural_flag | AF9: dms_FeederType_5_flag | AG9: dms_MAIFI_flag_List | AH9: dms_FeederName_1 | AI9: dms_FeederName_2 | AJ9: dms_FeederName_3 | AK9: dms_FeederName_4 | AL9: dms_FeederName_5 | AM9: Column1
B10: ActewAGL Distribution | C10: ActewAGL Distribution | D10: 76670568688 | E10: ACT | F10: Electricity | G10: Distribution | H10: Revenue cap | I10: Financial | J10: June | K10: 5 | L10: 5 | M10: 5 | N10: 2014-19 Distribution Determination | O10: 40 Bunda Street | Q10: CANBERRA | R10: ACT | S10: 2600 | T10: GPO BOX 366 | V10: CANBERRA | W10: ACT | X10: 2601 | Y10: Robert Walker | Z10: 02 6248 3847 | AA10: robert.walker@actewagle.com.au | AB10: NO | AC10: YES | AD10: YES | AE10: NO | AF10: NO | AH10: CBD | AI10: Urban | AJ10: Short rural | AK10: Long rural | AM10: ActewAGL Distribution
B11: ActewAGL Distribution (Tx Assets) | C11: ActewAGL Distribution (Tx Assets) | D11: 76670568688 | E11: ACT | F11: Electricity | G11: Distribution | H11: Revenue cap | I11: Financial | J11: June | K11: 5 | L11: 5 | M11: 5 | N11: distribution determination | O11: 40 Bunda Street | Q11: CANBERRA | R11: ACT | S11: 2600 | T11: GPO BOX 366 | V11: CANBERRA | W11: ACT | X11: 2601 | Y11: Robert Walker | Z11: 02 6248 3847 | AA11: robert.walker@actewagle.com.au | AB11: NO | AC11: YES | AD11: YES | AE11: NO | AF11: NO | AH11: CBD | AI11: Urban | AJ11: Short rural | AK11: Long rural | AM11: ActewAGL Distribution (Tx Assets)
B12: ActewAGL Gas | C12: ActewAGL Gas | D12: 76670568688 | E12: ACT | F12: Gas | G12: Distribution | H12: Weighted average price cap | I12: Financial | J12: June | K12: 5 | L12: 5 | M12: x | O12: 40 Bunda Street | Q12: CANBERRA | R12: ACT | S12: 2600 | T12: GPO BOX 366 | V12: CANBERRA | W12: ACT | X12: 2601 | Y12: Philip Deamer | Z12: 02 6248 3438 | AA12: GasAAReview@actewagl.com.au | AH12: CBD | AI12: Urban | AJ12: Short rural | AK12: Long rural | AM12: ActewAGL Gas
B13: AEMO | C13: Australian Energy Market Operator Ltd | D13: 94072010327 | E13: Vic | F13: Electricity | G13: Transmission | H13: - | I13: Financial | J13: March | K13: 5 | L13: 5 | M13: x | N13: - | O13: Level 22 | P13: 530 Collins Street | Q13: MELBOURNE | R13: VIC | S13: 3000 | T13: GPO Box 2008 | V13: MELBOURNE | W13: VIC | X13: 3001 | AB13: n/a | AC13: n/a | AD13: n/a | AE13: n/a | AF13: n/a | AH13: CBD | AI13: Urban | AJ13: Short rural | AK13: Long rural | AM13: AEMO
B14: AGN (Albury and Victoria) | C14: Australian Gas Networks Limited (reporting data for Albury and Victoria) | D14: 19078551685 | E14: Vic | F14: Gas | G14: Distribution | H14: Weighted average price cap | I14: Calendar | J14: December | K14: 5 | L14: 5 | M14: x | O14: Level 6 | P14: 400 King William Street | Q14: ADELAIDE | R14: SA | S14: 5000 | T14: PO Box 6468 | U14: Halifax Street | V14: ADELAIDE | W14: SA | X14: 5000 | Y14: Craig de Laine | Z14: 08 8418 1129 | AA14: craig.delaine@agn.com.au | AB14: n/a | AC14: n/a | AD14: n/a | AE14: n/a | AF14: n/a | AH14: CBD | AI14: Urban | AJ14: Short rural | AK14: Long rural | AM14: AGN (Albury)
B15: AGN (Albury) | C15: Australian Gas Networks Limited (reporting data for Albury) | D15: 19078551685 | E15: Vic | F15: Gas | G15: Distribution | H15: Weighted average price cap | I15: Calendar | J15: December | K15: 5 | L15: 5 | M15: x | O15: Level 6 | P15: 400 King William Street | Q15: ADELAIDE | R15: SA | S15: 5000 | T15: PO Box 6468 | U15: Halifax Street | V15: ADELAIDE | W15: SA | X15: 5000 | Y15: Craig de Laine | Z15: 08 8418 1129 | AA15: craig.delaine@agn.com.au | AB15: n/a | AC15: n/a | AD15: n/a | AE15: n/a | AF15: n/a | AH15: CBD | AI15: Urban | AJ15: Short rural | AK15: Long rural
B16: AGN (SA) | C16: Australian Gas Networks Limited (reporting data for SA) | D16: 19078551685 | E16: SA | F16: Gas | G16: Distribution | H16: Weighted average price cap | I16: Financial | J16: June | K16: 5 | L16: 5 | M16: 5 | N16: distribution determination | O16: Level 6 | P16: 400 King William Street | Q16: ADELAIDE | R16: SA | S16: 5000 | T16: PO Box 6468 | U16: Halifax Street | V16: ADELAIDE | W16: SA | X16: 5000 | Y16: Craig de Laine | Z16: 08 8418 1129 | AA16: craig.delaine@agn.com.au | AB16: n/a | AC16: n/a | AD16: n/a | AE16: n/a | AF16: n/a | AH16: CBD | AI16: Urban | AJ16: Short rural | AK16: Long rural | AM16: AGN (SA)
B17: AGN (Victoria) | C17: Australian Gas Networks Limited (reporting data for Victoria) | D17: 19078551685 | E17: Vic | F17: Gas | G17: Distribution | H17: Weighted average price cap | I17: Calendar | J17: December | K17: 5 | L17: 5 | M17: x | O17: Level 6 | P17: 400 King William Street | Q17: ADELAIDE | R17: SA | S17: 5000 | T17: PO Box 6468 | U17: Halifax Street | V17: ADELAIDE | W17: SA | X17: 5000 | Y17: Craig de Laine | Z17: 08 8418 1129 | AA17: craig.delaine@agn.com.au | AB17: n/a | AC17: n/a | AD17: n/a | AE17: n/a | AF17: n/a | AH17: CBD | AI17: Urban | AJ17: Short rural | AK17: Long rural | AM17: AGN (Victoria)
B18: Amadeus | C18: APT Pipelines (NT) Pty Ltd | D18: 39009737393 | E18: NT | F18: Gas | G18: Transmission | H18: Weighted average price cap | I18: Financial | J18: June | K18: 5 | L18: 5 | M18: x | N18: n/a | O18: Level 19, HSBC Building | P18: 580 George Street | Q18: SYDNEY | R18: NSW | S18: 2000 | T18: Level 19, HSBC Building | U18: 580 George Street | V18: SYDNEY | W18: NSW | X18: 2000 | Y18: Alexandra Curran | Z18: 02 9275 0020 | AA18: alexandra.curran@apa.com.au | AB18: n/a | AC18: n/a | AD18: n/a | AE18: n/a | AF18: n/a | AH18: CBD | AI18: Urban | AJ18: Short rural | AK18: Long rural | AM18: Amadeus
B19: APA GasNet | C19: APA GasNet Australia (Operations) Pty Ltd | D19: 065083009 | E19: Vic | F19: Gas | G19: Transmission | H19: Weighted average price cap | I19: Calendar | J19: December | K19: 5 | L19: 5 | M19: x | O19: Level 19, HSBC Building | P19: 580 George Street | Q19: SYDNEY | R19: NSW | S19: 2000 | T19: PO Box R41 | V19: ROYAL EXCHANGE | W19: NSW | X19: 1225 | Y19: Alexandra Curran | Z19: 02 9275 0020 | AA19: alexandra.curran@apa.com.au | AB19: n/a | AC19: n/a | AD19: n/a | AE19: n/a | AF19: n/a | AH19: CBD | AI19: Urban | AJ19: Short rural | AK19: Long rural | AM19: APA GasNet
B20: Ausgrid | C20: Ausgrid | D20: 78508211731 | E20: NSW | F20: Electricity | G20: Distribution | H20: Revenue cap | I20: Financial | J20: June | K20: 5 | L20: 5 | M20: 5 | N20: 2014-19 Distribution Determination | O20: 570 George St | Q20: SYDNEY | R20: NSW | S20: 2000 | T20: GPO Box 4009 | V20: SYDNEY | W20: NSW | X20: 2001 | Y20: John Thomson | Z20: 02 9269 2312 | AA20: john.thomson@ausgrid.com.au | AB20: YES | AC20: YES | AD20: YES | AE20: YES | AF20: NO | AH20: CBD | AI20: Urban | AJ20: Short rural | AK20: Long rural | AM20: Ausgrid
B21: Ausgrid (Tx Assets) | C21: Ausgrid (Tx Assets) | D21: 67505337385 | E21: NSW | F21: Electricity | G21: Distribution | H21: Revenue cap | I21: Financial | J21: June | K21: 5 | L21: 5 | M21: 5 | N21: distribution determination | O21: 570 George St | Q21: SYDNEY | R21: NSW | S21: 2000 | T21: GPO Box 4009 | V21: SYDNEY | W21: NSW | X21: 2001 | Y21: John Thomson | Z21: 02 9269 2312 | AA21: john.thomson@ausgrid.com.au | AB21: YES | AC21: YES | AD21: YES | AE21: YES | AF21: NO | AH21: CBD | AI21: Urban | AJ21: Short rural | AK21: Long rural | AM21: Ausgrid (Tx Assets)
B22: AusNet (D) | C22: AusNet Electricity Services Pty Ltd | D22: 91064651118 | E22: Vic | F22: Electricity | G22: Distribution | H22: Revenue cap | I22: Calendar | J22: December | K22: 5 | L22: 5 | M22: 2 | N22: 2016-20 Distribution Determination | O22: Level 32 | P22: 2 Southbank Boulevard | Q22: SOUTHBANK | R22: Vic | S22: 3006 | T22: Locked Bag 14051 | V22: MELBOURNE CITY MAIL CENTRE | W22: VIC | X22: 8001 | Y22: please provide contact details | AC22: YES | AD22: YES | AE22: YES | AF22: NO | AH22: CBD | AI22: Urban | AJ22: Short rural | AK22: Long rural | AM22: AusNet (D)
B23: AusNet (Gas) | C23: AusNet Gas Services | D23: 086015036 | E23: Vic | F23: Gas | G23: Distribution | H23: Weighted average price cap | I23: Calendar | J23: December | K23: 5 | L23: 5 | M23: X | O23: Level 19, HSBC Building | P23: 580 George Street | Q23: SYDNEY | R23: NSW | S23: 2000 | T23: PO Box R41 | V23: ROYAL EXCHANGE | W23: NSW | X23: 1225 | Y23: Alexandra Curran | Z23: 02 9275 0020 | AA23: alexandra.curran@apa.com.au | AB23: n/a | AC23: n/a | AD23: n/a | AE23: n/a | AF23: n/a | AH23: CBD | AI23: Urban | AJ23: Short rural | AK23: Long rural | AM23: AusNet (Gas)
B24: AusNet (T) | C24: Ausnet Services (Transmission) Ltd | D24: 48116124362 | E24: Vic | F24: Electricity | G24: Transmission | H24: Revenue cap | I24: Financial | J24: March | K24: 5 | L24: 5 | M24: 2 | N24: transmission determination | O24: Level 32 | P24: 2 Southbank Boulevard | Q24: SOUTHBANK | R24: Vic | S24: 3006 | T24: Locked Bag 14051 | V24: MELBOURNE CITY MAIL CENTRE | W24: Vic | X24: 8001 | Y24: Clare Thompson | Z24: 03 9695 6670 | AA24: clare.e.thompson@ausnetservices.com.au | AB24: n/a | AC24: n/a | AD24: n/a | AE24: n/a | AF24: n/a | AH24: CBD | AI24: Urban | AJ24: Short rural | AK24: Long rural | AM24: AusNet (T)
B25: Australian Distribution Co. | C25: Australian Distribution Co. | D25: 11222333444 | E25: - | F25: Electricity | G25: Distribution | H25: Revenue cap | I25: Financial | J25: June | K25: 5 | L25: 5 | M25: 2 | N25: distribution determination | O25: 123 Straight Street | Q25: SYDNEY | R25: NSW | S25: 2000 | T25: PO Box 123 | V25: SYDNEY | W25: NSW | X25: 2000 | Y25: Bob Smith | Z25: 02 1234 5678 | AA25: bob@auselec.net.au | AB25: n/a | AC25: n/a | AD25: n/a | AE25: n/a | AF25: NO | AH25: CBD | AI25: Urban | AJ25: Short rural | AK25: Long rural | AM25: Australian Distribution Co.
B26: Australian Distribution Co. (Vic) | C26: Australian Distribution Co. (Victoria) | D26: 11222333444 | E26: Vic | F26: Electricity | G26: Distribution | H26: Revenue cap | I26: Calendar | J26: December | K26: 5 | L26: 5 | M26: 2 | N26: distribution determination | O26: 123 Straight Street | Q26: MELBOURNE | R26: Vic | S26: 3000 | T26: PO Box 123 | V26: MELBOURNE | W26: VIC | X26: 3000 | Y26: Bob Smith | Z26: 02 1234 5678 | AA26: bob@auselec.net.au | AB26: n/a | AC26: n/a | AD26: n/a | AE26: n/a | AF26: NO | AH26: CBD | AI26: Urban | AJ26: Short rural | AK26: Long rural | AM26: Australian Distribution Co. (Vic)
B27: Australian Transmission Co. | C27: Australian Transmission Co. | D27: 11222333444 | E27: - | F27: Electricity | G27: Transmission | H27: Revenue cap | I27: Financial | J27: June | K27: 5 | L27: 5 | M27: 5 | N27: transmission determination | O27: 123 Straight Street | Q27: SYDNEY | R27: NSW | S27: 2000 | T27: PO Box 123 | V27: SYDNEY | W27: NSW | X27: 2000 | Y27: Bob Smith | Z27: 02 1234 5678 | AA27: bob@auselec.net.au | AB27: n/a | AC27: n/a | AD27: n/a | AE27: n/a | AF27: NO | AH27: CBD | AI27: Urban | AJ27: Short rural | AK27: Long rural | AM27: Australian Transmission Co.
B28: Central Ranges Pipeline (D) | C28: Central Ranges Pipeline Pty Ltd | D28: 108218355 | E28: NSW | F28: Gas | G28: Distribution | H28: Weighted average price cap | I28: Financial | J28: June | K28: 15 | L28: 5 | M28: 5 | N28: distribution determination | O28: Level 19 | P28: 580 George Street | Q28: SYDNEY | R28: NSW | S28: 2000 | T28: PO Box R41 | V28: ROYAL EXCHANGE | W28: NSW | X28: 1225 | Y28: Scott Young | Z28: 02 9275 0031 | AA28: scott.young@apa.com.au | AB28: n/a | AC28: n/a | AD28: n/a | AE28: n/a | AF28: n/a | AH28: CBD | AI28: Urban | AJ28: Short rural | AK28: Long rural
B29: Central Ranges Pipeline (T) | C29: Central Ranges Pipeline Pty Ltd | D29: 108218355 | E29: NSW | F29: Gas | G29: Distribution | H29: Weighted average price cap | I29: Financial | J29: June | K29: 14 | L29: 5 | M29: 5 | N29: transmission determination | O29: Level 19 | P29: 580 George Street | Q29: SYDNEY | R29: NSW | S29: 2000 | T29: PO Box R41 | V29: ROYAL EXCHANGE | W29: NSW | X29: 1225 | Y29: Scott Young | Z29: 02 9275 0031 | AA29: scott.young@apa.com.au | AB29: n/a | AC29: n/a | AD29: n/a | AE29: n/a | AF29: n/a | AH29: CBD | AI29: Urban | AJ29: Short rural | AK29: Long rural
B30: CitiPower | C30: CitiPower | D30: 76064651056 | E30: Vic | F30: Electricity | G30: Distribution | H30: Revenue cap | I30: Calendar | J30: December | K30: 5 | L30: 5 | M30: 2 | N30: 2016-20 Distribution Determination | O30: 40 Market Street | Q30: MELBOURNE | R30: Vic | S30: 3000 | T30: Locked Bag 14090 | V30: MELBOURNE | W30: VIC | X30: 8001 | Y30: Hannah Williams | Z30: 03 9683 4088 | AA30: hwilliams@powercor.com.au | AB30: YES | AC30: YES | AD30: NO | AE30: NO | AF30: NO | AH30: CBD | AI30: Urban | AJ30: Short rural | AK30: Long rural | AM30: CitiPower
B31: Directlink | C31: Directlink | D31: 16779340889 | E31: Qld | F31: Electricity | G31: Transmission | H31: Revenue cap | I31: Financial | J31: June | K31: 9 | L31: 5 | M31: 5 | N31: transmission determination | O31: Level 19, HSBC Building | P31: 580 George Street | Q31: SYDNEY | R31: NSW | S31: 2000 | T31: PO Box R41 | V31: ROYAL EXCHANGE | W31: NSW | X31: 1225 | Y31: Scott Young | Z31: 02 9275 0031 | AA31: scott.young@apa.com.au | AB31: n/a | AC31: n/a | AD31: n/a | AE31: n/a | AF31: n/a | AH31: CBD | AI31: Urban | AJ31: Short rural | AK31: Long rural | AM31: Directlink
B32: ElectraNet | C32: ElectraNet | D32: 41094482416 | E32: SA | F32: Electricity | G32: Transmission | H32: Revenue cap | I32: Financial | J32: June | K32: 5 | L32: 5 | M32: 5 | N32: transmission determination | O32: 52-55 East Terrace | P32: Rymill Park | Q32: ADELAIDE | R32: SA | S32: 5000 | T32: PO Box 7096 | U32: Hutt Street Post Office | V32: ADELAIDE | W32: SA | X32: 5000 | Y32: Bill Jackson | Z32: 08 8404 7969 | AA32: jackson.bill@electranet.com.au | AB32: n/a | AC32: n/a | AD32: n/a | AE32: n/a | AF32: n/a | AH32: CBD | AI32: Urban | AJ32: Short rural | AK32: Long rural | AM32: ElectraNet
B33: Endeavour Energy | C33: Endeavour Energy | D33: 11247365823 | E33: NSW | F33: Electricity | G33: Distribution | H33: Revenue cap | I33: Financial | J33: June | K33: 5 | L33: 5 | M33: 5 | N33: 2014-19 Distribution Determination | O33: 51 Huntingwood Drive | Q33: HUNTINGWOOD | R33: NSW | S33: 2148 | T33: PO Box 811 | V33: SEVEN HILLS | W33: NSW | X33: 1730 | Y33: Jon Hocking | Z33: 02 9853 4386 / 0407 348 156 | AA33: Jon.Hocking@Endeavourenergy.com.au | AB33: NO | AC33: YES | AD33: YES | AE33: YES | AF33: NO | AH33: CBD | AI33: Urban | AJ33: Short rural | AK33: Long rural | AM33: Endeavour Energy
B34: Energex | C34: Energex | D34: 40078849055 | E34: Qld | F34: Electricity | G34: Distribution | H34: Revenue cap | I34: Financial | J34: June | K34: 5 | L34: 5 | M34: 5 | N34: 2015-20 Distribution Determination | O34: 26 Reddacliff Street | Q34: NEWSTEAD | R34: Qld | S34: 4006 | T34: 26 Reddacliff Street | V34: NEWSTEAD | W34: QLD | X34: 4006 | Y34: Nicola Roscoe | Z34: 07 3664 5891 | AA34: nicolaroscoe@energex.com.au | AB34: YES | AC34: YES | AD34: YES | AE34: NO | AF34: NO | AH34: CBD | AI34: Urban | AJ34: Short rural | AK34: Long rural | AM34: Energex
B35: Ergon Energy | C35: Ergon Energy | D35: 50087646062 | E35: Qld | F35: Electricity | G35: Distribution | H35: Revenue cap | I35: Financial | J35: June | K35: 5 | L35: 5 | M35: 5 | N35: 2015-20 Distribution Determination | O35: 22 Walker Street | Q35: TOWNSVILLE | R35: Qld | S35: 4810 | T35: Po Box 264 | V35: FORTITUDE VALLEY | W35: QLD | X35: 4006 | Y35: Jenny Doyle, Group Manager Regulatory Affairs | Z35: (07) 3851 6416 | AA35: jenny.doyle@ergon.com.au | AB35: NO | AC35: YES | AD35: YES | AE35: YES | AF35: NO | AH35: CBD | AI35: Urban | AJ35: Short rural | AK35: Long rural | AM35: Ergon Energy
B36: Essential Energy | C36: Essential Energy | D36: 37428185226 | E36: NSW | F36: Electricity | G36: Distribution | H36: Revenue cap | I36: Financial | J36: June | K36: 5 | L36: 5 | M36: 5 | N36: 2014-19 Distribution Determination | O36: 8 Buller Street | Q36: PORT MACQUARIE | R36: NSW | S36: 2444 | T36: PO Box 5730 | V36: PORT MACQUARIE | W36: NSW | X36: 2444 | Y36: Catherine Waddell | Z36: 02 6338 3553 | AA36: catherine.waddell@essentialenergy.com.au | AB36: NO | AC36: NO | AD36: YES | AE36: YES | AF36: NO | AH36: CBD | AI36: Urban | AJ36: Short rural | AK36: Long rural | AM36: Essential Energy
B37: Jemena Electricity | C37: Jemena Electricity | D37: 82064651083 | E37: Vic | F37: Electricity | G37: Distribution | H37: Revenue cap | I37: Calendar | J37: December | K37: 5 | L37: 5 | M37: 2 | N37: 2016-20 Distribution Determination | O37: Level 16 | P37: 567 Collins Street | Q37: MELBOURNE | R37: VIC | S37: 3000 | T37: PO Box 16182 | V37: MELBOURNE | W37: VIC | X37: 8001 | Y37: Matthew Serpell | Z37: 03 9173 8231 | AA37: matthew.serpell@jemena.com.au | AB37: NO | AC37: NO | AD37: YES | AE37: NO | AF37: NO | AH37: CBD | AI37: Urban | AJ37: Short rural | AK37: Long rural | AM37: Jemena Electricity
B38: JGN | C38: Jemena Gas Networks (NSW) Ltd | D38: 003 004 322 | E38: NSW | F38: Gas | G38: Distribution | H38: Weighted average price cap | I38: Financial | J38: June | K38: 5 | L38: 5 | Y38: please provide contact details | AB38: n/a | AC38: n/a | AD38: n/a | AE38: n/a | AF38: n/a | AH38: CBD | AI38: Urban | AJ38: Short rural | AK38: Long rural | AM38: JGN
B39: Multinet Gas | C39: Multinet Gas (DB No.1) Pty Ltd (ACN 086 026 986), Multinet Gas (DB No.2) Pty Ltd (ACN 086 230 122) | D39: 086026986 | E39: Vic | F39: Gas | G39: Distribution | H39: Weighted average price cap | I39: Calendar | J39: December | K39: 5 | L39: 5 | M39: x | O39: 43-45 Centreway | Q39: MT WAVERLEY | R39: Vic | S39: 3149 | Y39: Andrew Schille | Z39: 03 8846 9860 | AA39: andrew.schille@ue.com.au | AB39: n/a | AC39: n/a | AD39: n/a | AE39: n/a | AF39: n/a | AH39: CBD | AI39: Urban | AJ39: Short rural | AK39: Long rural | AM39: Multinet Gas
B40: Murraylink | C40: Murraylink | D40: 79181207909 | E40: SA | F40: Electricity | G40: Transmission | H40: Revenue cap | I40: Financial | J40: June | K40: 5 | L40: 5 | M40: 5 | N40: transmission determination | O40: Level 19 | P40: 580 George Street | Q40: SYDNEY | R40: NSW | S40: 2000 | T40: PO Box R41 | V40: ROYAL EXCHANGE | W40: NSW | X40: 1225 | Y40: Scott Young | Z40: 02 9275 0031 | AA40: scott.young@apa.com.au | AB40: n/a | AC40: n/a | AD40: n/a | AE40: n/a | AF40: n/a | AH40: CBD | AI40: Urban | AJ40: Short rural | AK40: Long rural | AM40: Murraylink
B41: Power and Water | C41: Power and Water Corporation | D41: 15947352360 | E41: NT | F41: Electricity | G41: Distribution | H41: Revenue cap | I41: Financial | J41: June | K41: 5 | L41: 5 | M41: x | N41: distribution determination | O41: GPO Box 1921 | Q41: DARWIN | R41: NT | S41: 801 | T41: GPO Box 1921 | V41: DARWIN | W41: NT | X41: 801 | Y41: Lucy Moon | Z41: 08 8924 5822 | AA41: Lucy.Moon@powerwater.com.au | AB41: YES | AC41: YES | AD41: YES | AE41: YES | AF41: NO | AH41: CBD | AI41: Urban | AJ41: Short rural | AK41: Long rural
B42: Powercor Australia | C42: Powercor Australia | D42: 89064651109 | E42: Vic | F42: Electricity | G42: Distribution | H42: Revenue cap | I42: Calendar | J42: December | K42: 5 | L42: 5 | M42: 2 | N42: 2016-20 Distribution Determination | O42: 40 Market Street | Q42: MELBOURNE | R42: Vic | S42: 3000 | T42: Locked bag 14090 | V42: MELBOURNE | W42: VIC | X42: 8001 | Y42: Hannah Williams | Z42: 03 9683 4088 | AA42: hwilliams@powercor.com.au | AD42: YES | AE42: YES | AF42: NO | AH42: CBD | AI42: Urban | AJ42: Short rural | AK42: Long rural | AM42: Powercor Australia
B43: Powerlink | C43: Queensland Electricity Transmission Corporation Limited trading as Powerlink Queensland | D43: 82078849233 | E43: Qld | F43: Electricity | G43: Transmission | H43: Revenue cap | I43: Financial | J43: June | K43: 5 | L43: 5 | M43: 5 | N43: transmission determination | O43: 33 Harold St | Q43: VIRGINIA | R43: Qld | S43: 4014 | T43: PO Box 1193 | V43: VIRGINIA | W43: QLD | X43: 4014 | Y43: Jennifer Harris | Z43: 07 3860 2667 | AA43: jharris@powerlink.com.au | AB43: n/a | AC43: n/a | AD43: n/a | AE43: n/a | AF43: n/a | AH43: CBD | AI43: Urban | AJ43: Short rural | AK43: Long rural | AM43: Powerlink
B44: Roma to Brisbane Pipeline | C44: APT Petroleum Pipelines Limited t/a Roma to Brisbane Pipeline | D44: 009 737 393 | E44: Qld | F44: Gas | G44: Transmission | H44: Weighted average price cap | I44: Financial | J44: June | K44: 5 | L44: 5 | M44: x | N44: n/a | O44: 580 George Street | Q44: SYDNEY | R44: NSW | S44: 2000 | T44: PO Box R41 | V44: ROYAL EXCHANGE | W44: NSW | X44: 1225 | Y44: Mark Allen | Z44: 02 9275 0010 | AA44: mark.allen@apa.com.au | AB44: n/a | AC44: n/a | AD44: n/a | AE44: n/a | AF44: n/a | AH44: CBD | AI44: Urban | AJ44: Short rural | AK44: Long rural | AM44: Roma to Brisbane Pipeline
B45: SA Power Networks | C45: SA Power Networks | D45: 13332330749 | E45: SA | F45: Electricity | G45: Distribution | H45: Revenue cap | I45: Financial | J45: June | K45: 5 | L45: 5 | M45: 5 | N45: 2015-20 Distribution Determination | O45: 1 Anzac Highway | Q45: KESWICK | R45: SA | S45: 5035 | T45: GPO Box 77 | V45: ADELAIDE | W45: SA | X45: 5000 | Y45: Richard Sibly | Z45: 08 8404 5613 | AA45: richard.sibly@sapowernetworks.com.au | AB45: NO | AC45: NO | AD45: YES | AE45: YES | AF45: NO | AH45: CBD | AI45: Urban | AJ45: Short rural | AK45: Long rural | AM45: SA Power Networks
B46: TasNetworks (D) | C46: TasNetworks (D) | D46: 24167357299 | E46: Tas | F46: Electricity | G46: Distribution | H46: Revenue cap | I46: Financial | J46: June | K46: 5 | L46: 5 | M46: 5 | N46: distribution determination | O46: 1-7 Maria Street | Q46: LENAH VALLEY | R46: Tas | S46: 7008 | T46: PO Box 606 | V46: MOONAH | W46: Tas | X46: 7009 | Y46: John Sayers | Z46: 03 6271 6469 | AA46: john.sayers@tasnetworks.com.au | AB46: YES | AC46: YES | AD46: YES | AE46: YES | AF46: YES | AH46: Critical Infrastructure | AI46: High density commercial | AJ46: Urban | AK46: High density rural | AL46: Low density rural | AM46: TasNetworks (D)
B47: TasNetworks (T) | C47: TasNetworks (T) | D47: 24167357299 | E47: Tas | F47: Electricity | G47: Transmission | H47: Revenue cap | I47: Financial | J47: June | K47: 5 | L47: 5 | M47: 5 | N47: transmission determination | O47: 1-7 Maria Street | Q47: LENAH VALLEY | R47: Tas | S47: 7008 | T47: PO Box 606 | V47: MOONAH | W47: Tas | X47: 7009 | Y47: John Sayers | Z47: 03 6271 6469 | AA47: john.sayers@tasnetworks.com.au | AB47: n/a | AC47: n/a | AD47: n/a | AE47: n/a | AF47: n/a | AH47: CBD | AI47: Urban | AJ47: Short rural | AK47: Long rural | AM47: TasNetworks (T)
B48: TransGrid | C48: NSW Electricity Networks Operations Pty Ltd trading as TransGrid | D48: 609169959 | E48: NSW | F48: Electricity | G48: Transmission | H48: Revenue cap | I48: Financial | J48: June | K48: 5 | L48: 4 | M48: 5 | N48: transmission determination | O48: 180 Thomas Street | Q48: SYDNEY | R48: NSW | S48: 2000 | T48: PO Box A1000 | V48: SYDNEY SOUTH | W48: NSW | X48: 1235 | Y48: Garrie Chubb | Z48: 0408 210 221 | AA48: garrie.chubb@transgrid.com.au | AB48: n/a | AC48: n/a | AD48: n/a | AE48: n/a | AF48: n/a | AH48: CBD | AI48: Urban | AJ48: Short rural | AK48: Long rural | AM48: TransGrid
B49: United Energy | C49: United Energy | D49: 70064651029 | E49: Vic | F49: Electricity | G49: Distribution | H49: Revenue cap | I49: Calendar | J49: December | K49: 5 | L49: 5 | M49: 2 | N49: 2016-20 Distribution Determination | O49: Level 3 | P49: 6 Nexus Court | Q49: MULGRAVE | R49: Vic | S49: 3149 | T49: PO Box 449 | V49: MOUNT WAVERLEY | W49: VIC | X49: 3170 | Y49: Mathew Abraham | Z49: 03 8846 9758 | AA49: mathew.abraham@ue.com.au | AB49: NO | AC49: NO | AD49: YES | AE49: NO | AF49: NO | AH49: CBD | AI49: Urban | AJ49: Short rural | AK49: Long rural | AM49: United Energy
B50: Western Power (D) | C50: Western Power (D) | D50: 18540492861 | E50: WA | F50: Electricity | G50: Distribution | H50: Revenue cap | I50: Financial | J50: June | K50: 12 | L50: 4 | M50: x | N50: distribution determination | O50: 363 Wellington Street | Q50: PERTH | R50: WA | S50: 6000 | T50: GPO Box L921 | V50: PERTH | W50: WA | X50: 6842 | Y50: Judy Hunter | Z50: 08 9326 6239 | AA50: judy.hunter@westernpower.com.au | AB50: NO | AC50: NO | AD50: YES | AE50: YES | AF50: NO | AG50: NO | AH50: CBD | AI50: Urban | AJ50: Short rural | AK50: Long rural | AM50: Western Power (D)
B51: Western Power (T) | C51: Western Power (T) | D51: 18540492861 | E51: WA | F51: Electricity | G51: Transmission | H51: Revenue cap | I51: Financial | J51: June | K51: 12 | L51: 4 | M51: x | N51: transmission determination | O51: 363 Wellington Street | Q51: PERTH | R51: WA | S51: 6000 | T51: GPO Box L921 | V51: PERTH | W51: WA | X51: 6842 | Y51: Judy Hunter | Z51: 08 9326 6239 | AA51: judy.hunter@westernpower.com.au | AB51: n/a | AC51: n/a | AD51: n/a | AE51: n/a | AF51: n/a | AH51: CBD | AI51: Urban | AJ51: Short rural | AK51: Long rural | AM51: Western Power (T)
Y54: For EB & Reset RINs only | AD54: For AARs only
B55: The Reg Year Ending (dms_RYE) must be set to the last year of the regulatory period. For forecast data is is usually (FRCP_y5) for actual it is a single year (CRY). For historical actual data the RYE will need to be set manually in the business details sheet by setting the dms_Multiyear_flag to 1 and putting the correct value in 'dms_Specified_FinalYear. See cells C67:C68 | G55: =IF(dms_RPT="financial",VALUE(LEFT(CRCP_y1,4)-1)&"-"&TEXT(VALUE(RIGHT(CRCP_y1,2)-1),"00"),VALUE(LEFT(CRCP_y1,4)-1)) -> 2014-15 | N55: Drop down selector box for CA & Reset RINs. | O55: For CA & Reset RINs only | Y55: for DNSP only | AD55: For DNSPs only | AJ55: Reason for interruption | AK55: dms_Reason_Interruption_Detailed | AL55: dms_Reason_Interruption | AM55: dms_STPIS_Exclusion_List
B56: dms_Model_List | C56: DELETE NR 'CRY' IF NOT AN ANNUAL RIN (EB, CA , ARR) | E56: dms_RYE_Formula_Result | N56: dms_0203_ProjectType | O56: dms_020303_01_UOM | P56: dms_020501_01_UOM | Q56: dms_020501_02_UOM | R56: dms_020501_03_UOM | S56: dms_020501_04_UOM | T56: dms_020603_01_UOM | U56: dms_020701_01_UOM | V56: dms_020701_02_UOM | W56: dms_040102_01_UOM | X56: dms_040102_04_UOM | Y56: dms_030601_01_UOM | Z56: dms_030601_02_UOM | AA56: dms_030701_01_UOM | AB56: dms_030702_01_UOM | AC56: dms_030703_01_UOM | AD56: dms_030605_UOM | AE56: dms_03060703_UOM | AJ56: Animal | AK56: Animal impact | AL56: Animal | AM56: Weather
B57: ARR | C57: ANNUAL REPORTING STATEMENT | E57: =LEFT(dms_SingleYear_FinalYear_Result,2)&RIGHT(dms_SingleYear_FinalYear_Result,2) -> 2018 | F57: =LEFT(dms_SingleYear_FinalYear_Result,2)&RIGHT(dms_SingleYear_FinalYear_Result,2) | H57: Formula errors are OK | N57: New line on new route - single circuit | O57: Circuit line length in km | P57: 0's | Q57: 0's | R57: 0's | S57: 0's | T57: 0's | U57: km | V57: km | W57: 0's | X57: days | Y57: minutes/customer | Z57: minutes/customer | AA57: Customer / km | AB57: % | AC57: km | AD57: number | AE57: number | AK57: Animal nesting/burrowing, etc and other | AL57: Asset failure | AM57: Equipment failure
B58: CA | C58: CATEGORY ANALYSIS | E58: =LEFT(dms_SingleYear_FinalYear_Result,2)&RIGHT(dms_SingleYear_FinalYear_Result,2) -> 2018 | F58: =LEFT(dms_SingleYear_FinalYear_Result,2)&RIGHT(dms_SingleYear_FinalYear_Result,2) | H58: Formula errors are OK | N58: New line on new route - dual circuit | O58: Circuit line length in km | P58: 0's | Q58: 0's | R58: 0's | S58: 0's | T58: 0's | U58: 0's | V58: 0's | W58: 0's | X58: 0's | Y58: minutes/customer | Z58: minutes/customer | AA58: MWh/customer | AB58: Number of spans | AD58: number | AE58: number | AK58: Other | AL58: Other | AM58: Operational error
B59: CPI | C59: CPI | N59: New line on new route - other | O59: Circuit line length in km | P59: MVA added | Q59: MVA added | R59: MVA added | S59: MVA added | T59: 0's | U59: km | V59: km | W59: 0's | X59: $0s | Y59: interruptions/customer | Z59: interruptions/customer | AA59: kVA / customer | AB59: Number of spans | AD59: number | AE59: number | AJ59: Asset failure | AK59: LV | AL59: Overloads | AM59: Vegetation
B60: EB | C60: ECONOMIC BENCHMARKING | E60: =LEFT(dms_SingleYear_FinalYear_Result,2)&RIGHT(dms_SingleYear_FinalYear_Result,2) -> 2018 | F60: =LEFT(dms_SingleYear_FinalYear_Result,2)&RIGHT(dms_SingleYear_FinalYear_Result,2) | H60: Formula errors are OK | N60: Line rebuild over existing route - single circuit | O60: Circuit line length in km | P60: 0's | Q60: 0's | R60: 0's | S60: 0's | T60: 0's | U60: km | V60: km | W60: $0s | X60: 0's | Y60: interruptions/customer | Z60: interruptions/customer | AB60: Number of spans | AD60: number | AE60: number | AK60: Distribution substation | AL60: Planned | AM60: Animals
B61: PTRM | C61: POST TAX REVENUE MODEL | E61: =LEFT(dms_MultiYear_FinalYear_Result,2)&RIGHT(dms_MultiYear_FinalYear_Result,2) -> 2025 | F61: =LEFT(dms_MultiYear_FinalYear_Result,2)&RIGHT(dms_MultiYear_FinalYear_Result,2) | N61: Line rebuild over existing route - dual circuit | O61: Number | P61: total spend $0s | Q61: total spend $0s | R61: total spend $0s | S61: total spend $0s | T61: (per cent) | U61: 0's | V61: 0's | AB61: Number of spans | AD61: number | AE61: (per cent) | AK61: HV | AL61: Network business | AM61: Third party impacts
B62: Reset | C62: REGULATORY REPORTING STATEMENT | E62: =LEFT(dms_MultiYear_FinalYear_Result,2)&RIGHT(dms_MultiYear_FinalYear_Result,2) -> 2025 | F62: =LEFT(dms_MultiYear_FinalYear_Result,2)&RIGHT(dms_MultiYear_FinalYear_Result,2) | H62: Formula errors are OK | N62: Reconductor - Single circuit | O62: Number | P62: net circuit km added | Q62: net circuit km added | R62: net circuit km added | S62: net circuit km added | U62: years | V62: years | AB62: Years | AD62: number | AK62: Zone substation | AL62: Third party | AM62: Transmission failure
B63: RFM | C63: ROLL FORWARD MODEL | E63: =LEFT(dms_CRCP_FinalYear_Result,2)&RIGHT(dms_CRCP_FinalYear_Result,2) -> 2018 | F63: =LEFT(dms_CRCP_FinalYear_Result,2)&RIGHT(dms_CRCP_FinalYear_Result,2) | N63: Reconductor - Dual circuit | O63: Number | P63: total spend $0s | Q63: total spend $0s | R63: total spend $0s | S63: total spend $0s | AB63: Years | AD63: number | AK63: Subtransmission | AL63: Unknown | AM63: Load shedding
B64: WACC | C64: WEIGHTED AVERAGE COST OF CAPITAL | E64: =LEFT(dms_MultiYear_FinalYear_Result,2)&RIGHT(dms_MultiYear_FinalYear_Result,2) -> 2025 | F64: =LEFT(dms_MultiYear_FinalYear_Result,2)&RIGHT(dms_MultiYear_FinalYear_Result,2) | N64: Other | P64: net circuit km added | Q64: net circuit km added | R64: net circuit km added | S64: net circuit km added | AB64: Trees | AD64: number | AJ64: Other | AK64: insert description of 'other' | AL64: Vegetation | AM64: Inter-distributor connection failure
P65: total spend $0s | Q65: total spend $0s | R65: total spend $0s | S65: total spend $0s | AB65: Trees | AD65: number | AJ65: Overloads | AK65: - | AL65: Weather | AM65: Other
B66: dms_DataQuality_List | P66: 0's | R66: $0s | AB66: Defects | AD66: number | AJ66: Planned | AK66: - | AL66: 2 - STPIS Exclusion (3.3)(a)
B67: Actual | P67: 0's | AB67: Defects | AD67: number | AJ67: Network business | AK67: Network error | AL67: 3 - STPIS Exclusion (3.3)(a)
B68: Estimate | P68: 0's | AB68: Spans | AD68: number | AK68: Switching and protection error | AL68: 4 - STPIS Exclusion (3.3)(a)
B69: Consolidated | P69: $0s | AB69: km | AD69: (per cent) | AJ69: Third party | AK69: Fire | AL69: 5 - STPIS Exclusion (3.3)(a)
B70: Recast | AB70: Spans | AD70: (per cent) | AK70: Other | AL70: 6 - STPIS Exclusion (3.3)(a)
B71: Public | AK71: Dig-in | AL71: 7 - STPIS Exclusion (3.3)(a)
AK72: Unauthorised access
B73: For all files either AER or business needs to be able to specify the type of submission | C73: For PTRM & RFM templates we must provide a choice in case they change their form of control - otherwise it is drawn from the business specific lookup table above. | O73: For PTRM files - this field set the text for the named range "DMS_Xfactor" which in all cases is simply the text "x factors" - this saves putting in each old gas PTRM file | Y73: for TNSP only | AK73: Vehicle impact
B74: dms_SourceList | C74: dms_FormControl_Choices | O74: DMS_Xfactor | Y74: dms_030601_01_UOM | AA74: dms_030701_01_UOM | AB74: dms_030702_01_UOM | AJ74: Unknown | AK74: Unknown
B75: After appeal | C75: Revenue cap | O75: x factors | Y75: % | AA75: Number of spans | AB75: km | AJ75: Vegetation | AK75: Blow-in/Fall-in - NSP responsibility
B76: Draft decision | C76: Revenue yield | Y76: number | AA76: Years | AB76: % | AK76: Grow-in - NSP responsibility
B77: Final decision | C77: Weighted average price cap | Y77: number | AA77: Trees | AB77: km | AK77: Blow-in/Fall-in - Other responsible party
B78: PTRM update 1 | Y78: % | AA78: Defects | AB78: number | AK78: Grow-in - Other responsible party
B79: PTRM update 2 | Y79: number | AA79: Number of spans | AJ79: Weather
B80: PTRM update 3 | Y80: number | AA80: km | AJ80: 2 - STPIS Exclusion (3.3)(a)
B81: PTRM update 4 | Y81: % | AA81: km | AJ81: 3 - STPIS Exclusion (3.3)(a)
B82: PTRM update 5 | Y82: number | AA82: Number of spans | AJ82: 4 - STPIS Exclusion (3.3)(a)
B83: PTRM update 6 | Y83: number | AJ83: 5 - STPIS Exclusion (3.3)(a)
B84: PTRM update 7 | Y84: % | AJ84: 6 - STPIS Exclusion (3.3)(a)
B85: Regulatory proposal | Y85: number | AJ85: 7 - STPIS Exclusion (3.3)(a)
B86: Reporting | Y86: %
B87: Revised regulatory proposal | Y87: number
Y88: %
Y89: number
B93: These are indeces and lookup values for various dates. All step from the value placed in FRCP_y1 on the business and other details worksheet | C93: =IF(dms_FifthFeeder_flag_NSP="NO","This NSP has only 4 feeder categories","This NSP has 5 feeder categories") -> This NSP has only 4 feeder categories | L93: These date tables are currently used in the Recast templates to provide column headings and conditional formatting
B94: dms_FRCPlength_Num_List | C94: dms_FinalYear_List | D94: dms_CRCPlength_Num_List | E94: dms_CFinalYear_List | F94: dms_FRCP_years | H94: dms_CRCP_years | J94: dms_CRCP_index | L94: CRY from input cell on business sheet | M94: CRY - financial | N94: dms_FinYears | O94: CRY calendar | P94: dms_CalYears | Y94: These "row descriptions" are the column headings in the various templates but become row descriptions in the ETL process
B95: 1 | C95: dms_FRCP_y1 | D95: 1 | E95: CRCP_y1 | F95: =FRCP_y1 -> 2020-21 | G95: dms_FRCP_y1 | H95: =IF(dms_RPT="financial",VALUE(LEFT(dms_FRCP_y1,4)-1)&"-"&TEXT(VALUE(MID(dms_FRCP_y1,3,2)),"00"),VALUE(LEFT(dms_FRCP_y1,4)-1)) -> 2019-20 | I95: dms_CRCP_yZ | J95: 1 | L95: =CRY -> 2017-18 | M95: =VALUE(LEFT(CRY,4))&"-"&TEXT(MID(CRY,3,2)+1,"00") -> 2017-18 | N95: dms_CRYf_y1 | O95: =VALUE(LEFT(CRY,4)+1) -> 2018 | P95: dms_CRYc_y1 | Z95: Table 6.3 sustained interruptions - row descriptions
B96: 2 | C96: dms_FRCP_y2 | D96: 2 | E96: CRCP_y2 | F96: =IF(dms_RPT="financial",VALUE(LEFT(dms_FRCP_y1,4)+1)&"-"&TEXT(VALUE(RIGHT(dms_FRCP_y1,2)+1),"00"),VALUE(LEFT(dms_FRCP_y1,4)+1)) -> 2021-22 | G96: dms_FRCP_y2 | H96: =IF(dms_RPT="financial",VALUE(LEFT(dms_CRCP_yZ,4)-1)&"-"&TEXT(VALUE(MID(dms_CRCP_yZ,3,2)),"00"),VALUE(LEFT(dms_CRCP_yZ,4)-1)) -> 2018-19 | I96: dms_CRCP_yY | J96: 2 | M96: =VALUE(LEFT(dms_CRYf_y1,4)+1)&"-"&TEXT(MID(dms_CRYf_y1,3,2)+2,"00") -> 2018-19 | N96: dms_CRYf_y2 | O96: =VALUE(LEFT(dms_CRYc_y1,4)+1) -> 2019 | P96: dms_CRYc_y2 | Z96: dms_060301_CustNo_Affected_Row | AA96: dms_060301_Avg_Duration_Sustained_Int_Row | AB96: dms_060301_Effect_unplanned_SAIDI_Row | AC96: dms_060301_Effect_unplanned_SAIFI_Row
B97: 3 | C97: =IF(dms_Model="ARR",15,9) | D97: 3 | E97: =IF(dms_Model="ARR",15,9) | F97: =IF(dms_RPT="financial",VALUE(LEFT(dms_FRCP_y2,4)+1)&"-"&TEXT(VALUE(RIGHT(dms_FRCP_y2,2)+1),"00"),VALUE(LEFT(dms_FRCP_y2,4)+1)) -> 2022-23 | G97: dms_FRCP_y3 | H97: =IF(dms_RPT="financial",VALUE(LEFT(dms_CRCP_yY,4)-1)&"-"&TEXT(VALUE(MID(dms_CRCP_yY,3,2)),"00"),VALUE(LEFT(dms_CRCP_yY,4)-1)) -> 2017-18 | I97: dms_CRCP_yX | J97: 3 | M97: =VALUE(LEFT(dms_CRYf_y2,4)+1)&"-"&TEXT(MID(dms_CRYf_y2,3,2)+2,"00") -> 2019-20 | N97: dms_CRYf_y3 | O97: =VALUE(LEFT(dms_CRYc_y2,4)+1) -> 2020 | P97: dms_CRYc_y3 | Z97: Number of customers affected by the interruption | AA97: Average duration of sustained customer interruption | AB97: Effect on unplanned SAIDI | AC97: Effect on unplanned SAIFI
B98: 4 | C98: dms_FRCP_y4 | D98: 4 | E98: CRCP_y4 | F98: =IF(dms_RPT="financial",VALUE(LEFT(dms_FRCP_y3,4)+1)&"-"&TEXT(VALUE(RIGHT(dms_FRCP_y3,2)+1),"00"),VALUE(LEFT(dms_FRCP_y3,4)+1)) -> 2023-24 | G98: dms_FRCP_y4 | H98: =IF(dms_RPT="financial",VALUE(LEFT(dms_CRCP_yX,4)-1)&"-"&TEXT(VALUE(MID(dms_CRCP_yX,3,2)),"00"),VALUE(LEFT(dms_CRCP_yX,4)-1)) -> 2016-17 | I98: dms_CRCP_yW | J98: 4 | M98: =VALUE(LEFT(dms_CRYf_y3,4)+1)&"-"&TEXT(MID(dms_CRYf_y3,3,2)+2,"00") -> 2020-21 | N98: dms_CRYf_y4 | O98: =VALUE(LEFT(dms_CRYc_y3,4)+1) -> 2021 | P98: dms_CRYc_y4
B99: 5 | C99: dms_FRCP_y5 | D99: 5 | E99: CRCP_y5 | F99: =IF(dms_RPT="financial",VALUE(LEFT(dms_FRCP_y4,4)+1)&"-"&TEXT(VALUE(RIGHT(dms_FRCP_y4,2)+1),"00"),VALUE(LEFT(dms_FRCP_y4,4)+1)) -> 2024-25 | G99: dms_FRCP_y5 | H99: =IF(dms_RPT="financial",VALUE(LEFT(dms_CRCP_yW,4)-1)&"-"&TEXT(VALUE(MID(dms_CRCP_yW,3,2)),"00"),VALUE(LEFT(dms_CRCP_yW,4)-1)) -> 2015-16 | I99: dms_CRCP_yV | J99: 5 | M99: =VALUE(LEFT(dms_CRYf_y4,4)+1)&"-"&TEXT(MID(dms_CRYf_y4,3,2)+2,"00") -> 2021-22 | N99: dms_CRYf_y5 | O99: =VALUE(LEFT(dms_CRYc_y4,4)+1) -> 2022 | P99: dms_CRYc_y5
B100: 6 | C100: dms_FRCP_y6 | D100: 6 | E100: CRCP_y6 | F100: =IF(dms_RPT="financial",VALUE(LEFT(dms_FRCP_y5,4)+1)&"-"&TEXT(VALUE(RIGHT(dms_FRCP_y5,2)+1),"00"),VALUE(LEFT(dms_FRCP_y5,4)+1)) -> 2025-26 | G100: dms_FRCP_y6 | H100: =IF(dms_RPT="financial",VALUE(LEFT(dms_CRCP_yV,4)-1)&"-"&TEXT(VALUE(MID(dms_CRCP_yV,3,2)),"00"),VALUE(LEFT(dms_CRCP_yV,4)-1)) -> 2014-15 | I100: dms_CRCP_yU | J100: 6 | M100: =VALUE(LEFT(dms_CRYf_y5,4)+1)&"-"&TEXT(MID(dms_CRYf_y5,3,2)+2,"00") -> 2022-23 | N100: dms_CRYf_y6 | O100: =VALUE(LEFT(dms_CRYc_y5,4)+1) -> 2023 | P100: dms_CRYc_y6
B101: 7 | C101: dms_FRCP_y7 | D101: 7 | E101: CRCP_y7 | F101: =IF(dms_RPT="financial",VALUE(LEFT(dms_FRCP_y6,4)+1)&"-"&TEXT(VALUE(RIGHT(dms_FRCP_y6,2)+1),"00"),VALUE(LEFT(dms_FRCP_y6,4)+1)) -> 2026-27 | G101: dms_FRCP_y7 | H101: =IF(dms_RPT="financial",VALUE(LEFT(dms_CRCP_yU,4)-1)&"-"&TEXT(VALUE(MID(dms_CRCP_yU,3,2)),"00"),VALUE(LEFT(dms_CRCP_yU,4)-1)) -> 2013-14 | I101: dms_CRCP_yT | J101: 7 | M101: =VALUE(LEFT(dms_CRYf_y6,4)+1)&"-"&TEXT(MID(dms_CRYf_y6,3,2)+2,"00") -> 2023-24 | N101: dms_CRYf_y7 | O101: =VALUE(LEFT(dms_CRYc_y6,4)+1) -> 2024 | P101: dms_CRYc_y7 | Z101: Table 6.1 telephone answering - row descriptions and start date
B102: 8 | C102: dms_FRCP_y8 | D102: 8 | E102: CRCP_y8 | F102: =IF(dms_RPT="financial",VALUE(LEFT(dms_FRCP_y7,4)+1)&"-"&TEXT(VALUE(RIGHT(dms_FRCP_y7,2)+1),"00"),VALUE(LEFT(dms_FRCP_y7,4)+1)) -> 2027-28 | G102: dms_FRCP_y8 | H102: =IF(dms_RPT="financial",VALUE(LEFT(dms_CRCP_yT,4)-1)&"-"&TEXT(VALUE(MID(dms_CRCP_yT,3,2)),"00"),VALUE(LEFT(dms_CRCP_yT,4)-1)) -> 2012-13 | I102: dms_CRCP_yS | J102: 8 | M102: =VALUE(LEFT(dms_CRYf_y7,4)+1)&"-"&TEXT(MID(dms_CRYf_y7,3,2)+2,"00") -> 2024-25 | N102: dms_CRYf_y8 | O102: =VALUE(LEFT(dms_CRYc_y7,4)+1) -> 2025 | P102: dms_CRYc_y8 | Z102: dms_060101_Rows | AA102: dms_060102_Rows | AB102: dms_060101_StartDateTxt
B103: 9 | C103: dms_FRCP_y9 | D103: 9 | E103: CRCP_y9 | F103: =IF(dms_RPT="financial",VALUE(LEFT(dms_FRCP_y8,4)+1)&"-"&TEXT(VALUE(RIGHT(dms_FRCP_y8,2)+1),"00"),VALUE(LEFT(dms_FRCP_y8,4)+1)) -> 2028-29 | G103: dms_FRCP_y9 | H103: =IF(dms_RPT="financial",VALUE(LEFT(dms_CRCP_yS,4)-1)&"-"&TEXT(VALUE(MID(dms_CRCP_yS,3,2)),"00"),VALUE(LEFT(dms_CRCP_yS,4)-1)) -> 2011-12 | I103: dms_CRCP_yR | J103: 9 | M103: =VALUE(LEFT(dms_CRYf_y8,4)+1)&"-"&TEXT(MID(dms_CRYf_y8,3,2)+2,"00") -> 2025-26 | N103: dms_CRYf_y9 | O103: =VALUE(LEFT(dms_CRYc_y8,4)+1) -> 2026 | P103: dms_CRYc_y9 | Z103: Total number of calls (after removing excluded events) | AA103: Number of calls answered within 30 seconds (after excluding excluded events) | AB103: =dms_060701_StartDateTxt -> 1-Jul-2017
B104: 10 | C104: =IFERROR(IF(dms_Model="ARR",(MAX(0,dms_0608_LastRow-dms_0608_OffsetRows)),"not an ARR"),"6.8 not present") | D104: 10 | E104: =IFERROR(IF(dms_Model="ARR",(MAX(0,dms_0608_LastRow-dms_0608_OffsetRows)),"not an ARR"),"6.8 not present") | F104: =IF(dms_RPT="financial",VALUE(LEFT(dms_FRCP_y9,4)+1)&"-"&TEXT(VALUE(RIGHT(dms_FRCP_y9,2)+1),"00"),VALUE(LEFT(dms_FRCP_y9,4)+1)) -> 2029-30 | G104: dms_FRCP_y10 | H104: =IF(dms_RPT="financial",VALUE(LEFT(dms_CRCP_yR,4)-1)&"-"&TEXT(VALUE(MID(dms_CRCP_yR,3,2)),"00"),VALUE(LEFT(dms_CRCP_yR,4)-1)) -> 2010-11 | I104: dms_CRCP_yQ | J104: 10 | M104: =VALUE(LEFT(dms_CRYf_y9,4)+1)&"-"&TEXT(MID(dms_CRYf_y9,3,2)+2,"00") -> 2026-27 | N104: dms_CRYf_y10 | O104: =VALUE(LEFT(dms_CRYc_y9,4)+1) -> 2027 | P104: dms_CRYc_y10
B105: 11 | C105: dms_FRCP_y11 | D105: 11 | E105: CRCP_y11 | F105: =IF(dms_RPT="financial",VALUE(LEFT(dms_FRCP_y10,4)+1)&"-"&TEXT(VALUE(RIGHT(dms_FRCP_y10,2)+1),"00"),VALUE(LEFT(dms_FRCP_y10,4)+1)) -> 2030-31 | G105: dms_FRCP_y11 | H105: =IF(dms_RPT="financial",VALUE(LEFT(dms_CRCP_yQ,4)-1)&"-"&TEXT(VALUE(MID(dms_CRCP_yQ,3,2)),"00"),VALUE(LEFT(dms_CRCP_yQ,4)-1)) -> 2009-10 | I105: dms_CRCP_yP | J105: 11 | M105: =VALUE(LEFT(dms_CRYf_y10,4)+1)&"-"&TEXT(MID(dms_CRYf_y10,3,2)+2,"00") -> 2027-28 | N105: dms_CRYf_y11 | O105: =VALUE(LEFT(dms_CRYc_y10,4)+1) -> 2028 | P105: dms_CRYc_y11
B106: 12 | C106: dms_FRCP_y12 | D106: 12 | E106: CRCP_y12 | F106: =IF(dms_RPT="financial",VALUE(LEFT(dms_FRCP_y11,4)+1)&"-"&TEXT(VALUE(RIGHT(dms_FRCP_y11,2)+1),"00"),VALUE(LEFT(dms_FRCP_y11,4)+1)) -> 2031-32 | G106: dms_FRCP_y12 | H106: =IF(dms_RPT="financial",VALUE(LEFT(dms_CRCP_yP,4)-1)&"-"&TEXT(VALUE(MID(dms_CRCP_yP,3,2)),"00"),VALUE(LEFT(dms_CRCP_yP,4)-1)) -> 2008-09 | I106: dms_CRCP_yO | J106: 12 | M106: =VALUE(LEFT(dms_CRYf_y11,4)+1)&"-"&TEXT(MID(dms_CRYf_y11,3,2)+2,"00") -> 2028-29 | N106: dms_CRYf_y12 | O106: =VALUE(LEFT(dms_CRYc_y11,4)+1) -> 2029 | P106: dms_CRYc_y12
B107: 13 | C107: dms_FRCP_y13 | D107: 13 | E107: CRCP_y13 | F107: =IF(dms_RPT="financial",VALUE(LEFT(dms_FRCP_y12,4)+1)&"-"&TEXT(VALUE(RIGHT(dms_FRCP_y12,2)+1),"00"),VALUE(LEFT(dms_FRCP_y12,4)+1)) -> 2032-33 | G107: dms_FRCP_y13 | H107: =IF(dms_RPT="financial",VALUE(LEFT(dms_CRCP_yO,4)-1)&"-"&TEXT(VALUE(MID(dms_CRCP_yO,3,2)),"00"),VALUE(LEFT(dms_CRCP_yO,4)-1)) -> 2007-08 | I107: dms_CRCP_yN | J107: 13 | M107: =VALUE(LEFT(dms_CRYf_y12,4)+1)&"-"&TEXT(MID(dms_CRYf_y12,3,2)+2,"00") -> 2029-30 | N107: dms_CRYf_y13 | O107: =VALUE(LEFT(dms_CRYc_y12,4)+1) -> 2030 | P107: dms_CRYc_y13 | AE107: dms_0603_FeederList | AF107: =INDEX(dms_FeederName_1,MATCH(dms_TradingName,dms_TradingName_List)) -> CBD | AG107: =INDEX(dms_FeederName_2,MATCH(dms_TradingName,dms_TradingName_List)) -> Urban | AH107: =INDEX(dms_FeederName_3,MATCH(dms_TradingName,dms_TradingName_List)) -> Short rural | AI107: =INDEX(dms_FeederName_4,MATCH(dms_TradingName,dms_TradingName_List)) -> Long rural | AJ107: =INDEX(dms_FeederName_5,MATCH(dms_TradingName,dms_TradingName_List)) -> 
B108: 14 | C108: dms_FRCP_y14 | D108: 14 | E108: CRCP_y14 | F108: =IF(dms_RPT="financial",VALUE(LEFT(dms_FRCP_y13,4)+1)&"-"&TEXT(VALUE(RIGHT(dms_FRCP_y13,2)+1),"00"),VALUE(LEFT(dms_FRCP_y13,4)+1)) -> 2033-34 | G108: dms_FRCP_y14 | H108: =IF(dms_RPT="financial",VALUE(LEFT(dms_CRCP_yN,4)-1)&"-"&TEXT(VALUE(MID(dms_CRCP_yN,3,2)),"00"),VALUE(LEFT(dms_CRCP_yN,4)-1)) -> 2006-07 | I108: dms_CRCP_yM | J108: 14 | M108: =VALUE(LEFT(dms_CRYf_y13,4)+1)&"-"&TEXT(MID(dms_CRYf_y13,3,2)+2,"00") -> 2030-31 | N108: dms_CRYf_y14 | O108: =VALUE(LEFT(dms_CRYc_y13,4)+1) -> 2031 | P108: dms_CRYc_y14 | Z108: Table 6.7.1 - daily performance data - unplanned - MAIFI -- row descriptions and header named range values
B109: 15 | C109: dms_FRCP_y15 | D109: 15 | E109: CRCP_y15 | F109: =IF(dms_RPT="financial",VALUE(LEFT(dms_FRCP_y14,4)+1)&"-"&TEXT(VALUE(RIGHT(dms_FRCP_y14,2)+1),"00"),VALUE(LEFT(dms_FRCP_y14,4)+1)) -> 2034-35 | G109: dms_FRCP_y15 | H109: =IF(dms_RPT="financial",VALUE(LEFT(dms_CRCP_yM,4)-1)&"-"&TEXT(VALUE(MID(dms_CRCP_yM,3,2)),"00"),VALUE(LEFT(dms_CRCP_yM,4)-1)) -> 2005-06 | I109: dms_CRCP_yL | J109: 15 | M109: =VALUE(LEFT(dms_CRYf_y14,4)+1)&"-"&TEXT(MID(dms_CRYf_y14,3,2)+2,"00") -> 2031-32 | N109: dms_CRYf_y15 | O109: =VALUE(LEFT(dms_CRYc_y14,4)+1) -> 2032 | P109: dms_CRYc_y15 | Z109: These headings (Lists) are determined from the INDEX/MATCH function on the NSP selected on the Business & other details sheet
M110: =VALUE(LEFT(dms_CRYf_y15,4)+1)&"-"&TEXT(MID(dms_CRYf_y15,3,2)+2,"00") -> 2032-33 | N110: dms_CRYf_y16 | O110: =VALUE(LEFT(dms_CRYc_y15,4)+1) -> 2033 | P110: dms_CRYc_y16 | Y110: dms_060701_Feeder_Header_Lvl4 | Z110: =INDEX(dms_FeederName_1,MATCH(dms_TradingName,dms_TradingName_List)) -> CBD | AA110: =INDEX(dms_FeederName_1,MATCH(dms_TradingName,dms_TradingName_List)) -> CBD | AB110: =INDEX(dms_FeederName_2,MATCH(dms_TradingName,dms_TradingName_List)) -> Urban | AC110: =INDEX(dms_FeederName_2,MATCH(dms_TradingName,dms_TradingName_List)) -> Urban | AD110: =INDEX(dms_FeederName_3,MATCH(dms_TradingName,dms_TradingName_List)) -> Short rural | AE110: =INDEX(dms_FeederName_3,MATCH(dms_TradingName,dms_TradingName_List)) -> Short rural | AF110: =INDEX(dms_FeederName_4,MATCH(dms_TradingName,dms_TradingName_List)) -> Long rural | AG110: =INDEX(dms_FeederName_4,MATCH(dms_TradingName,dms_TradingName_List)) -> Long rural | AH110: =IF((INDEX(dms_FeederName_5,MATCH(dms_TradingName,dms_TradingName_List))=0),"Network",(INDEX(dms_FeederName_5,MATCH(dms_TradingName,dms_TradingName_List)))) ->  | AI110: =IF((INDEX(dms_FeederName_5,MATCH(dms_TradingName,dms_TradingName_List))=0),"Network",(INDEX(dms_FeederName_5,MATCH(dms_TradingName,dms_TradingName_List)))) ->  | AJ110: Network | AK110: Network
B111: These are drop down lists for businesses to select the correct FRCP_y1 on the business and other details worksheet. This also populates the column headings in the worksheets | M111: =VALUE(LEFT(dms_CRYf_y16,4)+1)&"-"&TEXT(MID(dms_CRYf_y16,3,2)+2,"00") -> 2033-34 | N111: dms_CRYf_y17 | O111: =VALUE(LEFT(dms_CRYc_y16,4)+1) -> 2034 | P111: dms_CRYc_y17
B112: dms_RCP_fyear_list | C112: dms_CRY_ListF | D112: dms_CRY_ListC | E112: dms_RCP_cyear_list | F112: dms_FRCP_fyear_list | G112: dms_FRCP_ListF | H112: dms_FRCP_ListC | I112: dms_FRCP_cyear_list | M112: =VALUE(LEFT(dms_CRYf_y17,4)+1)&"-"&TEXT(MID(dms_CRYf_y17,3,2)+2,"00") -> 2034-35 | N112: dms_CRYf_y18 | O112: =VALUE(LEFT(dms_CRYc_y17,4)+1) -> 2035 | P112: dms_CRYc_y18 | Y112: dms_060701_Rows | Z112: All events | AA112: After removing excluded events | AB112: All events | AC112: After removing excluded events | AD112: All events | AE112: After removing excluded events | AF112: All events | AG112: After removing excluded events | AH112: All events | AI112: After removing excluded events | AJ112: All events | AK112: After removing excluded events
B113: dms_fy1 | C113: 2005-06 | D113: 2006 | E113: dms_cy1 | F113: dms_frcp_fy1 | G113: 2010-11 | H113: 2011 | I113: dms_crcp_cy1 | M113: =VALUE(LEFT(dms_CRYf_y18,4)+1)&"-"&TEXT(MID(dms_CRYf_y18,3,2)+2,"00") -> 2035-36 | N113: dms_CRYf_y19 | O113: =VALUE(LEFT(dms_CRYc_y18,4)+1) -> 2036 | P113: dms_CRYc_y19 | Z113: the number of column headings changes from 10 to 12 depending on the number of feeder categories for the NSP
B114: dms_fy2 | C114: 2006-07 | D114: 2007 | E114: dms_cy2 | F114: dms_frcp_fy2 | G114: 2011-12 | H114: 2012 | I114: dms_crcp_cy2 | M114: =VALUE(LEFT(dms_CRYf_y19,4)+1)&"-"&TEXT(MID(dms_CRYf_y19,3,2)+2,"00") -> 2036-37 | N114: dms_CRYf_y20 | O114: =VALUE(LEFT(dms_CRYc_y19,4)+1) -> 2037 | P114: dms_CRYc_y20
B115: dms_fy3 | C115: 2007-08 | D115: 2008 | E115: dms_cy3 | F115: dms_frcp_fy3 | G115: 2012-13 | H115: 2013 | I115: dms_crcp_cy3
B116: dms_fy4 | C116: 2008-09 | D116: 2009 | E116: dms_cy4 | F116: dms_frcp_fy4 | G116: 2013-14 | H116: 2014 | I116: dms_crcp_cy4
B117: dms_fy5 | C117: 2009-10 | D117: 2010 | E117: dms_cy5 | F117: dms_frcp_fy5 | G117: 2014-15 | H117: 2015 | I117: dms_crcp_cy5
B118: dms_fy6 | C118: 2010-11 | D118: 2011 | E118: dms_cy6 | F118: dms_frcp_fy6 | G118: 2015-16 | H118: 2016 | I118: dms_crcp_cy6 | Z118: Table 6.8.1 - row descriptions
B119: dms_fy7 | C119: 2011-12 | D119: 2012 | E119: dms_cy7 | F119: dms_frcp_fy7 | G119: 2016-17 | H119: 2017 | I119: dms_crcp_cy7 | Z119: dms_060801_01_Rows | AA119: dms_060801_02_Rows | AB119: dms_060801_03_Rows | AC119: dms_060801_04_Rows
B120: dms_fy8 | C120: 2012-13 | D120: 2013 | E120: dms_cy8 | F120: dms_frcp_fy8 | G120: 2017-18 | H120: 2018 | I120: dms_crcp_cy8 | L120: 2005-06 | M120: 2006 | Z120: Number of interruptions | AA120: Duration of interruptions | AB120: Total unplanned minutes off supply | AC120: Effect on unplanned MAIFI
B121: dms_fy9 | C121: 2013-14 | D121: 2014 | E121: dms_cy9 | F121: dms_frcp_fy9 | G121: 2018-19 | H121: 2019 | I121: dms_crcp_cy9 | L121: 2006-07 | M121: 2007
B122: dms_fy10 | C122: 2014-15 | D122: 2015 | E122: dms_cy10 | F122: dms_frcp_fy10 | G122: 2019-20 | H122: 2020 | I122: dms_crcp_cy10 | L122: 2007-08 | M122: 2008
B123: dms_fy11 | C123: 2015-16 | D123: 2016 | E123: dms_cy11 | F123: dms_frcp_fy11 | G123: 2020-21 | H123: 2021 | I123: dms_crcp_cy11 | L123: 2008-09 | M123: 2009
B124: dms_fy12 | C124: 2016-17 | D124: 2017 | E124: dms_cy12 | F124: dms_frcp_fy12 | G124: 2021-22 | H124: 2022 | I124: dms_crcp_cy12 | L124: 2009-10 | M124: 2010
B125: dms_fy13 | C125: 2017-18 | D125: 2018 | E125: dms_cy13 | F125: dms_frcp_fy13 | G125: 2022-23 | H125: 2023 | I125: dms_crcp_cy13 | L125: 2010-11 | M125: 2011 | Z125: Table 7.9.4 - market impact component - row descriptions
B126: dms_fy14 | C126: 2018-19 | D126: 2019 | E126: dms_cy14 | F126: dms_frcp_fy14 | G126: 2023-24 | H126: 2024 | I126: dms_crcp_cy14 | L126: 2011-12 | M126: 2012 | Y126: dms_070904_01_Rows | Z126: without exclusions | AA126: with exclusions
B127: dms_fy15 | C127: 2019-20 | D127: 2020 | E127: dms_cy15 | F127: dms_frcp_fy15 | G127: 2024-25 | H127: 2025 | I127: dms_crcp_cy15 | L127: 2012-13 | M127: 2013
B128: dms_fy16 | C128: 2020-21 | D128: 2021 | E128: dms_cy16 | L128: 2013-14 | M128: 2014
B129: dms_fy17 | C129: 2021-22 | D129: 2022 | E129: dms_cy17 | L129: 2014-15 | M129: 2015
B130: dms_fy18 | C130: 2022-23 | D130: 2023 | E130: dms_cy18 | L130: 2015-16 | M130: 2016
B131: dms_fy19 | C131: 2023-24 | D131: 2024 | E131: dms_cy19 | L131: 2016-17 | M131: 2017 | Z131: Use this to add to existing files
B132: dms_fy20 | C132: 2024-25 | D132: 2025 | E132: dms_cy20 | L132: 2017-18 | M132: 2018 | Z132: ARR's 6.8 STPIS exclusions
L133: 2018-19 | M133: 2019 | Z133: dms_060801_Event_Date | AA133: dms_060801_OutageID | AB133: dms_060801_FeederID | AC133: dms_060801_FeederClass | AD133: dms_060801_CauseID | AE133: dms_060801_01_Values | AF133: dms_060801_02_Values | AG133: dms_060801_03_Values | AH133: dms_060801_Excl_Cat | AI133: dms_060801_04_Values
L134: 2019-20 | M134: 2020
L135: 2020-21 | M135: 2021
L136: 2021-22 | M136: 2022 | Z136: CA 6.3 sustained interruptions
L137: 2022-23 | M137: 2023 | Z137: dms_060301_Event_Date | AA137: dms_060301_Event_Time | AB137: dms_060301_AssetID | AC137: dms_060301_FeederClass | AD137: dms_060301_Reason | AE137: dms_060301_DetailedReason | AF137: dms_060301_CustNo_Affected_Values | AG137: dms_060301_Avg_Duration_Sustained_Int_Values | AH137: dms_060301_Effect_unplanned_SAIDI_Values | AI137: dms_060301_Effect_unplanned_SAIFI_Values | AJ137: dms_060301_MED
L138: 2023-24 | M138: 2024
L139: 2024-25 | M139: 2025
L140: 2025-26 | M140: 2026
L141: 2026-27 | M141: 2027
L142: 2027-28 | M142: 2028
L143: 2028-29 | M143: 2029
L144: 2029-30 | M144: 2030
L145: 2030-31 | M145: 2031
L146: 2031-32 | M146: 2032
L147: 2032-33 | M147: 2033
L148: 2033-34 | M148: 2034
L149: 2034-35 | M149: 2035
L150: 2035-36 | M150: 2036

Sheet Instructions
B2: =CONCATENATE(dms_Segment," Network Service Provider") -> Distribution Network Service Provider
B3: Annual Reporting RIN Template
C4: =CONCATENATE("This template is to be used by ",dms_TradingName," to fulfil its reporting obligations to the AER.") -> This template is to be used by Ergon Energy to fulfil its reporting obligations to the AER.
C5: INSTRUCTIONS
C6: Complete the Business & other details worksheet before entering data or values in any other worksheets. The Business & other details worksheet is linked to other worksheets within the workbook and automatically generates certain column headings and conditional formatting.
C8: Identifying CONFIDENTIAL INFORMATION: Please use the macro at the top of each worksheet to identify confidential information.
C9: -Do this by selecting the cell or cells that contain confidential information and then run the Mark selection as CONFIDENTIAL macro. This will format the cells a specific colour that is identified by the AER's database which in turn marks that information as confidential. -To reverse this, select the cell or cells and run the Return selection to NON-CONFIDENTIAL macro
C11: UNITS OF MEASURE All amounts are to be unrounded and reported in nominal terms on a one for one basis: that is 1000 is to be entered as '1000'.
C13: COLOUR CODING OF INPUT / NON-INPUT CELLS:
D14: Yellow = Input cell (mandatory)
D15: Darker yellow = input cell (mandatory)
D16: Orange = input cell (if data available)
D17: Grey = Not applicable/No inputs required
D18: Leave coloured cells blank if no information exists. PLEASE DO NOT ENTER TEXT into cells that are to contain numeric data.
C21: WORKSHEET NAVIGATION Many tables in the worksheets have been "grouped" to allow for easy navigation. To ungroup or group data use the outline symbols in the left margin of excel (for Row groupings) or above the columns (for column groupings).
C23: RETURNING COMPLETED RESPONSES Please return four (4) files to the AER: 1. A confidential version which must contain a complete set of all responses with confidential information marked using the Mark selected cells CONFIDENTIAL macro and which has been completed using the locked template file provided by the AER. 2. An actual and an estimate version with confidential information marked using the Mark selected cells CONFIDENTIAL macro and which has been completed using the locked template file provided by the AER. 3. A public version with confidential information either removed completely or aggregated in some form together with writtten consent to disclose the public version of the response. Use the drop down box on the Business and other details worksheet to identify the file as either confidential ('consolidated') or public.
C25: SUBMITTING AMENDED DATA TO THE AER If an NSP wishes to correct data previously submitted to the AER it should resubmit that data using the original completed submission as the starting point. Please make any necessary changes to the data. Data that is not being amended should be left unchanged. NSPs must identify the reason for the amendments in the Amendment Reason box on the Business and other details worksheet. NSPs may provide further details regarding any amendments in the Amendments worksheet. .
C26: NSP may use Amended Data macro to highlight cells that contain amended data. NB: if data is also CONFIDENTIAL, re-apply the Confidentiality macro after applying the Amended macro
C27: Please resubmit two (2) files - a confidential version and a public version of the amended submission to the AER

Sheet Contents
B1: REGULATORY REPORTING STATEMENT
B2: =INDEX(dms_TradingNameFull_List,MATCH(dms_TradingName,dms_TradingName_List)) -> Ergon Energy
B3: =CONCATENATE((LOOKUP(dms_Model,dms_Model_List,dms_Worksheet_List))&" "&CRY) -> CATEGORY ANALYSIS 2017-18
B4: CONTENTS
E7: 1. Business details | L7: 2. Expenditure
E27: 4. Alternative control services | L27: 5. Network information | S27: 6. Service & quality

Sheet Business & other details
B1: =IF(dms_DataQuality="backcast",INDEX(dms_Worksheet_List,MATCH(dms_Model,dms_Model_List))&" BACKCAST",INDEX(dms_Worksheet_List,MATCH(dms_Model,dms_Model_List))) -> CATEGORY ANALYSIS
B2: =INDEX(dms_TradingNameFull_List,MATCH(dms_TradingName,dms_TradingName_List)) -> Ergon Energy
B3: =IF(SUM(dms_SingleYear_Model)>0,CONCATENATE(CRY),CONCATENATE(FRCP_y1," to ",dms_MultiYear_FinalYear_Result)) -> 2017-18
B4: BUSINESS & OTHER DETAILS
B7: Instructions
B8: Complete the following business details regulatory template before entering data or values in any other regulatory template. This regulatory template is linked to other cells within the spreadsheet and automatically generates column headings and conditional formatting to distinguish business specific input and non-input cells.
B10: SUBMISSION PARTICULARS INPUT SHEETS
B12: ENTITY DETAILS
B14: Short name | C14: Ergon Energy | F14: Select business name from drop down list first
B15: ACN / ABN | C15: =INDEX(dms_ABN_List,MATCH(dms_TradingName,dms_TradingName_List)) -> 50087646062
B18: Business address | C18: Address 1 | E18: 420 Flinders Street
D19: Address 2 | E19: =IF(ISBLANK(INDEX(dms_Addr2_List,MATCH(dms_TradingName,dms_TradingName_List))),"",(INDEX(dms_Addr2_List,MATCH(dms_TradingName,dms_TradingName_List)))) -> 
C20: Suburb | E20: =INDEX(dms_Suburb_List,MATCH(dms_TradingName,dms_TradingName_List)) -> TOWNSVILLE
D21: State | E21: =INDEX(dms_State_List,MATCH(dms_TradingName,dms_TradingName_List)) -> Qld | F21: p/code | G21: =INDEX(dms_PostCode_List,MATCH(dms_TradingName,dms_TradingName_List)) -> 4810
B23: Postal address | C23: Address 1 | E23: GPO Box 1461
D24: Address 2 | E24: =IF(ISBLANK(INDEX(dms_PAddr2_List,MATCH(dms_TradingName,dms_TradingName_List))),"",(INDEX(dms_PAddr2_List,MATCH(dms_TradingName,dms_TradingName_List)))) -> 
C25: Suburb | E25: BRISBANE
D26: State | E26: =INDEX(dms_PState_List,MATCH(dms_TradingName,dms_TradingName_List)) -> QLD | F26: p/code | G26: 4001
B29: Contact name/s | C29: Jenny Doyle, Group Manager Regulation & Pricing
B30: Contact phone/s | C30: =INDEX(dms_ContactPh1_List,MATCH(dms_TradingName,dms_TradingName_List)) -> (07) 3851 6416
B31: Contact email address/s | C31: jenny.doyle@energyq.com.au
B33: REGULATORY CONTROL PERIODS
B35: Forthcoming regulatory control period | C35: 2020-21 | D35: =dms_FRCP_y2 -> 2021-22 | E35: =dms_FRCP_y3 -> 2022-23 | F35: =dms_FRCP_y4 -> 2023-24 | G35: =dms_FRCP_y5 -> 2024-25
C36: =dms_FRCP_y6 -> 2025-26 | D36: =dms_FRCP_y7 -> 2026-27 | E36: =dms_FRCP_y8 -> 2027-28 | F36: =dms_FRCP_y9 -> 2028-29 | G36: =dms_FRCP_y10 -> 2029-30
B39: Current regulatory control period | C39: =dms_CRCP_FirstYear_Result -> 2015-16 | D39: =IF(dms_RPT="financial",VALUE(LEFT(CRCP_y1,4)+1)&"-"&TEXT(MID(CRCP_y1,3,2)+2,"00"),VALUE(LEFT(CRCP_y1,4)+1)) -> 2016-17 | E39: =IF(dms_RPT="financial",VALUE(LEFT(CRCP_y1,4)+2)&"-"&TEXT(VALUE(MID(CRCP_y1,3,2)+3),"00"),VALUE(LEFT(CRCP_y1,4)+2)) -> 2017-18 | F39: =IF(dms_RPT="financial",VALUE(LEFT(CRCP_y1,4)+3)&"-"&TEXT(MID(CRCP_y1,3,2)+4,"00"),VALUE(LEFT(CRCP_y1,4)+3)) -> 2018-19 | G39: =IF(dms_RPT="financial",VALUE(LEFT(CRCP_y1,4)+4)&"-"&TEXT(MID(CRCP_y1,3,2)+5,"00"),VALUE(LEFT(CRCP_y1,4)+4)) -> 2019-20
C40: =IF(dms_RPT="financial",VALUE(LEFT(CRCP_y1,4)+5)&"-"&TEXT(MID(CRCP_y1,3,2)+6,"00"),VALUE(LEFT(CRCP_y1,4)+5)) -> 2020-21 | D40: =IF(dms_RPT="financial",VALUE(LEFT(CRCP_y1,4)+6)&"-"&TEXT(MID(CRCP_y1,3,2)+7,"00"),VALUE(LEFT(CRCP_y1,4)+6)) -> 2021-22 | E40: =IF(dms_RPT="financial",VALUE(LEFT(CRCP_y1,4)+7)&"-"&TEXT(MID(CRCP_y1,3,2)+8,"00"),VALUE(LEFT(CRCP_y1,4)+7)) -> 2022-23 | F40: =IF(dms_RPT="financial",VALUE(LEFT(CRCP_y1,4)+8)&"-"&TEXT(MID(CRCP_y1,3,2)+9,"00"),VALUE(LEFT(CRCP_y1,4)+8)) -> 2023-24 | G40: =IF(dms_RPT="financial",VALUE(LEFT(CRCP_y1,4)+9)&"-"&TEXT(MID(CRCP_y1,3,2)+10,"00"),VALUE(LEFT(CRCP_y1,4)+9)) -> 2024-25
C41: =IF(dms_RPT="financial",VALUE(LEFT(CRCP_y1,4)+10)&"-"&TEXT(MID(CRCP_y1,3,2)+11,"00"),VALUE(LEFT(CRCP_y1,4)+10)) -> 2025-26 | D41: =IF(dms_RPT="financial",VALUE(LEFT(CRCP_y1,4)+11)&"-"&TEXT(MID(CRCP_y1,3,2)+12,"00"),VALUE(LEFT(CRCP_y1,4)+11)) -> 2026-27 | E41: =IF(dms_RPT="financial",VALUE(LEFT(CRCP_y1,4)+12)&"-"&TEXT(MID(CRCP_y1,3,2)+13,"00"),VALUE(LEFT(CRCP_y1,4)+12)) -> 2027-28 | F41: =IF(dms_RPT="financial",VALUE(LEFT(CRCP_y1,4)+13)&"-"&TEXT(MID(CRCP_y1,3,2)+14,"00"),VALUE(LEFT(CRCP_y1,4)+13)) -> 2028-29 | G41: =IF(dms_RPT="financial",VALUE(LEFT(CRCP_y1,4)+14)&"-"&TEXT(MID(CRCP_y1,3,2)+15,"00"),VALUE(LEFT(CRCP_y1,4)+14)) -> 2029-30
B44: Previous regulatory control period | C44: =IF(dms_RPT="financial",VALUE(LEFT(PRCP_y2,4)-1)&"-"&TEXT(VALUE(MID(PRCP_y2,3,2)),"00"),VALUE(LEFT(PRCP_y2,4)-1)) -> 2010-11 | D44: =IF(dms_RPT="financial",VALUE(LEFT(PRCP_y3,4)-1)&"-"&TEXT(VALUE(MID(PRCP_y3,3,2)),"00"),VALUE(LEFT(PRCP_y3,4)-1)) -> 2011-12 | E44: =IF(dms_RPT="financial",VALUE(LEFT(PRCP_y4,4)-1)&"-"&TEXT(VALUE(MID(PRCP_y4,3,2)),"00"),VALUE(LEFT(PRCP_y4,4)-1)) -> 2012-13 | F44: =IF(dms_RPT="financial",VALUE(LEFT(PRCP_y5,4)-1)&"-"&TEXT(VALUE(RIGHT(PRCP_y5,2)-1),"00"),VALUE(LEFT(PRCP_y5,4)-1)) -> 2013-14 | G44: =IF(dms_RPT="financial",VALUE(LEFT(CRCP_y1,4)-1)&"-"&TEXT(VALUE(RIGHT(CRCP_y1,2)-1),"00"),VALUE(LEFT(CRCP_y1,4)-1)) -> 2014-15
B48: Commencing regulatory year | C48: 2017-18 | D48: CRY
B50: Last completed regulatory year | C50: 2017-18 | D50: dms_FinalYear
C54: IF THIS IS AN ABC RIN - make sure the the named range CRY is applied and the named range dms_dollar_nom_UOM is applied
C55: IF THIS IS A RESET RIN - make sure the named ranges CRY and dms_dollar_nom_UOM are NOT present in the workbook
C56: FOR ABC RINS THAT SPAN MULTIPLE YEARS - make sure MultiYear Flag is set and final year entered as required
B58: Source | C58: Reporting | E58: Please select the correct submission type from the dropdown list.
B59: Data quality (actual, estimate, public, consolidated) | C59: Consolidated | E59: Use Consolidated for Consolidated Confidential version Use Public for Consolidated Public version
B60: Amended RIN submission - amendment reason | C60: T2.6 the descriptor Refurbishment/Rebuild EWP (HVC) was been added. T2.2 Regulators has been added to Pole Mounted <= 22kV >600 kVA (Multiple Phase)
B61: Submission Date | C61: 2018-11-26 | D61: dms_SubmissionDate | E61: Please enter date this file submitted to AER (dd/mm/yyyy)
B62: EBSS - First application of scheme in forthcoming period? | C62: No
B63: Sector | C63: =INDEX(dms_Sector_List,MATCH(dms_TradingName,dms_TradingName_List)) -> Electricity | D63: dms_Sector | E63: =INDEX(dms_Sector_List,MATCH(dms_TradingName,dms_TradingName_List))
B64: Segment | C64: =INDEX(dms_Segment_List,MATCH(dms_TradingName,dms_TradingName_List)) -> Distribution | D64: dms_Segment | E64: =INDEX(dms_Segment_List,MATCH(dms_TradingName,dms_TradingName_List))
B65: Regulatory Year Ending | C65: =IF(dms_MultiYear_Flag=1,LEFT(dms_Specified_FinalYear,2)&RIGHT(dms_Specified_FinalYear,2),INDEX(dms_RYE_Formula_Result,MATCH(dms_Model,dms_Model_List))) -> 2018 | D65: dms_RYE | E65: =IF(dms_MultiYear_Flag=1,LEFT(dms_Specified_FinalYear,2)&RIGHT(dms_Specified_FinalYear,2),INDEX(dms_RYE_Formula_Result,MATCH(dms_Model,dms_Model_List)))
B66: Reporting Period Type | C66: =INDEX(dms_RPT_List,MATCH(dms_TradingName,dms_TradingName_List)) -> Financial | D66: dms_RPT | E66: =INDEX(dms_RPT_List,MATCH(dms_TradingName,dms_TradingName_List))
B67: Model or RIN Type | C67: CA | D67: dms_Model | E67: Drop down selection
B68: EB/CA Unit of Measure for Monetary Values | C68: $0s | D68: dms_dollar_nom_UOM | E68: If the cover sheet is attached to an ABC RIN make the NAMED RANGE on this field is set
B69: Security Classification | C69: Public | D69: dms_Classification | E69: Always Public
B70: Dollar $ real month | C70: =INDEX(dms_RPTMonth_List,MATCH(dms_TradingName,dms_TradingName_List)) -> June | D70: dms_RPTMonth | E70: =INDEX(dms_RPTMonth_List,MATCH(dms_TradingName,dms_TradingName_List))
B71: Dollar $ real (the last month before the FRCP_y1) | C71: =IF(SUM(dms_SingleYear_Model)>0,CONCATENATE(dms_RPTMonth)&" "&VALUE((LEFT(CRY,2))&RIGHT(CRY,2)),CONCATENATE(dms_RPTMonth)&" "&VALUE((LEFT(dms_CRCP_FinalYear_Result,2)&RIGHT(dms_CRCP_FinalYear_Result,2)))) -> June 2018 | D71: dms_DollarReal | E71: =IF(SUM(dms_SingleYear_Model)>0,CONCATENATE(dms_RPTMonth)&" "&VALUE((LEFT(CRY,2))&RIGHT(CRY,2)),CONCATENATE(dms_RPTMonth)&" "&VALUE((LEFT(dms_CRCP_FinalYear_Result,2)&RIGHT(dms_CRCP_FinalYear_Result,2))))
B72: Dollar $ real previous year (PRCP_y5) | C72: =IF(SUM(dms_SingleYear_Model)>0,CONCATENATE(dms_RPTMonth)&" "&VALUE(((LEFT(CRY,2))&RIGHT(CRY,2))-1),CONCATENATE(dms_RPTMonth)&" "&VALUE(((LEFT(dms_CRCP_FirstYear_Result,2)&RIGHT(dms_CRCP_FirstYear_Result,2))))-1) -> June 2017 | D72: dms_DollarReal_Prev | E72: =IF(SUM(dms_SingleYear_Model)>0,CONCATENATE(dms_RPTMonth)&" "&VALUE(((LEFT(CRY,2))&RIGHT(CRY,2))-1),CONCATENATE(dms_RPTMonth)&" "&VALUE(((LEFT(dms_CRCP_FirstYear_Result,2)&RIGHT(dms_CRCP_FirstYear_Result,2))))-1)
B73: Form of control | C73: =INDEX(dms_FormControl_List,MATCH(dms_TradingName,dms_TradingName_List)) -> Revenue cap | D73: dms_FormControl | E73: =INDEX(dms_FormControl_List,MATCH(dms_TradingName,dms_TradingName_List))
B74: Calendar Year for table 3.6 data | C74: =VALUE(dms_RYE)-1 -> 2017 | D74: dms_0306_Year | E74: =VALUE(dms_RYE)-1
B75: Jurisdiction | C75: =INDEX(dms_JurisdictionList,MATCH(dms_TradingName,dms_TradingName_List)) -> Qld | D75: dms_Jurisdiction | E75: =INDEX(dms_JurisdictionList,MATCH(dms_TradingName,dms_TradingName_List))
B76: FOR ABC RINS THAT SPAN MULTIPLE YEARS
B77: Is this a multi year ABC RIN? | C77: No
B78: Backcast Multiyear EB, CA or ARR? | C78: =IF(dms_MultiYear_ResponseFlag="No",0,1) -> 0 | D78: dms_MultiYear_Flag | E78: This is set from the answer provided above
C79: =IF(dms_MultiYear_Flag=1,"Specify Final Reg Year here eg 2016 or 2015-16","not a Multi Reg Year submission") -> not a Multi Reg Year submission | D79: dms_Specified_FinalYear | E79: The result here is returned to dms_CRCP_FinalYear_Result if response to Q in C73 is "yes" and dms_MultiYear_Flag is set to 1
B80: This block works out the various RYE's for both ABC RINs and Reset RINS
B81: Single Year Model T/F | C81: =IF(dms_Model="EB",1,0) -> 0 | D81: dms_EB
C82: =IF(dms_Model="CA",1,0) -> 1 | D82: dms_CA | E82: =dms_SingleYear_Model
C83: =IF(dms_Model="ARR",1,0) -> 0 | D83: dms_ARR
B84: Single Year Final Year Reference | C84: CRY | D84: dms_SingleYear_FinalYear_Ref | E84: This is the reference for EB, CA & ARR RINs
B85: Single Year Final Year Result | C85: =IFERROR(IF(SUM(dms_SingleYear_Model)<>0,(INDIRECT(dms_SingleYear_FinalYear_Ref)),"not a single year RIN"),"CRY not present") -> 2017-18 | D85: dms_SingleYear_FinalYear_Result | E85: =IFERROR(IF(SUM(dms_SingleYear_Model)<>0,(INDIRECT(dms_SingleYear_FinalYear_Ref)),"not a single year RIN"),"CRY not present")
B86: FRCP length in years | C86: =INDEX(dms_FRCPlength_List,MATCH(dms_TradingName,dms_TradingName_List)) -> 5 | D86: dms_FRCPlength_Num | E86: =INDEX(dms_FRCPlength_List,MATCH(dms_TradingName,dms_TradingName_List))
B87: Multi Year Final Year Reference | C87: =INDEX(dms_FinalYear_List,MATCH(dms_FRCPlength_Num,dms_FRCPlength_Num_List)) -> dms_FRCP_y5 | D87: dms_MultiYear_FinalYear_Ref | E87: =INDEX(dms_FinalYear_List,MATCH(dms_FRCPlength_Num,dms_FRCPlength_Num_List))
B88: Multi Year Final Year Result | C88: =IF(dms_MultiYear_Flag=0,INDIRECT(dms_MultiYear_FinalYear_Ref),dms_Specified_FinalYear) -> 2024-25 | D88: dms_MultiYear_FinalYear_Result | E88: =IF(dms_MultiYear_Flag=0,INDIRECT(dms_MultiYear_FinalYear_Ref),dms_Specified_FinalYear) | I88: Formula errors OK
B89: CRCP length in years | C89: =INDEX(dms_CRCPlength_List,MATCH(dms_TradingName,dms_TradingName_List)) -> 5 | D89: dms_CRCPlength_Num | E89: =INDEX(dms_CRCPlength_List,MATCH(dms_TradingName,dms_TradingName_List))
B90: CRCP Final Year Reference | C90: =INDEX(dms_CFinalYear_List,MATCH(dms_CRCPlength_Num,dms_CRCPlength_Num_List)) -> CRCP_y5 | D90: dms_CRCP_FinalYear_Ref | E90: =INDEX(dms_CFinalYear_List,MATCH(dms_CRCPlength_Num,dms_CRCPlength_Num_List))
B91: CRCP First Year Result | C91: =INDEX(dms_CRCP_years,MATCH(dms_CRCPlength_Num,dms_CRCP_index)) -> 2015-16 | D91: dms_CRCP_FirstYear_Result | E91: =INDEX(dms_CRCP_years,MATCH(dms_CRCPlength_Num,dms_CRCP_index))
B92: CRCP Final Year Result | C92: =IF(dms_MultiYear_Flag=0,(IF(SUM(dms_SingleYear_Model)>0,CRY,dms_CRCP_yZ)),dms_Specified_FinalYear) -> 2017-18 | D92: dms_CRCP_FinalYear_Result | E92: =IF(dms_MultiYear_Flag=0,(IF(SUM(dms_SingleYear_Model)>0,CRY,dms_CRCP_yZ)),dms_Specified_FinalYear)
B93: FOR CATEGORY ANALYSIS FILES
B94: How many rows in tables 6.3 sustained interruptions? | C94: =IF(dms_Model<>"CA","not a CA","Is a CA") -> Is a CA | D94: dms_060301_MaxRows only returns a valid value when cover sheet is attached to a CA file
B95: Table 6.3.1 - last row reference | C95: =IFERROR(IF(dms_Model="CA", LOOKUP(2,1/(dms_060301_Avg_Duration_Sustained_Int_Values<>""), (ROW(dms_060301_Avg_Duration_Sustained_Int_Values))), "not a CA"),"no data in 6.3 or 6.3 not present") -> 54305 | D95: dms_060301_LastRow | E95: =IFERROR(IF(dms_Model="CA",LOOKUP(2,1/(dms_060301_Avg_Duration_Sustained_Int_Values<>""),(ROW(dms_060301_Avg_Duration_Sustained_Int_Values))),"not a CA"),"6.3 not present")
B96: Table 6.3.1 - max number rows | C96: =IFERROR(IF(dms_Model="CA",(dms_060301_LastRow-15),"not a CA"),"no data in 6.3 or 6.3 not present") -> 54290 | D96: dms_060301_MaxRows | E96: =IFERROR(IF(dms_Model="CA",(dms_060301_LastRow-15),"not a CA"),"6.3 not present")
B97: Table 6.6.3 - Public lighting repair - no. business days | C97: =INDEX(dms_663_List,MATCH(dms_TradingName,dms_TradingName_List)) -> 5 | D97: dms_663 | E97: =INDEX(dms_663_List,MATCH(dms_TradingName,dms_TradingName_List))
B98: FOR ARR or RESET FILES
B99: How many rows in tables 6.1 or 6.7? (leap year?) | C99: insert dms_LeapYear NR if required | D99: dms_LeapYear is used to determine dms_060701_Max_Rows BUT it is only found on worksheet 6.1 or 6.7 and the date value in the cell is used to determine whether it is a leap year
B100: Is dms_LeapYear named range present? | C100: =IFERROR(IF(dms_LeapYear,"yes"),"no") -> no
B101: Table 6.7.1 - includes a leap year? | C101: =IFERROR(IF(MONTH(DATE(YEAR(dms_LeapYear),2,29))=2,"is a leap year","not a leap year"), "dms_LeapYear not present") -> dms_LeapYear not present | D101: dms_LeapYear_Result | E101: =IFERROR(IF(MONTH(DATE(YEAR(dms_LeapYear),2,29))=2,"is a leap year","not a leap year"),"dms_LeapYear not present")
B102: Table 6.7.1 - Last row (leap year/ non leap year) | C102: =IFERROR(IF(dms_Model="ARR", IF(dms_LeapYear_Result="is a leap year",366,365), (IF(dms_Model="Reset", (IF(dms_LeapYear_Result="is a leap year",1827,1826)), "not a relevant RIN type"))), "dms_LeapYear in either 6.1 or 6.7 not present") -> not a relevant RIN type | D102: dms_060701_MaxRows | E102: =IFERROR(IF(dms_Model="ARR",IF(dms_LeapYear_Result="is a leap year",366,365),(IF(dms_Model="Reset",(IF(dms_LeapYear_Result="is a leap year",1827,1826)),"not a relevant RIN type"))),"dms_LeapYear in either 6.1 or 6.7 not present")
B103: How many columns in 6.7? (4 or 5 feeder categories) | C103: =IF(dms_FifthFeeder_flag_NSP="NO","This NSP has only 4 feeder categories","This NSP has 5 feeder categories") -> This NSP has only 4 feeder categories
B104: Table 6.7.1 - Last column (# of feeder categories > 4) | C104: =IF(dms_FifthFeeder_flag_NSP="NO",10,12) -> 10 | D104: dms_060701_MaxCols | E104: =IF(dms_FifthFeeder_flag_NSP="NO",8,10)
B105: Table 6.7.1 - Number of offset rows | C105: =IF(dms_Model="ARR",15,9) -> 9 | D105: dms_060701_OffsetRows | E105: =IF(dms_Model="ARR",15,9)
B106: Start date for telephone answering in 6.1 or 6.7? | E106: Using 060701 as naming standard not 060101
B107: Table 6.1.1 and 6.7.1 - Start Date as Text | C107: =IF(SUM(dms_SingleYear_Model)>0,(CONCATENATE(IF(LEN(CRY)=4,"1-Jan-","1-Jul-"),LEFT(CRY,4))),(CONCATENATE(IF(LEN(CRCP_y4)=4,"1-Jan-","1-Jul-"),LEFT(CRCP_y4,4)))) -> 1-Jul-2017 | D107: dms_060701_StartDateTxt | E107: =IF(SUM(dms_SingleYear_Model)>1,(CONCATENATE(IF(LEN(CRY)=4,"1-Jan-","1-Jul-"),LEFT(CRY,4))),(CONCATENATE(IF(LEN(CRCP_y4)=4,"1-Jan-","1-Jul-"),LEFT(CRCP_y4,4))))
B108: Table 6.1.1 and 6.7.1 - Start Date as Date Value | C108: =DATEVALUE(dms_060701_StartDateTxt) -> 42917 | D108: dms_060701_StartDateVal | E108: =DATEVALUE(dms_060701_StartDateTxt)
B109: FOR ANNUAL REPORTING RINS
B110: How many rows in table 6.8? | C110: insert dms_060801_StartCell NR if required | D110: dms_060801_StartCell is only found on worksheet 6.8 and is used to determine the starting date for the date range
B111: Table 6.8 - Number of offset rows | C111: =IFERROR(IF(dms_Model="ARR",(ROW(dms_060801_StartCell)-1),"not an ARR"),"6.8 not present") -> not an ARR | D111: dms_0608_OffsetRows | E111: =IFERROR(IF(dms_Model="ARR",(ROW(dms_060801_StartCell)-1),"not an ARR"),"6.8 not present")
B112: Table 6.8 - Last row | C112: =IFERROR(IF(dms_060801_StartCell<>"",IF(dms_Model="ARR",(LOOKUP(2,1/(dms_060801_01_Values<>""),(ROW(dms_060801_01_Values)))),"not an ARR"),0),"6.8 not present") -> 6.8 not present | D112: dms_0608_LastRow | E112: =IFERROR(IF(dms_060801_StartCell<>"",IF(dms_Model="ARR",(LOOKUP(2,1/(dms_060801_01_Values<>""),(ROW(dms_060801_01_Values)))),"not an ARR"),0),"6.8 not present")
B113: Table 6.8 - MaxRows | C113: =IFERROR(IF(dms_Model="ARR",(MAX(0,dms_0608_LastRow-dms_0608_OffsetRows)),"not an ARR"),"6.8 not present") -> not an ARR | D113: dms_060801_MaxRows | E113: =IFERROR(IF(dms_Model="ARR",(MAX(0,dms_0608_LastRow-dms_0608_OffsetRows)),"not an ARR"),"6.8 not present")
B114: FOR TNSP FILES
B115: Table 7.9.4 only appears in TNSPs Reset RIN
B116: Table 7.9.4 - first year | C116: =LEFT(PRCP_y3,4) -> 2012 | D116: dms_070904_Start_Year | E116: =LEFT(PRCP_y3,4)
B117: MISC
B118: Distribution Determination Reference | C118: =INDEX(dms_DeterminationRef_List,MATCH(dms_TradingName,dms_TradingName_List)) -> 2015-20 Distribution Determination | D118: dms_DeterminationRef
B119: Is this Submission File a Subset File | C119: NO | D119: dms_Partial
B120: CBD Feeder for this business | C120: =INDEX(dms_CBD_flag,MATCH(dms_TradingName,dms_TradingName_List)) -> NO | D120: dms_CBD_flag_NSP
B121: Urban Feeder for this business | C121: =INDEX(dms_Urban_flag,MATCH(dms_TradingName,dms_TradingName_List)) -> YES | D121: dms_Urban_flag_NSP
B122: Short rural Feeder for this business | C122: =INDEX(dms_ShortRural_flag,MATCH(dms_TradingName,dms_TradingName_List)) -> YES | D122: dms_ShortRural_flag_NSP
B123: Long rural Feeder for this business | C123: =INDEX(dms_LongRural_flag,MATCH(dms_TradingName,dms_TradingName_List)) -> YES | D123: dms_LongRural_flag_NSP
B124: Fifth Feeder Category (eg. TasNetworks (D)) | C124: =INDEX(dms_FeederType_5_flag,MATCH(dms_TradingName,dms_TradingName_List)) -> NO | D124: dms_FifthFeeder_flag_NSP | E124: =INDEX(dms_FeederType_5_flag,MATCH(dms_TradingName,dms_TradingName_List))
B126: discard this record? | C126: NO | D126: dms_DISCARD | E126: If record is to be discarded from DB set this flag to YES
B128: USES NAMED RANGES FLAG | C128: yes | D128: dms_Defined_Names_Used
B130: REGULATORY YEARS FOR MULTI RYE SUBMISSIONS
B131: Multiple RYE flag | C131: NO | D131: dms_Multi_RYE_flag
C132: Manually specify RYE | D132: Named ranges to apply
C133: 2013 | D133: dms_RYE_01
C134: 2014 | D134: dms_RYE_02
C135: 2015 | D135: dms_RYE_03
C136: 2016 | D136: dms_RYE_04
C137: 2017 | D137: dms_RYE_05

Sheet 2.1 Expenditure summary
B1: REGULATORY REPORTING STATEMENT
B2: =INDEX(dms_TradingNameFull_List,MATCH(dms_TradingName,dms_TradingName_List)) -> Ergon Energy
B3: =CONCATENATE((LOOKUP(dms_Model,dms_Model_List,dms_Worksheet_List))&" "&CRY) -> CATEGORY ANALYSIS 2017-18
B4: 2.1 EXPENDITURE SUMMARY & RECONCILIATION
B6: There are SIX tables on this worksheet. Each has been grouped for ease of navigation. See the Instructions sheet on how to group or ungroup tables.
B8: 2.1.1 - STANDARD CONTROL SERVICES CAPEX
C9: EXPENDITURE ($0's)
C10: =CRY -> 2017-18
B11: Replacement expenditure | C11: 201511047
B12: Connections | C12: 50123340
B13: Augmentation Expenditure | C13: 39364305
B14: Non-network | C14: 42755543
B15: capitalised network overheads | C15: 77626243
B16: capitalised corporate overheads | C16: 101093054
B17: Metering | C17: 1561876
B18: Public Lighting | C18: 0
C19: 0
C20: 0
C21: 0
C22: 0
C23: 0
C24: 0
C25: 0
B26: balancing item | C26: 0
B27: capcons (included in the above) | C27: 42755463
B28: TOTAL GROSS CAPEX (including capcons) | C28: =+SUM(C11:C26) -> 514035408
B30: 2.1.2 - STANDARD CONTROL SERVICES OPEX
C31: EXPENDITURE ($0's)
C32: =CRY -> 2017-18
B33: Vegetation management | C33: 42479035
B34: Maintenance | C34: 81297151.53
B35: Emergency response | C35: 55329910
B36: Non-network | C36: 115985060
B37: network overheads | C37: 118237899
B38: corporate overheads | C38: 86554213
B39: Metering | C39: 2550554
B40: Public Lighting | C40: 0
C41: 0
C42: 0
C43: 0
C44: 0
C45: 0
C46: 0
C47: 0
B48: balancing item | C48: -115985060
B49: TOTAL OPEX | C49: =+SUM(C33:C48) -> 386448762.5
B51: 2.1.3 - ALTERNATIVE CONTROL SERVICES CAPEX
C52: EXPENDITURE ($0's)
C53: =CRY -> 2017-18
B54: Connections | C54: 25829094.75
B55: capitalised network overheads | C55: 10128154.85
B56: capitalised corporate overheads | C56: 13189948.24
B57: Metering | C57: 4756967
B58: Public lighting | C58: 5234897
B59: Fee and quoted | C59: 29587484
C60: 0
C61: 0
C62: 0
C63: 0
C64: 0
C65: 0
C66: 0
B67: balancing item | C67: -18720292
B68: TOTAL CAPEX | C68: =+SUM(C54:C67) -> 70006253.85
B70: 2.1.4 - ALTERNATIVE CONTROL SERVICES OPEX
C71: EXPENDITURE ($0's)
C72: =CRY -> 2017-18
B73: Connections | C73: 4908670
B74: network overheads | C74: 51280374
B75: corporate overheads | C75: 15841613
B76: Metering | C76: 28447982
B77: Public lighting | C77: 8771025
B78: Fee and quoted | C78: 28327013
C79: 0
C80: 0
C81: 0
C82: 0
C83: 0
C84: 0
C85: 0
B86: balancing item | C86: -60315799
B87: TOTAL OPEX | C87: =+SUM(C73:C86) -> 77260878
B89: 2.1.5 - DUAL FUNCTION ASSETS CAPEX
C90: EXPENDITURE ($0's)
C91: =CRY -> 2017-18
B92: Replacement expenditure | C92: 0
B93: Connections | C93: 0
B94: Augmentation Expenditure | C94: 0
B95: Non-network | C95: 0
B96: Capitalised network overheads | C96: 0
B97: Capitalised corporate overheads | C97: 0
C98: 0
C99: 0
C100: 0
C101: 0
C102: 0
C103: 0
C104: 0
B105: balancing item | C105: 0
B106: capcons (included in the above) | C106: 0
B107: TOTAL GROSS CAPEX (including capcons) | C107: =SUM(C92:C105) -> 0
B109: 2.1.6 - DUAL FUNCTION ASSETS OPEX
C110: EXPENDITURE ($0's)
C111: =CRY -> 2017-18
B112: Vegetation management | C112: 0
B113: Maintenance | C113: 0
B114: Emergency response | C114: 0
B115: Non-network | C115: 0
B116: Network overheads | C116: 0
B117: Corporate overheads | C117: 0
C118: 0
C119: 0
C120: 0
C121: 0
C122: 0
C123: 0
C124: 0
B125: balancing item | C125: 0
B126: TOTAL OPEX | C126: =SUM(C112:C125) -> 0

Sheet 2.2 Repex
B1: REGULATORY REPORTING STATEMENT
B2: =INDEX(dms_TradingNameFull_List,MATCH(dms_TradingName,dms_TradingName_List)) -> Ergon Energy
B3: =CONCATENATE((LOOKUP(dms_Model,dms_Model_List,dms_Worksheet_List))&" "&CRY) -> CATEGORY ANALYSIS 2017-18
B4: 2.2 REPEX
B6: There are TWO tables on this worksheet. Each has been grouped for ease of navigation. See the Instructions sheet on how to group or ungroup tables.
B8: 2.2.1 - REPLACEMENT EXPENDITURE, VOLUMES AND ASSET FAILURES BY ASSET CATEGORY
E9: EXPENDITURE ($0's) | F9: ASSET REPLACEMENTS (0's) | G9: ASSET FAILURES (0's)
B10: ASSET GROUP | C10: ASSET CATEGORY | E10: =CRY -> 2017-18 | F10: =CRY -> 2017-18 | G10: =CRY -> 2017-18
B11: POLES BY: HIGHEST OPERATING VOLTAGE ; MATERIAL TYPE; STAKING (IF WOOD) | C11: Staking of a wooden pole | E11: 5297943.314 | F11: 1563 | G11: 0
C12: ˂ = 1 kV; Wood | E12: 12016645.51 | F12: 2258 | G12: 6
C13: > 1 kV & < = 11 kV; Wood | E13: 12514760.55 | F13: 1634 | G13: 14
C14: ˃ 11 kV & < = 22 kV; Wood | E14: 12514760.55 | F14: 1634 | G14: 31
C15: > 22 kV & < = 66 kV; Wood | E15: 4531095.537 | F15: 307 | G15: 3
C16: > 66 kV & < = 132 kV; Wood | E16: 76769.89906 | F16: 3 | G16: 1
C17: > 132 kV; Wood | E17: 0 | F17: 0 | G17: 0
C18: ˂ = 1 kV; Concrete | E18: 0 | F18: 0 | G18: 0
C19: > 1 kV & < = 11 kV; Concrete | E19: 0 | F19: 0 | G19: 0
C20: ˃ 11 kV & < = 22 kV; Concrete | E20: 0 | F20: 0 | G20: 0
C21: > 22 kV & < = 66 kV; Concrete | E21: 0 | F21: 0 | G21: 0
C22: > 66 kV & < = 132 kV; Concrete | E22: 0 | F22: 0 | G22: 0
C23: > 132 kV; Concrete | E23: 0 | F23: 0 | G23: 0
C24: ˂ = 1 kV; Steel | E24: 0 | F24: 0 | G24: 0
C25: > 1 kV & < = 11 kV; Steel | E25: 0 | F25: 0 | G25: 0
C26: ˃ 11 kV & < = 22 kV; Steel | E26: 0 | F26: 0 | G26: 0
C27: > 22 kV & < = 66 kV; Steel | E27: 0 | F27: 0 | G27: 0
C28: > 66 kV & < = 132 kV; Steel | E28: 0 | F28: 0 | G28: 0
C29: > 132 kV; Steel | E29: 0 | F29: 0 | G29: 0
C30: Other | E30: 0 | F30: 0 | G30: 0
B31: POLE TOP STRUCTURES BY: HIGHEST OPERATING VOLTAGE | C31: ˂ = 1 kV | E31: 6633430.276 | F31: 5368 | G31: 50
C32: > 1 kV & < = 11 kV | E32: 10030570.64 | F32: 6452 | G32: 100
C33: ˃ 11 kV & < = 22 kV | E33: 9464621.998 | F33: 4291 | G33: 42
C34: > 22 kV & < = 66 kV | E34: 2470063.594 | F34: 1406 | G34: 25
C35: > 66 kV & < = 132 kV | E35: 8276.631563 | F35: 1 | G35: 0
C36: > 132 kV | E36: 0 | F36: 0 | G36: 0
C37: Other | E37: 0 | F37: 0 | G37: 3
B38: OVERHEAD CONDUCTORS BY: HIGHEST OPERATING VOLTAGE; NUMBER OF PHASES (AT HV) | C38: ˂ = 1 kV | E38: 8697093.87 | F38: 136 | G38: 153
C39: > 1 kV & < = 11 kV | E39: 3060806.505 | F39: 87 | G39: 214
C40: ˃ 11 kV & < = 22 kV ; SWER | E40: 1090743.355 | F40: 79 | G40: 108
C41: ˃ 11 kV & < = 22 kV ; Single-Phase | E41: 0 | F41: 0 | G41: 0
C42: ˃ 11 kV & < = 22 kV ; Multiple-Phase | E42: 440726.1402 | F42: 25 | G42: 60
C43: > 22 kV & < = 66 kV | E43: 37923.14861 | F43: 1 | G43: 11
C44: > 66 kV & < = 132 kV | E44: 0 | F44: 0 | G44: 0
C45: > 132 kV | E45: 0 | F45: 0 | G45: 1
C46: Other | E46: 0 | F46: 0 | G46: 1
B47: UNDERGROUND CABLES BY: HIGHEST OPERATING VOLTAGE | C47: ˂ = 1 kV | E47: 1607180.763 | F47: 7 | G47: 128
C48: > 1 kV & < = 11 kV | E48: 774558.8452 | F48: 3 | G48: 17
C49: > 11 kV & < = 22 kV | E49: 3014308.014 | F49: 1 | G49: 10
C50: > 22 kV & < = 33 kV | E50: 14476.62094 | F50: 0 | G50: 3
C51: > 33 kV & < = 66 kV | E51: 0 | F51: 0 | G51: 0
C52: > 66 kV & < = 132 kV | E52: 0 | F52: 0 | G52: 0
C53: > 132 kV | E53: 0 | F53: 0 | G53: 0
C54: Other | E54: 0 | F54: 0 | G54: 0
B55: SERVICE LINES BY: CONNECTION VOLTAGE; CUSTOMER TYPE; CONNECTION COMPLEXITY | C55: ˂ = 11 kV ; Residential ; Simple Type | E55: 3498969.459 | F55: 5247 | G55: 1780
C56: ˂ = 11 kV ; Commercial & Industrial ; Simple Type | E56: 2079843.3 | F56: 1790 | G56: 0
C57: ˂ = 11 kV ; Residential ; Complex Type | E57: 34313.9924 | F57: 31 | G57: 0
C58: ˂ = 11 kV ; Commercial & Industrial ; Complex Type | E58: 0 | F58: 0 | G58: 0
C59: ˂ = 11 kV ; Subdivision ; Complex Type | E59: 0 | F59: 0 | G59: 0
C60: > 11 kV & < = 22 kV ; Commercial & Industrial | E60: 0 | F60: 0 | G60: 0
C61: > 11 kV & < = 22 kV ; Subdivision | E61: 0 | F61: 0 | G61: 0
C62: > 22 kV & < = 33 kV ; Commercial & Industrial | E62: 0 | F62: 0 | G62: 0
C63: > 22 kV & < = 33 kV ; Subdivision | E63: 0 | F63: 0 | G63: 0
C64: > 33 kV & < = 66 kV ; Commercial & Industrial | E64: 0 | F64: 0 | G64: 0
C65: > 33 kV & < = 66 kV ; Subdivision | E65: 0 | F65: 0 | G65: 0
C66: > 66 kV & < = 132 kV ; Commercial & Industrial | E66: 0 | F66: 0 | G66: 0
C67: > 66 kV & < = 132 kV ; Subdivision | E67: 0 | F67: 0 | G67: 0
C68: > 132 kV ; Commercial & Industrial | E68: 0 | F68: 0 | G68: 0
C69: > 132 kV ; Subdivision | E69: 0 | F69: 0 | G69: 0
C70: Other | E70: 0 | F70: 0 | G70: 4
B71: TRANSFORMERS BY: MOUNTING TYPE; HIGHEST OPERATING VOLTAGE ; AMPERE RATING; NUMBER OF PHASES (AT LV) | C71: Pole Mounted ; < = 22kV ; < = 60 kVA ; Single Phase | E71: 7977147.029 | F71: 724 | G71: 349
C72: Pole Mounted ; < = 22kV ; > 60 kVA and < = 600 kVA ; Single Phase | E72: 722891.0197 | F72: 15 | G72: 4
C73: Pole Mounted ; < = 22kV ; > 600 kVA ; Single Phase | E73: 60548.18019 | F73: 0 | G73: 0
C74: Pole Mounted ; < = 22kV ; < = 60 kVA ; Multiple Phase | E74: 3428733.703 | F74: 193 | G74: 153
C75: Pole Mounted ; < = 22kV ; > 60 kVA and < = 600 kVA ; Multiple Phase | E75: 17443689.74 | F75: 494 | G75: 103
C76: Pole Mounted ; < = 22kV ; > 600 kVA ; Multiple Phase | E76: =2901063.6540307+411106.297135292 -> 3312169.951 | F76: =39+12 -> 51 | G76: 0
C77: Kiosk Mounted ; < = 22kV ; < = 60 kVA ; Single Phase | E77: 0 | F77: 0 | G77: 0
C78: Kiosk Mounted ; < = 22kV ; > 60 kVA and < = 600 kVA ; Single Phase | E78: 0 | F78: 0 | G78: 0
C79: Kiosk Mounted ; < = 22kV ; > 600 kVA ; Single Phase | E79: 0 | F79: 0 | G79: 0
C80: Kiosk Mounted ; < = 22kV ; < = 60 kVA ; Multiple Phase | E80: 0 | F80: 0 | G80: 0
C81: Kiosk Mounted ; < = 22kV ; > 60 kVA and < = 600 kVA ; Multiple Phase | E81: 4068182.556 | F81: 21 | G81: 10
C82: Kiosk Mounted ; < = 22kV ; > 600 kVA ; Multiple Phase | E82: 1604726.666 | F82: 10 | G82: 7
C83: Ground Outdoor / Indoor Chamber Mounted; ˂ 22 kV ; < = 60 kVA ; Single Phase | E83: 0 | F83: 0 | G83: 0
C84: Ground Outdoor / Indoor Chamber Mounted; ˂ 22 kV ; > 60 kVA and < = 600 kVA ; Single Phase | E84: 0 | F84: 0 | G84: 0
C85: Ground Outdoor / Indoor Chamber Mounted; ˂ 22 kV ; > 600 kVA ; Single Phase | E85: 0 | F85: 0 | G85: 0
C86: Ground Outdoor / Indoor Chamber Mounted; ˂ 22 kV ; < = 60 kVA ; Multiple Phase | E86: 0 | F86: 0 | G86: 0
C87: Ground Outdoor / Indoor Chamber Mounted; ˂ 22 kV ; > 60 kVA and < = 600 kVA ; Multiple Phase | E87: 136402.7101 | F87: 1 | G87: 0
C88: Ground Outdoor / Indoor Chamber Mounted; ˂ 22 kV ; > 600 kVA ; Multiple Phase | E88: 395576.9553 | F88: 2 | G88: 2
C89: Ground Outdoor / Indoor Chamber Mounted; > = 22 kV & < = 33 kV ; < = 15 MVA | E89: 560441.4686 | F89: 0 | G89: 0
C90: Ground Outdoor / Indoor Chamber Mounted; > = 22 kV & < = 33 kV ; > 15 MVA and < = 40 MVA | E90: 3319395.908 | F90: 0 | G90: 0
C91: Ground Outdoor / Indoor Chamber Mounted; > = 22 kV & < = 33 kV ; > 40 MVA | E91: 0 | F91: 0 | G91: 0
C92: Ground Outdoor / Indoor Chamber Mounted; > 33 kV & < = 66 kV ; < = 15 MVA | E92: 479023.0145 | F92: 0 | G92: 0
C93: Ground Outdoor / Indoor Chamber Mounted; > 33 kV & < = 66 kV ; > 15 MVA and < = 40 MVA | E93: 7510.419452 | F93: 0 | G93: 0
C94: Ground Outdoor / Indoor Chamber Mounted; > 33 kV & < = 66 kV ; > 40 MVA | E94: 0 | F94: 0 | G94: 0
C95: Ground Outdoor / Indoor Chamber Mounted; > 66 kV & < = 132 kV ; < = 100 MVA | E95: 15791.52163 | F95: 0 | G95: 0
C96: Ground Outdoor / Indoor Chamber Mounted; > 66 kV & < = 132 kV ; > 100 MVA | E96: 0 | F96: 0 | G96: 0
C97: Ground Outdoor / Indoor Chamber Mounted; > 132 kV ; < = 100 MVA | E97: 0 | F97: 0 | G97: 0
C98: Ground Outdoor / Indoor Chamber Mounted; > 132 kV ; > 100 MVA | E98: 0 | F98: 0 | G98: 0
C99: Other | E99: 0 | F99: 0 | G99: 17
B100: SWITCHGEAR BY: HIGHEST OPERATING VOLTAGE ; SWITCH FUNCTION | C100: ˂ = 11 kV ; FUSE | E100: 14822668.07 | F100: 2227 | G100: 80
C101: ˂ = 11 kV ; Switch | E101: 5432077.844 | F101: 228 | G101: 212
C102: ˂ = 11 kV ; Circuit Breaker | E102: 2149448.093 | F102: 9 | G102: 7
C103: > 11 kV & < = 22 kV ; Switch | E103: 4259026.437 | F103: 854 | G103: 133
C104: > 11 kV & < = 22 kV ; Circuit Breaker | E104: 984068.1019 | F104: 44 | G104: 1
C105: > 22 kV & < = 33 kV ; Switch | E105: 273307.9258 | F105: 20 | G105: 46
C106: > 22 kV & < = 33 kV ; Circuit Breaker | E106: 817688.7974 | F106: 16 | G106: 0
C107: > 33 kV & < = 66 kV ; Switch | E107: 549863.6361 | F107: 4 | G107: 0
C108: > 33 kV & < = 66 kV ; Circuit Breaker | E108: 8656793.427 | F108: 55 | G108: 2
C109: > 66 kV & < = 132 kV ; Switch | E109: 0 | F109: 1 | G109: 0
C110: > 66 kV & < = 132 kV ; Circuit Breaker | E110: 0 | F110: 0 | G110: 0
C111: > 132 kV ; Switch | E111: 0 | F111: 0 | G111: 0
C112: > 132 kV ; Circuit Breaker | E112: 0 | F112: 0 | G112: 0
C113: Other | E113: 0 | F113: 0 | G113: 0
B114: PUBLIC LIGHTING BY: ASSET TYPE ; LIGHTING OBLIGATION | C114: Luminaires ; Major Road | E114: 1166392.336 | F114: 323 | G114: 8
C115: Luminaires ; Minor Road | E115: 1048984.715 | F115: 587 | G115: 30
C116: Brackets ; Major Road | E116: 322731.7503 | F116: 130 | G116: 2
C117: Brackets ; Minor Road | E117: 244614.6783 | F117: 273 | G117: 5
C118: Lamps ; Major Road | E118: 93074.68361 | F118: 393 | G118: 46
C119: Lamps ; Minor Road | E119: 70971.82626 | F119: 736 | G119: 24
C120: Poles / Columns ; Major Road | E120: 174902.9677 | F120: 31 | G120: 0
C121: Poles / Columns ; Minor Road | E121: 284606.7553 | F121: 105 | G121: 3
C122: Other | E122: 0 | F122: 0 | G122: 0
B123: SCADA, NETWORK CONTROL AND PROTECTION SYSTEMS BY: FUNCTION | C123: Field Devices | E123: 4337894.058 | F123: 191 | G123: 20
C124: Local Network Wiring Assets | E124: 0 | F124: 0 | G124: 0
C125: Communications Network Assets | E125: 2430581.616 | F125: 99 | G125: 39
C126: Master Station Assets | E126: 0 | F126: 0 | G126: 0
C127: Communications Site Infrastructure | E127: 544001.2682 | F127: 56 | G127: 50
C128: Communications Linear Assets | E128: 0 | F128: 11 | G128: 0
C129: AFLC | E129: 378082.4274 | F129: 0 | G129: 0
C130: Other | E130: 0 | F130: 0 | G130: 0
B131: OTHER BY: DNSP DEFINED | C131: VOLTAGE TRANSFORMERS | E131: 1114378.726 | F131: 43 | G131: 0
C133: CURRENT TRANSFORMER | E133: 2616489.171 | F133: 65 | G133: 0
C134: CAP BANK | E134: 109535.4608 | F134: 0 | G134: 0
C135: SVC | E135: 31148.84443 | F135: 0 | G135: 0
C136: Other non AER Asset Categories | E136: 5155599.75 | F136: 0 | G136: 0
B149: 2.2.2 - SELECTED ASSET CHARACTERISTICS
E150: ASSET VOLUMES CURRENTLY IN COMMISSION | F150: ASSET REPLACEMENTS (0's)
B151: ASSET GROUP | C151: METRIC | D151: UNITS | E151: =CRY -> 2017-18 | F151: =CRY -> 2017-18
B152: TOTAL POLES BY: FEEDER TYPE | C152: Total CBD poles | D152: Number | E152: 0 | F152: 0
C153: Total urban poles | D153: Number | E153: 102298.0301 | F153: 613
C154: Total rural long poles | D154: Number | E154: 443923.6051 | F154: 2661
C155: Total rural short poles | D155: Number | E155: 427479.3648 | F155: 2563
B156: OVERHEAD CONDUCTORS BY: CONDUCTOR LENGTH BY FEEDER TYPE | C156: Conductors CBD | D156: KM | E156: 0 | F156: 0
C157: Conductors urban | D157: KM | E157: 3856.490087 | F157: 11.2
C158: Conductors rural long | D158: KM | E158: 96697.70099 | F158: 218.3
C159: Conductors rural short | D159: KM | E159: 42611.74134 | F159: 98.3
B160: OVERHEAD CONDUCTORS BY: CONDUCTOR LENGTH MATERIAL TYPE | C160: OH conductor LV ABC | D160: KM | E160: 841.8973155 | F160: 48.3
C161: OH conductor steel | D161: KM | E161: 63266.53717 | F161: 124.6
C162: OH conductor ACSR | D162: KM | E162: 46888.57994 | F162: 44.2
C163: OH conductor AAAC | D163: KM | E163: 7460.359396 | F163: 37.9
C164: OH conductor AAC | D164: KM | E164: 15818.84698 | F164: 68.3
C165: OH conductor HDBC | D165: KM | E165: 8889.711622 | F165: 4.4
C166: Other | D166: KM | E166: 0 | F166: 0
B167: UNDERGROUND CABLES BY: CABLE LENGTH BY FEEDER TYPE | C167: Cable CBD | D167: KM | E167: 0 | F167: 0
C168: Cable urban | D168: KM | E168: 3153.745169 | F168: 4
C169: Cable rural long | D169: KM | E169: 400.9832564 | F169: 0.5
C170: Cable rural short | D170: KM | E170: 5255.358228 | F170: 6.5
B171: TRANSFORMERS BY: TOTAL MVA | C171: Total MVA replaced | D171: MVA | E171: 20976.6948 | F171: 208.605
C172: Total MVA disposed of | D172: MVA | E172: 137.162 | F172: 137.162

Sheet 2.3(a) Augex
B1: REGULATORY REPORTING STATEMENT
B2: =INDEX(dms_TradingNameFull_List,MATCH(dms_TradingName,dms_TradingName_List)) -> Ergon Energy
B3: =CONCATENATE((LOOKUP(dms_Model,dms_Model_List,dms_Worksheet_List))&" "&CRY) -> CATEGORY ANALYSIS 2017-18
B4: 2.3 AUGEX PROJECT DATA
B7: There are TWO tables on this worksheet - each has been 'grouped' for easy navigation. Both ROWS and COLUMNS have been grouped. See the Instructions sheet on how to group or ungroup tables.
B9: 2.3.1 - AUGEX ASSET DATA - SUBTRANSMISSION SUBSTATIONS, SWITCHING STATIONS AND ZONE SUBSTATIONS
B10: NOTE: DNSP MUST PROVIDE EXPENDITURE INFORMATION ON A PROJECT CLOSE BASIS.
B11: PROJECT DESCRIPTION AND CHANGES | L11: PLANT AND EQUIPMENT EXPENDITURE AND VOLUME | X11: OTHER EXPENDITURE | Z11: TOTAL DIRECT EXPENDITURE ($0's) | AA11: YEARS INCURRED | AB11: ALL RELATED PARTY CONTRACTS | AD11: ALL NON RELATED PARTY CONTRACTS | AE11: LAND AND EASEMENTS
B12: SUBSTATION ID | C12: SUBSTATION TYPE (drop down) | D12: PROJECT ID | E12: PROJECT TYPE (drop down) | F12: PROJECT TRIGGER (drop down) | G12: VOLTAGE (KV) | H12: SUBSTATION RATING NORMAL CYCLIC (MVA) | J12: SUBSTATION RATING N-1 EMERGENCY (MVA) | L12: TRANSFORMERS | O12: SWITCHGEAR | Q12: CAPACITORS | U12: OTHER PLANT ITEM | V12: INSTALLATION (LABOUR) | X12: CIVIL WORKS | Y12: OTHER DIRECT | AB12: RELATED PARTY MARGINS | AC12: TOTAL | AE12: LAND PURCHASE | AF12: EASEMENTS
H13: PRE | I13: POST | J13: PRE | K13: POST | L13: UNITS ADDED | M13: MVA ADDED | N13: EXPENDITURE ($0's) | O13: UNITS ADDED | P13: EXPENDITURE ($0's) | Q13: MVAR ADDED | R13: EXPENDITURE ($0's) | U13: EXPENDITURE ($0's) | V13: VOLUME | W13: EXPENDITURE ($0's) | X13: EXPENDITURE ($0's) | AB13: EXPENDITURE ($0's) | AE13: EXPENDITURE ($0's)
B14: T083/ROMA | C14: Subtransmission substation | D14: NN01163 | E14: Substation upgrade - capacity | F14: Demand growth | G14: 132/66/33 | H14: 74 | I14: 160 | J14: 34 | K14: 80 | L14: 3 | M14: 210 | N14: 4550579 | O14: 6 | P14: 637892 | Q14: 0 | R14: 0 | U14: 4232181 | V14: 33654 | W14: 18367148 | X14: 0 | Y14: 856768 | Z14: =SUM(N14,P14,R14,U14,W14,X14,Y14) -> 28644568 | AA14: 2007,2008,2009,2010,2011,2012,2013,2013,2015,2016,2017,2018 | AB14: 0 | AC14: 0 | AD14: 14111955 | AE14: 142610 | AF14: 0
B15: SW TAPS STH TOOWOOMBA 110KV BUS | C15: Subtransmission substation | D15: 00164975 | E15: Substation upgrade - voltage | F15: Demand growth | G15: 110kV | H15: 120 | I15: 120 | J15: 60 | K15: 60 | L15: 0 | M15: 0 | N15: 0 | O15: 7 | P15: 1957868 | Q15: 0 | R15: 0 | U15: 1805850 | V15: 11196 | W15: 9334509 | X15: 1312517 | Y15: 1233086 | Z15: 15643830 | AA15: 2013,2014,2015,2016,2017 | AB15: 0 | AC15: 0 | AD15: 8959182 | AE15: 0 | AF15: 0
Z16: 0
Z17: 0
Z18: 0
Z19: 0
Z20: 0
Z21: 0
Z22: 0
Z23: 0
Z24: 0
Z25: 0
Z26: 0
Z27: 0
Z28: 0
Z29: 0
Z30: 0
Z31: 0
Z32: 0
Z33: 0
Z34: 0
Z35: 0
Z36: 0
Z37: 0
Z38: 0
Z39: 0
Z40: 0
Z41: 0
Z42: 0
Z43: 0
Z44: 0
Z45: 0
Z46: =SUM(N46,P46,R46,U46,W46,X46,Y46) -> 0
Z47: 0
Z48: 0
Z49: 0
Z50: 0
Z51: 0
Z52: 0
Z53: 0
Z54: 0
Z55: 0
Z56: 0
Z57: 0
Z58: 0
Z59: 0
Z60: 0
Z61: 0
Z62: 0
Z63: 0
Z64: 0
Z65: 0
D66: Non material projects - [actual] | Z66: 9179000 | AA66: 2012,2013,2014,2015,2016,2017,2018 | AE66: 0 | AF66: 50.6
B69: AUG232_1 | C69: AUG232_2 | D69: AUG232_3 | E69: AUG232_4 | F69: AUG232_5 | G69: AUG232_6 | H69: ED_AUG232_00001 | I69: ED_AUG232_00002 | J69: ED_AUG232_00003 | K69: ED_AUG232_00004 | L69: ED_AUG232_00005 | M69: ED_AUG232_00006 | N69: ED_AUG232_00007 | O69: ED_AUG232_00008 | P69: ED_AUG232_00009 | Q69: ED_AUG232_00010 | R69: ED_AUG232_00011 | S69: ED_AUG232_00012 | T69: ED_AUG232_00013 | U69: ED_AUG232_00014 | V69: ED_AUG232_00015 | W69: ED_AUG232_00016 | X69: ED_AUG232_00017 | Y69: ED_AUG232_00018 | Z69: ED_AUG232_00019 | AA69: ED_AUG232_00020 | AB69: ED_AUG232_00021
B70: 2.3.2 - AUGEX ASSET DATA - SUBTRANSMISSION LINES
B71: NOTE: DNSP MUST PROVIDE EXPENDITURE INFORMATION ON A PROJECT CLOSE BASIS.
B72: PROJECT DESCRIPTION AND CHANGES | L72: PLANT AND EQUIPMENT EXPENDITURE AND VOLUME | X72: OTHER EXPENDITURE | Z72: TOTAL DIRECT EXPENDITURE ($0's) | AA72: YEARS INCURRED | AB72: ALL RELATED PARTY CONTRACTS | AD72: ALL NON RELATED PARTY CONTRACTS | AE72: LAND AND EASEMENTS
B73: LINE ID | C73: PROJECT ID | D73: PROJECT TYPE | E73: PROJECT TRIGGER | G73: VOLTAGE (KV) | H73: ROUTE LINE LENGTH ADDED | L73: POLES/TOWERS (INCLUDING STRUCTURES, AND CIVIL WORKS) | O73: OVERHEAD LINES | R73: UNDERGROUND CABLES | U73: OTHER PLANT ITEM | V73: INSTALLATION (LABOUR) | X73: CIVIL WORKS | Y73: OTHER DIRECT | AB73: RELATED PARTY MARGINS | AC73: TOTAL | AE73: LAND PURCHASE | AF73: EASEMENTS
H74: KM ADDED | L74: POLES/TOWERS ADDED | M74: POLES/TOWERS UPGRADED | N74: EXPENDITURE ($0's) | O74: CIRCUIT KM ADDED | P74: CIRCUIT KM UPGRADED | Q74: EXPENDITURE ($0's) | R74: CIRCUIT KM ADDED | S74: CIRCUIT KM UPGRADED | T74: EXPENDITURE ($0's) | U74: EXPENDITURE ($0's) | V74: VOLUME | W74: EXPENDITURE ($0's) | X74: EXPENDITURE ($0's) | AB74: EXPENDITURE ($0's) | AE74: EXPENDITURE ($0's)
B75: SW TAPS 110KV SUB TRANS LINE SOTO-CETO | C75: 00164985 | D75: New line on new route - dual circuit | E75: Demand growth | G75: Other | H75: 3 | L75: 0 | M75: 0 | N75: 0 | O75: 0 | P75: 0 | Q75: 0 | R75: 6 | S75: 0 | T75: 2307931 | U75: 319194 | V75: 3699 | W75: 13879399 | X75: 0 | Y75: 755717 | Z75: =SUM(N75,Q75,T75,U75,W75,X75,Y75) -> 17262241 | AA75: 2013,2014,2015,2016,2017 | AB75: 0 | AC75: 0 | AD75: 13547698 | AE75: 0 | AF75: 0 | AH75: New line on new route - single circuit
Z76: 0 | AH76: New line on new route - dual circuit
Z77: 0 | AH77: New line on new route - other
Z78: 0 | AH78: Line rebuild over existing route - single circuit
Z79: 0 | AH79: Line rebuild over existing route - dual circuit
Z80: 0 | AH80: Reconductor - Single circuit
Z81: 0 | AH81: Reconductor - Dual circuit
Z82: 0 | AH82: Reconductor - Other
Z83: 0 | AH83: Line upgrade - raising/retensoring
Z84: 0 | AH84: Line upgrade - voltage upgrade
Z85: 0 | AH85: Line upgrade - capacity
Z86: 0 | AH86: String spare circuit
Z87: 0 | AH87: Other
Z88: 0
Z89: 0
Z90: 0
Z91: 0
Z92: 0
Z93: 0
Z94: 0
Z95: 0
Z96: 0
Z97: 0
Z98: 0
Z99: 0
Z100: 0
Z101: 0
Z102: 0
Z103: 0
Z104: 0
Z105: 0
Z106: 0
Z107: =SUM(N107,Q107,T107,U107,W107,X107,Y107) -> 0
Z108: 0
Z109: 0
Z110: 0
Z111: 0
Z112: 0
Z113: 0
Z114: 0
Z115: 0
Z116: 0
Z117: 0
Z118: 0
Z119: 0
Z120: 0
Z121: 0
Z122: 0
Z123: 0
Z124: 0
Z125: 0
Z126: 0
Z127: 0
Z128: 0
C129: Non material projects - [actual] | Z129: 2574 | AA129: 2008,2009,2010,2011,2012,2013,2014,2015,2016,2017,2018 | AE129: 0 | AF129: 699.7

Sheet 2.3(b) Augex
B1: REGULATORY REPORTING STATEMENT
B2: =INDEX(dms_TradingNameFull_List,MATCH(dms_TradingName,dms_TradingName_List)) -> Ergon Energy
B3: =CONCATENATE((LOOKUP(dms_Model,dms_Model_List,dms_Worksheet_List))&" "&CRY) -> CATEGORY ANALYSIS 2017-18
B4: 2.3 AUGEX DATA
B6: There are TWO tables on this worksheet. Each has been grouped for ease of navigation. See the Instructions sheet on how to group or ungroup tables.
B8: 2.3.3 - AUGEX DATA - HV/LV FEEDERS AND DISTRIBUTION SUBSTATIONS
B9: NOTE: DNSP MUST PROVIDE EXPENDITURE INFORMATION ON AN AS INCURRED BASIS.
B10: DESCRIPTOR METRICS
B11: PROJECT TYPE | D11: UNITS ADDED (0's) | E11: UNITS UPGRADED (0's)
C12: UNITS | D12: =CRY -> 2017-18 | E12: =CRY -> 2017-18
B13: HV Feeder Augmentations - Overhead Lines | C13: Circuit line length in km | D13: 10 | E13: 2
B14: HV Feeder Augmentations - Underground Cables | C14: Circuit line length in km | D14: 7 | E14: 1
B15: LV Feeder Augmentations - Overhead Lines | C15: Circuit line length in km | D15: 6 | E15: 7
B16: LV Feeder Augmentations - Underground Cables | C16: Circuit line length in km | D16: 1 | E16: 1
B17: Distribution Substation Augmentations - Pole Mounted | C17: Number | D17: 74 | E17: 75
B18: Distribution Substation Augmentations - Ground Mounted | C18: Number | D18: 1 | E18: 2
B19: Distribution Substation Augmentations - Indoor | C19: Number | D19: 0 | E19: 0
B21: COST METRICS
B22: TOTAL DIRECT EXPENDITURE - Project Type | D22: EXPENDITURE ($0's)
D23: =CRY -> 2017-18
B24: HV Feeder Augmentations - Overhead Lines | D24: 11692760
B25: HV Feeder Augmentations - Underground Cables | D25: 601569
B26: HV Feeder Non-Material Projects | D26: 8994269
B27: LV Feeder Augmentations - Overhead Lines | D27: 1343449
B28: LV Feeder Augmentations - Underground Cables | D28: 325414
B29: LV Feeder Non-Material Projects | D29: 481707
B30: Distribution Substation Augmentations - Pole Mounted | D30: 3092420
B31: Distribution Substation Augmentations - Ground Mounted | D31: 68002
B32: Distribution Substation Augmentations - Indoor | D32: 0
B35: 2.3.4 - AUGEX DATA - TOTAL EXPENDITURE
B36: AUGMENTATION CAPEX (As incurred) | D36: EXPENDITURE ($0's)
D37: =CRY -> 2017-18
B38: Subtransmission Substations, Switching Stations, Zone Substations | D38: 9693074
B39: Subtransmission Lines | D39: 1108607
B40: HV Feeders | D40: 21288598
B41: HV Feeders - Land Purchases and Easements | D41: 22771
B42: Distribution Substations | D42: 3160422
B43: Distribution Substations - Land Purchases And Easements | D43: 0
B44: LV Feeders | D44: 2150570
B45: LV Feeders - Land Purchases And Easements | D45: 1624
B46: Other Assets | D46: 1938639

Sheet 2.5 Connections
B1: REGULATORY REPORTING STATEMENT
B2: =INDEX(dms_TradingNameFull_List,MATCH(dms_TradingName,dms_TradingName_List)) -> Ergon Energy
B3: =CONCATENATE((LOOKUP(dms_Model,dms_Model_List,dms_Worksheet_List))&" "&CRY) -> CATEGORY ANALYSIS 2017-18
B4: 2.5 CONNECTIONS
B6: There are TWO tables on this worksheet. Each has been grouped for ease of navigation. See the Instructions sheet on how to group or ungroup tables.
B8: 2.5.1 - DESCRIPTOR METRICS
B9: <<<GROUP-ROW>>>
E11: VOLUMES AND EXPENDITURE
B12: CONNECTION SUBCATEGORY | C12: DESCRIPTOR METRIC | D12: UNITS | E12: =CRY -> 2017-18
B13: RESIDENTIAL | C13: Underground connections | D13: 0's | E13: 5356
C14: Overhead connections | D14: 0's | E14: 3034
C15: Distribution substation installed | D15: MVA added | E15: 23.632
C16: Distribution substations installed | D16: 0's | E16: 621
C17: Distribution substation installed | D17: total spend $0s | E17: 6003846
C18: Augmentation HV | D18: net circuit km added | E18: 124.202
C19: Augmentation HV | D19: total spend $0s | E19: 5461873
C20: Augmentation LV | D20: net circuit km added | E20: 15.617
C21: Augmentation LV | D21: total spend $0s | E21: 6768213
C22: Mean days to connect residential customer with LV single phase connection | D22: 0's | E22: 8
C23: Volume of GSL breaches for residential customers | D23: 0's | E23: 56
C24: Volume of customer complaints relating to connection services | D24: 0's | E24: 28
C25: GSL payments | D25: $0s | E25: 11508
B26: COMMERCIAL/INDUSTRIAL | C26: Underground connections | D26: 0's | E26: 599
C27: Overhead connections | D27: 0's | E27: 1155
C28: Distribution substation installed | D28: MVA added | E28: 157.5425
C29: Distribution substations installed | D29: 0's | E29: 745
C30: Distribution substation installed | D30: total spend $0s | E30: 14036102
C31: Augmentation HV | D31: net circuit km added | E31: 151.053
C32: Augmentation HV | D32: total spend $0s | E32: 13365052
C33: Augmentation LV | D33: net circuit km added | E33: 10.987
C34: Augmentation LV | D34: total spend $0s | E34: 6272742
B35: SUBDIVISION | C35: Underground connections | D35: 0's | E35: 2974
C36: Overhead connections | D36: 0's | E36: 225
C37: Distribution substation installed | D37: MVA added | E37: 21.358
C38: Distribution substations installed | D38: 0's | E38: 89
C39: Distribution substation installed | D39: total spend $0s | E39: 697310
C40: Augmentation HV | D40: net circuit km added | E40: 15.797
C41: Augmentation HV | D41: total spend $0s | E41: 2082001
C42: Augmentation LV | D42: net circuit km added | E42: 80.042
C43: Augmentation LV | D43: total spend $0s | E43: 2859966
C44: Cost per lot ($) | D44: $0s | E44: 1763
B45: EMBEDDED GENERATION | C45: Underground connections | D45: 0's | E45: 3446
C46: Overhead connections | D46: 0's | E46: 6256
C47: Distribution substation installed | D47: MVA added | E47: 0.26
C48: Distribution substations installed | D48: 0's | E48: 4
C49: Distribution substation installed | D49: total spend $0s | E49: 4878307
C50: Augmentation HV | D50: net circuit km added | E50: 1.11514
C51: Augmentation HV | D51: total spend $0s | E51: 15417144
C52: Augmentation LV | D52: net circuit km added | E52: -0.11
C53: Augmentation LV | D53: total spend $0s | E53: 3025429
B57: 2.5.2 - COST METRICS BY CONNECTION CLASSIFICATION
D58: EXPENDITURE ($0's) | E58: VOLUMES (0's)
B59: CONNECTION SUBCATEGORY | C59: CONNECTION CLASSIFICATION | D59: =CRY -> 2017-18 | E59: =CRY -> 2017-18
B60: RESIDENTIAL | C60: Simple connection LV | D60: 4836626 | E60: 9976
C61: Complex connection LV | D61: 730895 | E61: 157
C62: Complex connection HV | D62: 12666411 | E62: 1039
B63: COMMERCIAL/INDUSTRIAL | C63: Simple connection LV | D63: 6111346 | E63: 2350
C64: Complex connection HV (customer connected at LV, minor HV works) | D64: 21534214 | E64: 744
C65: Complex connection HV (customer connected at LV, upstream asset works) | D65: 4874804 | E65: 89
C66: Complex connection HV (customer connected at HV) | D66: 292180 | E66: 7
C67: Complex connection sub-transmission | D67: 854508 | E67: 18
B68: SUBDIVISION | C68: Complex connection LV | D68: 1712837 | E68: 227
C69: Complex connection HV (no upstream asset works) | D69: 2395583 | E69: 71
C70: Complex connection HV (with upstream asset works) | D70: 1530857 | E70: 139
B71: EMBEDDED GENERATION | C71: Simple connection LV | D71: 3024981 | E71: 10552
C72: Complex connection HV (small capacity) | D72: 200 | E72: 1
C73: Complex connection HV (large capacity) | D73: 20295663 | E73: 26

Sheet 2.6 Non-network
B1: REGULATORY REPORTING STATEMENT
B2: =INDEX(dms_TradingNameFull_List,MATCH(dms_TradingName,dms_TradingName_List)) -> Ergon Energy
B3: =CONCATENATE((LOOKUP(dms_Model,dms_Model_List,dms_Worksheet_List))&" "&CRY) -> CATEGORY ANALYSIS 2017-18
B4: 2.6 NON NETWORK EXPENDITURE
B6: There are THREE tables on this worksheet. Each has been grouped (and sub-grouped) for ease of navigation. See the Instructions sheet on how to group or ungroup tables.
B8: 2.6.1 - NON-NETWORK EXPENDITURE
F9: EXPENDITURE ($0's)
B10: SERVICE SUBCATEGORY | C10: ASSET CATEGORY | F10: =CRY -> 2017-18
B11: OPEX
B12: IT & COMMUNICATIONS | C12: Client device expenditure | F12: 0
C13: Recurrent expenditure | F13: 61061321.65
C14: Non-recurrent expenditure | F14: 0
B15: MOTOR VEHICLES | C15: Car | F15: 224249.4988
C16: Light commercial vehicle | F16: 8069032.319
C17: Elevated work platform (LCV) | F17: 0
C18: Elevated work platform (HCV) | F18: 7175654.62
C19: Heavy commercial vehicle | F19: 3215953.382
B20: BUILDINGS AND PROPERTY | C20: Total buildings and property expenditure | F20: 31445936
B21: OTHER | C21: Other expenditure | F21: 0
B22: OTHER - DNSP nominated | C22: CRANE BORER PLANT HCV | F22: 2691498.267
C23: OTHER FLEET ASSETS | F23: 1872615.481
C24: EWP Hired | F24: 189999.7426
C25: Car Hired | F25: 80.59957357
C26: LCV Hired | F26: 0
C27: Other Hire | F27: 38718.53981
C28: Office Furniture and Equipment | F28: 0
C29: Plant and equipment | F29: 0
C30: Refurbishment/Rebuild EWP (HVC) | F30: 0
B33: CAPEX
B34: IT & COMMUNICATIONS | C34: Client device expenditure | F34: 1836058.998
C35: Recurrent expenditure | F35: 1038931.244
C36: Non-recurrent expenditure | F36: 1505777.078
B37: MOTOR VEHICLES | C37: Car | F37: 217233.5379
C38: Light commercial vehicle | F38: 1688617.5
C39: Elevated work platform (LCV) | F39: 0
C40: Elevated work platform (HCV) | F40: 6149914.934
C41: Heavy commercial vehicle | F41: 2363689.316
B42: BUILDINGS AND PROPERTY | C42: Total buildings and property expenditure | F42: 19041767.38
B43: OTHER | C43: Other expenditure | F43: 0
B44: OTHER - DNSP nominated | C44: =IF(ISBLANK(C22),"",C22) -> CRANE BORER PLANT HCV | F44: 1240928.461
C45: =IF(ISBLANK(C23),"",C23) -> OTHER FLEET ASSETS | F45: 1013775.379
C46: EWP Hired | F46: 0
C47: Car Hired | F47: 0
C48: LCV Hired | F48: 0
C49: Other Hire | F49: 0
C50: Office Furniture and Equipment | F50: 495168.7161
C51: Plant and equipment | F51: 5394221.575
C52: Refurbishment/Rebuild EWP (HVC) | F52: 769459
B58: 2.6.2 - ANNUAL DESCRIPTOR METRICS - IT & COMMUNICATIONS EXPENDITURE
F59: VOLUMES (0's)
B61: NON-NETWORK CATEGORY | C61: DESCRIPTOR METRIC | F61: =CRY -> 2017-18
B62: IT & COMMUNICATIONS | C62: Employee numbers | F62: 2635.181225
C63: User numbers | F63: 3383.552661
C64: Number of devices | F64: 3957.239205
B67: 2.6.3 - ANNUAL DESCRIPTOR METRICS - MOTOR VEHICLES
F68: VOLUMES / %
B69: NON-NETWORK CATEGORY | C69: ASSET CATEGORY | D69: DESCRIPTOR METRIC | E69: UNITS | F69: =CRY -> 2017-18
B70: MOTOR VEHICLES | C70: CAR | D70: Average kilometres travelled | E70: 0's | F70: 14301.75
D71: Number purchased | E71: 0's | F71: 8
D72: Number leased | E72: 0's | F72: 6
D73: Number in fleet | E73: 0's | F73: 61
D74: Proportion of total fleet expenditure allocated as regulatory expenditure | E74: (per cent) | F74: 0.9278
C75: LIGHT COMMERCIAL VEHICLE | D75: Average kilometres travelled | E75: 0's | F75: 25629.96
D76: Number purchased | E76: 0's | F76: 29
D77: Number leased | E77: 0's | F77: 10
D78: Number in fleet | E78: 0's | F78: 791
D79: Proportion of total fleet expenditure allocated as regulatory expenditure | E79: (per cent) | F79: 0.9278
C80: ELEVATED WORK PLATFORM (LCV) | D80: Average kilometres travelled | E80: 0's | F80: 0
D81: Number purchased | E81: 0's | F81: 0
D82: Number leased | E82: 0's | F82: 0
D83: Number in fleet | E83: 0's | F83: 0
D84: Proportion of total fleet expenditure allocated as regulatory expenditure | E84: (per cent) | F84: 0
C85: ELEVATED WORK PLATFORM (HCV) | D85: Average kilometres travelled | E85: 0's | F85: 16763.36
D86: Number purchased | E86: 0's | F86: 21
D87: Number leased | E87: 0's | F87: 0
D88: Number in fleet | E88: 0's | F88: 161
D89: Proportion of total fleet expenditure allocated as regulatory expenditure | E89: (per cent) | F89: 0.9278
C90: HEAVY COMMERCIAL VEHICLE | D90: Average kilometres travelled | E90: 0's | F90: 17333.28
D91: Number purchased | E91: 0's | F91: 26
D92: Number leased | E92: 0's | F92: 0
D93: Number in fleet | E93: 0's | F93: 206
D94: Proportion of total fleet expenditure allocated as regulatory expenditure | E94: (per cent) | F94: 0.9278

Sheet 2.7 Vegetation management
B1: REGULATORY REPORTING STATEMENT
B2: =INDEX(dms_TradingNameFull_List,MATCH(dms_TradingName,dms_TradingName_List)) -> Ergon Energy
B3: =CONCATENATE((LOOKUP(dms_Model,dms_Model_List,dms_Worksheet_List))&" "&CRY) -> CATEGORY ANALYSIS 2017-18
B4: 2.7 VEGETATION MANAGEMENT
B6: There are THREE tables on this worksheet. Each has been grouped (and sub-grouped) for ease of navigation. See the Instructions sheet on how to group or ungroup tables.
B8: Please enter a description for each Zone in table 2.7.1 - Urban and CBD. The zone description will then autopopulate in tables 2.7.1 - Rural and 2.7.2.
A11: ` | B11: 2.7.1 - DESCRIPTOR METRICS BY ZONE
B12: URBAN AND CBD
E13: =CRY -> 2017-18
B14: ZONES | C14: ASSET | D14: UNITS
B15: ZONE 1 | C15: Route line length within zone | D15: km | E15: 5826.598
C16: Number of maintenance spans | D16: 0's | E16: 40183.51464
C17: Total length of maintenance spans | D17: km | E17: 1622.131517
C18: Length of vegetation corridors | D18: km | E18: 1622.131517
C19: Average number of trees per maintenance span | D19: 0's | E19: 4
C20: Average frequency of cutting cycle | D20: years | E20: 1.1
B21: ZONE 2 | C21: Route line length within zone | D21: km | E21: 4358.204
C22: Number of maintenance spans | D22: 0's | E22: 25339.46876
C23: Total length of maintenance spans | D23: km | E23: 1022.905818
C24: Length of vegetation corridors | D24: km | E24: 1022.905818
C25: Average number of trees per maintenance span | D25: 0's | E25: 3.1
C26: Average frequency of cutting cycle | D26: years | E26: 1
B27: ZONE 3 | C27: Route line length within zone | D27: km | E27: 6464.479
C28: Number of maintenance spans | D28: 0's | E28: 23379.56626
C29: Total length of maintenance spans | D29: km | E29: 943.7883077
C30: Length of vegetation corridors | D30: km | E30: 943.7883077
C31: Average number of trees per maintenance span | D31: 0's | E31: 3
C32: Average frequency of cutting cycle | D32: years | E32: 2
B33: ZONE 4 | C33: Route line length within zone | D33: km | E33: 0
C34: Number of maintenance spans | D34: 0's | E34: 0
C35: Total length of maintenance spans | D35: km | E35: 0
C36: Length of vegetation corridors | D36: km | E36: 0
C37: Average number of trees per maintenance span | D37: 0's | E37: 0
C38: Average frequency of cutting cycle | D38: years | E38: 0
B39: ZONE 5 | C39: Route line length within zone | D39: km | E39: 0
C40: Number of maintenance spans | D40: 0's | E40: 0
C41: Total length of maintenance spans | D41: km | E41: 0
C42: Length of vegetation corridors | D42: km | E42: 0
C43: Average number of trees per maintenance span | D43: 0's | E43: 0
C44: Average frequency of cutting cycle | D44: years | E44: 0
B45: ZONE 6 | C45: Route line length within zone | D45: km | E45: 0
C46: Number of maintenance spans | D46: 0's | E46: 0
C47: Total length of maintenance spans | D47: km | E47: 0
C48: Length of vegetation corridors | D48: km | E48: 0
C49: Average number of trees per maintenance span | D49: 0's | E49: 0
C50: Average frequency of cutting cycle | D50: years | E50: 0
B51: ZONE 7 | C51: Route line length within zone | D51: km | E51: 0
C52: Number of maintenance spans | D52: 0's | E52: 0
C53: Total length of maintenance spans | D53: km | E53: 0
C54: Length of vegetation corridors | D54: km | E54: 0
C55: Average number of trees per maintenance span | D55: 0's | E55: 0
C56: Average frequency of cutting cycle | D56: years | E56: 0
B57: ZONE 8 | C57: Route line length within zone | D57: km | E57: 0
C58: Number of maintenance spans | D58: 0's | E58: 0
C59: Total length of maintenance spans | D59: km | E59: 0
C60: Length of vegetation corridors | D60: km | E60: 0
C61: Average number of trees per maintenance span | D61: 0's | E61: 0
C62: Average frequency of cutting cycle | D62: years | E62: 0
B63: ZONE 9 | C63: Route line length within zone | D63: km | E63: 0
C64: Number of maintenance spans | D64: 0's | E64: 0
C65: Total length of maintenance spans | D65: km | E65: 0
C66: Length of vegetation corridors | D66: km | E66: 0
C67: Average number of trees per maintenance span | D67: 0's | E67: 0
C68: Average frequency of cutting cycle | D68: years | E68: 0
B69: ZONE 10 | C69: Route line length within zone | D69: km | E69: 0
C70: Number of maintenance spans | D70: 0's | E70: 0
C71: Total length of maintenance spans | D71: km | E71: 0
C72: Length of vegetation corridors | D72: km | E72: 0
C73: Average number of trees per maintenance span | D73: 0's | E73: 0
C74: Average frequency of cutting cycle | D74: years | E74: 0
B75: ZONE 11 | C75: Route line length within zone | D75: km | E75: 0
C76: Number of maintenance spans | D76: 0's | E76: 0
C77: Total length of maintenance spans | D77: km | E77: 0
C78: Length of vegetation corridors | D78: km | E78: 0
C79: Average number of trees per maintenance span | D79: 0's | E79: 0
C80: Average frequency of cutting cycle | D80: years | E80: 0
B81: ZONE 12 | C81: Route line length within zone | D81: km | E81: 0
C82: Number of maintenance spans | D82: 0's | E82: 0
C83: Total length of maintenance spans | D83: km | E83: 0
C84: Length of vegetation corridors | D84: km | E84: 0
C85: Average number of trees per maintenance span | D85: 0's | E85: 0
C86: Average frequency of cutting cycle | D86: years | E86: 0
B87: ZONE 13 | C87: Route line length within zone | D87: km | E87: 0
C88: Number of maintenance spans | D88: 0's | E88: 0
C89: Total length of maintenance spans | D89: km | E89: 0
C90: Length of vegetation corridors | D90: km | E90: 0
C91: Average number of trees per maintenance span | D91: 0's | E91: 0
C92: Average frequency of cutting cycle | D92: years | E92: 0
B93: ZONE 14 | C93: Route line length within zone | D93: km | E93: 0
C94: Number of maintenance spans | D94: 0's | E94: 0
C95: Total length of maintenance spans | D95: km | E95: 0
C96: Length of vegetation corridors | D96: km | E96: 0
C97: Average number of trees per maintenance span | D97: 0's | E97: 0
C98: Average frequency of cutting cycle | D98: years | E98: 0
B99: ZONE 15 | C99: Route line length within zone | D99: km | E99: 0
C100: Number of maintenance spans | D100: 0's | E100: 0
C101: Total length of maintenance spans | D101: km | E101: 0
C102: Length of vegetation corridors | D102: km | E102: 0
C103: Average number of trees per maintenance span | D103: 0's | E103: 0
C104: Average frequency of cutting cycle | D104: years | E104: 0
B105: ZONE 16 | C105: Route line length within zone | D105: km | E105: 0
C106: Number of maintenance spans | D106: 0's | E106: 0
C107: Total length of maintenance spans | D107: km | E107: 0
C108: Length of vegetation corridors | D108: km | E108: 0
C109: Average number of trees per maintenance span | D109: 0's | E109: 0
C110: Average frequency of cutting cycle | D110: years | E110: 0
B111: ZONE 17 | C111: Route line length within zone | D111: km | E111: 0
C112: Number of maintenance spans | D112: 0's | E112: 0
C113: Total length of maintenance spans | D113: km | E113: 0
C114: Length of vegetation corridors | D114: km | E114: 0
C115: Average number of trees per maintenance span | D115: 0's | E115: 0
C116: Average frequency of cutting cycle | D116: years | E116: 0
B117: ZONE 18 | C117: Route line length within zone | D117: km | E117: 0
C118: Number of maintenance spans | D118: 0's | E118: 0
C119: Total length of maintenance spans | D119: km | E119: 0
C120: Length of vegetation corridors | D120: km | E120: 0
C121: Average number of trees per maintenance span | D121: 0's | E121: 0
C122: Average frequency of cutting cycle | D122: years | E122: 0
B124: RURAL
E125: =CRY -> 2017-18
B126: ZONES | C126: ASSET | D126: UNITS
B127: =B15 -> ZONE 1 | C127: Route line length within zone | D127: km | E127: 31310.906
C128: Number of maintenance spans | D128: 0's | E128: 24796.74257
C129: Total length of maintenance spans | D129: km | E129: 5291.336598
C130: Length of vegetation corridors | D130: km | E130: 5291.336598
C131: Average number of trees per maintenance span | D131: 0's | E131: 2.3
C132: Average frequency of cutting cycle | D132: years | E132: 3.5
B133: =B21 -> ZONE 2 | C133: Route line length within zone | D133: km | E133: 38548.716
C134: Number of maintenance spans | D134: 0's | E134: 32211.94818
C135: Total length of maintenance spans | D135: km | E135: 6873.655274
C136: Length of vegetation corridors | D136: km | E136: 6873.655274
C137: Average number of trees per maintenance span | D137: 0's | E137: 1.8
C138: Average frequency of cutting cycle | D138: years | E138: 3.3
B139: =B27 -> ZONE 3 | C139: Route line length within zone | D139: km | E139: 53848.019
C140: Number of maintenance spans | D140: 0's | E140: 45560.51414
C141: Total length of maintenance spans | D141: km | E141: 9722.08407
C142: Length of vegetation corridors | D142: km | E142: 9722.08407
C143: Average number of trees per maintenance span | D143: 0's | E143: 2
C144: Average frequency of cutting cycle | D144: years | E144: 3.5
B145: =B33 -> ZONE 4 | C145: Route line length within zone | D145: km | E145: 0
C146: Number of maintenance spans | D146: 0's | E146: 0
C147: Total length of maintenance spans | D147: km | E147: 0
C148: Length of vegetation corridors | D148: km | E148: 0
C149: Average number of trees per maintenance span | D149: 0's | E149: 0
C150: Average frequency of cutting cycle | D150: years | E150: 0
B151: =B39 -> ZONE 5 | C151: Route line length within zone | D151: km | E151: 0
C152: Number of maintenance spans | D152: 0's | E152: 0
C153: Total length of maintenance spans | D153: km | E153: 0
C154: Length of vegetation corridors | D154: km | E154: 0
C155: Average number of trees per maintenance span | D155: 0's | E155: 0
C156: Average frequency of cutting cycle | D156: years | E156: 0
B157: =B45 -> ZONE 6 | C157: Route line length within zone | D157: km | E157: 0
C158: Number of maintenance spans | D158: 0's | E158: 0
C159: Total length of maintenance spans | D159: km | E159: 0
C160: Length of vegetation corridors | D160: km | E160: 0
C161: Average number of trees per maintenance span | D161: 0's | E161: 0
C162: Average frequency of cutting cycle | D162: years | E162: 0
B163: =B51 -> ZONE 7 | C163: Route line length within zone | D163: km | E163: 0
C164: Number of maintenance spans | D164: 0's | E164: 0
C165: Total length of maintenance spans | D165: km | E165: 0
C166: Length of vegetation corridors | D166: km | E166: 0
C167: Average number of trees per maintenance span | D167: 0's | E167: 0
C168: Average frequency of cutting cycle | D168: years | E168: 0
B169: =B57 -> ZONE 8 | C169: Route line length within zone | D169: km | E169: 0
C170: Number of maintenance spans | D170: 0's | E170: 0
C171: Total length of maintenance spans | D171: km | E171: 0
C172: Length of vegetation corridors | D172: km | E172: 0
C173: Average number of trees per maintenance span | D173: 0's | E173: 0
C174: Average frequency of cutting cycle | D174: years | E174: 0
B175: =B63 -> ZONE 9 | C175: Route line length within zone | D175: km | E175: 0
C176: Number of maintenance spans | D176: 0's | E176: 0
C177: Total length of maintenance spans | D177: km | E177: 0
C178: Length of vegetation corridors | D178: km | E178: 0
C179: Average number of trees per maintenance span | D179: 0's | E179: 0
C180: Average frequency of cutting cycle | D180: years | E180: 0
B181: =B69 -> ZONE 10 | C181: Route line length within zone | D181: km | E181: 0
C182: Number of maintenance spans | D182: 0's | E182: 0
C183: Total length of maintenance spans | D183: km | E183: 0
C184: Length of vegetation corridors | D184: km | E184: 0
C185: Average number of trees per maintenance span | D185: 0's | E185: 0
C186: Average frequency of cutting cycle | D186: years | E186: 0
B187: =B75 -> ZONE 11 | C187: Route line length within zone | D187: km | E187: 0
C188: Number of maintenance spans | D188: 0's | E188: 0
C189: Total length of maintenance spans | D189: km | E189: 0
C190: Length of vegetation corridors | D190: km | E190: 0
C191: Average number of trees per maintenance span | D191: 0's | E191: 0
C192: Average frequency of cutting cycle | D192: years | E192: 0
B193: =B81 -> ZONE 12 | C193: Route line length within zone | D193: km | E193: 0
C194: Number of maintenance spans | D194: 0's | E194: 0
C195: Total length of maintenance spans | D195: km | E195: 0
C196: Length of vegetation corridors | D196: km | E196: 0
C197: Average number of trees per maintenance span | D197: 0's | E197: 0
C198: Average frequency of cutting cycle | D198: years | E198: 0
B199: =B87 -> ZONE 13 | C199: Route line length within zone | D199: km | E199: 0
C200: Number of maintenance spans | D200: 0's | E200: 0
C201: Total length of maintenance spans | D201: km | E201: 0
C202: Length of vegetation corridors | D202: km | E202: 0
C203: Average number of trees per maintenance span | D203: 0's | E203: 0
C204: Average frequency of cutting cycle | D204: years | E204: 0
B205: =B93 -> ZONE 14 | C205: Route line length within zone | D205: km | E205: 0
... 201 more rows

Sheet 2.8 Maintenance
B1: REGULATORY REPORTING STATEMENT
B2: =INDEX(dms_TradingNameFull_List,MATCH(dms_TradingName,dms_TradingName_List)) -> Ergon Energy
B3: =CONCATENATE((LOOKUP(dms_Model,dms_Model_List,dms_Worksheet_List))&" "&CRY) -> CATEGORY ANALYSIS 2017-18
B4: 2.8 MAINTENANCE
B6: There are TWO tables on this worksheet. Each has been grouped for ease of navigation. See the Instructions sheet on how to group or ungroup tables.
B8: 2.8.1 - DESCRIPTOR METRICS FOR ROUTINE AND NON-ROUTINE MAINTENANCE
F9: ASSET QUANTITY (0's) | H9: AVERAGE AGE OF ASSET GROUP | I9: INSPECTION CYCLE (YEARS) | J9: MAINTENANCE CYCLE (YEARS)
F10: AT YEAR END | G10: INSPECTED / MAINTAINED
B11: MAINTENANCE ACTIVITY | C11: MAINTENANCE ASSET CATEGORY | D11: ASSET QUANTITY | E11: Units | F11: =CRY -> 2017-18 | G11: =CRY -> 2017-18 | H11: =CRY -> 2017-18
B12: Pole top, overhead line & service line maintenance | C12: Pole tops and overhead lines | D12: Number of poles | E12: Number | F12: 973700 | G12: 15342.6 | H12: 30.57848413 | I12: 4.5 | J12: -
C13: Service lines | D13: Number of customers | E13: Number | F13: 400485 | G13: 140.08 | H13: 31.12309116 | I13: 4.5 | J13: -
B14: Pole inspection and treatment | C14: All poles | D14: Number of poles | E14: Number | F14: 973700 | G14: 273235.04 | H14: 30.57848413 | I14: 4.5 | J14: -
B15: Overhead asset inspection | C15: All overhead assets | D15: Line patrolled (route KM) | E15: KM | F15: 143166 | G15: 70.04 | H15: 28.5054133 | I15: 0 | J15: -
B16: Network underground cable maintenance: by voltage | C16: LV - 11 to 22 KV | D16: Length (KM) | E16: KM | F16: 8720 | G16: 70.04 | H16: 11 | I16: 0 | J16: -
C17: 33 KV and above | D17: Length (KM) | E17: KM | F17: 90 | G17: 0 | H17: 16 | I17: 0 | J17: -
B18: Network underground cable maintenance: by location | C18: Cbd | D18: Length (KM) | E18: KM | F18: 0 | G18: 0 | H18: 0 | I18: 0 | J18: -
C19: Non-CBD | D19: Length (KM) | E19: KM | F19: 8810 | G19: 70.04 | H19: 11.56299659 | I19: 0 | J19: -
B20: Distribution substation equipment & property maintenance | C20: Distribution substation transformers | D20: Number of installed transformers | E20: Number | F20: 101308 | G20: 3701.04 | H20: 22.59174004 | I20: 1 | J20: -
C21: Distribution substation switchgear (within-substations and stand-alone switchgear) | D21: Number of switches | E21: Number | F21: 18082 | G21: 4009.04 | H21: 18.17774582 | I21: 12 | J21: -
C22: Distribution substation - other equipment | D22: Earth mat | E22: Number | F22: 101308 | G22: 16597.1 | H22: 22.90814151 | I22: 4.5 | J22: -
C23: Distribution substation - property | D23: Number of distribution substation properties maintained | E23: Number | F23: 99515 | G23: 36.02 | H23: 0 | I23: 0 | J23: -
B24: Zone substation equipment maintenance | C24: Transformers - zone substation | D24: Number | E24: Number | F24: 592 | G24: 648.55 | H24: 38.15540541 | I24: 1.5 | J24: 12
C25: Transformers - distribution | D25: Number of distribution transformers within zone substation | E25: Number | F25: 445 | G25: 45.11 | H25: 29.44044944 | I25: 0.5 | J25: -
C26: Transformers - HV | D26: Number of HV transformers | E26: Number | F26: 0 | G26: 0 | H26: 0 | I26: 0 | J26: -
C27: Zone substation - other equipment | D27: <DNSP to nominate> | E27: Number | F27: 17437 | G27: 7123.9 | H27: 22.03068188 | I27: 1.5 | J27: 12
B28: Zone substation property maintenance | C28: All zone substation properties | D28: Number of zone substation properties maintained | E28: Number | F28: 465 | G28: 1309.44 | H28: 0 | I28: 1.5 | J28: -
B29: Public lighting maintenance | C29: Minor roads | D29: Number of public lights maintained | E29: Number | F29: 0 | G29: 0 | H29: 0 | I29: 0 | J29: -
C30: Major roads | D30: Number of public lights maintained | E30: Number | F30: 0 | G30: 0 | H30: 0 | I30: 0 | J30: -
B31: SCADA & network control maintenance | C31: SCADA & network control | D31: Number of systems | E31: Number | F31: 845 | G31: 1794 | H31: 13 | I31: 4 | J31: -
B32: Protection systems maintenance | C32: Protection systems | D32: Number of systems | E32: Number | F32: 6773 | G32: 1287 | H32: 26.10202274 | I32: 6 | J32: -
B33: Subtransmission asset maintenance | C33: Subtransmission asset maintenance - for DNSPs with dual function assets | D33: <DNSP to nominate> | E33: Number | F33: 0 | G33: 0 | H33: 0 | I33: 0 | J33: -
B34: Various assets | C34: includes rates, electricity, communications equip, metering | D34: Various | E34: Number | F34: 0 | G34: 0 | H34: 0 | I34: 0 | J34: -
B35: Ground clearance - access tracks | C35: Access tracks | D35: Number | E35: Number | F35: 0 | G35: 465 | H35: 0 | I35: 4.5 | J35: -
B36: Other | C36: < DNSP to nominate > | D36: < DNSP to nominate >
B48: 2.8.2 - COST METRICS FOR ROUTINE AND NON-ROUTINE MAINTENANCE
F49: EXPENDITURE ($0'S)
F50: ROUTINE MAINTENANCE | G50: NON-ROUTINE MAINTENANCE
B51: MAINTENANCE ACTIVITY | C51: MAINTENANCE ASSET CATEGORY | D51: ASSET QUANTITY | E51: Units | F51: =CRY -> 2017-18 | G51: =CRY -> 2017-18
B52: Pole top, overhead line & service line maintenance | C52: Pole tops and overhead lines | D52: Number of poles | E52: Number | F52: 1336434.17 | G52: 10150111.55
C53: Service lines | D53: Number of customers | E53: Number | F53: 0 | G53: 461340.24
B54: Pole inspection and treatment | C54: All poles | D54: Number of poles | E54: Number | F54: 26197794.88 | G54: 230670.12
B55: Overhead asset inspection | C55: All overhead assets | D55: Line patrolled (route KM) | E55: KM | F55: 0 | G55: 230670.12
B56: Network underground cable maintenance: by voltage | C56: LV - 11 to 22 KV | D56: Length (KM) | E56: KM | F56: 83200.3 | G56: 230670.12
C57: 33 KV and above | D57: Length (KM) | E57: KM | F57: 0 | G57: 0
B58: Network underground cable maintenance: by location | C58: Cbd | D58: Length (KM) | E58: KM | F58: 0 | G58: 0
C59: Non-CBD | D59: Length (KM) | E59: KM | F59: 83200.3 | G59: 230670.12
B60: Distribution substation equipment & property maintenance | C60: Distribution substation transformers | D60: Number of installed transformers | E60: Number | F60: 706946.57 | G60: 230670.12
C61: Distribution substation switchgear (within-substations and stand-alone switchgear) | D61: Number of switches | E61: Number | F61: 2310278.34 | G61: 230670.12
C62: Distribution substation - other equipment | D62: Earth mat | E62: Number | F62: 2947390.12 | G62: 576675.3
C63: Distribution substation - property | D63: Number of distribution substation properties maintained | E63: Number | F63: 405.8 | G63: 115335.06
B64: Zone substation equipment maintenance | C64: Transformers - zone substation | D64: Number | E64: Number | F64: 1002234.83 | G64: 585902.868
C65: Transformers - distribution | D65: Number of distribution transformers within zone substation | E65: Number | F65: 14352.5 | G65: 117180.5736
C66: Transformers - HV | D66: Number of HV transformers | E66: Number | F66: 0 | G66: 0
C67: Zone substation - other equipment | D67: =IF(ISBLANK(D27),"",D27) -> <DNSP to nominate> | E67: =IF(ISBLANK(E27),"",E27) -> Number | F67: 4167757.12 | G67: 10842677.72
B68: Zone substation property maintenance | C68: All zone substation properties | D68: Number of zone substation properties maintained | E68: Number | F68: 2042068.02 | G68: 468722.2944
B69: Public lighting maintenance | C69: Minor roads | D69: Number of public lights maintained | E69: Number | F69: 0 | G69: 0
C70: Major roads | D70: Number of public lights maintained | E70: Number | F70: 0 | G70: 0
B71: SCADA & network control maintenance | C71: SCADA & network control | D71: Number of systems | E71: Number | F71: 1322.24 | G71: 943951.94
B72: Protection systems maintenance | C72: Protection systems | D72: Number of systems | E72: Number | F72: 1453059.16 | G72: 1297332.17
B73: Subtransmission asset maintenance | C73: Subtransmission asset maintenance - for DNSPs with dual function assets | D73: =IF(ISBLANK(D33),"",D33) -> <DNSP to nominate> | E73: =IF(ISBLANK(E33),"",E33) -> Number | F73: 0 | G73: 0
B74: Various assets | C74: includes rates, electricity, communications equip, metering | D74: Various | E74: Number | F74: 6157918.21 | G74: 447523.1
B75: Ground clearance - access tracks | C75: Access tracks | D75: Number | E75: Number | F75: 1093996.49 | G75: 4621889.36
B76: Other | C76: =IF(ISBLANK(C36),"",C36) -> < DNSP to nominate > | D76: < DNSP to nominate >

Sheet 2.9 Emergency Response
B1: REGULATORY REPORTING STATEMENT
B2: =INDEX(dms_TradingNameFull_List,MATCH(dms_TradingName,dms_TradingName_List)) -> Ergon Energy
B3: =CONCATENATE((LOOKUP(dms_Model,dms_Model_List,dms_Worksheet_List))&" "&CRY) -> CATEGORY ANALYSIS 2017-18
B4: 2.9 EMERGENCY RESPONSE
B7: There is ONE table on this worksheet. It has been sub-grouped for ease of navigation. See the Instructions sheet on how to group or ungroup tables.
B9: 2.9.1 - EMERGENCY RESPONSE EXPENDITURE (OPEX)
C10: EXPENDITURE ($0's)
C11: =CRY -> 2017-18
B12: (A) TOTAL EMERGENCY RESPONSE EXPENDITURE
B13: Total Expenditure | C13: 55329909.98
B14: (B) MAJOR EVENTS O&M EXPENDITURE
B15: PWO(00050983) CYCLONE DEBBIE- WE F&L RESPONSE | C15: 969.05
B16: PWO(00050998) TC DEBBIE - ZONE2, BURDEKIN/WHITSUNDAYS | C16: 71390.08
B17: PWO(00051002) TC DEBBIE - ZONE 3, MACKAY SARINA | C17: 13602.35
B18: PWO(00051013) TC DEBBIE - ASSET MANAGEMENT RESPONSE | C18: 10400
B19: PWO(00051055) TC DEBBIE - EXTERNAL CONTRACTORS | C19: 28414.73
B20: PWO(00051060) TC DEBBIE - IR ZONE FITZROY | C20: 6913.3
B21: PWO(00057181) BUNDABERG STORM 7.11.17 | C21: 877097.09
B22: PWO(00060274) CYCLONE LINDA - 13.03.18 | C22: 348258.1
B23: PWO(00060684) TROPICAL CYCLONE NORA | C23: 517147.32
B24: PWO(00060806) TC IRIS 2018 | C24: 164502.26
B58: (C) MAJOR EVENT DAYS O&M EXPENDITURE
B59: Declared STPIS MED due to Severe Storms and Heavy Rain (19 Oct 2017) | C59: 157512.46
B60: Declared STPIS MED due to Severe Storms, Lighting and Heavy Rain (7 Nov 2017) | C60: 200427.18
B61: Declared STPIS MED due to Severe Storms (26 Dec 2017) | C61: 0
B62: Declared STPIS MED due to Severe Storms (31 Dec 2017) | C62: -167.36
B63: Declared STPIS MED due to Severe Storms (1 Jan 2018) | C63: 0
B64: Declared STPIS MED due to Severe Storms (2 Jan 2018) | C64: 392541.15
B65: Declared STPIS MED due to Severe Storms (16 Feb 2018) | C65: 428883.54
B66: Declared STPIS MED due to Severe Storms (20 Feb 2018) | C66: 159081.34
B67: Declared STPIS MED due to Fault (17 Apr 2018) | C67: 114861.04

Sheet 2.10 Overheads
B1: REGULATORY REPORTING STATEMENT
B2: =INDEX(dms_TradingNameFull_List,MATCH(dms_TradingName,dms_TradingName_List)) -> Ergon Energy
B3: =CONCATENATE((LOOKUP(dms_Model,dms_Model_List,dms_Worksheet_List))&" "&CRY) -> CATEGORY ANALYSIS 2017-18
B4: 2.10 OVERHEADS
B6: =CONCATENATE("Please note. This worksheet 2.10 Overheads is the original worksheet. We have also included a different version of the Overheads template (worksheet 2.10A Overheads) which collects the information in a different way. ",dms_TradingName, " is not obliged to complete worksheet 2.10A. However, the AER would prefer to collect Overheads information as presented in the revised worksheet 2.10A Overheads. If ",dms_TradingName," is prepared to complete worksheet 2.10A in lieu of the original worksheet 2.10 Overheads, please indicate that choice by selecting from the drop down list at the right. ",dms_TradingName, " is only required to complete one version of the Overheads worksheet in order to comply with the Category Analysis RIN.") -> Please note. This worksheet 2.10 Overheads is the original worksheet. We have also included a different version of the Overheads template (worksheet 2.10A Overheads) which collects the information in a different way. Ergon Energy is not obliged to complete worksheet 2.10A. However, the AER would prefer to collect Overheads information as presented in the revised worksheet 2.10A Overheads. If Ergon Energy is prepared to complete worksheet 2.10A in lieu of the original worksheet 2.10 Overheads, please indicate that choice by selecting from the drop down list at the right. Ergon Energy is only required to complete one version of the Overheads worksheet in order to comply with the Category Analysis RIN. | D6: Choose Response drop down selection
D7: Worksheet 2.10
B11: There are TWO tables on this worksheet. Each has been grouped (and sub-grouped) for ease of navigation. See the Instructions sheet on how to group or ungroup tables.
B13: =CONCATENATE("Instructions Please enter a description for each expenditure category as currently reported under ",dms_TradingName,"'s annual RIN.") -> Instructions Please enter a description for each expenditure category as currently reported under Ergon Energy's annual RIN.
B15: 2.10.1 - NETWORK OVERHEADS EXPENDITURE
D16: EXPENDITURE ($0's)
D17: =CRY -> 2017-18
B18: NETWORK OVERHEADS
B19: Standard Control Services | C19: NETWORK MANAGEMENT | D19: 6987255
C20: NETWORK PLANNING | D20: 10458117
C21: NETWORK CONTROL AND OPERATIONAL SWITCHING | D21: 27283944
C22: QUALITY AND STANDARD FUNCTIONS | D22: 5841869
C23: PROJECT GOVERNANCE AND RELATED FUNCTIONS | D23: 7822644
C24: OTHER | D24: 0
C25: 0 | D25: 0
C26: 0 | D26: 0
C27: NON-NETWORK ALTERNATIVES/ DEMAND MANAGEMENT | D27: 6112985
C28: OTHER | D28: 53731085
B47: Alternative Control Services | C47: NETWORK MANAGEMENT | D47: 1172664
C48: NETWORK PLANNING | D48: 1533466
C49: NETWORK CONTROL AND OPERATIONAL SWITCHING | D49: 32478
C50: QUALITY AND STANDARD FUNCTIONS | D50: 436508
C51: PROJECT GOVERNANCE AND RELATED FUNCTIONS | D51: 1066693
C52: OTHER | D52: 0
C53: METER READING | D53: 9649887
C54: FEED-IN TARIFFS/ SOLAR BONUS | D54: 0
C55: NON-NETWORK ALTERNATIVES/ DEMAND MANAGEMENT | D55: 0
C56: OTHER | D56: 37388678
B75: Negotiated Services | C75: Total | D75: 0
B76: Unregulated Services | C76: Total | D76: 9410321.549
B79: CAPITALISED NETWORK OVERHEADS
B80: Standard Control Services | C80: NETWORK MANAGEMENT | D80: 10419249
C81: NETWORK PLANNING | D81: 15640522
C82: NETWORK CONTROL AND OPERATIONAL SWITCHING | D82: 898711
C83: QUALITY AND STANDARD FUNCTIONS | D83: 8985284
C84: PROJECT GOVERNANCE AND RELATED FUNCTIONS | D84: 11831367
C85: OTHER | D85: 0
C86: METER READING | D86: 0
C87: FEED-IN TARIFFS/ SOLAR BONUS | D87: 0
C88: NON-NETWORK ALTERNATIVES/ DEMAND MANAGEMENT | D88: 0
C89: OTHER | D89: 29851110
B104: 2.10.2 - CORPORATE OVERHEADS EXPENDITURE
D105: EXPENDITURE ($0's)
D106: =CRY -> 2017-18
B107: CORPORATE OVERHEADS
B108: Standard Control Services | C108: ASSET MANAGEMENT | D108: 685428
C109: CORPORATE GOVERNANCE | D109: 0
C110: CORPORATE | D110: -2539868
C111: CUSTOMER AND STAKEHOLDER ENGAGEMENT | D111: 0
C112: CUSTOMER SERVICE/RETAIL | D112: 0
C113: EMPLOYEE AND SHARED SERVICES | D113: 8434109
C114: ENERGY SOLUTIONS AND MARKET DEVELOPMENT | D114: 0
C115: FINANCE AND STRATEGIC SERVICES | D115: 24208106
C116: OFFICE OF THE CHIEF EXECUTIVE | D116: 617228
C117: OPERATIONS | D117: 2988494
C118: SPARQ SERVICES | D118: 34635088
C119: MAJOR PROJECTS | D119: 0
C120: STRATEGY REVENUE & TRANSFORMATION | D120: 1800222
C121: Corporate Restructure | D121: 14340451
C122: Self Insurance | D122: 1384955
B129: Alternative Control Services | C129: ASSET MANAGEMENT | D129: 38471
C130: CORPORATE GOVERNANCE | D130: 0
C131: CORPORATE | D131: -585717
C132: CUSTOMER AND STAKEHOLDER ENGAGEMENT | D132: 0
C133: CUSTOMER SERVICE/RETAIL | D133: 0
C134: EMPLOYEE AND SHARED SERVICES | D134: 1944984
C135: ENERGY SOLUTIONS AND MARKET DEVELOPMENT | D135: 0
C136: FINANCE AND STRATEGIC SERVICES | D136: 5198940
C137: OFFICE OF THE CHIEF EXECUTIVE | D137: 142339
C138: OPERATIONS | D138: 700273
C139: SPARQ SERVICES | D139: 7987175
C140: MAJOR PROJECTS | D140: 0
C141: STRATEGY REVENUE & TRANSFORMATION | D141: 415148
C142: Corporate Restructure | D142: 0
C143: Self Insurance | D143: 0
B150: Negotiated Services | C150: Total | D150: 0
B151: Unregulated Services | C151: Total | D151: 10610027.45
B153: CAPITALISED CORPORATE OVERHEADS
B154: Standard Control Services | C154: ASSET MANAGEMENT | D154: 1063818
C155: CORPORATE GOVERNANCE | D155: 0
C156: CORPORATE | D156: -3609147
C157: CUSTOMER AND STAKEHOLDER ENGAGEMENT | D157: 0
C158: CUSTOMER SERVICE/RETAIL | D158: 0
C159: EMPLOYEE AND SHARED SERVICES | D159: 11984848
C160: ENERGY SOLUTIONS AND MARKET DEVELOPMENT | D160: 0
C161: FINANCE AND STRATEGIC SERVICES | D161: 34687832
C162: OFFICE OF THE CHIEF EXECUTIVE | D162: 877079
C163: OPERATIONS | D163: 4314142
C164: SPARQ SERVICES | D164: 49216372
C165: MAJOR PROJECTS | D165: 0
C166: STRATEGY REVENUE & TRANSFORMATION | D166: 2558110
C167: Corporate Restructure | D167: 0
C168: Self Insurance | D168: 0

Sheet 2.10(A) Overheads
B1: REGULATORY REPORTING STATEMENT
B2: =INDEX(dms_TradingNameFull_List,MATCH(dms_TradingName,dms_TradingName_List)) -> Ergon Energy
B3: =CONCATENATE((LOOKUP(dms_Model,dms_Model_List,dms_Worksheet_List))&" "&CRY) -> CATEGORY ANALYSIS 2017-18
B4: 2.10(A) OVERHEADS
B6: This worksheet may be completed on a voluntary basis. Please see worksheet 2.10 for an explanation of Overheads reporting options.
B9: There are TWO tables on this worksheet. Each has been grouped (and sub-grouped) for ease of navigation. See the Instructions sheet on how to group or ungroup tables.
B11: 2.10.1 - NETWORK OVERHEADS EXPENDITURE
D12: EXPENDITURE ($0's)
D13: =CRY -> 2017-18
B14: OPEX
B15: Standard Control Services | C15: Total
B16: Alternative Control Services | C16: Total
B17: CAPEX
B18: Standard Control Services | C18: Total
B19: Alternative Control Services | C19: Total
B20: OTHER DISTRIBUTION SERVICES
B21: Negotiated Services | C21: Total
B22: Unregulated Services | C22: Total
B26: 2.10.2 - CORPORATE OVERHEADS EXPENDITURE
D27: EXPENDITURE ($0's)
D28: =CRY -> 2017-18
B29: OPEX
B30: Standard Control Services | C30: Total
B31: Alternative Control Services | C31: Total
B32: CAPEX
B33: Standard Control Services | C33: Total
B34: Alternative Control Services | C34: Total
B35: OTHER DISTRIBUTION SERVICES
B36: Negotiated Services | C36: Total
B37: Unregulated Services | C37: Total

Sheet 2.11 Labour
B1: REGULATORY REPORTING STATEMENT
B2: =INDEX(dms_TradingNameFull_List,MATCH(dms_TradingName,dms_TradingName_List)) -> Ergon Energy
B3: =CONCATENATE((LOOKUP(dms_Model,dms_Model_List,dms_Worksheet_List))&" "&CRY) -> CATEGORY ANALYSIS 2017-18
B4: 2.11 LABOUR
B6: There are TWO tables on this worksheet. Each has been grouped for ease of navigation. See the Instructions sheet on how to group or ungroup tables.
B8: 2.11.1 - COST METRICS PER ANNUM
D9: ASL (0's) | E9: TOTAL LABOUR EXPENDITURE ($0's) | F9: AVERAGE PRODUCTIVE WORK HOURS PER ASL (0's) | G9: STAND-DOWN OCCURENCES PER ASL (0's)
D11: =CRY -> 2017-18 | E11: =CRY -> 2017-18 | F11: =CRY -> 2017-18 | G11: =CRY -> 2017-18
B12: INTERNAL LABOUR EXPENDITURE
B13: CORPORATE OVERHEADS | C13: Executive manager | D13: -0.07216854294 | E13: 277899 | F13: 0 | G13: 0
C14: Senior manager | D14: 19.12260619 | E14: 6388136 | F14: 1885 | G14: 0
C15: Manager | D15: 30.15042735 | E15: 7337826 | F15: 1885 | G15: 0.02
C16: Professional | D16: 133.172226 | E16: 25200454 | F16: 1885 | G16: 0.017
C17: Semi professional | D17: 36.51910429 | E17: 6384679 | F17: 1885 | G17: 2.3
C18: Support staff | D18: 121.3504974 | E18: 15988858 | F18: 1885 | G18: 0
C19: Intern, junior staff, apprentice | D19: 8.138888305 | E19: 1013564 | F19: 1885 | G19: 0
B20: NETWORK OVERHEADS | C20: Executive manager | D20: 0 | E20: 0 | F20: 0 | G20: 0
C21: Senior manager | D21: 16.35463602 | E21: 6651082.23 | F21: 1885 | G21: 0
C22: Manager | D22: 45.45172892 | E22: 10263808.94 | F22: 1885 | G22: 0
C23: Professional | D23: 169.2684929 | E23: 31962516.68 | F23: 1885 | G23: 0.0937
C24: Semi professional | D24: 223.7677208 | E24: 40569075.1 | F24: 1885 | G24: 0.392
C25: Support staff | D25: 164.8902377 | E25: 21596523.3 | F25: 1885 | G25: 0.272
C26: Intern, junior staff, apprentice | D26: 211.0567028 | E26: 25079336.11 | F26: 1885 | G26: 0
B27: TOTAL DIRECT NETWORK LABOUR | C27: Skilled electrical worker | D27: 667.5668677 | E27: 107696304.4 | F27: 1885 | G27: 7.42
C28: Skilled non electical worker | D28: 291.1120474 | E28: 48327161.88 | F28: 1885 | G28: 0
C29: Apprentice | D29: 112.1567619 | E29: 11194243.07 | F29: 1885 | G29: 2.59
C30: Unskilled worker | D30: 64.61328085 | E30: 8272588.399 | F30: 1885 | G30: 1.4
B33: 2.11.2 - DESCRIPTOR METRICS
D34: ORDINARY TIME (0's) | F34: OVERTIME (0's)
D35: PER ASL | E35: HOURLY RATE PER ASL | F35: PER ASL | G35: HOURLY RATE PER ASL
D36: =CRY -> 2017-18 | E36: =CRY -> 2017-18 | F36: =CRY -> 2017-18 | G36: =CRY -> 2017-18
B37: AVERAGE PRODUCTIVE WORK HOURS PER ASL
B38: CORPORATE OVERHEADS | C38: Executive manager | D38: 0 | E38: 0 | F38: 0 | G38: 0
C39: Senior manager | D39: 1885 | E39: 130.203678 | F39: -0.1730679422 | G39: 142.3447742
C40: Manager | D40: 1881.8708 | E40: 108.5078901 | F40: 3.129200209 | G40: 187.2695233
C41: Professional | D41: 1882.806131 | E41: 93.54891309 | F41: 2.193869276 | G41: 182.5014597
C42: Semi professional | D42: 1787.950176 | E42: 88.65984554 | F42: 97.04982387 | G42: 168.0766632
C43: Support staff | D43: 1878.438276 | E43: 66.9707622 | F43: 6.561723848 | G43: 93.82021131
C44: Intern, junior staff, apprentice | D44: 1636.828075 | E44: 56.62919998 | F44: 248.1719248 | G44: 128.3029551
B45: NETWORK OVERHEADS | C45: Executive manager | D45: 0 | E45: 0 | F45: 0 | G45: 0
C46: Senior manager | D46: 1884.421032 | E46: 148.924526 | F46: 0.5789677927 | G46: 378.7271529
C47: Manager | D47: 1872.461289 | E47: 110.0400581 | F47: 12.53871059 | G47: 106.6500939
C48: Professional | D48: 1873.692196 | E48: 95.60015829 | F48: 11.30780387 | G48: 152.1869258
C49: Semi professional | D49: 1825.866283 | E49: 91.15755399 | F49: 59.13371682 | G49: 139.4549593
C50: Support staff | D50: 1852.78522 | E50: 67.46752408 | F50: 32.21478042 | G50: 124.6832766
C51: Intern, junior staff, apprentice | D51: 1803.461548 | E51: 62.48710825 | F51: 81.53845249 | G51: 59.42557186
B52: TOTAL DIRECT NETWORK LABOUR | C52: Skilled electrical worker | D52: 1509.03 | E52: 76.61 | F52: 375.97 | G52: 121.59
C53: Skilled non electical worker | D53: 1703.38 | E53: 85.1 | F53: 181.62 | G53: 115.88
C54: Apprentice | D54: 1611.45 | E54: 50.47 | F54: 273.55 | G54: 67.53
C55: Unskilled worker | D55: 1577.24 | E55: 62.26 | F55: 307.76 | G55: 96.93

Sheet 2.12 Input tables
B1: REGULATORY REPORTING STATEMENT
B2: =INDEX(dms_TradingNameFull_List,MATCH(dms_TradingName,dms_TradingName_List)) -> Ergon Energy
B3: =CONCATENATE((LOOKUP(dms_Model,dms_Model_List,dms_Worksheet_List))&" "&CRY) -> CATEGORY ANALYSIS 2017-18
B4: 2.12 INPUT TABLES
B6: There is ONE table on this worksheet. It has been sub-grouped for ease of navigation. See the Instructions sheet on how to group or ungroup tables.
B8: 2.12.1 - INPUT TABLES
D9: DIRECT MATERIAL EXPENDITURE | E9: DIRECT LABOUR EXPENDITURE | F9: CONTRACT EXPENDITURE | G9: OTHER EXPENDITURE | H9: RELATED PARTY CONTRACT EXPENDITURE | I9: RELATED PARTY CONTRACT MARGIN EXPENDITURE
D10: EXPENDITURE ($0's)
D11: =CRY -> 2017-18 | E11: 2017-18 | F11: 2017-18 | G11: 2017-18 | H11: 2017-18 | I11: 2017-18
B12: VEGETATION MANAGEMENT | C12: ='2.7 Vegetation management'!B15 -> ZONE 1 | D12: 59930.59666 | E12: 788640.9658 | F12: 14340554.68 | G12: 202266.5165 | H12: 0 | I12: 0
C13: ='2.7 Vegetation management'!B21 -> ZONE 2 | D13: 224658.1983 | E13: 510892.3902 | F13: 11285227.31 | G13: 137444.4234 | H13: 0 | I13: 0
C14: ='2.7 Vegetation management'!B27 -> ZONE 3 | D14: 292515.4765 | E14: 651095.5606 | F14: 13794079.4 | G14: 191729.5957 | H14: 0 | I14: 0
C15: ='2.7 Vegetation management'!B33 -> ZONE 4 | D15: 0 | E15: 0 | F15: 0 | G15: 0 | H15: 0 | I15: 0
C16: ='2.7 Vegetation management'!B39 -> ZONE 5 | D16: 0 | E16: 0 | F16: 0 | G16: 0 | H16: 0 | I16: 0
C17: ='2.7 Vegetation management'!B45 -> ZONE 6 | D17: 0 | E17: 0 | F17: 0 | G17: 0 | H17: 0 | I17: 0
C18: ='2.7 Vegetation management'!B51 -> ZONE 7 | D18: 0 | E18: 0 | F18: 0 | G18: 0 | H18: 0 | I18: 0
C19: ='2.7 Vegetation management'!B57 -> ZONE 8 | D19: 0 | E19: 0 | F19: 0 | G19: 0 | H19: 0 | I19: 0
C20: ='2.7 Vegetation management'!B63 -> ZONE 9 | D20: 0 | E20: 0 | F20: 0 | G20: 0 | H20: 0 | I20: 0
C21: ='2.7 Vegetation management'!B69 -> ZONE 10 | D21: 0 | E21: 0 | F21: 0 | G21: 0 | H21: 0 | I21: 0
C22: ='2.7 Vegetation management'!B75 -> ZONE 11 | D22: 0 | E22: 0 | F22: 0 | G22: 0 | H22: 0 | I22: 0
C23: ='2.7 Vegetation management'!B81 -> ZONE 12 | D23: 0 | E23: 0 | F23: 0 | G23: 0 | H23: 0 | I23: 0
C24: ='2.7 Vegetation management'!B87 -> ZONE 13 | D24: 0 | E24: 0 | F24: 0 | G24: 0 | H24: 0 | I24: 0
C25: ='2.7 Vegetation management'!B93 -> ZONE 14 | D25: 0 | E25: 0 | F25: 0 | G25: 0 | H25: 0 | I25: 0
C26: ='2.7 Vegetation management'!B99 -> ZONE 15 | D26: 0 | E26: 0 | F26: 0 | G26: 0 | H26: 0 | I26: 0
C27: ='2.7 Vegetation management'!B105 -> ZONE 16 | D27: 0 | E27: 0 | F27: 0 | G27: 0 | H27: 0 | I27: 0
C28: ='2.7 Vegetation management'!B111 -> ZONE 17 | D28: 0 | E28: 0 | F28: 0 | G28: 0 | H28: 0 | I28: 0
C29: ='2.7 Vegetation management'!B117 -> ZONE 18 | D29: 0 | E29: 0 | F29: 0 | G29: 0 | H29: 0 | I29: 0
B30: ROUTINE MAINTENANCE | C30: Pole top, overhead line & service line maintenance | D30: 21122.59907 | E30: 274654.3078 | F30: 817409.9613 | G30: 223247.3019 | H30: 0 | I30: 0
C31: Pole inspection and treatment | D31: 414061.1862 | E31: 5383981.778 | F31: 16023489.21 | G31: 4376262.71 | H31: 0 | I31: 0
C32: Overhead asset inspection | D32: 0 | E32: 0 | F32: 0 | G32: 0 | H32: 0 | I32: 0
C33: Network underground cable maintenance | D33: 1314.996742 | E33: 17098.72534 | F33: 50888.21846 | G33: 13898.35946 | H33: 0 | I33: 0
C34: Distribution substation equipment & property maintenance | D34: 94278.30136 | E34: 1225888.041 | F34: 3648415.728 | G34: 996438.7591 | H34: 0 | I34: 0
C35: Zone substation equipment maintenance | D35: 81939.56104 | E35: 1065449.065 | F35: 3170926.703 | G35: 866029.1217 | H35: 0 | I35: 0
C36: Zone substation property maintenance | D36: 32275.27777 | E36: 419671.0852 | F36: 1249000.346 | G36: 341121.3107 | H36: 0 | I36: 0
C37: Public lighting maintenance | D37: 0 | E37: 0 | F37: 0 | G37: 0 | H37: 0 | I37: 0
C38: Scada & network control maintenance | D38: 20.89825748 | E38: 271.7372244 | F38: 808.7283096 | G38: 220.8762085 | H38: 0 | I38: 0
C39: Protection systems maintenance | D39: 22965.87946 | E39: 298622.2342 | F39: 888741.8912 | G39: 242729.1551 | H39: 0 | I39: 0
C40: Subtransmission asset maintenance - for dnsps with dual function assets | D40: 0 | E40: 0 | F40: 0 | G40: 0 | H40: 0 | I40: 0
C41: Other | D41: 114617.9065 | E41: 1490361.184 | F41: 4435525.106 | G41: 1211410.503 | H41: 0 | I41: 0
B42: NON-ROUTINE MAINTENANCE | C42: Pole top, overhead line & service line maintenance | D42: 1563523.762 | E42: 5372766.496 | F42: 1807896.03 | G42: 1867265.502 | H42: 0 | I42: 0
C43: Pole inspection and treatment | D43: 33987.64099 | E43: 116792.3784 | F43: 39299.76806 | G43: 40590.33259 | H43: 0 | I43: 0
C44: Overhead asset inspection | D44: 33987.64099 | E44: 116792.3784 | F44: 39299.76806 | G44: 40590.33259 | H44: 0 | I44: 0
C45: Network underground cable maintenance | D45: 33987.64099 | E45: 116792.3784 | F45: 39299.76806 | G45: 40590.33259 | H45: 0 | I45: 0
C46: Distribution substation equipment & property maintenance | D46: 169938.2049 | E46: 583961.8918 | F46: 196498.8403 | G46: 202951.6629 | H46: 0 | I46: 0
C47: Zone substation equipment maintenance | D47: 1701187.763 | E47: 5845823.926 | F47: 1967076.342 | G47: 2031673.134 | H47: 0 | I47: 0
C48: Zone substation property maintenance | D48: 69062.97645 | E48: 237322.422 | F48: 79857.23272 | G48: 82479.66326 | H48: 0 | I48: 0
C49: Public lighting maintenance | D49: 0 | E49: 0 | F49: 0 | G49: 0 | H49: 0 | I49: 0
C50: SCADA & network control maintenance | D50: 139084.7659 | E50: 477939.6314 | F50: 160823.137 | G50: 166104.4057 | H50: 0 | I50: 0
C51: Protection systems maintenance | D51: 191152.8898 | E51: 656862.3178 | F51: 221029.2923 | G51: 228287.6701 | H51: 0 | I51: 0
C52: Subtransmission asset maintenance - for DNSP with dual function assets | D52: 0 | E52: 0 | F52: 0 | G52: 0 | H52: 0 | I52: 0
C53: Other | D53: 746942.7367 | E53: 2566733.559 | F53: 863686.783 | G53: 892049.3811 | H53: 0 | I53: 0
B54: OVERHEADS | C54: Network overheads | D54: 5254301.047 | E54: 136122342.4 | F54: 21621885.75 | G54: 84145986.46 | H54: 0 | I54: 0
C55: Corporate overheads | D55: -932539.6192 | E55: 62591416 | F55: 12229763.65 | G55: 129600240.4 | H55: 0 | I55: 0
B56: AUGMENTATION | C56: Subtransmission substations, switching stations, zone substations | D56: 2753127.982 | E56: 2854367.561 | F56: 2274063.678 | G56: 1811514.778 | H56: 0 | I56: 0
C57: Subtransmission lines | D57: 314878.1236 | E57: 326457 | F57: 260087.0386 | G57: 207184.8377 | H57: 0 | I57: 0
C58: HV feeders | D58: 6046609.658 | E58: 6268959.006 | F58: 4994455.574 | G58: 3978573.762 | H58: 0 | I58: 0
C59: Distribution substations | D59: 897656.0217 | E59: 930665.1364 | F59: 741457.3414 | G59: 590643.5006 | H59: 0 | I59: 0
C60: LV feeders | D60: 610827.3232 | E60: 633289.0109 | F60: 504538.9238 | G60: 401914.7421 | H60: 0 | I60: 0
C61: Other assets | D61: 550632.47 | E61: 570880.6385 | F61: 454818.4131 | G61: 362307.4784 | H61: 0 | I61: 0
B62: CONNECTIONS | C62: Simple and complex customer connections | D62: 26493181.53 | E62: 26340270.61 | F62: 17934397.36 | G62: 8910510.786 | H62: 1182744.718 | I62: 0
B63: EMERGENCY RESPONSE | C63: Major storms | D63: 210093.5833 | E63: 1223570.523 | F63: 150616.2312 | G63: 439105.9693 | H63: 15307.9734 | I63: 0
C64: Major event days | D64: 149750.3848 | E64: 872135.9018 | F64: 107356.1517 | G64: 312985.7032 | H64: 10911.20858 | I64: 0
B65: PUBLIC LIGHTING | C65: All public lighting services | D65: 2217142.789 | E65: 3405841.776 | F65: 4931760.235 | G65: 1639844.921 | H65: 0 | I65: 0
B66: METERING | C66: All metering services | D66: 4721644.54 | E66: 10538761.89 | F66: 19217388.65 | G66: 2839581.251 | H66: 0 | I66: 0
B67: FEE-BASED SERVICES | C67: All fee-based services | D67: 493316.2226 | E67: 1223362.776 | F67: 1285374.075 | G67: 336847.3714 | H67: 23011.48537 | I67: 0
B68: QUOTED SERVICES | C68: All quoted services | D68: 8668232.401 | E68: 16228674.26 | F68: 13308039.53 | G68: 15414045.89 | H68: 933593.9264 | I68: 0
B69: REPLACEMENT | C69: Poles | D69: 11949137.12 | E69: 17277477.56 | F69: 10679709.05 | G69: 7021005.252 | H69: 24646.3776 | I69: 0
C70: Pole top structures | D70: 7280386.449 | E70: 10526844.93 | F70: 6506947.594 | G70: 4277767.589 | H70: 15016.57833 | I70: 0
C71: Overhead conductors | D71: 3391756.162 | E71: 4904202.738 | F71: 3031429.684 | G71: 1992908.574 | H71: 6995.861061 | I71: 0
C72: Underground cables | D72: 1376962.217 | E72: 1990975.044 | F72: 1230679.312 | G72: 809067.5385 | H72: 2840.132337 | I72: 0
C73: Service lines | D73: 1428523.948 | E73: 2065529.102 | F73: 1276763.333 | G73: 839363.884 | H73: 2946.483942 | I73: 0
C74: Transformers | D74: 10974197.06 | E74: 15867793.76 | F74: 9808342.684 | G74: 6448155.58 | H74: 22635.4591 | I74: 0
C75: Switchgear | D75: 9656874.19 | E75: 13963052.35 | F75: 8630966.874 | G75: 5674130.585 | H75: 19918.33932 | I75: 0
C76: Public lighting | D76: 866887.986 | E76: 1253449.314 | F76: 774793.3072 | G76: 509361.056 | H76: 1788.049499 | I76: 0
C77: SCADA network control and protection systems | D77: 1957224.329 | E77: 2829986.724 | F77: 1749296.72 | G77: 1150014.612 | H77: 4036.985212 | I77: 0
C78: Other | D78: 2402008.46 | E78: 3473108.296 | F78: 2146828.781 | G78: 1411358.313 | H78: 4954.400213 | I78: 0
B79: NON-NETWORK EXPENDITURE | C79: IT and communications | D79: 2639133.444 | E79: 789566.8367 | F79: 716543.6117 | G79: 235523.4269 | H79: 61061321.65 | I79: 0
C80: Motor vehicles | D80: 17078304.58 | E80: 0 | F80: 18913688.7 | G80: -3.725290298e-09 | H80: 0 | I80: 0
C81: Buildings and property | D81: 466993.001 | E81: 912660.5432 | F81: 17847445.2 | G81: 31260604.64 | H81: 0 | I81: 0
C82: Other | D82: 6818817.587 | E82: 0 | F82: 0 | G82: 0 | H82: 0 | I82: 0

Sheet 4.1 Public lighting
B1: REGULATORY REPORTING STATEMENT
B2: =INDEX(dms_TradingNameFull_List,MATCH(dms_TradingName,dms_TradingName_List)) -> Ergon Energy
B3: =CONCATENATE((LOOKUP(dms_Model,dms_Model_List,dms_Worksheet_List))&" "&CRY) -> CATEGORY ANALYSIS 2017-18
B4: 4.1 PUBLIC LIGHTING
B7: There are THREE tables on this worksheet. Each has been grouped for ease of navigation. See the Instructions sheet on how to group or ungroup tables.
B9: 4.1.1 - DESCRIPTOR METRICS OVER YEAR
E10: VOLUME (0's)
C11: LIGHT TYPE | E11: =CRY -> 2017-18
B12: POPULATION OF LIGHTS | C12: C1X26 | E12: 3
C13: C1X32 | E13: 59
C14: C1X42 | E14: 0
C15: C2X24 | E15: 1
C16: F13 | E16: 5
C17: F18 | E17: 4
C18: F1X20 | E18: 14
C19: F1X40 | E19: 23
C20: F2X20 | E20: 4
C21: F2X40 | E21: 3
C22: F3X20 | E22: 2
C23: F3X40 | E23: 1
C24: H100 | E24: 4
C25: H1000 | E25: 2
C26: H150 | E26: 23
C27: H1500 | E27: 2
C28: H250 | E28: 45
C29: H35 | E29: 6
C30: H400 | E30: 30
C31: H70 | E31: 45
C32: H75 | E32: 11
C33: I200 | E33: 2
C34: L120525 | E34: 0
C35: L120700 | E35: 0
C36: L135 | E36: 5
C37: L20D700 | E37: 0
C38: L35 | E38: 1
C39: L55 | E39: 2
C40: L60D350 | E40: 0
C41: L90 | E41: 19
C42: LD700R | E42: 0
C43: LECO18 | E43: 16
C44: LED17 | E44: 1
C45: LED175 | E45: 0
C46: LED25 | E46: 32
C47: LED30 | E47: 0
C48: LGE237 | E48: 0
C49: LL60350 | E49: 0
C50: LRL2120 | E50: 0
C51: LSYL25 | E51: 188
C52: M100 | E52: 2
C53: M1000 | E53: 0
C54: M125 | E54: 2329
C55: M150 | E55: 29
C56: M250 | E56: 1820
C57: M400 | E57: 1729
C58: M50 | E58: 20806
C59: M500 | E59: 1
C60: M70 | E60: 31
C61: M700 | E61: 1
C62: M80 | E62: 35362
C63: S100 | E63: 441
C64: S1000 | E64: 15
C65: S125 | E65: 7
C66: S150 | E66: 9904
C67: S220 | E67: 1
C68: S250 | E68: 10937
C69: S310 | E69: 6
C70: S360 | E70: 10
C71: S400 | E71: 999
C72: S50 | E72: 69
C73: S70 | E73: 5445
C74: S80 | E74: 54
B214: 4.1.2 - DESCRIPTOR METRICS ANNUALLY
E217: VOLUMES & EXPENDITURE
B218: SERVICE/SERVICE QUALITY | C218: DESCRIPTOR METRIC | D218: UNITS | E218: =CRY -> 2017-18
B219: LIGHT INSTALLATION | C219: Major road light installation | D219: 0's | E219: 493
C220: Minor road light installation | D220: 0's | E220: 300
C221: Number of poles installed | D221: 0's | E221: 167
C222: Total cost | D222: $0s | E222: 2792234.12
B223: LIGHT REPLACEMENT | C223: Major road light replacement | D223: 0's | E223: 3376
C224: Minor road light replacement | D224: 0's | E224: 5187
C225: Number of poles replaced | D225: 0's | E225: 136
C226: Total cost | D226: $0s | E226: 2442662.39
B227: LIGHT MAINTENANCE | C227: Major road light maintenance | D227: 0's | E227: 29241
C228: Minor road light maintenance | D228: 0's | E228: 45870
C229: Number of poles installed | D229: 0's | E229: 33
C230: Total cost | D230: $0s | E230: 8771025
B231: QUALITY OF SUPPLY | C231: Mean days to rectify/replace public lighting assets | D231: days | E231: 8.8
C232: GSO breaches | D232: 0's | E232: 0
C233: GSL payments | D233: $0s | E233: 0
C234: Customer complaints | D234: 0's | E234: 50
B237: 4.1.3 - COST METRICS
E238: AVERAGE UNIT COST ($)
B239: ACTIVITY TYPE | C239: LIGHT TYPE | E239: =CRY -> 2017-18
B240: LIGHT INSTALLATION | C240: Major road luminaire | E240: 2534.31
C241: Minor road luminaire | E241: 1216.98
B340: LIGHT REPLACEMENT | C340: Major road luminaire | E340: 559.08
C341: Minor road luminaire | E341: 756.63
B440: LIGHT MAINTENANCE | C440: Major road luminaire | E440: 265.52
C441: Minor road luminaire | E441: 95.2

Sheet 4.2 Metering
B1: REGULATORY REPORTING STATEMENT
B2: =INDEX(dms_TradingNameFull_List,MATCH(dms_TradingName,dms_TradingName_List)) -> Ergon Energy
B3: =CONCATENATE((LOOKUP(dms_Model,dms_Model_List,dms_Worksheet_List))&" "&CRY) -> CATEGORY ANALYSIS 2017-18
B4: 4.2 METERING
B6: There are TWO tables on this worksheet. Each has been grouped for ease of navigation. See the Instructions sheet on how to group or ungroup tables.
B8: 4.2.1 - METERING DESCRIPTOR METRIC
D9: VOLUMES (0's)
B10: Asset Category | C10: Asset Subcategory | D10: =CRY -> 2017-18
B11: Meter Type 4 | C11: Single phase meter population | D11: 0
C12: Multi phase meter population | D12: 0
C13: Current transformer connected meter population | D13: 0
C14: Direct connect meter population | D14: 0
B15: Meter Type 5 | C15: Single phase meter population | D15: 0
C16: Multi phase meter population | D16: 0
C17: Current transformer connected meter population | D17: 0
C18: Direct connect meter population | D18: 0
B19: Meter Type 6 | C19: Single phase meter population | D19: 1072926
C20: Multi phase meter population | D20: 75533
C21: Current transformer connected meter population | D21: 9330
C22: Direct connect meter population | D22: 1139129
B25: 4.2.2 - COST METRICS
D26: VOLUMES (0's) | E26: EXPENDITURE ($0's)
B27: Service Subcategory | C27: Meter Type | D27: =CRY -> 2017-18 | E27: =CRY -> 2017-18
B28: Meter purchase | C28: Meter Type 4 | D28: 0 | E28: 0
C29: Meter Type 5 | D29: 0 | E29: 0
C30: Meter Type 6 | D30: 3137 | E30: 639033
B31: Meter testing | C31: Meter Type 4 | D31: 0 | E31: 0
C32: Meter Type 5 | D32: 0 | E32: 0
C33: Meter Type 6 | D33: 2786 | E33: 1717732
B34: Meter investigation | C34: Meter Type 4 | D34: 0 | E34: 0
C35: Meter Type 5 | D35: 0 | E35: 0
C36: Meter Type 6 | D36: 14585 | E36: 1385378
B37: Scheduled meter reading | C37: Meter Type 4 | D37: 0 | E37: 0
C38: Meter Type 5 | D38: 0 | E38: 0
C39: Meter Type 6 | D39: 3105992 | E39: 9649887.33
B40: Special meter reading | C40: Meter Type 4 | D40: 0 | E40: 0
C41: Meter Type 5 | D41: 0 | E41: 0
C42: Meter Type 6 | D42: 127061 | E42: 2461774
B43: New meter installation | C43: Meter Type 4 | D43: 0 | E43: 0
C44: Meter Type 5 | D44: 0 | E44: 0
C45: Meter Type 6 | D45: 3672 | E45: 1005501
B46: Meter replacement | C46: Meter Type 4 | D46: 0 | E46: 0
C47: Meter Type 5 | D47: 0 | E47: 0
C48: Meter Type 6 | D48: 4502 | E48: 1300418
B49: Meter maintenance | C49: Meter Type 4 | D49: 0 | E49: 0
C50: Meter Type 5 | D50: 0 | E50: 0
C51: Meter Type 6 | D51: 9538 | E51: 3401608
B52: Remote meter reading | C52: Meter Type 4 | D52: 0 | E52: 0
B53: Remote meter re-configuration | C53: Meter Type 4 | D53: 0 | E53: 0
B54: Other metering | C54: Meter Type 4 | E54: 0
C55: Meter Type 5 | E55: 0
C56: Meter Type 6 | E56: 16395078
C57: Meter Type 7 | E57: 0
B58: IT infrastructure capex | C58: Meter Type 4 | E58: 0
B59: IT infrastructure opex | C59: Meter Type 4 | E59: 0
B60: Communications infrastructure capex | C60: Meter Type 4 | E60: 0
B61: Communications infrastructure opex | C61: Meter Type 4 | E61: 0

Sheet 4.3 Fee-based services
B1: REGULATORY REPORTING STATEMENT
B2: =INDEX(dms_TradingNameFull_List,MATCH(dms_TradingName,dms_TradingName_List)) -> Ergon Energy
B3: =CONCATENATE((LOOKUP(dms_Model,dms_Model_List,dms_Worksheet_List))&" "&CRY) -> CATEGORY ANALYSIS 2017-18
B4: 4.3 ANCILLARY SERVICES - FEE BASED SERVICES
B6: 4.3.1 - COST METRICS FOR FEE-BASED SERVICES
D7: EXPENDITURE ($0's) | F7: VOLUMES (0's)
B8: SERVICE | C8: SERVICE SUBCATEGORY | D8: =CRY -> 2017-18 | F8: =CRY -> 2017-18
B9: Common Fee-Based Services | C9: Energisation | D9: 0 | E9: ED_FEE431_00001 | F9: 0
C10: De-energisation | D10: 1443575.78 | E10: ED_FEE431_00002 | F10: 37743
C11: Re-energisation | D11: 1401458.11 | E11: ED_FEE431_00003 | F11: 22966
B12: Miscellaneous Fee-Based Services | C12: SUBDIVISION FEES | D12: 0 | E12: ED_FEE431_00004 | F12: 0
C13: PROJECT FEES | D13: 0 | E13: ED_FEE431_00005 | F13: 0
C14: RE-TEST AT CUSTOMER'S INSTALLATION DURING BUSINESS HOURS | D14: 0 | E14: ED_FEE431_00006 | F14: 0
C15: SUPPLY ABOLISHMENT DURING BUSINESS HOURS | D15: 405977.77 | E15: ED_FEE431_00007 | F15: 2056
C16: TEMPORARY BUILDERS SUPPLY, NOT IN PERMANENT POSITION - SINGLE PHASE METERED - BUSINESS HOURS | D16: 90228.53 | E16: ED_FEE431_00008 | F16: 279
C17: TEMPORARY BUILDERS SUPPLY, NOT IN PERMANENT POSITION - MULTI PHASE METERED - BUSINESS HOURS | D17: 20671.74 | E17: ED_FEE431_00009 | F17: 45
C18: RESTORATION OF SUPPLY REQUIRED DUE TO CUSTOMER ACTION, DURING BUSINESS HOURS | D18: 0 | E18: ED_FEE431_00010 | F18: 0
C19: WASTED TRUCK VISIT - ONE PERSON CREW | D19: 0 | E19: ED_FEE431_00011 | F19: 0
C20: WASTED TRUCK VISIT - TWO PERSON CREW | D20: 0 | E20: ED_FEE431_00012 | F20: 0
C21: Application fee - Basic or standard connection | D21: 0 | E21: ED_FEE431_00013 | F21: 0
C22: Call out fee for supply abolishment during business | D22: 0 | E22: ED_FEE431_00014 | F22: 0
C23: Call out fee for temporary connection, not in permanent position | D23: 0 | E23: ED_FEE431_00015 | F23: 0
C24: Prevented access - one person crew | D24: 0 | E24: ED_FEE431_00016 | F24: 0
C25: Prevented access - two person crew | D25: 0 | E25: ED_FEE431_00017 | F25: 0
C26: Supply abolishment during business | D26: 0 | E26: ED_FEE431_00018 | F26: 0
C27: Temporary connection, not in permanent position | D27: 0 | E27: ED_FEE431_00019 | F27: 0
C28: Large Cust Connection - Fee for Service | D28: 0 | E28: ED_FEE431_00020 | F28: 0
C29: Accredit alter.serv providers - Real Est | D29: 0 | E29: ED_FEE431_00021 | F29: 0
C30: No Charge Product Code | D30: 0 | E30: ED_FEE431_00022 | F30: 0
E31: ED_FEE431_00023
E32: ED_FEE431_00024
E33: ED_FEE431_00025
E34: ED_FEE431_00026
E35: ED_FEE431_00027
E36: ED_FEE431_00028
E37: ED_FEE431_00029
E38: ED_FEE431_00030
E39: ED_FEE431_00031
E40: ED_FEE431_00032
E41: ED_FEE431_00033
E42: ED_FEE431_00034
E43: ED_FEE431_00035
E44: ED_FEE431_00036
E45: ED_FEE431_00037
E46: ED_FEE431_00038
E47: ED_FEE431_00039
E48: ED_FEE431_00040
E49: ED_FEE431_00041
E50: ED_FEE431_00042
E51: ED_FEE431_00043
E52: ED_FEE431_00044
E53: ED_FEE431_00045
E54: ED_FEE431_00046
E55: ED_FEE431_00047
E56: ED_FEE431_00048
E57: ED_FEE431_00049
E58: ED_FEE431_00050
E59: ED_FEE431_00051
E60: ED_FEE431_00052
E61: ED_FEE431_00053
E62: ED_FEE431_00054
E63: ED_FEE431_00055
E64: ED_FEE431_00056
E65: ED_FEE431_00057
E66: ED_FEE431_00058
E67: ED_FEE431_00059
E68: ED_FEE431_00060
E69: ED_FEE431_00061
E70: ED_FEE431_00062
E71: ED_FEE431_00063
E72: ED_FEE431_00064
E73: ED_FEE431_00065
E74: ED_FEE431_00066
E75: ED_FEE431_00067
E76: ED_FEE431_00068
E77: ED_FEE431_00069
E78: ED_FEE431_00070
E79: ED_FEE431_00071
E80: ED_FEE431_00072
E81: ED_FEE431_00073
E82: ED_FEE431_00074
E83: ED_FEE431_00075
E84: ED_FEE431_00076
E85: ED_FEE431_00077
E86: ED_FEE431_00078
E87: ED_FEE431_00079
E88: ED_FEE431_00080
E89: ED_FEE431_00081
E90: ED_FEE431_00082
E91: ED_FEE431_00083
E92: ED_FEE431_00084
E93: ED_FEE431_00085
E94: ED_FEE431_00086
E95: ED_FEE431_00087
E96: ED_FEE431_00088
E97: ED_FEE431_00089
E98: ED_FEE431_00090
E99: ED_FEE431_00091
E100: ED_FEE431_00092
E101: ED_FEE431_00093
E102: ED_FEE431_00094
E103: ED_FEE431_00095
E104: ED_FEE431_00096
E105: ED_FEE431_00097
E106: ED_FEE431_00098
E107: ED_FEE431_00099
E108: ED_FEE431_00100
E109: ED_FEE431_00101
E110: ED_FEE431_00102
E111: ED_FEE431_00103
E112: ED_FEE431_00104
E113: ED_FEE431_00105
E114: ED_FEE431_00106
E115: ED_FEE431_00107
E116: ED_FEE431_00108
E117: ED_FEE431_00109
E118: ED_FEE431_00110
E119: ED_FEE431_00111
E120: ED_FEE431_00112
E121: ED_FEE431_00113
E122: ED_FEE431_00114
E123: ED_FEE431_00115
E124: ED_FEE431_00116
E125: ED_FEE431_00117
E126: ED_FEE431_00118
E127: ED_FEE431_00119
E128: ED_FEE431_00120
E129: ED_FEE431_00121
E130: ED_FEE431_00122
E131: ED_FEE431_00123
E132: ED_FEE431_00124
E133: ED_FEE431_00125
E134: ED_FEE431_00126
E135: ED_FEE431_00127
E136: ED_FEE431_00128
E137: ED_FEE431_00129
E138: ED_FEE431_00130
E139: ED_FEE431_00131
E140: ED_FEE431_00132
E141: ED_FEE431_00133
E142: ED_FEE431_00134
E143: ED_FEE431_00135
E144: ED_FEE431_00136
E145: ED_FEE431_00137
E146: ED_FEE431_00138
E147: ED_FEE431_00139
E148: ED_FEE431_00140
E149: ED_FEE431_00141
E150: ED_FEE431_00142
E151: ED_FEE431_00143
E152: ED_FEE431_00144
E153: ED_FEE431_00145
E154: ED_FEE431_00146
E155: ED_FEE431_00147
E156: ED_FEE431_00148
E157: ED_FEE431_00149
E158: ED_FEE431_00150
E159: ED_FEE431_00151
E160: ED_FEE431_00152
E161: ED_FEE431_00153
E162: ED_FEE431_00154
E163: ED_FEE431_00155
E164: ED_FEE431_00156
E165: ED_FEE431_00157
E166: ED_FEE431_00158
E167: ED_FEE431_00159
E168: ED_FEE431_00160
E169: ED_FEE431_00161
E170: ED_FEE431_00162
E171: ED_FEE431_00163
E172: ED_FEE431_00164
E173: ED_FEE431_00165
E174: ED_FEE431_00166
E175: ED_FEE431_00167
E176: ED_FEE431_00168
E177: ED_FEE431_00169
E178: ED_FEE431_00170
E179: ED_FEE431_00171
E180: ED_FEE431_00172
E181: ED_FEE431_00173
E182: ED_FEE431_00174
E183: ED_FEE431_00175
E184: ED_FEE431_00176
E185: ED_FEE431_00177
E186: ED_FEE431_00178
E187: ED_FEE431_00179
E188: ED_FEE431_00180
E189: ED_FEE431_00181
E190: ED_FEE431_00182
E191: ED_FEE431_00183
E192: ED_FEE431_00184
E193: ED_FEE431_00185
E194: ED_FEE431_00186
E195: ED_FEE431_00187
E196: ED_FEE431_00188
E197: ED_FEE431_00189
E198: ED_FEE431_00190
E199: ED_FEE431_00191
E200: ED_FEE431_00192
E201: ED_FEE431_00193
... 278 more rows

Sheet 4.4 Quoted services
B1: REGULATORY REPORTING STATEMENT
B2: =INDEX(dms_TradingNameFull_List,MATCH(dms_TradingName,dms_TradingName_List)) -> Ergon Energy
B3: =CONCATENATE((LOOKUP(dms_Model,dms_Model_List,dms_Worksheet_List))&" "&CRY) -> CATEGORY ANALYSIS 2017-18
B4: 4.4 ANCILLARY SERVICES - QUOTED SERVICES
B6: 4.4.1 - COST METRICS FOR QUOTED SERVICES
D7: EXPENDITURE ($0's) | F7: VOLUMES (0's)
B8: SERVICE | C8: SERVICE SUBCATEGORY | D8: =CRY -> 2017-18 | F8: =CRY -> 2017-18
B9: Quoted Services | C9: application fee - negotiated - major customer connection | D9: 2440943.53 | E9: ED_QUO441_00001 | F9: 87
C10: application fee - negotiated connection | D10: 0 | E10: ED_QUO441_00002 | F10: 0
C11: assessment of parallel generator applications | D11: 84992.5 | E11: ED_QUO441_00003 | F11: 107
C12: carrying out planning studies and analysis relating to connection applications | D12: 0 | E12: ED_QUO441_00004 | F12: 0
C13: change load control relay channel | D13: 15819.72 | E13: ED_QUO441_00005 | F13: 168
C14: change tariff | D14: 18941.7 | E14: ED_QUO441_00006 | F14: 127
C15: change time switch | D15: 64.31 | E15: ED_QUO441_00007 | F15: 2
C16: Construction audit - Maj Cust Connect | D16: 46176.97 | E16: ED_QUO441_00008 | F16: 2
C17: commissioning and energisation of major customer connections | D17: 0 | E17: ED_QUO441_00009 | F17: 0
C18: conversion of aerial bundled cables | D18: 0 | E18: ED_QUO441_00010 | F18: 0
C19: customer build, own and operate consultation services | D19: 8331.29 | E19: ED_QUO441_00011 | F19: 1
C20: customer requested appointments | D20: 59613.11 | E20: ED_QUO441_00012 | F20: 30
C21: de-energisation | D21: 0 | E21: ED_QUO441_00013 | F21: 0
C22: de-energisation after hours | D22: 8728.77 | E22: ED_QUO441_00014 | F22: 123
C23: design and construction of connection assets for major customers | D23: 0 | E23: ED_QUO441_00015 | F23: 0
C24: detailed enquiry response fee - egs 5mw & above | D24: 481009.07 | E24: ED_QUO441_00016 | F24: 34
C25: emergencey recoverable works | D25: 0 | E25: ED_QUO441_00017 | F25: 0
C26: erection of extra poles (only on a customers installation | D26: 0 | E26: ED_QUO441_00018 | F26: 0
C27: exchange meter | D27: 2013.72 | E27: ED_QUO441_00019 | F27: 12
C28: exchange meter (type 5-7) | D28: 0 | E28: ED_QUO441_00020 | F28: 0
C29: feasibility and concept scoping, inc planning and design, for major customer connections | D29: 151796.37 | E29: ED_QUO441_00021 | F29: 91
C30: generic call out fee | D30: 0 | E30: ED_QUO441_00022 | F30: 0
C31: high load escorts | D31: 0 | E31: ED_QUO441_00023 | F31: 0
C32: install additional metering | D32: 2265093.53 | E32: ED_QUO441_00024 | F32: 12053
C33: install metering related load control | D33: 204989.99 | E33: ED_QUO441_00025 | F33: 1245
C34: large customer conections | D34: 10867192.81 | E34: ED_QUO441_00026 | F34: 139
C35: Meter Co-Ord Requested Appointments | D35: 3126.52 | E35: ED_QUO441_00027 | F35: 19
C36: meter inspection and investigation on request | D36: 32280.63 | E36: ED_QUO441_00028 | F36: 289
C37: Meter Query | D37: 1214676.67 | E37: ED_QUO441_00029 | F37: 12982
C38: meter re-seal | D38: 680149.72 | E38: ED_QUO441_00030 | F38: 9678
C39: meter test | D39: 67126.34 | E39: ED_QUO441_00031 | F39: 192
C40: metering alteration | D40: 458748.93 | E40: ED_QUO441_00032 | F40: 1642
C41: move point of attachement during business hours - single / multi pase | D41: 0 | E41: ED_QUO441_00033 | F41: 0
C42: move point of attachment | D42: 723587.46 | E42: ED_QUO441_00034 | F42: 1723
C43: move the meter (type 5-7) | D43: 0 | E43: ED_QUO441_00035 | F43: 0
C44: non-standard network data requests | D44: 29326.51 | E44: ED_QUO441_00036 | F44: 234
C45: other recoverable works | D45: 0 | E45: ED_QUO441_00037 | F45: 0
C46: overhead service upgrade - no change to load | D46: 0 | E46: ED_QUO441_00038 | F46: 0
C47: Planning Study & Analy - Connect Applic | D47: 7286.57 | E47: ED_QUO441_00039 | F47: 1
C48: Power Quality Protct Assets after Connec | D48: 2746 | E48: ED_QUO441_00040 | F48: 1
C49: prep of preliminary designs & planning reports for major customer connections, inc project scopes and estimates | D49: 151046.61 | E49: ED_QUO441_00041 | F49: 20
C50: prepayment meters at customer request | D50: 0 | E50: ED_QUO441_00042 | F50: 0
C51: project fees | D51: 0 | E51: ED_QUO441_00043 | F51: 0
C52: protection and power quality assessment after connection | D52: 0 | E52: ED_QUO441_00044 | F52: 0
C53: provision of connection services above minimum requirements | D53: 0 | E53: ED_QUO441_00045 | F53: 0
C54: provision of historical metering data | D54: 0 | E54: ED_QUO441_00046 | F54: 0
C55: provision of metering data above minimum requirements | D55: 0 | E55: ED_QUO441_00047 | F55: 0
C56: provision of service during business / after hours requiring one / two person crew | D56: 0 | E56: ED_QUO441_00048 | F56: 0
C57: provision of services for approved unmetered supplies | D57: 6072.72 | E57: ED_QUO441_00049 | F57: 15
C58: provision of site-specific connection information and advice for small or major customer connections | D58: 253658.39 | E58: ED_QUO441_00050 | F58: 204
C59: provision, installation and maintenance of meters above minimum requirements | D59: 0 | E59: ED_QUO441_00051 | F59: 0
C60: re-arrange connection assets at customer's request | D60: 66799.7 | E60: ED_QUO441_00052 | F60: 11
C61: rectification of illegal connections | D61: 264.95 | E61: ED_QUO441_00053 | F61: 1
C62: re-energisation | D62: 0 | E62: ED_QUO441_00054 | F62: 0
C63: re-energisation after hours | D63: 248925.95 | E63: ED_QUO441_00055 | F63: 1318
C64: removal / relocation of ergon energy assets at customer request | D64: 0 | E64: ED_QUO441_00056 | F64: 0
C65: removal of a meter | D65: 0 | E65: ED_QUO441_00057 | F65: 0
C66: removal of a meter (type 5 & 6) | D66: 39917.36 | E66: ED_QUO441_00058 | F66: 193
C67: removal of load control device | D67: 2431.23 | E67: ED_QUO441_00059 | F67: 44
C68: removal/rearrangement of network assets | D68: 10195635.02 | E68: ED_QUO441_00060 | F68: 390
C69: removal/rearrangement of public lighting assets | D69: 1803949.51 | E69: ED_QUO441_00061 | F69: 122
C70: Repairs to System Assets | D70: 0 | E70: ED_QUO441_00062 | F70: 0
C71: reprogram card meters | D71: 0 | E71: ED_QUO441_00063 | F71: 0
C72: restoration of supply required due to customer action - after hours | D72: 0 | E72: ED_QUO441_00064 | F72: 0
C73: service line drop and replace | D73: 167324.12 | E73: ED_QUO441_00065 | F73: 454
C74: special meter read | D74: 2461774.35 | E74: ED_QUO441_00066 | F74: 96502
C75: subdivision fees | D75: 0 | E75: ED_QUO441_00067 | F75: 0
C76: supply enhancement | D76: 277280.45 | E76: ED_QUO441_00068 | F76: 639
C77: temporary de-energisation - no dismantling | D77: 101837.4 | E77: ED_QUO441_00069 | F77: 333
C78: temporary de-energisation single visit during business hours - no dismantling | D78: 0 | E78: ED_QUO441_00070 | F78: 0
C79: tiger tails | D79: 103275.84 | E79: ED_QUO441_00071 | F79: 265
C80: type 5 to 7 non-standard metering services | D80: 0 | E80: ED_QUO441_00072 | F80: 0
C81: underground service upgrade | D81: 0 | E81: ED_QUO441_00073 | F81: 0
C82: upgrade from overhead to underground service | D82: 0 | E82: ED_QUO441_00074 | F82: 0
C83: witness testing | D83: 0 | E83: ED_QUO441_00075 | F83: 0
C84: aerial markers | D84: 2452.17 | E84: ED_QUO441_00076 | F84: 7
C85: Design and construction of connection assets Real Estate developments | D85: 18795177.49 | E85: ED_QUO441_00077 | F85: 287
C86: upgrade from overhead to underground service | D86: 0 | E86: ED_QUO441_00078 | F86: 0
E87: ED_QUO441_00079
E88: ED_QUO441_00080
E89: ED_QUO441_00081
E90: ED_QUO441_00082
E91: ED_QUO441_00083
E92: ED_QUO441_00084
E93: ED_QUO441_00085
E94: ED_QUO441_00086
E95: ED_QUO441_00087
E96: ED_QUO441_00088
E97: ED_QUO441_00089
E98: ED_QUO441_00090
E99: ED_QUO441_00091
E100: ED_QUO441_00092
E101: ED_QUO441_00093
E102: ED_QUO441_00094
E103: ED_QUO441_00095
E104: ED_QUO441_00096
E105: ED_QUO441_00097
E106: ED_QUO441_00098
E107: ED_QUO441_00099
E108: ED_QUO441_00100
E109: ED_QUO441_00101
E110: ED_QUO441_00102
E111: ED_QUO441_00103
E112: ED_QUO441_00104
E113: ED_QUO441_00105
E114: ED_QUO441_00106
E115: ED_QUO441_00107
E116: ED_QUO441_00108
E117: ED_QUO441_00109
E118: ED_QUO441_00110
E119: ED_QUO441_00111
E120: ED_QUO441_00112
E121: ED_QUO441_00113
E122: ED_QUO441_00114
E123: ED_QUO441_00115
E124: ED_QUO441_00116
E125: ED_QUO441_00117
E126: ED_QUO441_00118
E127: ED_QUO441_00119
E128: ED_QUO441_00120
E129: ED_QUO441_00121
E130: ED_QUO441_00122
E131: ED_QUO441_00123
E132: ED_QUO441_00124
E133: ED_QUO441_00125
E134: ED_QUO441_00126
E135: ED_QUO441_00127
E136: ED_QUO441_00128
E137: ED_QUO441_00129
E138: ED_QUO441_00130
E139: ED_QUO441_00131
E140: ED_QUO441_00132
E141: ED_QUO441_00133
E142: ED_QUO441_00134
E143: ED_QUO441_00135
E144: ED_QUO441_00136
E145: ED_QUO441_00137
E146: ED_QUO441_00138
E147: ED_QUO441_00139
E148: ED_QUO441_00140
E149: ED_QUO441_00141
E150: ED_QUO441_00142
E151: ED_QUO441_00143
E152: ED_QUO441_00144
E153: ED_QUO441_00145
E154: ED_QUO441_00146
E155: ED_QUO441_00147
E156: ED_QUO441_00148
E157: ED_QUO441_00149
E158: ED_QUO441_00150
E159: ED_QUO441_00151
E160: ED_QUO441_00152
E161: ED_QUO441_00153
E162: ED_QUO441_00154
E163: ED_QUO441_00155
E164: ED_QUO441_00156
E165: ED_QUO441_00157
E166: ED_QUO441_00158
E167: ED_QUO441_00159
E168: ED_QUO441_00160
E169: ED_QUO441_00161
E170: ED_QUO441_00162
E171: ED_QUO441_00163
E172: ED_QUO441_00164
E173: ED_QUO441_00165
E174: ED_QUO441_00166
E175: ED_QUO441_00167
E176: ED_QUO441_00168
E177: ED_QUO441_00169
E178: ED_QUO441_00170
E179: ED_QUO441_00171
E180: ED_QUO441_00172
E181: ED_QUO441_00173
E182: ED_QUO441_00174
E183: ED_QUO441_00175
E184: ED_QUO441_00176
E185: ED_QUO441_00177
E186: ED_QUO441_00178
E187: ED_QUO441_00179
E188: ED_QUO441_00180
E189: ED_QUO441_00181
E190: ED_QUO441_00182
E191: ED_QUO441_00183
E192: ED_QUO441_00184
E193: ED_QUO441_00185
E194: ED_QUO441_00186
E195: ED_QUO441_00187
E196: ED_QUO441_00188
E197: ED_QUO441_00189
E198: ED_QUO441_00190
E199: ED_QUO441_00191
E200: ED_QUO441_00192
E201: ED_QUO441_00193
... 280 more rows

Sheet 5.2 Asset Age Profile
B1: REGULATORY REPORTING STATEMENT
B2: =INDEX(dms_TradingNameFull_List,MATCH(dms_TradingName,dms_TradingName_List)) -> Ergon Energy
B3: =CONCATENATE((LOOKUP(dms_Model,dms_Model_List,dms_Worksheet_List))&" "&CRY) -> CATEGORY ANALYSIS 2017-18
B4: 5.2 ASSET AGE PROFILE
B6: There is ONE table on this worksheet. Both the ROWS and COLUMNS have been 'grouped' for easy navigation. See the Instructions sheet on how to group or ungroup data.
B8: 5.2.1 - ASSET AGE PROFILE
D9: ECONOMIC LIFE (YEARS) | F9: INSTALLED ASSETS -˃ QUANTITY CURRENTLY IN COMMISSION BY YEAR
B10: ASSET GROUP | C10: ASSET CATEGORY | D10: MEAN | E10: STANDARD DEVIATION | F10: =CRY -> 2017-18 | G10: =IF(dms_RPT="financial",(VALUE(LEFT(F10,4)-1)&"-"&MID(F10,3,2)),VALUE(LEFT(F10,4)-1)) -> 2016-17 | H10: =IF(dms_RPT="financial",(VALUE(LEFT(G10,4)-1)&"-"&MID(G10,3,2)),VALUE(LEFT(G10,4)-1)) -> 2015-16 | I10: 2014-15 | J10: 2013-14 | K10: 2012-13 | L10: 2011-12 | M10: 2010-11 | N10: 2009-10 | O10: 2008-09 | P10: 2007-08 | Q10: 2006-07 | R10: 2005-06 | S10: 2004-05 | T10: 2003-04 | U10: 2002-03 | V10: 2001-02 | W10: 2000-01 | X10: 1999-00 | Y10: 1998-99 | Z10: 1997-98 | AA10: 1996-97 | AB10: 1995-96 | AC10: 1994-95 | AD10: 1993-94 | AE10: 1992-93 | AF10: 1991-92 | AG10: 1990-91 | AH10: 1989-90 | AI10: 1988-89 | AJ10: 1987-88 | AK10: 1986-87 | AL10: 1985-86 | AM10: =IF(dms_RPT="financial",(VALUE(LEFT(AL10,4)-1)&"-"&MID(AL10,3,2)),VALUE(LEFT(AL10,4)-1)) -> 1984-85 | AN10: 1983-84 | AO10: 1982-83 | AP10: 1981-82 | AQ10: 1980-81 | AR10: 1979-80 | AS10: 1978-79 | AT10: 1977-78 | AU10: 1976-77 | AV10: 1975-76 | AW10: 1974-75 | AX10: 1973-74 | AY10: 1972-73 | AZ10: 1971-72 | BA10: 1970-71 | BB10: 1969-70 | BC10: 1968-69 | BD10: 1967-68 | BE10: 1966-67 | BF10: 1965-66 | BG10: 1964-65 | BH10: 1963-64 | BI10: 1962-63 | BJ10: 1961-62 | BK10: 1960-61 | BL10: 1959-60 | BM10: 1958-59 | BN10: 1957-58 | BO10: 1956-57 | BP10: 1955-56 | BQ10: 1954-55 | BR10: 1953-54 | BS10: =IF(dms_RPT="financial",(VALUE(LEFT(BR10,4)-1)&"-"&MID(BR10,3,2)),VALUE(LEFT(BR10,4)-1)) -> 1952-53 | BT10: 1951-52 | BU10: 1950-51 | BV10: 1949-50 | BW10: 1948-49 | BX10: 1947-48 | BY10: 1946-47 | BZ10: 1945-46 | CA10: 1944-45 | CB10: 1943-44 | CC10: 1942-43 | CD10: 1941-42 | CE10: 1940-41 | CF10: 1939-40 | CG10: 1938-39 | CH10: 1937-38 | CI10: 1936-37 | CJ10: 1935-36 | CK10: 1934-35 | CL10: 1933-34 | CM10: 1932-33 | CN10: 1931-32 | CO10: 1930-31 | CP10: 1929-30 | CQ10: 1928-29 | CR10: 1927-28 | CS10: 1926-27 | CT10: 1925-26 | CU10: 1924-25 | CV10: 1923-24 | CW10: 1922-23 | CX10: 1921-22 | CY10: =IF(dms_RPT="financial",(VALUE(LEFT(CX10,4)-1)&"-"&MID(CX10,3,2)),VALUE(LEFT(CX10,4)-1)) -> 1920-21 | CZ10: 1919-20 | DA10: 1918-19 | DB10: 1917-18 | DC10: 1916-17 | DD10: 1915-16 | DE10: 1914-15 | DF10: 1913-14 | DG10: 1912-13 | DH10: =IF(dms_RPT="financial",(VALUE(LEFT(DG10,4)-1)&"-"&MID(DG10,3,2)),VALUE(LEFT(DG10,4)-1)) -> 1911-12 | DI10: =IF(dms_RPT="financial",(VALUE(LEFT(DH10,4)-1)&"-"&MID(DH10,3,2)),VALUE(LEFT(DH10,4)-1)) -> 1910-11 | DJ10: =IF(dms_RPT="financial",(VALUE(LEFT(DI10,4)-1)&"-"&MID(DI10,3,2)),VALUE(LEFT(DI10,4)-1)) -> 1909-10
B11: POLES BY: HIGHEST OPERATING VOLTAGE ; MATERIAL TYPE; STAKING (IF WOOD) | C11: Staking of a wooden pole | D11: 15 | E11: 3.87 | F11: 1563 | G11: 1461 | H11: 1873 | I11: 1332 | J11: 2428 | K11: 4000 | L11: 2595 | M11: 2595 | N11: 2840 | O11: 2768 | P11: 2616 | Q11: 2547 | R11: 4195 | S11: 2500 | T11: 2000 | U11: 1700 | V11: 1500 | W11: 1500 | X11: 1500 | Y11: 1500 | Z11: 800 | AA11: 800 | AB11: 800 | AC11: 800 | AD11: 800 | AE11: 800 | AF11: 400 | AG11: 400 | AH11: 400 | AI11: 200 | AJ11: 100 | AK11: 100 | AL11: 100 | AM11: 0 | AN11: 0 | AO11: 0 | AP11: 0 | AQ11: 0 | AR11: 0 | AS11: 0 | AT11: 0 | AU11: 0 | AV11: 0 | AW11: 0 | AX11: 0 | AY11: 0 | AZ11: 0 | BA11: 0 | BB11: 0 | BC11: 0 | BD11: 0 | BE11: 0 | BF11: 0 | BG11: 0 | BH11: 0 | BI11: 0 | BJ11: 0 | BK11: 0 | BL11: 0 | BM11: 0 | BN11: 0 | BO11: 0 | BP11: 0 | BQ11: 0 | BR11: 0 | BS11: 0 | BT11: 0 | BU11: 0 | BV11: 0 | BW11: 0 | BX11: 0 | BY11: 0 | BZ11: 0 | CA11: 0 | CB11: 0 | CC11: 0 | CD11: 0 | CE11: 0 | CF11: 0 | CG11: 0 | CH11: 0 | CI11: 0 | CJ11: 0 | CK11: 0 | CL11: 0 | CM11: 0 | CN11: 0 | CO11: 0 | CP11: 0 | CQ11: 0 | CR11: 0 | CS11: 0 | CT11: 0 | CU11: 0 | CV11: 0 | CW11: 0 | CX11: 0 | CY11: 0 | CZ11: 0 | DA11: 0 | DB11: 0 | DC11: 0 | DD11: 0 | DE11: 0 | DF11: 0 | DG11: 0 | DH11: 0
C12: ˂ = 1 kV; Wood | D12: 50 | E12: 7.07 | F12: 70 | G12: 1219 | H12: 1167 | I12: 1776 | J12: 2435 | K12: 2147 | L12: 2623 | M12: 1880 | N12: 2205 | O12: 2112 | P12: 2286 | Q12: 4549 | R12: 4670 | S12: 5541 | T12: 5397 | U12: 4705 | V12: 4763 | W12: 4343 | X12: 4275 | Y12: 3858 | Z12: 4258 | AA12: 4298 | AB12: 4707 | AC12: 5617 | AD12: 5179 | AE12: 5051 | AF12: 5559 | AG12: 5162 | AH12: 5023 | AI12: 4738 | AJ12: 3659 | AK12: 3235 | AL12: 4578 | AM12: 5240 | AN12: 4944 | AO12: 4344 | AP12: 5806 | AQ12: 4843 | AR12: 4403 | AS12: 3314 | AT12: 4121 | AU12: 4128 | AV12: 4140 | AW12: 3941 | AX12: 4099 | AY12: 3231 | AZ12: 3354 | BA12: 3394 | BB12: 3911 | BC12: 3238 | BD12: 2751 | BE12: 2123 | BF12: 2168 | BG12: 2031 | BH12: 1751 | BI12: 2757 | BJ12: 1605 | BK12: 1604 | BL12: 1599 | BM12: 1559 | BN12: 1559 | BO12: 1574 | BP12: 1585 | BQ12: 1551 | BR12: 1519 | BS12: 1527 | BT12: 1502 | BU12: 1519 | BV12: 1550 | BW12: 1 | BX12: 0 | BY12: 1 | BZ12: 0 | CA12: 0 | CB12: 0 | CC12: 0 | CD12: 0 | CE12: 0 | CF12: 0 | CG12: 0 | CH12: 0 | CI12: 0 | CJ12: 0 | CK12: 0 | CL12: 0 | CM12: 0 | CN12: 0 | CO12: 0 | CP12: 0 | CQ12: 0 | CR12: 0 | CS12: 0 | CT12: 0 | CU12: 0 | CV12: 0 | CW12: 0 | CX12: 0 | CY12: 0 | CZ12: 0 | DA12: 0 | DB12: 0 | DC12: 0 | DD12: 0 | DE12: 0 | DF12: 0 | DG12: 0 | DH12: 0
C13: > 1 kV & < = 11 kV; Wood | D13: 50 | E13: 7.07 | F13: 143 | G13: 1625 | H13: 1764 | I13: 3461 | J13: 4606 | K13: 4467 | L13: 4960 | M13: 3967 | N13: 3425 | O13: 3942 | P13: 5298 | Q13: 7498 | R13: 6351 | S13: 5740 | T13: 5316 | U13: 4286 | V13: 4472 | W13: 4084 | X13: 4326 | Y13: 3892 | Z13: 4506 | AA13: 4824 | AB13: 5259 | AC13: 6864 | AD13: 5591 | AE13: 5119 | AF13: 5434 | AG13: 5055 | AH13: 4823 | AI13: 4227 | AJ13: 3002 | AK13: 3889 | AL13: 4863 | AM13: 5880 | AN13: 5905 | AO13: 4899 | AP13: 7141 | AQ13: 5747 | AR13: 5654 | AS13: 3648 | AT13: 4213 | AU13: 4129 | AV13: 3861 | AW13: 3376 | AX13: 3867 | AY13: 2380 | AZ13: 3015 | BA13: 3452 | BB13: 4070 | BC13: 3641 | BD13: 3372 | BE13: 2798 | BF13: 2592 | BG13: 3148 | BH13: 3580 | BI13: 3838 | BJ13: 2122 | BK13: 2074 | BL13: 2150 | BM13: 2045 | BN13: 2064 | BO13: 2041 | BP13: 2045 | BQ13: 2036 | BR13: 2074 | BS13: 2085 | BT13: 2082 | BU13: 2096 | BV13: 2066 | BW13: 1 | BX13: 0 | BY13: 3 | BZ13: 0 | CA13: 0 | CB13: 0 | CC13: 0 | CD13: 0 | CE13: 0 | CF13: 0 | CG13: 0 | CH13: 0 | CI13: 0 | CJ13: 0 | CK13: 0 | CL13: 0 | CM13: 0 | CN13: 0 | CO13: 0 | CP13: 0 | CQ13: 0 | CR13: 0 | CS13: 0 | CT13: 0 | CU13: 0 | CV13: 0 | CW13: 0 | CX13: 0 | CY13: 0 | CZ13: 0 | DA13: 0 | DB13: 0 | DC13: 0 | DD13: 0 | DE13: 0 | DF13: 0 | DG13: 0 | DH13: 0
C14: ˃ 11 kV & < = 22 kV; Wood | D14: 50 | E14: 7.07 | F14: 74 | G14: 1784 | H14: 1720 | I14: 2504 | J14: 2907 | K14: 3278 | L14: 4384 | M14: 3587 | N14: 2566 | O14: 3658 | P14: 4086 | Q14: 5282 | R14: 5165 | S14: 6250 | T14: 5651 | U14: 5246 | V14: 6193 | W14: 5920 | X14: 5840 | Y14: 5882 | Z14: 3761 | AA14: 3154 | AB14: 3360 | AC14: 4004 | AD14: 3889 | AE14: 3903 | AF14: 4114 | AG14: 5323 | AH14: 5901 | AI14: 8026 | AJ14: 7022 | AK14: 9959 | AL14: 13104 | AM14: 8547 | AN14: 9219 | AO14: 8673 | AP14: 12888 | AQ14: 13917 | AR14: 8443 | AS14: 3880 | AT14: 2615 | AU14: 4644 | AV14: 5018 | AW14: 9601 | AX14: 8690 | AY14: 3409 | AZ14: 3787 | BA14: 5249 | BB14: 6874 | BC14: 4798 | BD14: 4490 | BE14: 3647 | BF14: 4022 | BG14: 4200 | BH14: 3416 | BI14: 3178 | BJ14: 1389 | BK14: 1218 | BL14: 1020 | BM14: 1025 | BN14: 949 | BO14: 952 | BP14: 922 | BQ14: 935 | BR14: 924 | BS14: 927 | BT14: 958 | BU14: 952 | BV14: 950 | BW14: 0 | BX14: 0 | BY14: 0 | BZ14: 0 | CA14: 0 | CB14: 0 | CC14: 0 | CD14: 0 | CE14: 0 | CF14: 0 | CG14: 0 | CH14: 0 | CI14: 0 | CJ14: 0 | CK14: 0 | CL14: 0 | CM14: 0 | CN14: 0 | CO14: 0 | CP14: 0 | CQ14: 0 | CR14: 0 | CS14: 0 | CT14: 0 | CU14: 0 | CV14: 0 | CW14: 0 | CX14: 0 | CY14: 0 | CZ14: 0 | DA14: 0 | DB14: 0 | DC14: 0 | DD14: 0 | DE14: 0 | DF14: 0 | DG14: 0 | DH14: 0
C15: > 22 kV & < = 66 kV; Wood | D15: 50 | E15: 7.07 | F15: 6 | G15: 213 | H15: 248 | I15: 483 | J15: 686 | K15: 759 | L15: 593 | M15: 640 | N15: 414 | O15: 400 | P15: 421 | Q15: 851 | R15: 805 | S15: 770 | T15: 757 | U15: 870 | V15: 954 | W15: 1111 | X15: 1334 | Y15: 825 | Z15: 875 | AA15: 678 | AB15: 488 | AC15: 689 | AD15: 878 | AE15: 564 | AF15: 752 | AG15: 882 | AH15: 893 | AI15: 624 | AJ15: 632 | AK15: 908 | AL15: 961 | AM15: 929 | AN15: 1527 | AO15: 1094 | AP15: 1588 | AQ15: 953 | AR15: 829 | AS15: 610 | AT15: 527 | AU15: 701 | AV15: 1045 | AW15: 913 | AX15: 565 | AY15: 1365 | AZ15: 1183 | BA15: 528 | BB15: 1382 | BC15: 1189 | BD15: 1925 | BE15: 2136 | BF15: 580 | BG15: 1823 | BH15: 998 | BI15: 1636 | BJ15: 256 | BK15: 501 | BL15: 270 | BM15: 339 | BN15: 788 | BO15: 212 | BP15: 261 | BQ15: 423 | BR15: 354 | BS15: 624 | BT15: 353 | BU15: 272 | BV15: 472 | BW15: 45 | BX15: 56 | BY15: 38 | BZ15: 0 | CA15: 0 | CB15: 0 | CC15: 0 | CD15: 0 | CE15: 0 | CF15: 0 | CG15: 0 | CH15: 0 | CI15: 0 | CJ15: 0 | CK15: 0 | CL15: 0 | CM15: 0 | CN15: 0 | CO15: 0 | CP15: 0 | CQ15: 0 | CR15: 0 | CS15: 0 | CT15: 0 | CU15: 0 | CV15: 0 | CW15: 0 | CX15: 0 | CY15: 0 | CZ15: 0 | DA15: 0 | DB15: 0 | DC15: 0 | DD15: 0 | DE15: 0 | DF15: 0 | DG15: 0 | DH15: 0
C16: > 66 kV & < = 132 kV; Wood | D16: 50 | E16: 7.07 | F16: 0 | G16: 1 | H16: 1 | I16: 2 | J16: 20 | K16: 1 | L16: 1 | M16: 2 | N16: 33 | O16: 14 | P16: 15 | Q16: 22 | R16: 21 | S16: 7 | T16: 5 | U16: 15 | V16: 101 | W16: 36 | X16: 7 | Y16: 8 | Z16: 3 | AA16: 6 | AB16: 3 | AC16: 4 | AD16: 3 | AE16: 136 | AF16: 9 | AG16: 8 | AH16: 3 | AI16: 2 | AJ16: 3 | AK16: 9 | AL16: 2 | AM16: 15 | AN16: 8 | AO16: 4 | AP16: 203 | AQ16: 17 | AR16: 4 | AS16: 143 | AT16: 38 | AU16: 280 | AV16: 90 | AW16: 268 | AX16: 78 | AY16: 7 | AZ16: 2 | BA16: 250 | BB16: 39 | BC16: 460 | BD16: 632 | BE16: 13 | BF16: 851 | BG16: 142 | BH16: 0 | BI16: 2 | BJ16: 3 | BK16: 3 | BL16: 1 | BM16: 0 | BN16: 215 | BO16: 3 | BP16: 1 | BQ16: 2 | BR16: 3 | BS16: 3 | BT16: 2 | BU16: 2 | BV16: 2 | BW16: 0 | BX16: 0 | BY16: 0 | BZ16: 0 | CA16: 0 | CB16: 0 | CC16: 0 | CD16: 0 | CE16: 0 | CF16: 0 | CG16: 0 | CH16: 0 | CI16: 0 | CJ16: 0 | CK16: 0 | CL16: 0 | CM16: 0 | CN16: 0 | CO16: 0 | CP16: 0 | CQ16: 0 | CR16: 0 | CS16: 0 | CT16: 0 | CU16: 0 | CV16: 0 | CW16: 0 | CX16: 0 | CY16: 0 | CZ16: 0 | DA16: 0 | DB16: 0 | DC16: 0 | DD16: 0 | DE16: 0 | DF16: 0 | DG16: 0 | DH16: 0
C17: > 132 kV; Wood | D17: 0 | E17: 0 | F17: 0 | G17: 0 | H17: 0 | I17: 0 | J17: 0 | K17: 0 | L17: 0 | M17: 0 | N17: 0 | O17: 0 | P17: 0 | Q17: 0 | R17: 0 | S17: 0 | T17: 0 | U17: 0 | V17: 0 | W17: 0 | X17: 0 | Y17: 0 | Z17: 0 | AA17: 0 | AB17: 0 | AC17: 0 | AD17: 0 | AE17: 0 | AF17: 0 | AG17: 0 | AH17: 0 | AI17: 0 | AJ17: 0 | AK17: 0 | AL17: 0 | AM17: 0 | AN17: 0 | AO17: 0 | AP17: 0 | AQ17: 0 | AR17: 0 | AS17: 0 | AT17: 0 | AU17: 0 | AV17: 0 | AW17: 0 | AX17: 0 | AY17: 0 | AZ17: 0 | BA17: 0 | BB17: 0 | BC17: 0 | BD17: 0 | BE17: 0 | BF17: 0 | BG17: 0 | BH17: 0 | BI17: 0 | BJ17: 0 | BK17: 0 | BL17: 0 | BM17: 0 | BN17: 0 | BO17: 0 | BP17: 0 | BQ17: 0 | BR17: 0 | BS17: 0 | BT17: 0 | BU17: 0 | BV17: 0 | BW17: 0 | BX17: 0 | BY17: 0 | BZ17: 0 | CA17: 0 | CB17: 0 | CC17: 0 | CD17: 0 | CE17: 0 | CF17: 0 | CG17: 0 | CH17: 0 | CI17: 0 | CJ17: 0 | CK17: 0 | CL17: 0 | CM17: 0 | CN17: 0 | CO17: 0 | CP17: 0 | CQ17: 0 | CR17: 0 | CS17: 0 | CT17: 0 | CU17: 0 | CV17: 0 | CW17: 0 | CX17: 0 | CY17: 0 | CZ17: 0 | DA17: 0 | DB17: 0 | DC17: 0 | DD17: 0 | DE17: 0 | DF17: 0 | DG17: 0 | DH17: 0
C18: ˂ = 1 kV; Concrete | D18: 70 | E18: 8.37 | F18: 0 | G18: 1 | H18: 2 | I18: 8 | J18: 3 | K18: 49 | L18: 43 | M18: 62 | N18: 77 | O18: 63 | P18: 79 | Q18: 52 | R18: 103 | S18: 65 | T18: 51 | U18: 57 | V18: 128 | W18: 87 | X18: 170 | Y18: 114 | Z18: 89 | AA18: 106 | AB18: 86 | AC18: 184 | AD18: 164 | AE18: 103 | AF18: 186 | AG18: 61 | AH18: 96 | AI18: 196 | AJ18: 215 | AK18: 60 | AL18: 66 | AM18: 40 | AN18: 33 | AO18: 29 | AP18: 33 | AQ18: 33 | AR18: 27 | AS18: 2 | AT18: 5 | AU18: 4 | AV18: 3 | AW18: 1 | AX18: 3 | AY18: 5 | AZ18: 7 | BA18: 15 | BB18: 18 | BC18: 9 | BD18: 5 | BE18: 9 | BF18: 3 | BG18: 4 | BH18: 0 | BI18: 0 | BJ18: 0 | BK18: 0 | BL18: 0 | BM18: 0 | BN18: 0 | BO18: 0 | BP18: 0 | BQ18: 0 | BR18: 0 | BS18: 0 | BT18: 0 | BU18: 0 | BV18: 0 | BW18: 0 | BX18: 0 | BY18: 0 | BZ18: 0 | CA18: 0 | CB18: 0 | CC18: 0 | CD18: 0 | CE18: 0 | CF18: 0 | CG18: 0 | CH18: 0 | CI18: 0 | CJ18: 0 | CK18: 0 | CL18: 0 | CM18: 0 | CN18: 0 | CO18: 0 | CP18: 0 | CQ18: 0 | CR18: 0 | CS18: 0 | CT18: 0 | CU18: 0 | CV18: 0 | CW18: 0 | CX18: 0 | CY18: 0 | CZ18: 0 | DA18: 0 | DB18: 0 | DC18: 0 | DD18: 0 | DE18: 0 | DF18: 0 | DG18: 0 | DH18: 0
C19: > 1 kV & < = 11 kV; Concrete | D19: 70 | E19: 8.37 | F19: 0 | G19: 2 | H19: 1 | I19: 1 | J19: 1 | K19: 4 | L19: 3 | M19: 5 | N19: 8 | O19: 2 | P19: 8 | Q19: 51 | R19: 164 | S19: 3 | T19: 1 | U19: 2 | V19: 6 | W19: 2 | X19: 124 | Y19: 33 | Z19: 244 | AA19: 16 | AB19: 17 | AC19: 15 | AD19: 46 | AE19: 34 | AF19: 80 | AG19: 37 | AH19: 23 | AI19: 28 | AJ19: 45 | AK19: 49 | AL19: 103 | AM19: 133 | AN19: 19 | AO19: 14 | AP19: 2 | AQ19: 0 | AR19: 5 | AS19: 2 | AT19: 2 | AU19: 1 | AV19: 0 | AW19: 1 | AX19: 2 | AY19: 0 | AZ19: 1 | BA19: 2 | BB19: 0 | BC19: 3 | BD19: 1 | BE19: 1 | BF19: 1 | BG19: 1 | BH19: 1 | BI19: 0 | BJ19: 0 | BK19: 0 | BL19: 0 | BM19: 1 | BN19: 0 | BO19: 0 | BP19: 0 | BQ19: 0 | BR19: 0 | BS19: 0 | BT19: 0 | BU19: 0 | BV19: 0 | BW19: 0 | BX19: 0 | BY19: 0 | BZ19: 0 | CA19: 0 | CB19: 0 | CC19: 0 | CD19: 0 | CE19: 0 | CF19: 0 | CG19: 0 | CH19: 0 | CI19: 0 | CJ19: 0 | CK19: 0 | CL19: 0 | CM19: 0 | CN19: 0 | CO19: 0 | CP19: 0 | CQ19: 0 | CR19: 0 | CS19: 0 | CT19: 0 | CU19: 0 | CV19: 0 | CW19: 0 | CX19: 0 | CY19: 0 | CZ19: 0 | DA19: 0 | DB19: 0 | DC19: 0 | DD19: 0 | DE19: 0 | DF19: 0 | DG19: 0 | DH19: 0
C20: ˃ 11 kV & < = 22 kV; Concrete | D20: 70 | E20: 8.37 | F20: 0 | G20: 0 | H20: 0 | I20: 0 | J20: 10 | K20: 34 | L20: 1 | M20: 62 | N20: 2 | O20: 40 | P20: 4 | Q20: 1 | R20: 13 | S20: 16 | T20: 6 | U20: 2 | V20: 14 | W20: 7 | X20: 3370 | Y20: 2416 | Z20: 19 | AA20: 11 | AB20: 54 | AC20: 203 | AD20: 156 | AE20: 124 | AF20: 184 | AG20: 215 | AH20: 277 | AI20: 748 | AJ20: 118 | AK20: 28 | AL20: 66 | AM20: 72 | AN20: 1 | AO20: 0 | AP20: 2 | AQ20: 2 | AR20: 2 | AS20: 1 | AT20: 1 | AU20: 1 | AV20: 0 | AW20: 3 | AX20: 1 | AY20: 0 | AZ20: 2 | BA20: 0 | BB20: 0 | BC20: 0 | BD20: 1 | BE20: 0 | BF20: 0 | BG20: 0 | BH20: 0 | BI20: 0 | BJ20: 0 | BK20: 0 | BL20: 0 | BM20: 0 | BN20: 0 | BO20: 0 | BP20: 0 | BQ20: 0 | BR20: 0 | BS20: 0 | BT20: 0 | BU20: 0 | BV20: 0 | BW20: 0 | BX20: 0 | BY20: 0 | BZ20: 0 | CA20: 0 | CB20: 0 | CC20: 0 | CD20: 0 | CE20: 0 | CF20: 0 | CG20: 0 | CH20: 0 | CI20: 0 | CJ20: 0 | CK20: 0 | CL20: 0 | CM20: 0 | CN20: 0 | CO20: 0 | CP20: 0 | CQ20: 0 | CR20: 0 | CS20: 0 | CT20: 0 | CU20: 0 | CV20: 0 | CW20: 0 | CX20: 0 | CY20: 0 | CZ20: 0 | DA20: 0 | DB20: 0 | DC20: 0 | DD20: 0 | DE20: 0 | DF20: 0 | DG20: 0 | DH20: 0
C21: > 22 kV & < = 66 kV; Concrete | D21: 70 | E21: 8.37 | F21: 0 | G21: 17 | H21: 38 | I21: 10 | J21: 19 | K21: 55 | L21: 97 | M21: 84 | N21: 78 | O21: 142 | P21: 184 | Q21: 298 | R21: 249 | S21: 242 | T21: 359 | U21: 87 | V21: 335 | W21: 205 | X21: 449 | Y21: 855 | Z21: 339 | AA21: 936 | AB21: 258 | AC21: 442 | AD21: 102 | AE21: 101 | AF21: 52 | AG21: 147 | AH21: 1359 | AI21: 239 | AJ21: 484 | AK21: 1387 | AL21: 2234 | AM21: 660 | AN21: 735 | AO21: 127 | AP21: 215 | AQ21: 2 | AR21: 3 | AS21: 1 | AT21: 3 | AU21: 5 | AV21: 5 | AW21: 2 | AX21: 5 | AY21: 3 | AZ21: 6 | BA21: 3 | BB21: 2 | BC21: 2 | BD21: 2 | BE21: 2 | BF21: 5 | BG21: 4 | BH21: 3 | BI21: 3 | BJ21: 0 | BK21: 0 | BL21: 0 | BM21: 0 | BN21: 1 | BO21: 0 | BP21: 0 | BQ21: 0 | BR21: 0 | BS21: 0 | BT21: 0 | BU21: 0 | BV21: 0 | BW21: 0 | BX21: 0 | BY21: 0 | BZ21: 0 | CA21: 0 | CB21: 0 | CC21: 0 | CD21: 0 | CE21: 0 | CF21: 0 | CG21: 0 | CH21: 0 | CI21: 0 | CJ21: 0 | CK21: 0 | CL21: 0 | CM21: 0 | CN21: 0 | CO21: 0 | CP21: 0 | CQ21: 0 | CR21: 0 | CS21: 0 | CT21: 0 | CU21: 0 | CV21: 0 | CW21: 0 | CX21: 0 | CY21: 0 | CZ21: 0 | DA21: 0 | DB21: 0 | DC21: 0 | DD21: 0 | DE21: 0 | DF21: 0 | DG21: 0 | DH21: 0
C22: > 66 kV & < = 132 kV; Concrete | D22: 70 | E22: 8.37 | F22: 0 | G22: 0 | H22: 0 | I22: 3 | J22: 44 | K22: 10 | L22: 33 | M22: 14 | N22: 39 | O22: 57 | P22: 266 | Q22: 249 | R22: 146 | S22: 259 | T22: 481 | U22: 144 | V22: 441 | W22: 14 | X22: 14 | Y22: 13 | Z22: 10 | AA22: 11 | AB22: 37 | AC22: 81 | AD22: 40 | AE22: 11 | AF22: 20 | AG22: 10 | AH22: 293 | AI22: 11 | AJ22: 25 | AK22: 891 | AL22: 9 | AM22: 759 | AN22: 640 | AO22: 39 | AP22: 24 | AQ22: 12 | AR22: 12 | AS22: 0 | AT22: 0 | AU22: 3 | AV22: 1 | AW22: 0 | AX22: 0 | AY22: 0 | AZ22: 0 | BA22: 0 | BB22: 0 | BC22: 0 | BD22: 0 | BE22: 0 | BF22: 0 | BG22: 0 | BH22: 0 | BI22: 0 | BJ22: 0 | BK22: 0 | BL22: 0 | BM22: 0 | BN22: 0 | BO22: 0 | BP22: 0 | BQ22: 0 | BR22: 0 | BS22: 0 | BT22: 0 | BU22: 0 | BV22: 0 | BW22: 0 | BX22: 0 | BY22: 0 | BZ22: 0 | CA22: 0 | CB22: 0 | CC22: 0 | CD22: 0 | CE22: 0 | CF22: 0 | CG22: 0 | CH22: 0 | CI22: 0 | CJ22: 0 | CK22: 0 | CL22: 0 | CM22: 0 | CN22: 0 | CO22: 0 | CP22: 0 | CQ22: 0 | CR22: 0 | CS22: 0 | CT22: 0 | CU22: 0 | CV22: 0 | CW22: 0 | CX22: 0 | CY22: 0 | CZ22: 0 | DA22: 0 | DB22: 0 | DC22: 0 | DD22: 0 | DE22: 0 | DF22: 0 | DG22: 0 | DH22: 0
C23: > 132 kV; Concrete | D23: 0 | E23: 0 | F23: 0 | G23: 0 | H23: 0 | I23: 0 | J23: 0 | K23: 0 | L23: 0 | M23: 0 | N23: 0 | O23: 0 | P23: 0 | Q23: 0 | R23: 0 | S23: 0 | T23: 0 | U23: 0 | V23: 0 | W23: 0 | X23: 0 | Y23: 0 | Z23: 0 | AA23: 0 | AB23: 0 | AC23: 0 | AD23: 0 | AE23: 0 | AF23: 0 | AG23: 0 | AH23: 0 | AI23: 0 | AJ23: 0 | AK23: 0 | AL23: 0 | AM23: 0 | AN23: 0 | AO23: 0 | AP23: 0 | AQ23: 0 | AR23: 0 | AS23: 0 | AT23: 0 | AU23: 0 | AV23: 0 | AW23: 0 | AX23: 0 | AY23: 0 | AZ23: 0 | BA23: 0 | BB23: 0 | BC23: 0 | BD23: 0 | BE23: 0 | BF23: 0 | BG23: 0 | BH23: 0 | BI23: 0 | BJ23: 0 | BK23: 0 | BL23: 0 | BM23: 0 | BN23: 0 | BO23: 0 | BP23: 0 | BQ23: 0 | BR23: 0 | BS23: 0 | BT23: 0 | BU23: 0 | BV23: 0 | BW23: 0 | BX23: 0 | BY23: 0 | BZ23: 0 | CA23: 0 | CB23: 0 | CC23: 0 | CD23: 0 | CE23: 0 | CF23: 0 | CG23: 0 | CH23: 0 | CI23: 0 | CJ23: 0 | CK23: 0 | CL23: 0 | CM23: 0 | CN23: 0 | CO23: 0 | CP23: 0 | CQ23: 0 | CR23: 0 | CS23: 0 | CT23: 0 | CU23: 0 | CV23: 0 | CW23: 0 | CX23: 0 | CY23: 0 | CZ23: 0 | DA23: 0 | DB23: 0 | DC23: 0 | DD23: 0 | DE23: 0 | DF23: 0 | DG23: 0 | DH23: 0
C24: ˂ = 1 kV; Steel | D24: 60 | E24: 7.75 | F24: 11 | G24: 732 | H24: 976 | I24: 1179 | J24: 2062 | K24: 3377 | L24: 3613 | M24: 3413 | N24: 2813 | O24: 3335 | P24: 5439 | Q24: 4751 | R24: 5067 | S24: 3583 | T24: 3434 | U24: 2470 | V24: 1953 | W24: 2142 | X24: 1810 | Y24: 1932 | Z24: 2007 | AA24: 1993 | AB24: 1951 | AC24: 1675 | AD24: 1464 | AE24: 1442 | AF24: 1386 | AG24: 1331 | AH24: 1327 | AI24: 45 | AJ24: 47 | AK24: 25 | AL24: 54 | AM24: 49 | AN24: 48 | AO24: 36 | AP24: 39 | AQ24: 43 | AR24: 46 | AS24: 40 | AT24: 50 | AU24: 44 | AV24: 42 | AW24: 34 | AX24: 41 | AY24: 32 | AZ24: 30 | BA24: 39 | BB24: 53 | BC24: 54 | BD24: 46 | BE24: 20 | BF24: 20 | BG24: 14 | BH24: 19 | BI24: 13 | BJ24: 1 | BK24: 0 | BL24: 1 | BM24: 0 | BN24: 1 | BO24: 0 | BP24: 0 | BQ24: 0 | BR24: 0 | BS24: 0 | BT24: 0 | BU24: 0 | BV24: 0 | BW24: 0 | BX24: 0 | BY24: 0 | BZ24: 0 | CA24: 0 | CB24: 0 | CC24: 0 | CD24: 0 | CE24: 0 | CF24: 0 | CG24: 0 | CH24: 0 | CI24: 0 | CJ24: 0 | CK24: 0 | CL24: 0 | CM24: 0 | CN24: 0 | CO24: 0 | CP24: 0 | CQ24: 0 | CR24: 0 | CS24: 0 | CT24: 0 | CU24: 0 | CV24: 0 | CW24: 0 | CX24: 0 | CY24: 0 | CZ24: 0 | DA24: 0 | DB24: 0 | DC24: 0 | DD24: 0 | DE24: 0 | DF24: 0 | DG24: 0 | DH24: 0
C25: > 1 kV & < = 11 kV; Steel | D25: 60 | E25: 7.75 | F25: 0 | G25: 0 | H25: 3 | I25: 1 | J25: 8 | K25: 30 | L25: 37 | M25: 28 | N25: 21 | O25: 47 | P25: 49 | Q25: 71 | R25: 84 | S25: 31 | T25: 52 | U25: 34 | V25: 23 | W25: 43 | X25: 60 | Y25: 42 | Z25: 57 | AA25: 26 | AB25: 38 | AC25: 39 | AD25: 27 | AE25: 31 | AF25: 39 | AG25: 30 | AH25: 28 | AI25: 21 | AJ25: 15 | AK25: 10 | AL25: 16 | AM25: 15 | AN25: 6 | AO25: 6 | AP25: 20 | AQ25: 17 | AR25: 9 | AS25: 8 | AT25: 5 | AU25: 4 | AV25: 5 | AW25: 8 | AX25: 12 | AY25: 8 | AZ25: 8 | BA25: 19 | BB25: 18 | BC25: 11 | BD25: 12 | BE25: 3 | BF25: 4 | BG25: 9 | BH25: 3 | BI25: 2 | BJ25: 0 | BK25: 0 | BL25: 0 | BM25: 0 | BN25: 0 | BO25: 0 | BP25: 0 | BQ25: 0 | BR25: 0 | BS25: 0 | BT25: 0 | BU25: 0 | BV25: 0 | BW25: 0 | BX25: 0 | BY25: 0 | BZ25: 0 | CA25: 0 | CB25: 0 | CC25: 0 | CD25: 0 | CE25: 0 | CF25: 0 | CG25: 0 | CH25: 0 | CI25: 0 | CJ25: 0 | CK25: 0 | CL25: 0 | CM25: 0 | CN25: 0 | CO25: 0 | CP25: 0 | CQ25: 0 | CR25: 0 | CS25: 0 | CT25: 0 | CU25: 0 | CV25: 0 | CW25: 0 | CX25: 0 | CY25: 0 | CZ25: 0 | DA25: 0 | DB25: 0 | DC25: 0 | DD25: 0 | DE25: 0 | DF25: 0 | DG25: 0 | DH25: 0
C26: ˃ 11 kV & < = 22 kV; Steel | D26: 60 | E26: 7.75 | F26: 0 | G26: 2 | H26: 0 | I26: 1 | J26: 5 | K26: 0 | L26: 15 | M26: 39 | N26: 30 | O26: 4 | P26: 142 | Q26: 4 | R26: 1 | S26: 2 | T26: 8 | U26: 2 | V26: 3 | W26: 4 | X26: 2 | Y26: 2 | Z26: 1 | AA26: 3 | AB26: 2 | AC26: 3 | AD26: 1 | AE26: 0 | AF26: 0 | AG26: 0 | AH26: 1 | AI26: 2 | AJ26: 5 | AK26: 0 | AL26: 0 | AM26: 0 | AN26: 1 | AO26: 0 | AP26: 1 | AQ26: 0 | AR26: 0 | AS26: 0 | AT26: 0 | AU26: 0 | AV26: 4 | AW26: 1 | AX26: 0 | AY26: 3 | AZ26: 0 | BA26: 0 | BB26: 0 | BC26: 0 | BD26: 0 | BE26: 0 | BF26: 0 | BG26: 1 | BH26: 0 | BI26: 0 | BJ26: 0 | BK26: 0 | BL26: 0 | BM26: 0 | BN26: 0 | BO26: 0 | BP26: 0 | BQ26: 0 | BR26: 0 | BS26: 0 | BT26: 0 | BU26: 0 | BV26: 0 | BW26: 0 | BX26: 0 | BY26: 0 | BZ26: 0 | CA26: 0 | CB26: 0 | CC26: 0 | CD26: 0 | CE26: 0 | CF26: 0 | CG26: 0 | CH26: 0 | CI26: 0 | CJ26: 0 | CK26: 0 | CL26: 0 | CM26: 0 | CN26: 0 | CO26: 0 | CP26: 0 | CQ26: 0 | CR26: 0 | CS26: 0 | CT26: 0 | CU26: 0 | CV26: 0 | CW26: 0 | CX26: 0 | CY26: 0 | CZ26: 0 | DA26: 0 | DB26: 0 | DC26: 0 | DD26: 0 | DE26: 0 | DF26: 0 | DG26: 0 | DH26: 0
C27: > 22 kV & < = 66 kV; Steel | D27: 60 | E27: 7.75 | F27: 0 | G27: 0 | H27: 1 | I27: 3 | J27: 4 | K27: 32 | L27: 39 | M27: 42 | N27: 35 | O27: 50 | P27: 37 | Q27: 29 | R27: 26 | S27: 26 | T27: 53 | U27: 29 | V27: 24 | W27: 29 | X27: 33 | Y27: 34 | Z27: 33 | AA27: 29 | AB27: 31 | AC27: 27 | AD27: 28 | AE27: 25 | AF27: 31 | AG27: 26 | AH27: 28 | AI27: 0 | AJ27: 0 | AK27: 0 | AL27: 4 | AM27: 5 | AN27: 3 | AO27: 1 | AP27: 2 | AQ27: 2 | AR27: 5 | AS27: 0 | AT27: 2 | AU27: 0 | AV27: 1 | AW27: 0 | AX27: 0 | AY27: 2 | AZ27: 52 | BA27: 0 | BB27: 2 | BC27: 73 | BD27: 4 | BE27: 1 | BF27: 0 | BG27: 0 | BH27: 1 | BI27: 0 | BJ27: 0 | BK27: 0 | BL27: 0 | BM27: 0 | BN27: 554 | BO27: 453 | BP27: 0 | BQ27: 0 | BR27: 0 | BS27: 0 | BT27: 0 | BU27: 0 | BV27: 37 | BW27: 0 | BX27: 0 | BY27: 0 | BZ27: 0 | CA27: 0 | CB27: 0 | CC27: 0 | CD27: 0 | CE27: 0 | CF27: 0 | CG27: 0 | CH27: 0 | CI27: 0 | CJ27: 0 | CK27: 0 | CL27: 0 | CM27: 0 | CN27: 0 | CO27: 0 | CP27: 0 | CQ27: 0 | CR27: 0 | CS27: 0 | CT27: 0 | CU27: 0 | CV27: 0 | CW27: 0 | CX27: 0 | CY27: 0 | CZ27: 0 | DA27: 0 | DB27: 0 | DC27: 0 | DD27: 0 | DE27: 0 | DF27: 0 | DG27: 0 | DH27: 0
C28: > 66 kV & < = 132 kV; Steel | D28: 60 | E28: 7.75 | F28: 0 | G28: 0 | H28: 0 | I28: 0 | J28: 0 | K28: 6 | L28: 9 | M28: 7 | N28: 7 | O28: 5 | P28: 3 | Q28: 8 | R28: 3 | S28: 3 | T28: 3 | U28: 6 | V28: 6 | W28: 3 | X28: 3 | Y28: 3 | Z28: 4 | AA28: 6 | AB28: 159 | AC28: 14 | AD28: 2 | AE28: 4 | AF28: 3 | AG28: 3 | AH28: 3 | AI28: 11 | AJ28: 0 | AK28: 0 | AL28: 288 | AM28: 0 | AN28: 0 | AO28: 24 | AP28: 197 | AQ28: 0 | AR28: 2 | AS28: 1 | AT28: 0 | AU28: 0 | AV28: 0 | AW28: 0 | AX28: 0 | AY28: 0 | AZ28: 16 | BA28: 0 | BB28: 0 | BC28: 0 | BD28: 0 | BE28: 0 | BF28: 0 | BG28: 48 | BH28: 0 | BI28: 0 | BJ28: 0 | BK28: 0 | BL28: 0 | BM28: 0 | BN28: 0 | BO28: 0 | BP28: 0 | BQ28: 0 | BR28: 0 | BS28: 0 | BT28: 0 | BU28: 0 | BV28: 0 | BW28: 0 | BX28: 0 | BY28: 0 | BZ28: 0 | CA28: 0 | CB28: 0 | CC28: 0 | CD28: 0 | CE28: 0 | CF28: 0 | CG28: 0 | CH28: 0 | CI28: 0 | CJ28: 0 | CK28: 0 | CL28: 0 | CM28: 0 | CN28: 0 | CO28: 0 | CP28: 0 | CQ28: 0 | CR28: 0 | CS28: 0 | CT28: 0 | CU28: 0 | CV28: 0 | CW28: 0 | CX28: 0 | CY28: 0 | CZ28: 0 | DA28: 0 | DB28: 0 | DC28: 0 | DD28: 0 | DE28: 0 | DF28: 0 | DG28: 0 | DH28: 0
C29: > 132 kV; Steel | D29: 0 | E29: 0 | F29: 0 | G29: 0 | H29: 0 | I29: 0 | J29: 0 | K29: 0 | L29: 0 | M29: 0 | N29: 0 | O29: 0 | P29: 0 | Q29: 0 | R29: 0 | S29: 0 | T29: 0 | U29: 0 | V29: 0 | W29: 0 | X29: 0 | Y29: 0 | Z29: 0 | AA29: 0 | AB29: 0 | AC29: 0 | AD29: 0 | AE29: 0 | AF29: 0 | AG29: 0 | AH29: 0 | AI29: 0 | AJ29: 0 | AK29: 0 | AL29: 0 | AM29: 0 | AN29: 0 | AO29: 0 | AP29: 0 | AQ29: 0 | AR29: 0 | AS29: 0 | AT29: 0 | AU29: 0 | AV29: 0 | AW29: 0 | AX29: 0 | AY29: 0 | AZ29: 0 | BA29: 0 | BB29: 0 | BC29: 0 | BD29: 0 | BE29: 0 | BF29: 0 | BG29: 0 | BH29: 0 | BI29: 0 | BJ29: 0 | BK29: 0 | BL29: 0 | BM29: 0 | BN29: 0 | BO29: 0 | BP29: 0 | BQ29: 0 | BR29: 0 | BS29: 0 | BT29: 0 | BU29: 0 | BV29: 0 | BW29: 0 | BX29: 0 | BY29: 0 | BZ29: 0 | CA29: 0 | CB29: 0 | CC29: 0 | CD29: 0 | CE29: 0 | CF29: 0 | CG29: 0 | CH29: 0 | CI29: 0 | CJ29: 0 | CK29: 0 | CL29: 0 | CM29: 0 | CN29: 0 | CO29: 0 | CP29: 0 | CQ29: 0 | CR29: 0 | CS29: 0 | CT29: 0 | CU29: 0 | CV29: 0 | CW29: 0 | CX29: 0 | CY29: 0 | CZ29: 0 | DA29: 0 | DB29: 0 | DC29: 0 | DD29: 0 | DE29: 0 | DF29: 0 | DG29: 0 | DH29: 0
C30: Other | D30: 0 | E30: 0 | F30: 0 | G30: 0 | H30: 0 | I30: 0 | J30: 0 | K30: 0 | L30: 0 | M30: 0 | N30: 0 | O30: 0 | P30: 0 | Q30: 0 | R30: 0 | S30: 0 | T30: 0 | U30: 0 | V30: 0 | W30: 0 | X30: 0 | Y30: 0 | Z30: 0 | AA30: 0 | AB30: 0 | AC30: 0 | AD30: 0 | AE30: 0 | AF30: 0 | AG30: 0 | AH30: 0 | AI30: 0 | AJ30: 0 | AK30: 0 | AL30: 0 | AM30: 0 | AN30: 0 | AO30: 0 | AP30: 0 | AQ30: 0 | AR30: 0 | AS30: 0 | AT30: 0 | AU30: 0 | AV30: 0 | AW30: 0 | AX30: 0 | AY30: 0 | AZ30: 0 | BA30: 0 | BB30: 0 | BC30: 0 | BD30: 0 | BE30: 0 | BF30: 0 | BG30: 0 | BH30: 0 | BI30: 0 | BJ30: 0 | BK30: 0 | BL30: 0 | BM30: 0 | BN30: 0 | BO30: 0 | BP30: 0 | BQ30: 0 | BR30: 0 | BS30: 0 | BT30: 0 | BU30: 0 | BV30: 0 | BW30: 0 | BX30: 0 | BY30: 0 | BZ30: 0 | CA30: 0 | CB30: 0 | CC30: 0 | CD30: 0 | CE30: 0 | CF30: 0 | CG30: 0 | CH30: 0 | CI30: 0 | CJ30: 0 | CK30: 0 | CL30: 0 | CM30: 0 | CN30: 0 | CO30: 0 | CP30: 0 | CQ30: 0 | CR30: 0 | CS30: 0 | CT30: 0 | CU30: 0 | CV30: 0 | CW30: 0 | CX30: 0 | CY30: 0 | CZ30: 0 | DA30: 0 | DB30: 0 | DC30: 0 | DD30: 0 | DE30: 0 | DF30: 0 | DG30: 0 | DH30: 0
B31: OVERHEAD CONDUCTORS BY: HIGHEST OPERATING VOLTAGE; NUMBER OF PHASES (AT HV) | C31: ˂ = 1 kV | D31: 60 | E31: 7.75 | F31: 29.20720508 | G31: 65.69817643 | H31: 147.6380607 | I31: 140.0516497 | J31: 135.8977537 | K31: 162.8737566 | L31: 185.6290168 | M31: 167.5745151 | N31: 185.2606815 | O31: 226.7328384 | P31: 224.7975118 | Q31: 269.1328523 | R31: 239.602958 | S31: 209.1543586 | T31: 120.0377527 | U31: 102.7056087 | V31: 128.9276064 | W31: 121.9267411 | X31: 145.139673 | Y31: 132.1856682 | Z31: 154.0614048 | AA31: 156.7974734 | AB31: 169.5907648 | AC31: 224.8885855 | AD31: 218.4993837 | AE31: 209.9871219 | AF31: 265.0241004 | AG31: 255.5897902 | AH31: 277.4296429 | AI31: 299.0276913 | AJ31: 207.1028488 | AK31: 205.5917475 | AL31: 286.5306427 | AM31: 372.8329548 | AN31: 362.9688758 | AO31: 312.4305494 | AP31: 420.4935158 | AQ31: 417.9555995 | AR31: 349.3942882 | AS31: 256.3155146 | AT31: 320.8851288 | AU31: 360.1634685 | AV31: 346.2545004 | AW31: 350.6279828 | AX31: 353.7092524 | AY31: 313.711931 | AZ31: 343.1441286 | BA31: 329.175886 | BB31: 382.8421874 | BC31: 346.8927108 | BD31: 306.2004427 | BE31: 257.5617585 | BF31: 249.2954946 | BG31: 267.7368321 | BH31: 234.830467 | BI31: 277.7041857 | BJ31: 223.6985825 | BK31: 223.6985825 | BL31: 223.6985825 | BM31: 223.6985825 | BN31: 223.6985825 | BO31: 223.6985825 | BP31: 223.6985825 | BQ31: 223.6985825 | BR31: 223.6985825 | BS31: 223.6985825 | BT31: 223.6985825 | BU31: 223.6985825 | BV31: 223.6985825 | BW31: 0.9463661051 | BX31: 0 | BY31: 4.954548343 | BZ31: 0 | CA31: 0 | CB31: 0 | CC31: 0 | CD31: 0 | CE31: 0 | CF31: 0 | CG31: 0 | CH31: 0 | CI31: 0 | CJ31: 0 | CK31: 0 | CL31: 0 | CM31: 0 | CN31: 0 | CO31: 0 | CP31: 0 | CQ31: 0 | CR31: 0 | CS31: 0 | CT31: 0 | CU31: 0 | CV31: 0 | CW31: 0 | CX31: 0 | CY31: 0 | CZ31: 0 | DA31: 0 | DB31: 0 | DC31: 0 | DD31: 0 | DE31: 0 | DF31: 0 | DG31: 0 | DH31: 0
C32: > 1 kV & < = 11 kV | D32: 60 | E32: 7.75 | F32: 67.65984046 | G32: 199.9740437 | H32: 313.9243691 | I32: 402.391722 | J32: 350.6422299 | K32: 409.2838068 | L32: 483.5914199 | M32: 425.3500112 | N32: 396.3662233 | O32: 583.4357006 | P32: 483.1081256 | Q32: 616.9381078 | R32: 397.3353307 | S32: 277.7122302 | T32: 128.611283 | U32: 100.9823829 | V32: 144.6860616 | W32: 190.6663951 | X32: 228.2461385 | Y32: 220.1146798 | Z32: 280.6251956 | AA32: 314.6795238 | AB32: 374.2805104 | AC32: 591.4036941 | AD32: 433.3175031 | AE32: 442.0589181 | AF32: 541.7763355 | AG32: 490.5178619 | AH32: 481.1009076 | AI32: 435.2112272 | AJ32: 245.4573529 | AK32: 340.7035004 | AL32: 469.7757416 | AM32: 592.3994697 | AN32: 607.5993185 | AO32: 533.6686676 | AP32: 872.6202916 | AQ32: 787.9445157 | AR32: 860.0092588 | AS32: 447.9922155 | AT32: 510.0076474 | AU32: 573.7176483 | AV32: 570.4479031 | AW32: 468.6195214 | AX32: 607.5090544 | AY32: 339.6731646 | AZ32: 484.7803434 | BA32: 598.1371838 | BB32: 734.7560425 | BC32: 642.4814823 | BD32: 681.9030632 | BE32: 698.7774847 | BF32: 642.1067637 | BG32: 948.1079298 | BH32: 1012.59206 | BI32: 677.3053619 | BJ32: 616.0366387 | BK32: 616.0366387 | BL32: 616.0366387 | BM32: 616.0366387 | BN32: 616.0366387 | BO32: 616.0366387 | BP32: 616.0366387 | BQ32: 616.0366387 | BR32: 616.0366387 | BS32: 616.0366387 | BT32: 616.0366387 | BU32: 616.0366387 | BV32: 616.0366387 | BW32: 0.218061072 | BX32: 15.66737737 | BY32: 3.907253641 | BZ32: 0 | CA32: 0 | CB32: 0 | CC32: 0 | CD32: 0 | CE32: 0 | CF32: 0 | CG32: 0 | CH32: 0 | CI32: 0 | CJ32: 0 | CK32: 0 | CL32: 0 | CM32: 0 | CN32: 0 | CO32: 0 | CP32: 0 | CQ32: 0 | CR32: 0 | CS32: 0 | CT32: 0 | CU32: 0 | CV32: 0 | CW32: 0 | CX32: 0 | CY32: 0 | CZ32: 0 | DA32: 0 | DB32: 0 | DC32: 0 | DD32: 0 | DE32: 0 | DF32: 0 | DG32: 0 | DH32: 0
C33: ˃ 11 kV & < = 22 kV ; SWER | D33: 60 | E33: 7.75 | F33: 16.84526308 | G33: 102.264674 | H33: 94.82874585 | I33: 83.68607968 | J33: 145.8211696 | K33: 219.2417515 | L33: 219.152228 | M33: 160.930314 | N33: 141.994827 | O33: 179.8863096 | P33: 178.8430893 | Q33: 239.8148955 | R33: 239.6293427 | S33: 203.4932895 | T33: 56.81292583 | U33: 141.9431255 | V33: 237.3721978 | W33: 192.0616561 | X33: 1020.278 | Y33: 1764.114293 | Z33: 206.3281312 | AA33: 203.8702049 | AB33: 203.281472 | AC33: 260.7797041 | AD33: 343.5565147 | AE33: 363.761565 | AF33: 644.5844905 | AG33: 572.506198 | AH33: 632.5978764 | AI33: 1335.427788 | AJ33: 1268.683021 | AK33: 1499.982208 | AL33: 3087.933862 | AM33: 2205.097356 | AN33: 1867.872992 | AO33: 2354.604879 | AP33: 3754.272206 | AQ33: 4843.269552 | AR33: 2969.401567 | AS33: 971.4547151 | AT33: 669.2368181 | AU33: 871.3891459 | AV33: 1233.566215 | AW33: 2033.994375 | AX33: 2817.256454 | AY33: 1155.096679 | AZ33: 997.1487758 | BA33: 1580.346095 | BB33: 2069.230352 | BC33: 1395.005012 | BD33: 1081.684452 | BE33: 1311.849969 | BF33: 1194.376975 | BG33: 1479.053182 | BH33: 1325.053177 | BI33: 1482.531923 | BJ33: 220.4862051 | BK33: 143.3041613 | BL33: 147.1808292 | BM33: 211.9529413 | BN33: 203.4148581 | BO33: 226.4852558 | BP33: 293.8039715 | BQ33: 284.2576258 | BR33: 333.4823123 | BS33: 347.8169404 | BT33: 439.44757 | BU33: 460.7314844 | BV33: 880.2153742 | BW33: 0 | BX33: 0 | BY33: 0 | BZ33: 0 | CA33: 0 | CB33: 0 | CC33: 0 | CD33: 0 | CE33: 0 | CF33: 0 | CG33: 0 | CH33: 0 | CI33: 0 | CJ33: 0 | CK33: 0 | CL33: 0 | CM33: 0 | CN33: 0 | CO33: 0 | CP33: 0 | CQ33: 0 | CR33: 0 | CS33: 0 | CT33: 0 | CU33: 0 | CV33: 0 | CW33: 0 | CX33: 0 | CY33: 0 | CZ33: 0 | DA33: 0 | DB33: 0 | DC33: 0 | DD33: 0 | DE33: 0 | DF33: 0 | DG33: 0 | DH33: 0
C34: ˃ 11 kV & < = 22 kV ; Single-Phase | D34: 60 | E34: 7.75 | F34: 4.279706576 | G34: 5.073570028 | H34: 15.38891031 | I34: 25.8888605 | J34: 34.35769506 | K34: 46.44605776 | L34: 92.77876932 | M34: 49.30086813 | N34: 41.2984466 | O34: 30.53398395 | P34: 50.572688 | Q34: 64.78304446 | R34: 60.30699206 | S34: 26.77389513 | T34: 17.42589976 | U34: 10.56149739 | V34: 26.22807689 | W34: 16.47656188 | X34: 25.6721013 | Y34: 38.12072278 | Z34: 44.93510129 | AA34: 21.59088787 | AB34: 20.30460903 | AC34: 54.77867351 | AD34: 51.56612846 | AE34: 35.023757 | AF34: 38.37266101 | AG34: 38.1111313 | AH34: 47.20721533 | AI34: 97.84694246 | AJ34: 52.68343052 | AK34: 41.52651699 | AL34: 86.22914234 | AM34: 66.52498027 | AN34: 61.53637635 | AO34: 61.44334583 | AP34: 109.1426985 | AQ34: 126.2926966 | AR34: 82.25239067 | AS34: 53.80671478 | AT34: 54.44386016 | AU34: 43.48970147 | AV34: 37.94754688 | AW34: 50.99703884 | AX34: 65.56372315 | AY34: 90.48361578 | AZ34: 61.21257778 | BA34: 110.1120924 | BB34: 97.00509483 | BC34: 55.9660869 | BD34: 48.31885779 | BE34: 66.96098923 | BF34: 60.63176688 | BG34: 56.9639181 | BH34: 36.86730618 | BI34: 32.30154176 | BJ34: 20.74087817 | BK34: 20.74087817 | BL34: 20.74087817 | BM34: 20.74087817 | BN34: 20.74087817 | BO34: 20.74087817 | BP34: 20.74087817 | BQ34: 20.74087817 | BR34: 20.74087817 | BS34: 20.74087817 | BT34: 20.74087817 | BU34: 20.74087817 | BV34: 20.74087817 | BW34: 0 | BX34: 0 | BY34: 0 | BZ34: 0 | CA34: 0 | CB34: 0 | CC34: 0 | CD34: 0 | CE34: 0 | CF34: 0 | CG34: 0 | CH34: 0 | CI34: 0 | CJ34: 0 | CK34: 0 | CL34: 0 | CM34: 0 | CN34: 0 | CO34: 0 | CP34: 0 | CQ34: 0 | CR34: 0 | CS34: 0 | CT34: 0 | CU34: 0 | CV34: 0 | CW34: 0 | CX34: 0 | CY34: 0 | CZ34: 0 | DA34: 0 | DB34: 0 | DC34: 0 | DD34: 0 | DE34: 0 | DF34: 0 | DG34: 0 | DH34: 0
C35: ˃ 11 kV & < = 22 kV ; Multiple-Phase | D35: 60 | E35: 7.75 | F35: 31.50805827 | G35: 59.61036735 | H35: 71.13277998 | I35: 144.20818 | J35: 129.8012203 | K35: 118.3597634 | L35: 198.8487632 | M35: 139.8596677 | N35: 158.9379504 | O35: 162.2130932 | P35: 130.181452 | Q35: 146.286076 | R35: 90.73056671 | S35: 77.88441268 | T35: 32.05972755 | U35: 54.38601078 | V35: 42.62979617 | W35: 74.11885778 | X35: 122.2899946 | Y35: 112.9715614 | Z35: 69.12336667 | AA35: 80.59783885 | AB35: 54.9509169 | AC35: 150.7066731 | AD35: 121.7395339 | AE35: 133.4672053 | AF35: 120.2770878 | AG35: 231.3876497 | AH35: 203.0108209 | AI35: 373.1871827 | AJ35: 249.0290611 | AK35: 225.5687316 | AL35: 314.2377419 | AM35: 248.2234505 | AN35: 213.3896475 | AO35: 172.3237204 | AP35: 291.0321177 | AQ35: 360.0603689 | AR35: 285.4995912 | AS35: 173.6957077 | AT35: 142.6794973 | AU35: 147.6940134 | AV35: 154.5290334 | AW35: 177.2287922 | AX35: 263.2585105 | AY35: 160.5625119 | AZ35: 225.3848933 | BA35: 247.8535557 | BB35: 253.7256005 | BC35: 366.4159487 | BD35: 331.3066774 | BE35: 275.5647786 | BF35: 270.6215052 | BG35: 426.3425928 | BH35: 247.0766733 | BI35: 223.0986009 | BJ35: 127.9721046 | BK35: 127.9721046 | BL35: 127.9721046 | BM35: 127.9721046 | BN35: 127.9721046 | BO35: 127.9721046 | BP35: 127.9721046 | BQ35: 127.9721046 | BR35: 127.9721046 | BS35: 127.9721046 | BT35: 127.9721046 | BU35: 127.9721046 | BV35: 127.9721046 | BW35: 0 | BX35: 0 | BY35: 0 | BZ35: 0 | CA35: 0 | CB35: 0 | CC35: 0 | CD35: 0 | CE35: 0 | CF35: 0 | CG35: 0 | CH35: 0 | CI35: 0 | CJ35: 0 | CK35: 0 | CL35: 0 | CM35: 0 | CN35: 0 | CO35: 0 | CP35: 0 | CQ35: 0 | CR35: 0 | CS35: 0 | CT35: 0 | CU35: 0 | CV35: 0 | CW35: 0 | CX35: 0 | CY35: 0 | CZ35: 0 | DA35: 0 | DB35: 0 | DC35: 0 | DD35: 0 | DE35: 0 | DF35: 0 | DG35: 0 | DH35: 0
C36: > 22 kV & < = 66 kV | D36: 60 | E36: 7.75 | F36: 5.009236039 | G36: 22.85669915 | H36: 132.205969 | I36: 68.94930551 | J36: 60.67669177 | K36: 41.16460497 | L36: 86.21440672 | M36: 134.7800071 | N36: 142.7085627 | O36: 102.1586544 | P36: 61.63562037 | Q36: 155.7966767 | R36: 88.04891241 | S36: 45.44661536 | T36: 46.05452629 | U36: 34.25725399 | V36: 77.78564596 | W36: 112.8560797 | X36: 121.9519244 | Y36: 367.9597507 | Z36: 99.97991434 | AA36: 390.6147393 | AB36: 50.17858363 | AC36: 229.6982318 | AD36: 99.75661192 | AE36: 78.93727019 | AF36: 91.79465467 | AG36: 44.3424255 | AH36: 453.7035255 | AI36: 201.5895791 | AJ36: 41.34466496 | AK36: 364.1166318 | AL36: 618.6738333 | AM36: 318.7886293 | AN36: 253.5046689 | AO36: 119.0016947 | AP36: 335.3150856 | AQ36: 171.8633 | AR36: 96.44700281 | AS36: 98.44764783 | AT36: 87.89262875 | AU36: 160.9631013 | AV36: 101.9962831 | AW36: 108.0333249 | AX36: 64.16264236 | AY36: 189.4209027 | AZ36: 203.2335467 | BA36: 89.20480043 | BB36: 280.4147294 | BC36: 225.2728841 | BD36: 264.0537679 | BE36: 372.120984 | BF36: 221.0385826 | BG36: 480.6696937 | BH36: 316.4877141 | BI36: 377.5159123 | BJ36: 50.21028505 | BK36: 52.19828089 | BL36: 71.41270187 | BM36: 131.7198572 | BN36: 373.9943254 | BO36: 160.5157848 | BP36: 71.56085462 | BQ36: 125.351894 | BR36: 106.8252037 | BS36: 190.3575929 | BT36: 121.5296685 | BU36: 109.9087336 | BV36: 749.3546155 | BW36: 16.56364741 | BX36: 24.75609057 | BY36: 4.683414673 | BZ36: 0 | CA36: 0 | CB36: 0 | CC36: 0 | CD36: 0 | CE36: 0 | CF36: 0 | CG36: 0 | CH36: 0 | CI36: 0 | CJ36: 0 | CK36: 0 | CL36: 0 | CM36: 0 | CN36: 0 | CO36: 0 | CP36: 0 | CQ36: 0 | CR36: 0 | CS36: 0 | CT36: 0 | CU36: 0 | CV36: 0 | CW36: 0 | CX36: 0 | CY36: 0 | CZ36: 0 | DA36: 0 | DB36: 0 | DC36: 0 | DD36: 0 | DE36: 0 | DF36: 0 | DG36: 0 | DH36: 0
C37: > 66 kV & < = 132 kV | D37: 60 | E37: 7.75 | F37: 0 | G37: 0.151785626 | H37: 4.8058529 | I37: 1.86362266 | J37: 14.84585017 | K37: 3.731315077 | L37: 0.2282766001 | M37: 83.23313016 | N37: 62.1838047 | O37: 5.395720172 | P37: 170.0581189 | Q37: 12.29284555 | R37: 1.940842154 | S37: 0.08285302998 | T37: 15.55173729 | U37: 89.25098219 | V37: 166.622684 | W37: 8.28667179 | X37: 0 | Y37: 5.333902694 | Z37: 0 | AA37: 0.125033867 | AB37: 163.0554588 | AC37: 0 | AD37: 27.09009589 | AE37: 0.3869994251 | AF37: 2.519345833 | AG37: 0 | AH37: 104.8500437 | AI37: 23.95302022 | AJ37: 2.478865281 | AK37: 234.3922655 | AL37: 289.7304137 | AM37: 236.6935628 | AN37: 119.1460716 | AO37: 10.08203095 | AP37: 123.2367709 | AQ37: 17.00751572 | AR37: 155.5273864 | AS37: 26.76521238 | AT37: 4.849283431 | AU37: 0.001995428561 | AV37: 58.78769556 | AW37: 0.09938629678 | AX37: 9.411771085 | AY37: 72.94175437 | AZ37: 4.889017117 | BA37: 5.624916291 | BB37: 40.07308221 | BC37: 42.21211271 | BD37: 39.24397411 | BE37: 39.25698054 | BF37: 85.27814338 | BG37: 143.7165259 | BH37: 0 | BI37: 0 | BJ37: 18.28793971 | BK37: 39.8925017 | BL37: 0 | BM37: 0 | BN37: 63.3330263 | BO37: 20.93376893 | BP37: 0 | BQ37: 0 | BR37: 0 | BS37: 13.00145248 | BT37: 0.001132115219 | BU37: 14.38724775 | BV37: 19.48110073 | BW37: 0 | BX37: 0 | BY37: 0 | BZ37: 0 | CA37: 0 | CB37: 0 | CC37: 0 | CD37: 0 | CE37: 0 | CF37: 0 | CG37: 0 | CH37: 0 | CI37: 0 | CJ37: 0 | CK37: 0 | CL37: 0 | CM37: 0 | CN37: 0 | CO37: 0 | CP37: 0 | CQ37: 0 | CR37: 0 | CS37: 0 | CT37: 0 | CU37: 0 | CV37: 0 | CW37: 0 | CX37: 0 | CY37: 0 | CZ37: 0 | DA37: 0 | DB37: 0 | DC37: 0 | DD37: 0 | DE37: 0 | DF37: 0 | DG37: 0 | DH37: 0
C38: > 132 kV | D38: 0 | E38: 0 | F38: 0 | G38: 0 | H38: 0 | I38: 0 | J38: 0 | K38: 0 | L38: 0 | M38: 0 | N38: 0 | O38: 0 | P38: 0 | Q38: 0 | R38: 0 | S38: 0 | T38: 0 | U38: 0 | V38: 0 | W38: 0 | X38: 0 | Y38: 0 | Z38: 0 | AA38: 0 | AB38: 0 | AC38: 0 | AD38: 0 | AE38: 0 | AF38: 0 | AG38: 0 | AH38: 0 | AI38: 0 | AJ38: 0 | AK38: 0 | AL38: 0 | AM38: 0 | AN38: 0 | AO38: 0 | AP38: 0 | AQ38: 0 | AR38: 0 | AS38: 0 | AT38: 0 | AU38: 0 | AV38: 0 | AW38: 0 | AX38: 0 | AY38: 0 | AZ38: 0 | BA38: 0 | BB38: 0 | BC38: 0 | BD38: 0 | BE38: 0 | BF38: 0 | BG38: 0 | BH38: 0 | BI38: 0 | BJ38: 0 | BK38: 0 | BL38: 0 | BM38: 0 | BN38: 0 | BO38: 0 | BP38: 0 | BQ38: 0 | BR38: 0 | BS38: 0 | BT38: 0 | BU38: 0 | BV38: 0 | BW38: 0 | BX38: 0 | BY38: 0 | BZ38: 0 | CA38: 0 | CB38: 0 | CC38: 0 | CD38: 0 | CE38: 0 | CF38: 0 | CG38: 0 | CH38: 0 | CI38: 0 | CJ38: 0 | CK38: 0 | CL38: 0 | CM38: 0 | CN38: 0 | CO38: 0 | CP38: 0 | CQ38: 0 | CR38: 0 | CS38: 0 | CT38: 0 | CU38: 0 | CV38: 0 | CW38: 0 | CX38: 0 | CY38: 0 | CZ38: 0 | DA38: 0 | DB38: 0 | DC38: 0 | DD38: 0 | DE38: 0 | DF38: 0 | DG38: 0 | DH38: 0
C39: Other | D39: 0 | E39: 0 | F39: 0 | G39: 0 | H39: 0 | I39: 0 | J39: 0 | K39: 0 | L39: 0 | M39: 0 | N39: 0 | O39: 0 | P39: 0 | Q39: 0 | R39: 0 | S39: 0 | T39: 0 | U39: 0 | V39: 0 | W39: 0 | X39: 0 | Y39: 0 | Z39: 0 | AA39: 0 | AB39: 0 | AC39: 0 | AD39: 0 | AE39: 0 | AF39: 0 | AG39: 0 | AH39: 0 | AI39: 0 | AJ39: 0 | AK39: 0 | AL39: 0 | AM39: 0 | AN39: 0 | AO39: 0 | AP39: 0 | AQ39: 0 | AR39: 0 | AS39: 0 | AT39: 0 | AU39: 0 | AV39: 0 | AW39: 0 | AX39: 0 | AY39: 0 | AZ39: 0 | BA39: 0 | BB39: 0 | BC39: 0 | BD39: 0 | BE39: 0 | BF39: 0 | BG39: 0 | BH39: 0 | BI39: 0 | BJ39: 0 | BK39: 0 | BL39: 0 | BM39: 0 | BN39: 0 | BO39: 0 | BP39: 0 | BQ39: 0 | BR39: 0 | BS39: 0 | BT39: 0 | BU39: 0 | BV39: 0 | BW39: 0 | BX39: 0 | BY39: 0 | BZ39: 0 | CA39: 0 | CB39: 0 | CC39: 0 | CD39: 0 | CE39: 0 | CF39: 0 | CG39: 0 | CH39: 0 | CI39: 0 | CJ39: 0 | CK39: 0 | CL39: 0 | CM39: 0 | CN39: 0 | CO39: 0 | CP39: 0 | CQ39: 0 | CR39: 0 | CS39: 0 | CT39: 0 | CU39: 0 | CV39: 0 | CW39: 0 | CX39: 0 | CY39: 0 | CZ39: 0 | DA39: 0 | DB39: 0 | DC39: 0 | DD39: 0 | DE39: 0 | DF39: 0 | DG39: 0 | DH39: 0
B40: UNDERGROUND CABLES BY: HIGHEST OPERATING VOLTAGE | C40: ˂ = 1 kV | D40: 50 | E40: 7.07 | F40: 90.8380217 | G40: 84.06068432 | H40: 164.8880611 | I40: 250.2657518 | J40: 280.8755318 | K40: 380.46564 | L40: 399.0928858 | M40: 355.312988 | N40: 519.1508707 | O40: 1142.051772 | P40: 1247.604283 | Q40: 639.2201631 | R40: 222.7370548 | S40: 309.5067169 | T40: 83.81686437 | U40: 17.52110313 | V40: 13.22230432 | W40: 4.460602082 | X40: 6.160657831 | Y40: 3.814735397 | Z40: 2.134222567 | AA40: 3.567119315 | AB40: 0.06223327482 | AC40: 3.193597522 | AD40: 10.72516254 | AE40: 8.125754751 | AF40: 1.643376221 | AG40: 5.3403124 | AH40: 0 | AI40: 1.224883576 | AJ40: 0.5510618183 | AK40: 0 | AL40: 0.7237409096 | AM40: 0 | AN40: 0.5127395404 | AO40: 0 | AP40: 0 | AQ40: 0.2576376923 | AR40: 0 | AS40: 0 | AT40: 0 | AU40: 0.03764355211 | AV40: 0 | AW40: 0 | AX40: 0.1926453829 | AY40: 0 | AZ40: 0 | BA40: 0.08383151274 | BB40: 0.4481692417 | BC40: 0 | BD40: 0 | BE40: 0 | BF40: 0 | BG40: 0 | BH40: 0 | BI40: 0 | BJ40: 0 | BK40: 0 | BL40: 0 | BM40: 0 | BN40: 0 | BO40: 0 | BP40: 0 | BQ40: 0 | BR40: 0 | BS40: 0 | BT40: 0 | BU40: 0 | BV40: 0 | BW40: 0 | BX40: 0 | BY40: 0 | BZ40: 0 | CA40: 0 | CB40: 0 | CC40: 0 | CD40: 0 | CE40: 0 | CF40: 0 | CG40: 0 | CH40: 0 | CI40: 0 | CJ40: 0 | CK40: 0 | CL40: 0 | CM40: 0 | CN40: 0 | CO40: 0 | CP40: 0 | CQ40: 0 | CR40: 0 | CS40: 0 | CT40: 0 | CU40: 0 | CV40: 0 | CW40: 0 | CX40: 0 | CY40: 0 | CZ40: 0 | DA40: 0 | DB40: 0 | DC40: 0 | DD40: 0 | DE40: 0 | DF40: 0 | DG40: 0 | DH40: 0
C41: > 1 kV & < = 11 kV | D41: 50 | E41: 7.07 | F41: 19.11716534 | G41: 16.41604822 | H41: 24.14762883 | I41: 33.7076531 | J41: 72.45580279 | K41: 104.4866891 | L41: 91.53911492 | M41: 109.3215072 | N41: 143.7218561 | O41: 175.4888754 | P41: 164.4326014 | Q41: 87.06506413 | R41: 46.25602022 | S41: 58.07691755 | T41: 45.99163036 | U41: 64.19800461 | V41: 40.83128512 | W41: 14.72059959 | X41: 32.49833061 | Y41: 106.9079067 | Z41: 17.68044859 | AA41: 15.28253941 | AB41: 12.24754093 | AC41: 11.13321892 | AD41: 23.21547262 | AE41: 18.09238267 | AF41: 27.92757096 | AG41: 15.75036206 | AH41: 11.52479428 | AI41: 8.051591289 | AJ41: 3.75465936 | AK41: 4.408917448 | AL41: 20.26733078 | AM41: 20.44498649 | AN41: 10.82946119 | AO41: 6.418080083 | AP41: 17.0291525 | AQ41: 10.03021321 | AR41: 7.790101777 | AS41: 2.897034072 | AT41: 4.545027025 | AU41: 2.369450344 | AV41: 2.627526343 | AW41: 26.08836382 | AX41: 1.520474814 | AY41: 0.6251815517 | AZ41: 3.929956937 | BA41: 2.448976882 | BB41: 1.894530715 | BC41: 1.506218358 | BD41: 0.4322213766 | BE41: 0.5484526122 | BF41: 0.4928232661 | BG41: 3.532844023 | BH41: 0.1334588065 | BI41: 0.4561842359 | BJ41: 0 | BK41: 0 | BL41: 0.01481443759 | BM41: 0.2414565427 | BN41: 0 | BO41: 0.3407094633 | BP41: 0 | BQ41: 0.8059870778 | BR41: 0 | BS41: 0 | BT41: 0 | BU41: 0 | BV41: 0.03304956452 | BW41: 0 | BX41: 0 | BY41: 0 | BZ41: 0 | CA41: 0 | CB41: 0 | CC41: 0 | CD41: 0 | CE41: 0 | CF41: 0 | CG41: 0 | CH41: 0 | CI41: 0 | CJ41: 0.4044321606 | CK41: 0 | CL41: 0 | CM41: 0 | CN41: 0 | CO41: 0 | CP41: 0 | CQ41: 0 | CR41: 0 | CS41: 0 | CT41: 0 | CU41: 0 | CV41: 0 | CW41: 0 | CX41: 0 | CY41: 0 | CZ41: 0 | DA41: 0 | DB41: 0 | DC41: 0 | DD41: 0 | DE41: 0 | DF41: 0 | DG41: 0 | DH41: 0
C42: > 11 kV & < = 22 kV | D42: 50 | E42: 7.07 | F42: 4.222556234 | G42: 5.434655403 | H42: 12.11323196 | I42: 13.68779558 | J42: 22.0622561 | K42: 17.3094148 | L42: 23.69658499 | M42: 21.32384964 | N42: 35.05281697 | O42: 74.72855821 | P42: 97.69036979 | Q42: 32.66877767 | R42: 16.10734518 | S42: 23.23052393 | T42: 15.31827637 | U42: 3.834811275 | V42: 4.123182685 | W42: 5.742654721 | X42: 16.93448191 | Y42: 12.05035136 | Z42: 13.7180957 | AA42: 11.45564556 | AB42: 7.265775555 | AC42: 22.15712561 | AD42: 20.79535282 | AE42: 10.07774603 | AF42: 14.71080984 | AG42: 6.948822083 | AH42: 7.581410832 | AI42: 11.05914559 | AJ42: 1.71590412 | AK42: 13.72700028 | AL42: 5.340817113 | AM42: 51.96931884 | AN42: 3.936194446 | AO42: 3.02517742 | AP42: 5.180777514 | AQ42: 2.133189553 | AR42: 6.86515714 | AS42: 1.15480563 | AT42: 0.05040250613 | AU42: 1.901769647 | AV42: 0.1313077023 | AW42: 4.365061898 | AX42: 0 | AY42: 0.250455748 | AZ42: 0.07510469592 | BA42: 0.6513362307 | BB42: 1.860577673 | BC42: 0.7352417669 | BD42: 0.341830438 | BE42: 0.1253935184 | BF42: 0 | BG42: 3.051449333 | BH42: 0 | BI42: 1.163497708 | BJ42: 0.07431286671 | BK42: 0 | BL42: 0.2327288253 | BM42: 0.1260739754 | BN42: 0.0416432237 | BO42: 0.3404083656 | BP42: 0.670836549 | BQ42: 0 | BR42: 0 | BS42: 0.1895202634 | BT42: 0 | BU42: 0 | BV42: 0 | BW42: 0 | BX42: 0 | BY42: 0 | BZ42: 0 | CA42: 0 | CB42: 0 | CC42: 0 | CD42: 0 | CE42: 0 | CF42: 0 | CG42: 0 | CH42: 0 | CI42: 0 | CJ42: 0 | CK42: 0 | CL42: 0 | CM42: 0 | CN42: 0 | CO42: 0 | CP42: 0 | CQ42: 0 | CR42: 0 | CS42: 0 | CT42: 0 | CU42: 0 | CV42: 0 | CW42: 0 | CX42: 0 | CY42: 0 | CZ42: 0 | DA42: 0 | DB42: 0 | DC42: 0 | DD42: 0 | DE42: 0 | DF42: 0 | DG42: 0 | DH42: 0
C43: > 22 kV & < = 33 kV | D43: 50 | E43: 7.07 | F43: 0.1673350352 | G43: 0.005811326357 | H43: 0.6929315105 | I43: 0.006022609533 | J43: 0.6015230206 | K43: 3.683047674 | L43: 2.348439445 | M43: 10.51541023 | N43: 5.915568728 | O43: 5.211316647 | P43: 0.5175902375 | Q43: 0.9896223279 | R43: 0.7544308962 | S43: 6.020533593 | T43: 1.487743665 | U43: 0.2626701539 | V43: 2.433444609 | W43: 0 | X43: 0.1220123765 | Y43: 0.4260369492 | Z43: 0.2654026725 | AA43: 0.01771226221 | AB43: 0.01049083431 | AC43: 0.03109606646 | AD43: 0 | AE43: 0.6288828873 | AF43: 0.0622412074 | AG43: 0.446584296 | AH43: 0.5573316447 | AI43: 0.1617735373 | AJ43: 0 | AK43: 0.1294446672 | AL43: 0.628036176 | AM43: 0.515773444 | AN43: 0 | AO43: 0.2920642997 | AP43: 1.384140678 | AQ43: 0.2517563084 | AR43: 0.1280594123 | AS43: 0 | AT43: 0 | AU43: 0.8392264782 | AV43: 0 | AW43: 4.293247061 | AX43: 1.270341914 | AY43: 0.8391763424 | AZ43: 0 | BA43: 0 | BB43: 0 | BC43: 0 | BD43: 0 | BE43: 0.5316551495 | BF43: 0 | BG43: 0.7540186323 | BH43: 0 | BI43: 0 | BJ43: 0 | BK43: 0 | BL43: 0 | BM43: 0 | BN43: 0 | BO43: 0 | BP43: 0 | BQ43: 0 | BR43: 0 | BS43: 0 | BT43: 0 | BU43: 0 | BV43: 0.05039696717 | BW43: 0 | BX43: 0 | BY43: 0 | BZ43: 0 | CA43: 0 | CB43: 0 | CC43: 0 | CD43: 0 | CE43: 0 | CF43: 0 | CG43: 0 | CH43: 0 | CI43: 0 | CJ43: 0 | CK43: 0 | CL43: 0 | CM43: 0 | CN43: 0 | CO43: 0 | CP43: 0 | CQ43: 0 | CR43: 0 | CS43: 0 | CT43: 0 | CU43: 0 | CV43: 0 | CW43: 0 | CX43: 0 | CY43: 0 | CZ43: 0 | DA43: 0 | DB43: 0 | DC43: 0 | DD43: 0 | DE43: 0 | DF43: 0 | DG43: 0 | DH43: 0
C44: > 33 kV & < = 66 kV | D44: 50 | E44: 7.07 | F44: 0.1044135693 | G44: 0 | H44: 0 | I44: 0 | J44: 0 | K44: 0 | L44: 0 | M44: 0.149177868 | N44: 1.174441437 | O44: 8.912320467 | P44: 3.52432883 | Q44: 0.844392757 | R44: 0 | S44: 0 | T44: 0 | U44: 0 | V44: 0 | W44: 0 | X44: 0 | Y44: 2.599966794 | Z44: 0.007720729876 | AA44: 0 | AB44: 0 | AC44: 0.1610201212 | AD44: 0 | AE44: 0 | AF44: 0 | AG44: 0 | AH44: 0.3547517478 | AI44: 0 | AJ44: 0 | AK44: 0.6463851196 | AL44: 0 | AM44: 0 | AN44: 0 | AO44: 0 | AP44: 0 | AQ44: 0 | AR44: 0 | AS44: 0 | AT44: 0 | AU44: 0 | AV44: 0 | AW44: 0 | AX44: 0 | AY44: 0 | AZ44: 0.7204882144 | BA44: 0 | BB44: 0 | BC44: 0 | BD44: 0 | BE44: 0 | BF44: 0 | BG44: 0 | BH44: 0 | BI44: 0 | BJ44: 0 | BK44: 0 | BL44: 0 | BM44: 0 | BN44: 0 | BO44: 0 | BP44: 0 | BQ44: 0 | BR44: 0 | BS44: 0 | BT44: 0 | BU44: 0 | BV44: 0 | BW44: 0 | BX44: 0 | BY44: 0 | BZ44: 0 | CA44: 0 | CB44: 0 | CC44: 0 | CD44: 0 | CE44: 0 | CF44: 0 | CG44: 0 | CH44: 0 | CI44: 0 | CJ44: 0 | CK44: 0 | CL44: 0 | CM44: 0 | CN44: 0 | CO44: 0 | CP44: 0 | CQ44: 0 | CR44: 0 | CS44: 0 | CT44: 0 | CU44: 0 | CV44: 0 | CW44: 0 | CX44: 0 | CY44: 0 | CZ44: 0 | DA44: 0 | DB44: 0 | DC44: 0 | DD44: 0 | DE44: 0 | DF44: 0 | DG44: 0 | DH44: 0
C45: > 66 kV & < = 132 kV | D45: 60 | E45: 7.75 | F45: 0 | G45: 0 | H45: 0 | I45: 6.143810919 | J45: 0 | K45: 0 | L45: 0 | M45: 0 | N45: 0 | O45: 8.88045225 | P45: 0.04339514337 | Q45: 0 | R45: 0 | S45: 0 | T45: 0 | U45: 0 | V45: 0 | W45: 0 | X45: 0 | Y45: 0 | Z45: 0 | AA45: 0 | AB45: 0 | AC45: 0 | AD45: 0 | AE45: 0 | AF45: 0 | AG45: 0 | AH45: 0 | AI45: 0 | AJ45: 0 | AK45: 0 | AL45: 0 | AM45: 0 | AN45: 0 | AO45: 0 | AP45: 0 | AQ45: 0 | AR45: 0 | AS45: 0 | AT45: 0 | AU45: 0 | AV45: 0 | AW45: 0 | AX45: 0 | AY45: 0 | AZ45: 0 | BA45: 0 | BB45: 0 | BC45: 0 | BD45: 0 | BE45: 0 | BF45: 0 | BG45: 0 | BH45: 0 | BI45: 0 | BJ45: 0 | BK45: 0 | BL45: 0 | BM45: 0 | BN45: 0 | BO45: 0 | BP45: 0 | BQ45: 0 | BR45: 0 | BS45: 0 | BT45: 0 | BU45: 0 | BV45: 0 | BW45: 0 | BX45: 0 | BY45: 0 | BZ45: 0 | CA45: 0 | CB45: 0 | CC45: 0 | CD45: 0 | CE45: 0 | CF45: 0 | CG45: 0 | CH45: 0 | CI45: 0 | CJ45: 0 | CK45: 0 | CL45: 0 | CM45: 0 | CN45: 0 | CO45: 0 | CP45: 0 | CQ45: 0 | CR45: 0 | CS45: 0 | CT45: 0 | CU45: 0 | CV45: 0 | CW45: 0 | CX45: 0 | CY45: 0 | CZ45: 0 | DA45: 0 | DB45: 0 | DC45: 0 | DD45: 0 | DE45: 0 | DF45: 0 | DG45: 0 | DH45: 0
C46: > 132 kV | D46: 0 | E46: 0 | F46: 0 | G46: 0 | H46: 0 | I46: 0 | J46: 0 | K46: 0 | L46: 0 | M46: 0 | N46: 0 | O46: 0 | P46: 0 | Q46: 0 | R46: 0 | S46: 0 | T46: 0 | U46: 0 | V46: 0 | W46: 0 | X46: 0 | Y46: 0 | Z46: 0 | AA46: 0 | AB46: 0 | AC46: 0 | AD46: 0 | AE46: 0 | AF46: 0 | AG46: 0 | AH46: 0 | AI46: 0 | AJ46: 0 | AK46: 0 | AL46: 0 | AM46: 0 | AN46: 0 | AO46: 0 | AP46: 0 | AQ46: 0 | AR46: 0 | AS46: 0 | AT46: 0 | AU46: 0 | AV46: 0 | AW46: 0 | AX46: 0 | AY46: 0 | AZ46: 0 | BA46: 0 | BB46: 0 | BC46: 0 | BD46: 0 | BE46: 0 | BF46: 0 | BG46: 0 | BH46: 0 | BI46: 0 | BJ46: 0 | BK46: 0 | BL46: 0 | BM46: 0 | BN46: 0 | BO46: 0 | BP46: 0 | BQ46: 0 | BR46: 0 | BS46: 0 | BT46: 0 | BU46: 0 | BV46: 0 | BW46: 0 | BX46: 0 | BY46: 0 | BZ46: 0 | CA46: 0 | CB46: 0 | CC46: 0 | CD46: 0 | CE46: 0 | CF46: 0 | CG46: 0 | CH46: 0 | CI46: 0 | CJ46: 0 | CK46: 0 | CL46: 0 | CM46: 0 | CN46: 0 | CO46: 0 | CP46: 0 | CQ46: 0 | CR46: 0 | CS46: 0 | CT46: 0 | CU46: 0 | CV46: 0 | CW46: 0 | CX46: 0 | CY46: 0 | CZ46: 0 | DA46: 0 | DB46: 0 | DC46: 0 | DD46: 0 | DE46: 0 | DF46: 0 | DG46: 0 | DH46: 0
C47: Other | D47: 0 | E47: 0 | F47: 0 | G47: 0 | H47: 0 | I47: 0 | J47: 0 | K47: 0 | L47: 0 | M47: 0 | N47: 0 | O47: 0 | P47: 0 | Q47: 0 | R47: 0 | S47: 0 | T47: 0 | U47: 0 | V47: 0 | W47: 0 | X47: 0 | Y47: 0 | Z47: 0 | AA47: 0 | AB47: 0 | AC47: 0 | AD47: 0 | AE47: 0 | AF47: 0 | AG47: 0 | AH47: 0 | AI47: 0 | AJ47: 0 | AK47: 0 | AL47: 0 | AM47: 0 | AN47: 0 | AO47: 0 | AP47: 0 | AQ47: 0 | AR47: 0 | AS47: 0 | AT47: 0 | AU47: 0 | AV47: 0 | AW47: 0 | AX47: 0 | AY47: 0 | AZ47: 0 | BA47: 0 | BB47: 0 | BC47: 0 | BD47: 0 | BE47: 0 | BF47: 0 | BG47: 0 | BH47: 0 | BI47: 0 | BJ47: 0 | BK47: 0 | BL47: 0 | BM47: 0 | BN47: 0 | BO47: 0 | BP47: 0 | BQ47: 0 | BR47: 0 | BS47: 0 | BT47: 0 | BU47: 0 | BV47: 0 | BW47: 0 | BX47: 0 | BY47: 0 | BZ47: 0 | CA47: 0 | CB47: 0 | CC47: 0 | CD47: 0 | CE47: 0 | CF47: 0 | CG47: 0 | CH47: 0 | CI47: 0 | CJ47: 0 | CK47: 0 | CL47: 0 | CM47: 0 | CN47: 0 | CO47: 0 | CP47: 0 | CQ47: 0 | CR47: 0 | CS47: 0 | CT47: 0 | CU47: 0 | CV47: 0 | CW47: 0 | CX47: 0 | CY47: 0 | CZ47: 0 | DA47: 0 | DB47: 0 | DC47: 0 | DD47: 0 | DE47: 0 | DF47: 0 | DG47: 0 | DH47: 0
B48: SERVICE LINES BY: CONNECTION VOLTAGE; CUSTOMER TYPE; CONNECTION COMPLEXITY | C48: ˂ = 11 kV ; Residential ; Simple Type | D48: 35 | E48: 5.92 | F48: 82.05600567 | G48: 1603.09416 | H48: 1734.183632 | I48: 2803.913755 | J48: 4035.754523 | K48: 4214.876779 | L48: 4545.102168 | M48: 3737.55099 | N48: 3879.647975 | O48: 3774.576261 | P48: 4332.957373 | Q48: 6596.502309 | R48: 7169.893666 | S48: 7651.222187 | T48: 7753.291853 | U48: 6314.309705 | V48: 6336.32473 | W48: 5642.851414 | X48: 5757.929959 | Y48: 5413.695008 | Z48: 5646.854146 | AA48: 5483.742818 | AB48: 6034.118466 | AC48: 6865.686035 | AD48: 6346.33156 | AE48: 6309.30629 | AF48: 7684.244726 | AG48: 7066.823317 | AH48: 6798.640275 | AI48: 6128.182667 | AJ48: 4965.389026 | AK48: 4358.97513 | AL48: 6714.582903 | AM48: 8974.125108 | AN48: 8083.517241 | AO48: 6806.645739 | AP48: 10017.83747 | AQ48: 8116.53978 | AR48: 6878.694914 | AS48: 5002.414297 | AT48: 6694.569243 | AU48: 7690.248824 | AV48: 7640.214674 | AW48: 7695.252239 | AX48: 8399.733068 | AY48: 6831.662813 | AZ48: 6714.582903 | BA48: 6848.674424 | BB48: 7245.945574 | BC48: 6460.409422 | BD48: 5030.433421 | BE48: 3925.679393 | BF48: 3765.570114 | BG48: 3362.294866 | BH48: 2488.698611 | BI48: 3890.655488 | BJ48: 2361.61187 | BK48: 2242.530594 | BL48: 2341.598211 | BM48: 2274.55245 | BN48: 2236.526496 | BO48: 2262.544254 | BP48: 2230.522398 | BQ48: 2196.499176 | BR48: 2194.49781 | BS48: 2186.492346 | BT48: 2216.512836 | BU48: 2187.493029 | BV48: 2272.551084 | BW48: 9.006146964 | BX48: 0 | BY48: 73.04985871 | BZ48: 0 | CA48: 0 | CB48: 0 | CC48: 0 | CD48: 0 | CE48: 0 | CF48: 0 | CG48: 0 | CH48: 0 | CI48: 0 | CJ48: 0 | CK48: 0 | CL48: 0 | CM48: 0 | CN48: 0 | CO48: 0 | CP48: 0 | CQ48: 0 | CR48: 0 | CS48: 0 | CT48: 0 | CU48: 0 | CV48: 0 | CW48: 0 | CX48: 0 | CY48: 0 | CZ48: 0 | DA48: 0 | DB48: 0 | DC48: 0 | DD48: 0 | DE48: 0 | DF48: 0 | DG48: 0 | DH48: 0
C49: ˂ = 11 kV ; Commercial & Industrial ; Simple Type | D49: 35 | E49: 5.92 | F49: 16.0180339 | G49: 244.2750169 | H49: 273.3077033 | I49: 442.4981864 | J49: 623.7021948 | K49: 596.6717626 | L49: 635.7157202 | M49: 529.5962457 | N49: 551.6210423 | O49: 637.7179745 | P49: 927.0437117 | Q49: 1345.514847 | R49: 1127.269135 | S49: 1157.302949 | T49: 1082.218415 | U49: 950.0696354 | V49: 1044.175585 | W49: 1014.141771 | X49: 1004.1305 | Y49: 950.0696354 | Z49: 1015.142898 | AA49: 1023.151915 | AB49: 1205.357051 | AC49: 1432.612907 | AD49: 1033.163186 | AE49: 1019.147407 | AF49: 954.0741439 | AG49: 1073.208271 | AH49: 1138.281534 | AI49: 1049.18122 | AJ49: 741.8351948 | AK49: 873.9839744 | AL49: 978.1011947 | AM49: 1052.184602 | AN49: 952.0718897 | AO49: 841.9479066 | AP49: 1157.302949 | AQ49: 1090.227432 | AR49: 995.1203558 | AS49: 723.8149067 | AT49: 830.9355083 | AU49: 757.8532287 | AV49: 696.7844745 | AW49: 695.7833473 | AX49: 720.8115253 | AY49: 611.6886694 | AZ49: 626.7055762 | BA49: 667.751788 | BB49: 739.8329405 | BC49: 662.7461524 | BD49: 605.6819067 | BE49: 452.5094575 | BF49: 449.5060762 | BG49: 431.4857881 | BH49: 399.4497203 | BI49: 490.5522881 | BJ49: 282.3178474 | BK49: 269.3031949 | BL49: 268.3020678 | BM49: 273.3077033 | BN49: 252.2840339 | BO49: 255.2874152 | BP49: 301.3392627 | BQ49: 257.2896694 | BR49: 261.2941779 | BS49: 268.3020678 | BT49: 242.2727627 | BU49: 270.304322 | BV49: 300.3381355 | BW49: 2.002254237 | BX49: 0 | BY49: 5.005635592 | BZ49: 0 | CA49: 0 | CB49: 0 | CC49: 0 | CD49: 0 | CE49: 0 | CF49: 0 | CG49: 0 | CH49: 0 | CI49: 0 | CJ49: 0 | CK49: 0 | CL49: 0 | CM49: 0 | CN49: 0 | CO49: 0 | CP49: 0 | CQ49: 0 | CR49: 0 | CS49: 0 | CT49: 0 | CU49: 0 | CV49: 0 | CW49: 0 | CX49: 0 | CY49: 0 | CZ49: 0 | DA49: 0 | DB49: 0 | DC49: 0 | DD49: 0 | DE49: 0 | DF49: 0 | DG49: 0 | DH49: 0
C50: ˂ = 11 kV ; Residential ; Complex Type | D50: 0 | E50: 0 | F50: 0 | G50: 0 | H50: 0 | I50: 0 | J50: 0 | K50: 0 | L50: 0 | M50: 0 | N50: 0 | O50: 0 | P50: 0 | Q50: 0 | R50: 0 | S50: 0 | T50: 0 | U50: 0 | V50: 0 | W50: 0 | X50: 0 | Y50: 0 | Z50: 0 | AA50: 0 | AB50: 0 | AC50: 0 | AD50: 0 | AE50: 0 | AF50: 0 | AG50: 0 | AH50: 0 | AI50: 0 | AJ50: 0 | AK50: 0 | AL50: 0 | AM50: 0 | AN50: 0 | AO50: 0 | AP50: 0 | AQ50: 0 | AR50: 0 | AS50: 0 | AT50: 0 | AU50: 0 | AV50: 0 | AW50: 0 | AX50: 0 | AY50: 0 | AZ50: 0 | BA50: 0 | BB50: 0 | BC50: 0 | BD50: 0 | BE50: 0 | BF50: 0 | BG50: 0 | BH50: 0 | BI50: 0 | BJ50: 0 | BK50: 0 | BL50: 0 | BM50: 0 | BN50: 0 | BO50: 0 | BP50: 0 | BQ50: 0 | BR50: 0 | BS50: 0 | BT50: 0 | BU50: 0 | BV50: 0 | BW50: 0 | BX50: 0 | BY50: 0 | BZ50: 0 | CA50: 0 | CB50: 0 | CC50: 0 | CD50: 0 | CE50: 0 | CF50: 0 | CG50: 0 | CH50: 0 | CI50: 0 | CJ50: 0 | CK50: 0 | CL50: 0 | CM50: 0 | CN50: 0 | CO50: 0 | CP50: 0 | CQ50: 0 | CR50: 0 | CS50: 0 | CT50: 0 | CU50: 0 | CV50: 0 | CW50: 0 | CX50: 0 | CY50: 0 | CZ50: 0 | DA50: 0 | DB50: 0 | DC50: 0 | DD50: 0 | DE50: 0 | DF50: 0 | DG50: 0 | DH50: 0
C51: ˂ = 11 kV ; Commercial & Industrial ; Complex Type | D51: 0 | E51: 0 | F51: 0 | G51: 0 | H51: 0 | I51: 0 | J51: 0 | K51: 0 | L51: 0 | M51: 0 | N51: 0 | O51: 0 | P51: 0 | Q51: 0 | R51: 0 | S51: 0 | T51: 0 | U51: 0 | V51: 0 | W51: 0 | X51: 0 | Y51: 0 | Z51: 0 | AA51: 0 | AB51: 0 | AC51: 0 | AD51: 0 | AE51: 0 | AF51: 0 | AG51: 0 | AH51: 0 | AI51: 0 | AJ51: 0 | AK51: 0 | AL51: 0 | AM51: 0 | AN51: 0 | AO51: 0 | AP51: 0 | AQ51: 0 | AR51: 0 | AS51: 0 | AT51: 0 | AU51: 0 | AV51: 0 | AW51: 0 | AX51: 0 | AY51: 0 | AZ51: 0 | BA51: 0 | BB51: 0 | BC51: 0 | BD51: 0 | BE51: 0 | BF51: 0 | BG51: 0 | BH51: 0 | BI51: 0 | BJ51: 0 | BK51: 0 | BL51: 0 | BM51: 0 | BN51: 0 | BO51: 0 | BP51: 0 | BQ51: 0 | BR51: 0 | BS51: 0 | BT51: 0 | BU51: 0 | BV51: 0 | BW51: 0 | BX51: 0 | BY51: 0 | BZ51: 0 | CA51: 0 | CB51: 0 | CC51: 0 | CD51: 0 | CE51: 0 | CF51: 0 | CG51: 0 | CH51: 0 | CI51: 0 | CJ51: 0 | CK51: 0 | CL51: 0 | CM51: 0 | CN51: 0 | CO51: 0 | CP51: 0 | CQ51: 0 | CR51: 0 | CS51: 0 | CT51: 0 | CU51: 0 | CV51: 0 | CW51: 0 | CX51: 0 | CY51: 0 | CZ51: 0 | DA51: 0 | DB51: 0 | DC51: 0 | DD51: 0 | DE51: 0 | DF51: 0 | DG51: 0 | DH51: 0
C52: ˂ = 11 kV ; Subdivision ; Complex Type | D52: 0 | E52: 0 | F52: 0 | G52: 0 | H52: 0 | I52: 0 | J52: 0 | K52: 0 | L52: 0 | M52: 0 | N52: 0 | O52: 0 | P52: 0 | Q52: 0 | R52: 0 | S52: 0 | T52: 0 | U52: 0 | V52: 0 | W52: 0 | X52: 0 | Y52: 0 | Z52: 0 | AA52: 0 | AB52: 0 | AC52: 0 | AD52: 0 | AE52: 0 | AF52: 0 | AG52: 0 | AH52: 0 | AI52: 0 | AJ52: 0 | AK52: 0 | AL52: 0 | AM52: 0 | AN52: 0 | AO52: 0 | AP52: 0 | AQ52: 0 | AR52: 0 | AS52: 0 | AT52: 0 | AU52: 0 | AV52: 0 | AW52: 0 | AX52: 0 | AY52: 0 | AZ52: 0 | BA52: 0 | BB52: 0 | BC52: 0 | BD52: 0 | BE52: 0 | BF52: 0 | BG52: 0 | BH52: 0 | BI52: 0 | BJ52: 0 | BK52: 0 | BL52: 0 | BM52: 0 | BN52: 0 | BO52: 0 | BP52: 0 | BQ52: 0 | BR52: 0 | BS52: 0 | BT52: 0 | BU52: 0 | BV52: 0 | BW52: 0 | BX52: 0 | BY52: 0 | BZ52: 0 | CA52: 0 | CB52: 0 | CC52: 0 | CD52: 0 | CE52: 0 | CF52: 0 | CG52: 0 | CH52: 0 | CI52: 0 | CJ52: 0 | CK52: 0 | CL52: 0 | CM52: 0 | CN52: 0 | CO52: 0 | CP52: 0 | CQ52: 0 | CR52: 0 | CS52: 0 | CT52: 0 | CU52: 0 | CV52: 0 | CW52: 0 | CX52: 0 | CY52: 0 | CZ52: 0 | DA52: 0 | DB52: 0 | DC52: 0 | DD52: 0 | DE52: 0 | DF52: 0 | DG52: 0 | DH52: 0
C53: > 11 kV & < = 22 kV ; Commercial & Industrial | D53: 0 | E53: 0 | F53: 0 | G53: 0 | H53: 0 | I53: 0 | J53: 0 | K53: 0 | L53: 0 | M53: 0 | N53: 0 | O53: 0 | P53: 0 | Q53: 0 | R53: 0 | S53: 0 | T53: 0 | U53: 0 | V53: 0 | W53: 0 | X53: 0 | Y53: 0 | Z53: 0 | AA53: 0 | AB53: 0 | AC53: 0 | AD53: 0 | AE53: 0 | AF53: 0 | AG53: 0 | AH53: 0 | AI53: 0 | AJ53: 0 | AK53: 0 | AL53: 0 | AM53: 0 | AN53: 0 | AO53: 0 | AP53: 0 | AQ53: 0 | AR53: 0 | AS53: 0 | AT53: 0 | AU53: 0 | AV53: 0 | AW53: 0 | AX53: 0 | AY53: 0 | AZ53: 0 | BA53: 0 | BB53: 0 | BC53: 0 | BD53: 0 | BE53: 0 | BF53: 0 | BG53: 0 | BH53: 0 | BI53: 0 | BJ53: 0 | BK53: 0 | BL53: 0 | BM53: 0 | BN53: 0 | BO53: 0 | BP53: 0 | BQ53: 0 | BR53: 0 | BS53: 0 | BT53: 0 | BU53: 0 | BV53: 0 | BW53: 0 | BX53: 0 | BY53: 0 | BZ53: 0 | CA53: 0 | CB53: 0 | CC53: 0 | CD53: 0 | CE53: 0 | CF53: 0 | CG53: 0 | CH53: 0 | CI53: 0 | CJ53: 0 | CK53: 0 | CL53: 0 | CM53: 0 | CN53: 0 | CO53: 0 | CP53: 0 | CQ53: 0 | CR53: 0 | CS53: 0 | CT53: 0 | CU53: 0 | CV53: 0 | CW53: 0 | CX53: 0 | CY53: 0 | CZ53: 0 | DA53: 0 | DB53: 0 | DC53: 0 | DD53: 0 | DE53: 0 | DF53: 0 | DG53: 0 | DH53: 0
C54: > 11 kV & < = 22 kV ; Subdivision | D54: 0 | E54: 0 | F54: 0 | G54: 0 | H54: 0 | I54: 0 | J54: 0 | K54: 0 | L54: 0 | M54: 0 | N54: 0 | O54: 0 | P54: 0 | Q54: 0 | R54: 0 | S54: 0 | T54: 0 | U54: 0 | V54: 0 | W54: 0 | X54: 0 | Y54: 0 | Z54: 0 | AA54: 0 | AB54: 0 | AC54: 0 | AD54: 0 | AE54: 0 | AF54: 0 | AG54: 0 | AH54: 0 | AI54: 0 | AJ54: 0 | AK54: 0 | AL54: 0 | AM54: 0 | AN54: 0 | AO54: 0 | AP54: 0 | AQ54: 0 | AR54: 0 | AS54: 0 | AT54: 0 | AU54: 0 | AV54: 0 | AW54: 0 | AX54: 0 | AY54: 0 | AZ54: 0 | BA54: 0 | BB54: 0 | BC54: 0 | BD54: 0 | BE54: 0 | BF54: 0 | BG54: 0 | BH54: 0 | BI54: 0 | BJ54: 0 | BK54: 0 | BL54: 0 | BM54: 0 | BN54: 0 | BO54: 0 | BP54: 0 | BQ54: 0 | BR54: 0 | BS54: 0 | BT54: 0 | BU54: 0 | BV54: 0 | BW54: 0 | BX54: 0 | BY54: 0 | BZ54: 0 | CA54: 0 | CB54: 0 | CC54: 0 | CD54: 0 | CE54: 0 | CF54: 0 | CG54: 0 | CH54: 0 | CI54: 0 | CJ54: 0 | CK54: 0 | CL54: 0 | CM54: 0 | CN54: 0 | CO54: 0 | CP54: 0 | CQ54: 0 | CR54: 0 | CS54: 0 | CT54: 0 | CU54: 0 | CV54: 0 | CW54: 0 | CX54: 0 | CY54: 0 | CZ54: 0 | DA54: 0 | DB54: 0 | DC54: 0 | DD54: 0 | DE54: 0 | DF54: 0 | DG54: 0 | DH54: 0
C55: > 22 kV & < = 33 kV ; Commercial & Industrial | D55: 0 | E55: 0 | F55: 0 | G55: 0 | H55: 0 | I55: 0 | J55: 0 | K55: 0 | L55: 0 | M55: 0 | N55: 0 | O55: 0 | P55: 0 | Q55: 0 | R55: 0 | S55: 0 | T55: 0 | U55: 0 | V55: 0 | W55: 0 | X55: 0 | Y55: 0 | Z55: 0 | AA55: 0 | AB55: 0 | AC55: 0 | AD55: 0 | AE55: 0 | AF55: 0 | AG55: 0 | AH55: 0 | AI55: 0 | AJ55: 0 | AK55: 0 | AL55: 0 | AM55: 0 | AN55: 0 | AO55: 0 | AP55: 0 | AQ55: 0 | AR55: 0 | AS55: 0 | AT55: 0 | AU55: 0 | AV55: 0 | AW55: 0 | AX55: 0 | AY55: 0 | AZ55: 0 | BA55: 0 | BB55: 0 | BC55: 0 | BD55: 0 | BE55: 0 | BF55: 0 | BG55: 0 | BH55: 0 | BI55: 0 | BJ55: 0 | BK55: 0 | BL55: 0 | BM55: 0 | BN55: 0 | BO55: 0 | BP55: 0 | BQ55: 0 | BR55: 0 | BS55: 0 | BT55: 0 | BU55: 0 | BV55: 0 | BW55: 0 | BX55: 0 | BY55: 0 | BZ55: 0 | CA55: 0 | CB55: 0 | CC55: 0 | CD55: 0 | CE55: 0 | CF55: 0 | CG55: 0 | CH55: 0 | CI55: 0 | CJ55: 0 | CK55: 0 | CL55: 0 | CM55: 0 | CN55: 0 | CO55: 0 | CP55: 0 | CQ55: 0 | CR55: 0 | CS55: 0 | CT55: 0 | CU55: 0 | CV55: 0 | CW55: 0 | CX55: 0 | CY55: 0 | CZ55: 0 | DA55: 0 | DB55: 0 | DC55: 0 | DD55: 0 | DE55: 0 | DF55: 0 | DG55: 0 | DH55: 0
C56: > 22 kV & < = 33 kV ; Subdivision | D56: 0 | E56: 0 | F56: 0 | G56: 0 | H56: 0 | I56: 0 | J56: 0 | K56: 0 | L56: 0 | M56: 0 | N56: 0 | O56: 0 | P56: 0 | Q56: 0 | R56: 0 | S56: 0 | T56: 0 | U56: 0 | V56: 0 | W56: 0 | X56: 0 | Y56: 0 | Z56: 0 | AA56: 0 | AB56: 0 | AC56: 0 | AD56: 0 | AE56: 0 | AF56: 0 | AG56: 0 | AH56: 0 | AI56: 0 | AJ56: 0 | AK56: 0 | AL56: 0 | AM56: 0 | AN56: 0 | AO56: 0 | AP56: 0 | AQ56: 0 | AR56: 0 | AS56: 0 | AT56: 0 | AU56: 0 | AV56: 0 | AW56: 0 | AX56: 0 | AY56: 0 | AZ56: 0 | BA56: 0 | BB56: 0 | BC56: 0 | BD56: 0 | BE56: 0 | BF56: 0 | BG56: 0 | BH56: 0 | BI56: 0 | BJ56: 0 | BK56: 0 | BL56: 0 | BM56: 0 | BN56: 0 | BO56: 0 | BP56: 0 | BQ56: 0 | BR56: 0 | BS56: 0 | BT56: 0 | BU56: 0 | BV56: 0 | BW56: 0 | BX56: 0 | BY56: 0 | BZ56: 0 | CA56: 0 | CB56: 0 | CC56: 0 | CD56: 0 | CE56: 0 | CF56: 0 | CG56: 0 | CH56: 0 | CI56: 0 | CJ56: 0 | CK56: 0 | CL56: 0 | CM56: 0 | CN56: 0 | CO56: 0 | CP56: 0 | CQ56: 0 | CR56: 0 | CS56: 0 | CT56: 0 | CU56: 0 | CV56: 0 | CW56: 0 | CX56: 0 | CY56: 0 | CZ56: 0 | DA56: 0 | DB56: 0 | DC56: 0 | DD56: 0 | DE56: 0 | DF56: 0 | DG56: 0 | DH56: 0
C57: > 33 kV & < = 66 kV ; Commercial & Industrial | D57: 0 | E57: 0 | F57: 0 | G57: 0 | H57: 0 | I57: 0 | J57: 0 | K57: 0 | L57: 0 | M57: 0 | N57: 0 | O57: 0 | P57: 0 | Q57: 0 | R57: 0 | S57: 0 | T57: 0 | U57: 0 | V57: 0 | W57: 0 | X57: 0 | Y57: 0 | Z57: 0 | AA57: 0 | AB57: 0 | AC57: 0 | AD57: 0 | AE57: 0 | AF57: 0 | AG57: 0 | AH57: 0 | AI57: 0 | AJ57: 0 | AK57: 0 | AL57: 0 | AM57: 0 | AN57: 0 | AO57: 0 | AP57: 0 | AQ57: 0 | AR57: 0 | AS57: 0 | AT57: 0 | AU57: 0 | AV57: 0 | AW57: 0 | AX57: 0 | AY57: 0 | AZ57: 0 | BA57: 0 | BB57: 0 | BC57: 0 | BD57: 0 | BE57: 0 | BF57: 0 | BG57: 0 | BH57: 0 | BI57: 0 | BJ57: 0 | BK57: 0 | BL57: 0 | BM57: 0 | BN57: 0 | BO57: 0 | BP57: 0 | BQ57: 0 | BR57: 0 | BS57: 0 | BT57: 0 | BU57: 0 | BV57: 0 | BW57: 0 | BX57: 0 | BY57: 0 | BZ57: 0 | CA57: 0 | CB57: 0 | CC57: 0 | CD57: 0 | CE57: 0 | CF57: 0 | CG57: 0 | CH57: 0 | CI57: 0 | CJ57: 0 | CK57: 0 | CL57: 0 | CM57: 0 | CN57: 0 | CO57: 0 | CP57: 0 | CQ57: 0 | CR57: 0 | CS57: 0 | CT57: 0 | CU57: 0 | CV57: 0 | CW57: 0 | CX57: 0 | CY57: 0 | CZ57: 0 | DA57: 0 | DB57: 0 | DC57: 0 | DD57: 0 | DE57: 0 | DF57: 0 | DG57: 0 | DH57: 0
C58: > 33 kV & < = 66 kV ; Subdivision | D58: 0 | E58: 0 | F58: 0 | G58: 0 | H58: 0 | I58: 0 | J58: 0 | K58: 0 | L58: 0 | M58: 0 | N58: 0 | O58: 0 | P58: 0 | Q58: 0 | R58: 0 | S58: 0 | T58: 0 | U58: 0 | V58: 0 | W58: 0 | X58: 0 | Y58: 0 | Z58: 0 | AA58: 0 | AB58: 0 | AC58: 0 | AD58: 0 | AE58: 0 | AF58: 0 | AG58: 0 | AH58: 0 | AI58: 0 | AJ58: 0 | AK58: 0 | AL58: 0 | AM58: 0 | AN58: 0 | AO58: 0 | AP58: 0 | AQ58: 0 | AR58: 0 | AS58: 0 | AT58: 0 | AU58: 0 | AV58: 0 | AW58: 0 | AX58: 0 | AY58: 0 | AZ58: 0 | BA58: 0 | BB58: 0 | BC58: 0 | BD58: 0 | BE58: 0 | BF58: 0 | BG58: 0 | BH58: 0 | BI58: 0 | BJ58: 0 | BK58: 0 | BL58: 0 | BM58: 0 | BN58: 0 | BO58: 0 | BP58: 0 | BQ58: 0 | BR58: 0 | BS58: 0 | BT58: 0 | BU58: 0 | BV58: 0 | BW58: 0 | BX58: 0 | BY58: 0 | BZ58: 0 | CA58: 0 | CB58: 0 | CC58: 0 | CD58: 0 | CE58: 0 | CF58: 0 | CG58: 0 | CH58: 0 | CI58: 0 | CJ58: 0 | CK58: 0 | CL58: 0 | CM58: 0 | CN58: 0 | CO58: 0 | CP58: 0 | CQ58: 0 | CR58: 0 | CS58: 0 | CT58: 0 | CU58: 0 | CV58: 0 | CW58: 0 | CX58: 0 | CY58: 0 | CZ58: 0 | DA58: 0 | DB58: 0 | DC58: 0 | DD58: 0 | DE58: 0 | DF58: 0 | DG58: 0 | DH58: 0
C59: > 66 kV & < = 132 kV ; Commercial & Industrial | D59: 0 | E59: 0 | F59: 0 | G59: 0 | H59: 0 | I59: 0 | J59: 0 | K59: 0 | L59: 0 | M59: 0 | N59: 0 | O59: 0 | P59: 0 | Q59: 0 | R59: 0 | S59: 0 | T59: 0 | U59: 0 | V59: 0 | W59: 0 | X59: 0 | Y59: 0 | Z59: 0 | AA59: 0 | AB59: 0 | AC59: 0 | AD59: 0 | AE59: 0 | AF59: 0 | AG59: 0 | AH59: 0 | AI59: 0 | AJ59: 0 | AK59: 0 | AL59: 0 | AM59: 0 | AN59: 0 | AO59: 0 | AP59: 0 | AQ59: 0 | AR59: 0 | AS59: 0 | AT59: 0 | AU59: 0 | AV59: 0 | AW59: 0 | AX59: 0 | AY59: 0 | AZ59: 0 | BA59: 0 | BB59: 0 | BC59: 0 | BD59: 0 | BE59: 0 | BF59: 0 | BG59: 0 | BH59: 0 | BI59: 0 | BJ59: 0 | BK59: 0 | BL59: 0 | BM59: 0 | BN59: 0 | BO59: 0 | BP59: 0 | BQ59: 0 | BR59: 0 | BS59: 0 | BT59: 0 | BU59: 0 | BV59: 0 | BW59: 0 | BX59: 0 | BY59: 0 | BZ59: 0 | CA59: 0 | CB59: 0 | CC59: 0 | CD59: 0 | CE59: 0 | CF59: 0 | CG59: 0 | CH59: 0 | CI59: 0 | CJ59: 0 | CK59: 0 | CL59: 0 | CM59: 0 | CN59: 0 | CO59: 0 | CP59: 0 | CQ59: 0 | CR59: 0 | CS59: 0 | CT59: 0 | CU59: 0 | CV59: 0 | CW59: 0 | CX59: 0 | CY59: 0 | CZ59: 0 | DA59: 0 | DB59: 0 | DC59: 0 | DD59: 0 | DE59: 0 | DF59: 0 | DG59: 0 | DH59: 0
C60: > 66 kV & < = 132 kV ; Subdivision | D60: 0 | E60: 0 | F60: 0 | G60: 0 | H60: 0 | I60: 0 | J60: 0 | K60: 0 | L60: 0 | M60: 0 | N60: 0 | O60: 0 | P60: 0 | Q60: 0 | R60: 0 | S60: 0 | T60: 0 | U60: 0 | V60: 0 | W60: 0 | X60: 0 | Y60: 0 | Z60: 0 | AA60: 0 | AB60: 0 | AC60: 0 | AD60: 0 | AE60: 0 | AF60: 0 | AG60: 0 | AH60: 0 | AI60: 0 | AJ60: 0 | AK60: 0 | AL60: 0 | AM60: 0 | AN60: 0 | AO60: 0 | AP60: 0 | AQ60: 0 | AR60: 0 | AS60: 0 | AT60: 0 | AU60: 0 | AV60: 0 | AW60: 0 | AX60: 0 | AY60: 0 | AZ60: 0 | BA60: 0 | BB60: 0 | BC60: 0 | BD60: 0 | BE60: 0 | BF60: 0 | BG60: 0 | BH60: 0 | BI60: 0 | BJ60: 0 | BK60: 0 | BL60: 0 | BM60: 0 | BN60: 0 | BO60: 0 | BP60: 0 | BQ60: 0 | BR60: 0 | BS60: 0 | BT60: 0 | BU60: 0 | BV60: 0 | BW60: 0 | BX60: 0 | BY60: 0 | BZ60: 0 | CA60: 0 | CB60: 0 | CC60: 0 | CD60: 0 | CE60: 0 | CF60: 0 | CG60: 0 | CH60: 0 | CI60: 0 | CJ60: 0 | CK60: 0 | CL60: 0 | CM60: 0 | CN60: 0 | CO60: 0 | CP60: 0 | CQ60: 0 | CR60: 0 | CS60: 0 | CT60: 0 | CU60: 0 | CV60: 0 | CW60: 0 | CX60: 0 | CY60: 0 | CZ60: 0 | DA60: 0 | DB60: 0 | DC60: 0 | DD60: 0 | DE60: 0 | DF60: 0 | DG60: 0 | DH60: 0
C61: > 132 kV ; Commercial & Industrial | D61: 0 | E61: 0 | F61: 0 | G61: 0 | H61: 0 | I61: 0 | J61: 0 | K61: 0 | L61: 0 | M61: 0 | N61: 0 | O61: 0 | P61: 0 | Q61: 0 | R61: 0 | S61: 0 | T61: 0 | U61: 0 | V61: 0 | W61: 0 | X61: 0 | Y61: 0 | Z61: 0 | AA61: 0 | AB61: 0 | AC61: 0 | AD61: 0 | AE61: 0 | AF61: 0 | AG61: 0 | AH61: 0 | AI61: 0 | AJ61: 0 | AK61: 0 | AL61: 0 | AM61: 0 | AN61: 0 | AO61: 0 | AP61: 0 | AQ61: 0 | AR61: 0 | AS61: 0 | AT61: 0 | AU61: 0 | AV61: 0 | AW61: 0 | AX61: 0 | AY61: 0 | AZ61: 0 | BA61: 0 | BB61: 0 | BC61: 0 | BD61: 0 | BE61: 0 | BF61: 0 | BG61: 0 | BH61: 0 | BI61: 0 | BJ61: 0 | BK61: 0 | BL61: 0 | BM61: 0 | BN61: 0 | BO61: 0 | BP61: 0 | BQ61: 0 | BR61: 0 | BS61: 0 | BT61: 0 | BU61: 0 | BV61: 0 | BW61: 0 | BX61: 0 | BY61: 0 | BZ61: 0 | CA61: 0 | CB61: 0 | CC61: 0 | CD61: 0 | CE61: 0 | CF61: 0 | CG61: 0 | CH61: 0 | CI61: 0 | CJ61: 0 | CK61: 0 | CL61: 0 | CM61: 0 | CN61: 0 | CO61: 0 | CP61: 0 | CQ61: 0 | CR61: 0 | CS61: 0 | CT61: 0 | CU61: 0 | CV61: 0 | CW61: 0 | CX61: 0 | CY61: 0 | CZ61: 0 | DA61: 0 | DB61: 0 | DC61: 0 | DD61: 0 | DE61: 0 | DF61: 0 | DG61: 0 | DH61: 0
C62: > 132 kV ; Subdivision | D62: 0 | E62: 0 | F62: 0 | G62: 0 | H62: 0 | I62: 0 | J62: 0 | K62: 0 | L62: 0 | M62: 0 | N62: 0 | O62: 0 | P62: 0 | Q62: 0 | R62: 0 | S62: 0 | T62: 0 | U62: 0 | V62: 0 | W62: 0 | X62: 0 | Y62: 0 | Z62: 0 | AA62: 0 | AB62: 0 | AC62: 0 | AD62: 0 | AE62: 0 | AF62: 0 | AG62: 0 | AH62: 0 | AI62: 0 | AJ62: 0 | AK62: 0 | AL62: 0 | AM62: 0 | AN62: 0 | AO62: 0 | AP62: 0 | AQ62: 0 | AR62: 0 | AS62: 0 | AT62: 0 | AU62: 0 | AV62: 0 | AW62: 0 | AX62: 0 | AY62: 0 | AZ62: 0 | BA62: 0 | BB62: 0 | BC62: 0 | BD62: 0 | BE62: 0 | BF62: 0 | BG62: 0 | BH62: 0 | BI62: 0 | BJ62: 0 | BK62: 0 | BL62: 0 | BM62: 0 | BN62: 0 | BO62: 0 | BP62: 0 | BQ62: 0 | BR62: 0 | BS62: 0 | BT62: 0 | BU62: 0 | BV62: 0 | BW62: 0 | BX62: 0 | BY62: 0 | BZ62: 0 | CA62: 0 | CB62: 0 | CC62: 0 | CD62: 0 | CE62: 0 | CF62: 0 | CG62: 0 | CH62: 0 | CI62: 0 | CJ62: 0 | CK62: 0 | CL62: 0 | CM62: 0 | CN62: 0 | CO62: 0 | CP62: 0 | CQ62: 0 | CR62: 0 | CS62: 0 | CT62: 0 | CU62: 0 | CV62: 0 | CW62: 0 | CX62: 0 | CY62: 0 | CZ62: 0 | DA62: 0 | DB62: 0 | DC62: 0 | DD62: 0 | DE62: 0 | DF62: 0 | DG62: 0 | DH62: 0
C63: Other | D63: 0 | E63: 0 | F63: 0 | G63: 0 | H63: 0 | I63: 0 | J63: 0 | K63: 0 | L63: 0 | M63: 0 | N63: 0 | O63: 0 | P63: 0 | Q63: 0 | R63: 0 | S63: 0 | T63: 0 | U63: 0 | V63: 0 | W63: 0 | X63: 0 | Y63: 0 | Z63: 0 | AA63: 0 | AB63: 0 | AC63: 0 | AD63: 0 | AE63: 0 | AF63: 0 | AG63: 0 | AH63: 0 | AI63: 0 | AJ63: 0 | AK63: 0 | AL63: 0 | AM63: 0 | AN63: 0 | AO63: 0 | AP63: 0 | AQ63: 0 | AR63: 0 | AS63: 0 | AT63: 0 | AU63: 0 | AV63: 0 | AW63: 0 | AX63: 0 | AY63: 0 | AZ63: 0 | BA63: 0 | BB63: 0 | BC63: 0 | BD63: 0 | BE63: 0 | BF63: 0 | BG63: 0 | BH63: 0 | BI63: 0 | BJ63: 0 | BK63: 0 | BL63: 0 | BM63: 0 | BN63: 0 | BO63: 0 | BP63: 0 | BQ63: 0 | BR63: 0 | BS63: 0 | BT63: 0 | BU63: 0 | BV63: 0 | BW63: 0 | BX63: 0 | BY63: 0 | BZ63: 0 | CA63: 0 | CB63: 0 | CC63: 0 | CD63: 0 | CE63: 0 | CF63: 0 | CG63: 0 | CH63: 0 | CI63: 0 | CJ63: 0 | CK63: 0 | CL63: 0 | CM63: 0 | CN63: 0 | CO63: 0 | CP63: 0 | CQ63: 0 | CR63: 0 | CS63: 0 | CT63: 0 | CU63: 0 | CV63: 0 | CW63: 0 | CX63: 0 | CY63: 0 | CZ63: 0 | DA63: 0 | DB63: 0 | DC63: 0 | DD63: 0 | DE63: 0 | DF63: 0 | DG63: 0 | DH63: 0
B64: TRANSFORMERS BY: MOUNTING TYPE; HIGHEST OPERATING VOLTAGE ; AMPERE RATING; NUMBER OF PHASES (AT LV) | C64: Pole Mounted ; < = 22kV ; < = 60 kVA ; Single Phase | D64: 40 | E64: 6.32 | F64: 337.9719426 | G64: 719.196247 | H64: 814.7537903 | I64: 1137.6377 | J64: 1065.215141 | K64: 852.9768076 | L64: 895.2233005 | M64: 1007.880615 | N64: 1425.316199 | O64: 1846.775258 | P64: 1534.955906 | Q64: 1082.314912 | R64: 1078.291436 | S64: 1009.892352 | T64: 933.4463178 | U64: 671.9204098 | V64: 677.9556231 | W64: 677.9556231 | X64: 605.5330639 | Y64: 654.8206389 | Z64: 553.2278823 | AA64: 583.4039486 | AB64: 700.0847383 | AC64: 842.9181189 | AD64: 721.2079848 | AE64: 657.8382455 | AF64: 693.0436562 | AG64: 716.1786404 | AH64: 783.5718551 | AI64: 817.7713969 | AJ64: 689.0201807 | AK64: 823.8066102 | AL64: 744.3429689 | AM64: 828.8359546 | AN64: 825.818348 | AO64: 689.0201807 | AP64: 943.5050066 | AQ64: 895.2233005 | AR64: 683.9908363 | AS64: 452.6409946 | AT64: 367.1421401 | AU64: 404.3592885 | AV64: 312.8252207 | AW64: 407.3768952 | AX64: 501.9285696 | AY64: 298.7430564 | AZ64: 330.9308605 | BA64: 330.9308605 | BB64: 364.1245335 | BC64: 286.6726299 | BD64: 255.4906947 | BE64: 217.2676774 | BF64: 191.1150866 | BG64: 664.8793277 | BH64: 250.4613504 | BI64: 119.6983964 | BJ64: 28.16432855 | BK64: 11.06455765 | BL64: 12.07042652 | BM64: 14.08216428 | BN64: 5.029344385 | BO64: 1.005868877 | BP64: 1.005868877 | BQ64: 20.11737754 | BR64: 1.005868877 | BS64: 0 | BT64: 1.005868877 | BU64: 1.005868877 | BV64: 0 | BW64: 0 | BX64: 0 | BY64: 0 | BZ64: 2.011737754 | CA64: 0 | CB64: 0 | CC64: 0 | CD64: 0 | CE64: 0 | CF64: 0 | CG64: 0 | CH64: 0 | CI64: 0 | CJ64: 0 | CK64: 0 | CL64: 0 | CM64: 0 | CN64: 0 | CO64: 0 | CP64: 0 | CQ64: 0 | CR64: 0 | CS64: 0 | CT64: 0 | CU64: 0 | CV64: 0 | CW64: 0 | CX64: 0 | CY64: 0 | CZ64: 0 | DA64: 0 | DB64: 0 | DC64: 0 | DD64: 0 | DE64: 0 | DF64: 0 | DG64: 0 | DH64: 0
C65: Pole Mounted ; < = 22kV ; > 60 kVA and < = 600 kVA ; Single Phase | D65: 40 | E65: 6.32 | F65: 12 | G65: 24 | H65: 26 | I65: 30 | J65: 29 | K65: 26 | L65: 18 | M65: 17 | N65: 19 | O65: 80 | P65: 55 | Q65: 47 | R65: 26 | S65: 17 | T65: 15 | U65: 10 | V65: 10 | W65: 8 | X65: 13 | Y65: 9 | Z65: 8 | AA65: 6 | AB65: 3 | AC65: 14 | AD65: 6 | AE65: 6 | AF65: 14 | AG65: 12 | AH65: 10 | AI65: 8 | AJ65: 12 | AK65: 20 | AL65: 21 | AM65: 11 | AN65: 9 | AO65: 17 | AP65: 15 | AQ65: 9 | AR65: 3 | AS65: 2 | AT65: 8 | AU65: 1 | AV65: 0 | AW65: 4 | AX65: 7 | AY65: 3 | AZ65: 7 | BA65: 2 | BB65: 4 | BC65: 3 | BD65: 0 | BE65: 2 | BF65: 0 | BG65: 2 | BH65: 4 | BI65: 2 | BJ65: 1 | BK65: 0 | BL65: 1 | BM65: 0 | BN65: 0 | BO65: 0 | BP65: 0 | BQ65: 1 | BR65: 0 | BS65: 0 | BT65: 0 | BU65: 0 | BV65: 0 | BW65: 0 | BX65: 0 | BY65: 0 | BZ65: 0 | CA65: 0 | CB65: 0 | CC65: 0 | CD65: 0 | CE65: 0 | CF65: 0 | CG65: 0 | CH65: 0 | CI65: 0 | CJ65: 0 | CK65: 0 | CL65: 0 | CM65: 0 | CN65: 0 | CO65: 0 | CP65: 0 | CQ65: 0 | CR65: 0 | CS65: 0 | CT65: 0 | CU65: 0 | CV65: 0 | CW65: 0 | CX65: 0 | CY65: 0 | CZ65: 0 | DA65: 0 | DB65: 0 | DC65: 0 | DD65: 0 | DE65: 0 | DF65: 0 | DG65: 0 | DH65: 0
C66: Pole Mounted ; < = 22kV ; > 600 kVA ; Single Phase | D66: 40 | E66: 6.32 | F66: 70.23045267 | G66: 38.6776406 | H66: 53.94513032 | I66: 66.15912209 | J66: 60.0521262 | K66: 60.0521262 | L66: 44.78463649 | M66: 49.87379973 | N66: 26.46364883 | O66: 28.49931413 | P66: 21.3744856 | Q66: 35.62414266 | R66: 30.53497942 | S66: 18.32098765 | T66: 25.44581619 | U66: 14.24965706 | V66: 20.35665295 | W66: 10.17832647 | X66: 11.19615912 | Y66: 2.035665295 | Z66: 7.124828532 | AA66: 3.053497942 | AB66: 3.053497942 | AC66: 3.053497942 | AD66: 0 | AE66: 3.053497942 | AF66: 2.035665295 | AG66: 1.017832647 | AH66: 4.07133059 | AI66: 3.053497942 | AJ66: 2.035665295 | AK66: 9.160493827 | AL66: 1.017832647 | AM66: 3.053497942 | AN66: 3.053497942 | AO66: 3.053497942 | AP66: 0 | AQ66: 0 | AR66: 1.017832647 | AS66: 0 | AT66: 0 | AU66: 0 | AV66: 0 | AW66: 0 | AX66: 0 | AY66: 0 | AZ66: 0 | BA66: 1.017832647 | BB66: 0 | BC66: 0 | BD66: 0 | BE66: 1.017832647 | BF66: 0 | BG66: 0 | BH66: 0 | BI66: 0 | BJ66: 0 | BK66: 0 | BL66: 0 | BM66: 0 | BN66: 0 | BO66: 0 | BP66: 0 | BQ66: 0 | BR66: 0 | BS66: 0 | BT66: 0 | BU66: 0 | BV66: 0 | BW66: 0 | BX66: 0 | BY66: 0 | BZ66: 0 | CA66: 0 | CB66: 0 | CC66: 0 | CD66: 0 | CE66: 0 | CF66: 0 | CG66: 0 | CH66: 0 | CI66: 0 | CJ66: 0 | CK66: 0 | CL66: 0 | CM66: 0 | CN66: 0 | CO66: 0 | CP66: 0 | CQ66: 0 | CR66: 0 | CS66: 0 | CT66: 0 | CU66: 0 | CV66: 0 | CW66: 0 | CX66: 0 | CY66: 0 | CZ66: 0 | DA66: 0 | DB66: 0 | DC66: 0 | DD66: 0 | DE66: 0 | DF66: 0 | DG66: 0 | DH66: 0
C67: Pole Mounted ; < = 22kV ; < = 60 kVA ; Multiple Phase | D67: 40 | E67: 6.32 | F67: 160.0360293 | G67: 274.0617001 | H67: 374.0842184 | I67: 505.1137174 | J67: 422.0950272 | K67: 337.0758867 | L67: 365.0821918 | M67: 441.0993057 | N67: 1228.276525 | O67: 551.1240758 | P67: 527.1186714 | Q67: 333.0749859 | R67: 309.0695815 | S67: 333.0749859 | T67: 320.0720585 | U67: 372.0837681 | V67: 488.1098893 | W67: 500.1125915 | X67: 522.1175455 | Y67: 471.1060612 | Z67: 621.1398386 | AA67: 589.1326328 | AB67: 772.1738412 | AC67: 817.1839745 | AD67: 866.1950084 | AE67: 750.1688872 | AF67: 719.1619065 | AG67: 733.1650591 | AH67: 778.1751923 | AI67: 609.1371364 | AJ67: 463.1042597 | AK67: 502.1130418 | AL67: 612.137812 | AM67: 602.1355601 | AN67: 648.1459186 | AO67: 594.1337587 | AP67: 718.1616814 | AQ67: 632.1423156 | AR67: 604.1360105 | AS67: 389.0875962 | AT67: 432.097279 | AU67: 383.0862451 | AV67: 326.0734096 | AW67: 273.0614749 | AX67: 302.0680053 | AY67: 241.0542691 | AZ67: 327.0736348 | BA67: 245.0551698 | BB67: 330.0743104 | BC67: 281.0632764 | BD67: 268.060349 | BE67: 272.0612498 | BF67: 267.0601239 | BG67: 360.0810659 | BH67: 235.052918 | BI67: 106.0238694 | BJ67: 22.00495403 | BK67: 24.00540439 | BL67: 16.00360293 | BM67: 18.00405329 | BN67: 13.00292738 | BO67: 5.001125915 | BP67: 3.000675549 | BQ67: 33.00743104 | BR67: 1.000225183 | BS67: 0 | BT67: 2.000450366 | BU67: 1.000225183 | BV67: 3.000675549 | BW67: 0 | BX67: 2.000450366 | BY67: 0 | BZ67: 2.000450366 | CA67: 0 | CB67: 0 | CC67: 0 | CD67: 1.000225183 | CE67: 0 | CF67: 0 | CG67: 0 | CH67: 0 | CI67: 0 | CJ67: 1.000225183 | CK67: 0 | CL67: 0 | CM67: 0 | CN67: 0 | CO67: 0 | CP67: 0 | CQ67: 0 | CR67: 0 | CS67: 0 | CT67: 0 | CU67: 0 | CV67: 0 | CW67: 0 | CX67: 0 | CY67: 0 | CZ67: 0 | DA67: 0 | DB67: 0 | DC67: 0 | DD67: 0 | DE67: 0 | DF67: 0 | DG67: 0 | DH67: 0
C68: Pole Mounted ; < = 22kV ; > 60 kVA and < = 600 kVA ; Multiple Phase | D68: 40 | E68: 6.32 | F68: 205 | G68: 704 | H68: 783 | I68: 1052 | J68: 928 | K68: 907 | L68: 778 | M68: 805 | N68: 1452 | O68: 1691 | P68: 1485 | Q68: 838 | R68: 733 | S68: 662 | T68: 535 | U68: 464 | V68: 478 | W68: 400 | X68: 450 | Y68: 413 | Z68: 492 | AA68: 506 | AB68: 477 | AC68: 542 | AD68: 469 | AE68: 312 | AF68: 334 | AG68: 342 | AH68: 383 | AI68: 290 | AJ68: 253 | AK68: 221 | AL68: 289 | AM68: 342 | AN68: 284 | AO68: 271 | AP68: 381 | AQ68: 384 | AR68: 342 | AS68: 188 | AT68: 204 | AU68: 240 | AV68: 212 | AW68: 198 | AX68: 186 | AY68: 148 | AZ68: 152 | BA68: 139 | BB68: 159 | BC68: 137 | BD68: 113 | BE68: 96 | BF68: 115 | BG68: 264 | BH68: 78 | BI68: 43 | BJ68: 9 | BK68: 11 | BL68: 20 | BM68: 11 | BN68: 17 | BO68: 8 | BP68: 2 | BQ68: 106 | BR68: 2 | BS68: 4 | BT68: 2 | BU68: 3 | BV68: 1 | BW68: 4 | BX68: 1 | BY68: 2 | BZ68: 6 | CA68: 0 | CB68: 0 | CC68: 1 | CD68: 0 | CE68: 1 | CF68: 2 | CG68: 0 | CH68: 0 | CI68: 0 | CJ68: 0 | CK68: 1 | CL68: 0 | CM68: 0 | CN68: 0 | CO68: 0 | CP68: 0 | CQ68: 0 | CR68: 0 | CS68: 0 | CT68: 0 | CU68: 0 | CV68: 0 | CW68: 0 | CX68: 0 | CY68: 0 | CZ68: 0 | DA68: 0 | DB68: 0 | DC68: 0 | DD68: 0 | DE68: 0 | DF68: 0 | DG68: 0 | DH68: 0
C69: Pole Mounted ; < = 22kV ; > 600 kVA ; Multiple Phase | D69: 40 | E69: 6.32 | F69: 108.2419716 | G69: 108.2419716 | H69: 72.16131441 | I69: 75.16803585 | J69: 75.16803585 | K69: 84.18820015 | L69: 63.14115011 | M69: 82.18371919 | N69: 70.15683346 | O69: 66.14787155 | P69: 70.15683346 | Q69: 75.16803585 | R69: 95.21284541 | S69: 49.10978342 | T69: 52.11650485 | U69: 23.05153099 | V69: 39.08737864 | W69: 18.0403286 | X69: 6.013442868 | Y69: 11.02464526 | Z69: 33.07393577 | AA69: 14.03136669 | AB69: 7.015683346 | AC69: 10.02240478 | AD69: 4.008961912 | AE69: 1.002240478 | AF69: 1.002240478 | AG69: 1.002240478 | AH69: 2.004480956 | AI69: 0 | AJ69: 0 | AK69: 3.006721434 | AL69: 0 | AM69: 3.006721434 | AN69: 3.006721434 | AO69: 3.006721434 | AP69: 4.008961912 | AQ69: 3.006721434 | AR69: 1.002240478 | AS69: 0 | AT69: 0 | AU69: 0 | AV69: 0 | AW69: 1.002240478 | AX69: 0 | AY69: 0 | AZ69: 1.002240478 | BA69: 2.004480956 | BB69: 0 | BC69: 0 | BD69: 1.002240478 | BE69: 0 | BF69: 0 | BG69: 0 | BH69: 0 | BI69: 0 | BJ69: 0 | BK69: 0 | BL69: 0 | BM69: 0 | BN69: 0 | BO69: 0 | BP69: 0 | BQ69: 0 | BR69: 0 | BS69: 0 | BT69: 0 | BU69: 0 | BV69: 0 | BW69: 0 | BX69: 0 | BY69: 0 | BZ69: 0 | CA69: 0 | CB69: 0 | CC69: 0 | CD69: 0 | CE69: 0 | CF69: 0 | CG69: 0 | CH69: 0 | CI69: 0 | CJ69: 0 | CK69: 0 | CL69: 0 | CM69: 0 | CN69: 0 | CO69: 0 | CP69: 0 | CQ69: 0 | CR69: 0 | CS69: 0 | CT69: 0 | CU69: 0 | CV69: 0 | CW69: 0 | CX69: 0 | CY69: 0 | CZ69: 0 | DA69: 0 | DB69: 0 | DC69: 0 | DD69: 0 | DE69: 0 | DF69: 0 | DG69: 0 | DH69: 0
C70: Kiosk Mounted ; < = 22kV ; < = 60 kVA ; Single Phase | D70: 40 | E70: 6.32 | F70: 0 | G70: 1.009708738 | H70: 1.009708738 | I70: 1.009708738 | J70: 0 | K70: 1.009708738 | L70: 1.009708738 | M70: 1.009708738 | N70: 17.16504854 | O70: 3.029126214 | P70: 2.019417476 | Q70: 6.058252427 | R70: 3.029126214 | S70: 2.019417476 | T70: 0 | U70: 3.029126214 | V70: 5.048543689 | W70: 2.019417476 | X70: 2.019417476 | Y70: 1.009708738 | Z70: 6.058252427 | AA70: 3.029126214 | AB70: 5.048543689 | AC70: 1.009708738 | AD70: 1.009708738 | AE70: 1.009708738 | AF70: 2.019417476 | AG70: 1.009708738 | AH70: 6.058252427 | AI70: 3.029126214 | AJ70: 3.029126214 | AK70: 1.009708738 | AL70: 0 | AM70: 0 | AN70: 3.029126214 | AO70: 1.009708738 | AP70: 2.019417476 | AQ70: 0 | AR70: 1.009708738 | AS70: 0 | AT70: 2.019417476 | AU70: 1.009708738 | AV70: 1.009708738 | AW70: 1.009708738 | AX70: 1.009708738 | AY70: 0 | AZ70: 1.009708738 | BA70: 1.009708738 | BB70: 0 | BC70: 0 | BD70: 0 | BE70: 1.009708738 | BF70: 0 | BG70: 0 | BH70: 1.009708738 | BI70: 0 | BJ70: 0 | BK70: 0 | BL70: 0 | BM70: 0 | BN70: 0 | BO70: 0 | BP70: 0 | BQ70: 1.009708738 | BR70: 0 | BS70: 0 | BT70: 0 | BU70: 0 | BV70: 0 | BW70: 0 | BX70: 0 | BY70: 0 | BZ70: 0 | CA70: 0 | CB70: 0 | CC70: 0 | CD70: 0 | CE70: 0 | CF70: 0 | CG70: 0 | CH70: 0 | CI70: 0 | CJ70: 0 | CK70: 0 | CL70: 0 | CM70: 0 | CN70: 0 | CO70: 0 | CP70: 0 | CQ70: 0 | CR70: 0 | CS70: 0 | CT70: 0 | CU70: 0 | CV70: 0 | CW70: 0 | CX70: 0 | CY70: 0 | CZ70: 0 | DA70: 0 | DB70: 0 | DC70: 0 | DD70: 0 | DE70: 0 | DF70: 0 | DG70: 0 | DH70: 0
C71: Kiosk Mounted ; < = 22kV ; > 60 kVA and < = 600 kVA ; Single Phase | D71: 40 | E71: 6.32 | F71: 0 | G71: 0 | H71: 0 | I71: 0 | J71: 0 | K71: 0 | L71: 0 | M71: 0 | N71: 0 | O71: 0 | P71: 0 | Q71: 0 | R71: 0 | S71: 0 | T71: 0 | U71: 0 | V71: 0 | W71: 0 | X71: 0 | Y71: 0 | Z71: 0 | AA71: 0 | AB71: 0 | AC71: 0 | AD71: 0 | AE71: 0 | AF71: 0 | AG71: 0 | AH71: 0 | AI71: 0 | AJ71: 0 | AK71: 0 | AL71: 0 | AM71: 0 | AN71: 0 | AO71: 0 | AP71: 0 | AQ71: 0 | AR71: 0 | AS71: 0 | AT71: 0 | AU71: 0 | AV71: 0 | AW71: 0 | AX71: 0 | AY71: 0 | AZ71: 0 | BA71: 0 | BB71: 0 | BC71: 0 | BD71: 0 | BE71: 0 | BF71: 0 | BG71: 0 | BH71: 0 | BI71: 0 | BJ71: 0 | BK71: 0 | BL71: 0 | BM71: 0 | BN71: 0 | BO71: 0 | BP71: 0 | BQ71: 0 | BR71: 0 | BS71: 0 | BT71: 0 | BU71: 0 | BV71: 0 | BW71: 0 | BX71: 0 | BY71: 0 | BZ71: 0 | CA71: 0 | CB71: 0 | CC71: 0 | CD71: 0 | CE71: 0 | CF71: 0 | CG71: 0 | CH71: 0 | CI71: 0 | CJ71: 0 | CK71: 0 | CL71: 0 | CM71: 0 | CN71: 0 | CO71: 0 | CP71: 0 | CQ71: 0 | CR71: 0 | CS71: 0 | CT71: 0 | CU71: 0 | CV71: 0 | CW71: 0 | CX71: 0 | CY71: 0 | CZ71: 0 | DA71: 0 | DB71: 0 | DC71: 0 | DD71: 0 | DE71: 0 | DF71: 0 | DG71: 0 | DH71: 0
C72: Kiosk Mounted ; < = 22kV ; > 600 kVA ; Single Phase | D72: 40 | E72: 6.32 | F72: 0 | G72: 0 | H72: 0 | I72: 1 | J72: 0 | K72: 0 | L72: 0 | M72: 0 | N72: 0 | O72: 0 | P72: 0 | Q72: 1 | R72: 0 | S72: 0 | T72: 0 | U72: 0 | V72: 0 | W72: 0 | X72: 1 | Y72: 0 | Z72: 0 | AA72: 0 | AB72: 0 | AC72: 0 | AD72: 0 | AE72: 0 | AF72: 0 | AG72: 0 | AH72: 0 | AI72: 0 | AJ72: 0 | AK72: 0 | AL72: 0 | AM72: 0 | AN72: 0 | AO72: 0 | AP72: 0 | AQ72: 0 | AR72: 0 | AS72: 0 | AT72: 0 | AU72: 1 | AV72: 1 | AW72: 0 | AX72: 0 | AY72: 0 | AZ72: 0 | BA72: 0 | BB72: 0 | BC72: 0 | BD72: 0 | BE72: 0 | BF72: 0 | BG72: 0 | BH72: 0 | BI72: 0 | BJ72: 0 | BK72: 0 | BL72: 0 | BM72: 0 | BN72: 0 | BO72: 0 | BP72: 0 | BQ72: 0 | BR72: 0 | BS72: 0 | BT72: 0 | BU72: 0 | BV72: 0 | BW72: 0 | BX72: 0 | BY72: 0 | BZ72: 0 | CA72: 0 | CB72: 0 | CC72: 0 | CD72: 0 | CE72: 0 | CF72: 0 | CG72: 0 | CH72: 0 | CI72: 0 | CJ72: 0 | CK72: 0 | CL72: 0 | CM72: 0 | CN72: 0 | CO72: 0 | CP72: 0 | CQ72: 0 | CR72: 0 | CS72: 0 | CT72: 0 | CU72: 0 | CV72: 0 | CW72: 0 | CX72: 0 | CY72: 0 | CZ72: 0 | DA72: 0 | DB72: 0 | DC72: 0 | DD72: 0 | DE72: 0 | DF72: 0 | DG72: 0 | DH72: 0
C73: Kiosk Mounted ; < = 22kV ; < = 60 kVA ; Multiple Phase | D73: 40 | E73: 6.32 | F73: 1.005012531 | G73: 3.015037594 | H73: 11.05513784 | I73: 12.06015038 | J73: 7.035087719 | K73: 12.06015038 | L73: 13.06516291 | M73: 12.06015038 | N73: 16.0802005 | O73: 12.06015038 | P73: 24.12030075 | Q73: 18.09022556 | R73: 22.11027569 | S73: 7.035087719 | T73: 10.05012531 | U73: 11.05513784 | V73: 10.05012531 | W73: 7.035087719 | X73: 7.035087719 | Y73: 5.025062657 | Z73: 7.035087719 | AA73: 0 | AB73: 6.030075188 | AC73: 5.025062657 | AD73: 2.010025063 | AE73: 2.010025063 | AF73: 5.025062657 | AG73: 6.030075188 | AH73: 9.045112782 | AI73: 3.015037594 | AJ73: 7.035087719 | AK73: 7.035087719 | AL73: 8.040100251 | AM73: 19.0952381 | AN73: 1.005012531 | AO73: 7.035087719 | AP73: 6.030075188 | AQ73: 7.035087719 | AR73: 0 | AS73: 3.015037594 | AT73: 2.010025063 | AU73: 2.010025063 | AV73: 5.025062657 | AW73: 2.010025063 | AX73: 2.010025063 | AY73: 4.020050125 | AZ73: 5.025062657 | BA73: 3.015037594 | BB73: 1.005012531 | BC73: 3.015037594 | BD73: 2.010025063 | BE73: 5.025062657 | BF73: 2.010025063 | BG73: 4.020050125 | BH73: 3.015037594 | BI73: 2.010025063 | BJ73: 3.015037594 | BK73: 2.010025063 | BL73: 4.020050125 | BM73: 3.015037594 | BN73: 0 | BO73: 2.010025063 | BP73: 1.005012531 | BQ73: 1.005012531 | BR73: 1.005012531 | BS73: 0 | BT73: 1.005012531 | BU73: 0 | BV73: 3.015037594 | BW73: 0 | BX73: 1.005012531 | BY73: 0 | BZ73: 0 | CA73: 0 | CB73: 0 | CC73: 0 | CD73: 0 | CE73: 0 | CF73: 0 | CG73: 0 | CH73: 0 | CI73: 0 | CJ73: 0 | CK73: 0 | CL73: 0 | CM73: 0 | CN73: 0 | CO73: 0 | CP73: 0 | CQ73: 0 | CR73: 0 | CS73: 0 | CT73: 0 | CU73: 0 | CV73: 0 | CW73: 0 | CX73: 0 | CY73: 0 | CZ73: 0 | DA73: 0 | DB73: 0 | DC73: 0 | DD73: 0 | DE73: 0 | DF73: 0 | DG73: 0 | DH73: 0
C74: Kiosk Mounted ; < = 22kV ; > 60 kVA and < = 600 kVA ; Multiple Phase | D74: 40 | E74: 6.32 | F74: 16.01872075 | G74: 84.09828393 | H74: 93.10881435 | I74: 129.150936 | J74: 192.224649 | K74: 255.2983619 | L74: 193.225819 | M74: 220.2574103 | N74: 225.2632605 | O74: 270.3159126 | P74: 405.473869 | Q74: 327.3826053 | R74: 368.4305772 | S74: 342.400156 | T74: 300.351014 | U74: 191.2234789 | V74: 112.1310452 | W74: 90.10530421 | X74: 99.11583463 | Y74: 71.08307332 | Z74: 67.07839314 | AA74: 61.07137285 | AB74: 63.07371295 | AC74: 101.1181747 | AD74: 104.1216849 | AE74: 89.10413417 | AF74: 71.08307332 | AG74: 63.07371295 | AH74: 55.06435257 | AI74: 49.05733229 | AJ74: 29.03393136 | AK74: 24.02808112 | AL74: 27.03159126 | AM74: 18.02106084 | AN74: 31.03627145 | AO74: 28.03276131 | AP74: 42.04914197 | AQ74: 43.05031201 | AR74: 19.02223089 | AS74: 10.01170047 | AT74: 16.01872075 | AU74: 5.005850234 | AV74: 13.01521061 | AW74: 10.01170047 | AX74: 9.010530421 | AY74: 12.01404056 | AZ74: 2.002340094 | BA74: 10.01170047 | BB74: 12.01404056 | BC74: 7.008190328 | BD74: 2.002340094 | BE74: 12.01404056 | BF74: 2.002340094 | BG74: 7.008190328 | BH74: 3.00351014 | BI74: 11.01287051 | BJ74: 0 | BK74: 3.00351014 | BL74: 1.001170047 | BM74: 1.001170047 | BN74: 0 | BO74: 0 | BP74: 0 | BQ74: 0 | BR74: 0 | BS74: 0 | BT74: 0 | BU74: 0 | BV74: 0 | BW74: 0 | BX74: 0 | BY74: 0 | BZ74: 4.004680187 | CA74: 0 | CB74: 0 | CC74: 0 | CD74: 0 | CE74: 0 | CF74: 1.001170047 | CG74: 0 | CH74: 0 | CI74: 0 | CJ74: 8.009360374 | CK74: 0 | CL74: 0 | CM74: 0 | CN74: 0 | CO74: 0 | CP74: 0 | CQ74: 0 | CR74: 0 | CS74: 0 | CT74: 0 | CU74: 1.001170047 | CV74: 0 | CW74: 0 | CX74: 0 | CY74: 0 | CZ74: 0 | DA74: 0 | DB74: 0 | DC74: 0 | DD74: 0 | DE74: 0 | DF74: 0 | DG74: 0 | DH74: 0
C75: Kiosk Mounted ; < = 22kV ; > 600 kVA ; Multiple Phase | D75: 40 | E75: 6.32 | F75: 36.19155697 | G75: 55.83840218 | H75: 68.246936 | I75: 73.41715842 | J75: 69.28098048 | K75: 85.82569224 | L75: 77.55333636 | M75: 92.02995915 | N75: 147.8683613 | O75: 142.6981389 | P75: 194.4003631 | Q75: 162.3449841 | R75: 85.82569224 | S75: 137.5279165 | T75: 98.23422606 | U75: 78.58738084 | V75: 56.87244666 | W75: 45.49795733 | X75: 45.49795733 | Y75: 36.19155697 | Z75: 41.36177939 | AA75: 47.5660463 | AB75: 57.90649115 | AC75: 21.71493418 | AD75: 32.05537903 | AE75: 5.170222424 | AF75: 10.34044485 | AG75: 16.54471176 | AH75: 16.54471176 | AI75: 31.02133454 | AJ75: 4.136177939 | AK75: 17.57875624 | AL75: 16.54471176 | AM75: 20.6808897 | AN75: 14.47662279 | AO75: 11.37448933 | AP75: 7.238311394 | AQ75: 10.34044485 | AR75: 4.136177939 | AS75: 5.170222424 | AT75: 20.6808897 | AU75: 10.34044485 | AV75: 5.170222424 | AW75: 6.204266909 | AX75: 0 | AY75: 7.238311394 | AZ75: 2.06808897 | BA75: 3.102133454 | BB75: 1.034044485 | BC75: 2.06808897 | BD75: 4.136177939 | BE75: 11.37448933 | BF75: 2.06808897 | BG75: 4.136177939 | BH75: 3.102133454 | BI75: 3.102133454 | BJ75: 0 | BK75: 0 | BL75: 2.06808897 | BM75: 0 | BN75: 0 | BO75: 3.102133454 | BP75: 0 | BQ75: 0 | BR75: 0 | BS75: 0 | BT75: 0 | BU75: 0 | BV75: 3.102133454 | BW75: 0 | BX75: 0 | BY75: 0 | BZ75: 1.034044485 | CA75: 0 | CB75: 0 | CC75: 0 | CD75: 0 | CE75: 1.034044485 | CF75: 0 | CG75: 0 | CH75: 0 | CI75: 0 | CJ75: 0 | CK75: 0 | CL75: 0 | CM75: 0 | CN75: 0 | CO75: 0 | CP75: 0 | CQ75: 0 | CR75: 0 | CS75: 0 | CT75: 0 | CU75: 0 | CV75: 0 | CW75: 0 | CX75: 0 | CY75: 0 | CZ75: 0 | DA75: 0 | DB75: 0 | DC75: 0 | DD75: 0 | DE75: 0 | DF75: 0 | DG75: 0 | DH75: 0
C76: Ground Outdoor / Indoor Chamber Mounted; ˂ 22 kV ; < = 60 kVA ; Single Phase | D76: 0 | E76: 0 | F76: 0 | G76: 0 | H76: 0 | I76: 0 | J76: 0 | K76: 0 | L76: 0 | M76: 0 | N76: 0 | O76: 0 | P76: 0 | Q76: 0 | R76: 0 | S76: 0 | T76: 0 | U76: 0 | V76: 0 | W76: 0 | X76: 0 | Y76: 0 | Z76: 0 | AA76: 0 | AB76: 0 | AC76: 0 | AD76: 0 | AE76: 0 | AF76: 0 | AG76: 0 | AH76: 0 | AI76: 0 | AJ76: 2 | AK76: 0 | AL76: 0 | AM76: 0 | AN76: 0 | AO76: 0 | AP76: 0 | AQ76: 0 | AR76: 0 | AS76: 0 | AT76: 0 | AU76: 0 | AV76: 0 | AW76: 0 | AX76: 0 | AY76: 0 | AZ76: 0 | BA76: 0 | BB76: 0 | BC76: 0 | BD76: 0 | BE76: 0 | BF76: 0 | BG76: 0 | BH76: 0 | BI76: 0 | BJ76: 0 | BK76: 0 | BL76: 0 | BM76: 0 | BN76: 0 | BO76: 0 | BP76: 0 | BQ76: 0 | BR76: 0 | BS76: 0 | BT76: 0 | BU76: 0 | BV76: 0 | BW76: 0 | BX76: 0 | BY76: 0 | BZ76: 0 | CA76: 0 | CB76: 0 | CC76: 0 | CD76: 0 | CE76: 0 | CF76: 0 | CG76: 0 | CH76: 0 | CI76: 0 | CJ76: 0 | CK76: 0 | CL76: 0 | CM76: 0 | CN76: 0 | CO76: 0 | CP76: 0 | CQ76: 0 | CR76: 0 | CS76: 0 | CT76: 0 | CU76: 0 | CV76: 0 | CW76: 0 | CX76: 0 | CY76: 0 | CZ76: 0 | DA76: 0 | DB76: 0 | DC76: 0 | DD76: 0 | DE76: 0 | DF76: 0 | DG76: 0 | DH76: 0
C77: Ground Outdoor / Indoor Chamber Mounted; ˂ 22 kV ; > 60 kVA and < = 600 kVA ; Single Phase | D77: 0 | E77: 0 | F77: 0 | G77: 0 | H77: 0 | I77: 0 | J77: 0 | K77: 0 | L77: 0 | M77: 0 | N77: 0 | O77: 0 | P77: 0 | Q77: 0 | R77: 0 | S77: 0 | T77: 0 | U77: 0 | V77: 0 | W77: 0 | X77: 0 | Y77: 0 | Z77: 0 | AA77: 0 | AB77: 0 | AC77: 0 | AD77: 0 | AE77: 0 | AF77: 0 | AG77: 0 | AH77: 0 | AI77: 0 | AJ77: 0 | AK77: 0 | AL77: 0 | AM77: 0 | AN77: 0 | AO77: 0 | AP77: 0 | AQ77: 0 | AR77: 0 | AS77: 0 | AT77: 0 | AU77: 0 | AV77: 0 | AW77: 0 | AX77: 0 | AY77: 0 | AZ77: 0 | BA77: 0 | BB77: 0 | BC77: 0 | BD77: 0 | BE77: 0 | BF77: 0 | BG77: 0 | BH77: 0 | BI77: 0 | BJ77: 0 | BK77: 0 | BL77: 0 | BM77: 0 | BN77: 0 | BO77: 0 | BP77: 0 | BQ77: 0 | BR77: 0 | BS77: 0 | BT77: 0 | BU77: 0 | BV77: 0 | BW77: 0 | BX77: 0 | BY77: 0 | BZ77: 0 | CA77: 0 | CB77: 0 | CC77: 0 | CD77: 0 | CE77: 0 | CF77: 0 | CG77: 0 | CH77: 0 | CI77: 0 | CJ77: 0 | CK77: 0 | CL77: 0 | CM77: 0 | CN77: 0 | CO77: 0 | CP77: 0 | CQ77: 0 | CR77: 0 | CS77: 0 | CT77: 0 | CU77: 0 | CV77: 0 | CW77: 0 | CX77: 0 | CY77: 0 | CZ77: 0 | DA77: 0 | DB77: 0 | DC77: 0 | DD77: 0 | DE77: 0 | DF77: 0 | DG77: 0 | DH77: 0
C78: Ground Outdoor / Indoor Chamber Mounted; ˂ 22 kV ; > 600 kVA ; Single Phase | D78: 0 | E78: 0 | F78: 0 | G78: 0 | H78: 0 | I78: 0 | J78: 0 | K78: 0 | L78: 0 | M78: 0 | N78: 0 | O78: 0 | P78: 0 | Q78: 0 | R78: 0 | S78: 0 | T78: 0 | U78: 0 | V78: 0 | W78: 0 | X78: 0 | Y78: 0 | Z78: 0 | AA78: 0 | AB78: 0 | AC78: 0 | AD78: 0 | AE78: 0 | AF78: 0 | AG78: 0 | AH78: 0 | AI78: 0 | AJ78: 0 | AK78: 0 | AL78: 0 | AM78: 0 | AN78: 0 | AO78: 0 | AP78: 0 | AQ78: 0 | AR78: 0 | AS78: 0 | AT78: 0 | AU78: 0 | AV78: 0 | AW78: 0 | AX78: 0 | AY78: 0 | AZ78: 0 | BA78: 0 | BB78: 0 | BC78: 0 | BD78: 0 | BE78: 0 | BF78: 0 | BG78: 0 | BH78: 0 | BI78: 0 | BJ78: 0 | BK78: 0 | BL78: 0 | BM78: 0 | BN78: 0 | BO78: 0 | BP78: 0 | BQ78: 0 | BR78: 0 | BS78: 0 | BT78: 0 | BU78: 0 | BV78: 0 | BW78: 0 | BX78: 0 | BY78: 0 | BZ78: 0 | CA78: 0 | CB78: 0 | CC78: 0 | CD78: 0 | CE78: 0 | CF78: 0 | CG78: 0 | CH78: 0 | CI78: 0 | CJ78: 0 | CK78: 0 | CL78: 0 | CM78: 0 | CN78: 0 | CO78: 0 | CP78: 0 | CQ78: 0 | CR78: 0 | CS78: 0 | CT78: 0 | CU78: 0 | CV78: 0 | CW78: 0 | CX78: 0 | CY78: 0 | CZ78: 0 | DA78: 0 | DB78: 0 | DC78: 0 | DD78: 0 | DE78: 0 | DF78: 0 | DG78: 0 | DH78: 0
C79: Ground Outdoor / Indoor Chamber Mounted; ˂ 22 kV ; < = 60 kVA ; Multiple Phase | D79: 0 | E79: 0 | F79: 0 | G79: 0 | H79: 0 | I79: 0 | J79: 0 | K79: 0 | L79: 0 | M79: 0 | N79: 0 | O79: 0 | P79: 0 | Q79: 0 | R79: 0 | S79: 0 | T79: 0 | U79: 0 | V79: 0 | W79: 0 | X79: 0 | Y79: 0 | Z79: 0 | AA79: 0 | AB79: 0 | AC79: 0 | AD79: 0 | AE79: 0 | AF79: 0 | AG79: 0 | AH79: 0 | AI79: 0 | AJ79: 0 | AK79: 0 | AL79: 0 | AM79: 0 | AN79: 0 | AO79: 0 | AP79: 0 | AQ79: 0 | AR79: 0 | AS79: 0 | AT79: 0 | AU79: 0 | AV79: 0 | AW79: 0 | AX79: 0 | AY79: 0 | AZ79: 0 | BA79: 0 | BB79: 0 | BC79: 0 | BD79: 0 | BE79: 0 | BF79: 0 | BG79: 0 | BH79: 0 | BI79: 0 | BJ79: 0 | BK79: 0 | BL79: 0 | BM79: 0 | BN79: 0 | BO79: 0 | BP79: 0 | BQ79: 0 | BR79: 0 | BS79: 0 | BT79: 0 | BU79: 0 | BV79: 0 | BW79: 0 | BX79: 0 | BY79: 0 | BZ79: 0 | CA79: 0 | CB79: 0 | CC79: 0 | CD79: 0 | CE79: 0 | CF79: 0 | CG79: 0 | CH79: 0 | CI79: 0 | CJ79: 0 | CK79: 0 | CL79: 0 | CM79: 0 | CN79: 0 | CO79: 0 | CP79: 0 | CQ79: 0 | CR79: 0 | CS79: 0 | CT79: 0 | CU79: 0 | CV79: 0 | CW79: 0 | CX79: 0 | CY79: 0 | CZ79: 0 | DA79: 0 | DB79: 0 | DC79: 0 | DD79: 0 | DE79: 0 | DF79: 0 | DG79: 0 | DH79: 0
C80: Ground Outdoor / Indoor Chamber Mounted; ˂ 22 kV ; > 60 kVA and < = 600 kVA ; Multiple Phase | D80: 40 | E80: 6.32 | F80: 0 | G80: 0 | H80: 0 | I80: 0 | J80: 0 | K80: 0 | L80: 0 | M80: 0 | N80: 0 | O80: 0 | P80: 0 | Q80: 0 | R80: 1 | S80: 0 | T80: 1 | U80: 1 | V80: 0 | W80: 0 | X80: 0 | Y80: 0 | Z80: 0 | AA80: 0 | AB80: 0 | AC80: 0 | AD80: 0 | AE80: 0 | AF80: 0 | AG80: 0 | AH80: 0 | AI80: 1 | AJ80: 0 | AK80: 0 | AL80: 0 | AM80: 0 | AN80: 0 | AO80: 0 | AP80: 1 | AQ80: 0 | AR80: 0 | AS80: 0 | AT80: 0 | AU80: 0 | AV80: 0 | AW80: 0 | AX80: 0 | AY80: 0 | AZ80: 0 | BA80: 0 | BB80: 0 | BC80: 0 | BD80: 0 | BE80: 0 | BF80: 0 | BG80: 0 | BH80: 0 | BI80: 0 | BJ80: 0 | BK80: 0 | BL80: 0 | BM80: 0 | BN80: 0 | BO80: 0 | BP80: 0 | BQ80: 0 | BR80: 0 | BS80: 0 | BT80: 0 | BU80: 0 | BV80: 0 | BW80: 0 | BX80: 0 | BY80: 0 | BZ80: 0 | CA80: 0 | CB80: 0 | CC80: 0 | CD80: 0 | CE80: 0 | CF80: 0 | CG80: 0 | CH80: 0 | CI80: 0 | CJ80: 0 | CK80: 0 | CL80: 0 | CM80: 0 | CN80: 0 | CO80: 0 | CP80: 0 | CQ80: 0 | CR80: 0 | CS80: 0 | CT80: 0 | CU80: 0 | CV80: 0 | CW80: 0 | CX80: 0 | CY80: 0 | CZ80: 0 | DA80: 0 | DB80: 0 | DC80: 0 | DD80: 0 | DE80: 0 | DF80: 0 | DG80: 0 | DH80: 0
C81: Ground Outdoor / Indoor Chamber Mounted; ˂ 22 kV ; > 600 kVA ; Multiple Phase | D81: 40 | E81: 6.32 | F81: 0 | G81: 0 | H81: 0 | I81: 0 | J81: 0 | K81: 0 | L81: 5 | M81: 2 | N81: 0 | O81: 0 | P81: 1 | Q81: 1 | R81: 1 | S81: 0 | T81: 0 | U81: 0 | V81: 0 | W81: 2 | X81: 1 | Y81: 0 | Z81: 2 | AA81: 2 | AB81: 0 | AC81: 3 | AD81: 0 | AE81: 0 | AF81: 0 | AG81: 0 | AH81: 0 | AI81: 0 | AJ81: 0 | AK81: 1 | AL81: 0 | AM81: 2 | AN81: 2 | AO81: 0 | AP81: 3 | AQ81: 0 | AR81: 0 | AS81: 2 | AT81: 3 | AU81: 0 | AV81: 2 | AW81: 0 | AX81: 0 | AY81: 2 | AZ81: 0 | BA81: 0 | BB81: 0 | BC81: 0 | BD81: 0 | BE81: 2 | BF81: 0 | BG81: 0 | BH81: 2 | BI81: 0 | BJ81: 1 | BK81: 0 | BL81: 0 | BM81: 0 | BN81: 0 | BO81: 0 | BP81: 0 | BQ81: 0 | BR81: 0 | BS81: 0 | BT81: 0 | BU81: 0 | BV81: 0 | BW81: 0 | BX81: 0 | BY81: 0 | BZ81: 2 | CA81: 0 | CB81: 0 | CC81: 0 | CD81: 0 | CE81: 0 | CF81: 0 | CG81: 0 | CH81: 0 | CI81: 0 | CJ81: 0 | CK81: 0 | CL81: 0 | CM81: 0 | CN81: 0 | CO81: 0 | CP81: 0 | CQ81: 0 | CR81: 0 | CS81: 0 | CT81: 0 | CU81: 0 | CV81: 0 | CW81: 0 | CX81: 0 | CY81: 0 | CZ81: 0 | DA81: 0 | DB81: 0 | DC81: 0 | DD81: 0 | DE81: 0 | DF81: 0 | DG81: 0 | DH81: 0
C82: Ground Outdoor / Indoor Chamber Mounted; > = 22 kV & < = 33 kV ; < = 15 MVA | D82: 60 | E82: 7.75 | F82: 0 | G82: 1 | H82: 0 | I82: 0 | J82: 1 | K82: 5 | L82: 1 | M82: 2 | N82: 0 | O82: 1 | P82: 2 | Q82: 1 | R82: 3 | S82: 1 | T82: 3 | U82: 0 | V82: 1 | W82: 0 | X82: 3 | Y82: 4 | Z82: 4 | AA82: 1 | AB82: 0 | AC82: 4 | AD82: 2 | AE82: 2 | AF82: 2 | AG82: 0 | AH82: 0 | AI82: 0 | AJ82: 4 | AK82: 3 | AL82: 1 | AM82: 4 | AN82: 3 | AO82: 0 | AP82: 2 | AQ82: 2 | AR82: 0 | AS82: 4 | AT82: 0 | AU82: 1 | AV82: 1 | AW82: 8 | AX82: 0 | AY82: 2 | AZ82: 1 | BA82: 7 | BB82: 1 | BC82: 2 | BD82: 2 | BE82: 9 | BF82: 3 | BG82: 3 | BH82: 2 | BI82: 2 | BJ82: 2 | BK82: 0 | BL82: 0 | BM82: 2 | BN82: 0 | BO82: 0 | BP82: 0 | BQ82: 0 | BR82: 0 | BS82: 1 | BT82: 1 | BU82: 0 | BV82: 0 | BW82: 3 | BX82: 0 | BY82: 0 | BZ82: 0 | CA82: 0 | CB82: 5 | CC82: 1 | CD82: 0 | CE82: 0 | CF82: 0 | CG82: 0 | CH82: 0 | CI82: 0 | CJ82: 0 | CK82: 0 | CL82: 0 | CM82: 0 | CN82: 0 | CO82: 2 | CP82: 0 | CQ82: 0 | CR82: 0 | CS82: 0 | CT82: 0 | CU82: 0 | CV82: 0 | CW82: 0 | CX82: 0 | CY82: 0 | CZ82: 0 | DA82: 0 | DB82: 0 | DC82: 0 | DD82: 0 | DE82: 0 | DF82: 0 | DG82: 0 | DH82: 0
C83: Ground Outdoor / Indoor Chamber Mounted; > = 22 kV & < = 33 kV ; > 15 MVA and < = 40 MVA | D83: 60 | E83: 7.75 | F83: 0 | G83: 0 | H83: 0 | I83: 0 | J83: 0 | K83: 2 | L83: 2 | M83: 0 | N83: 0 | O83: 0 | P83: 0 | Q83: 2 | R83: 0 | S83: 0 | T83: 5 | U83: 0 | V83: 0 | W83: 0 | X83: 0 | Y83: 1 | Z83: 2 | AA83: 0 | AB83: 0 | AC83: 0 | AD83: 0 | AE83: 0 | AF83: 0 | AG83: 0 | AH83: 0 | AI83: 0 | AJ83: 0 | AK83: 0 | AL83: 0 | AM83: 2 | AN83: 0 | AO83: 0 | AP83: 0 | AQ83: 0 | AR83: 0 | AS83: 0 | AT83: 0 | AU83: 2 | AV83: 0 | AW83: 0 | AX83: 0 | AY83: 0 | AZ83: 0 | BA83: 0 | BB83: 0 | BC83: 0 | BD83: 0 | BE83: 0 | BF83: 0 | BG83: 0 | BH83: 0 | BI83: 0 | BJ83: 2 | BK83: 0 | BL83: 0 | BM83: 0 | BN83: 0 | BO83: 0 | BP83: 0 | BQ83: 0 | BR83: 0 | BS83: 2 | BT83: 0 | BU83: 0 | BV83: 0 | BW83: 0 | BX83: 0 | BY83: 0 | BZ83: 0 | CA83: 0 | CB83: 0 | CC83: 0 | CD83: 0 | CE83: 0 | CF83: 0 | CG83: 0 | CH83: 0 | CI83: 0 | CJ83: 0 | CK83: 0 | CL83: 0 | CM83: 0 | CN83: 0 | CO83: 0 | CP83: 0 | CQ83: 0 | CR83: 0 | CS83: 0 | CT83: 0 | CU83: 0 | CV83: 0 | CW83: 0 | CX83: 0 | CY83: 0 | CZ83: 0 | DA83: 0 | DB83: 0 | DC83: 0 | DD83: 0 | DE83: 0 | DF83: 0 | DG83: 0 | DH83: 0
C84: Ground Outdoor / Indoor Chamber Mounted; > = 22 kV & < = 33 kV ; > 40 MVA | D84: 0 | E84: 0 | F84: 0 | G84: 0 | H84: 0 | I84: 0 | J84: 0 | K84: 0 | L84: 0 | M84: 0 | N84: 0 | O84: 0 | P84: 0 | Q84: 0 | R84: 0 | S84: 0 | T84: 0 | U84: 0 | V84: 0 | W84: 0 | X84: 0 | Y84: 0 | Z84: 0 | AA84: 0 | AB84: 0 | AC84: 0 | AD84: 0 | AE84: 0 | AF84: 0 | AG84: 0 | AH84: 0 | AI84: 0 | AJ84: 0 | AK84: 0 | AL84: 0 | AM84: 0 | AN84: 0 | AO84: 0 | AP84: 0 | AQ84: 0 | AR84: 0 | AS84: 0 | AT84: 0 | AU84: 0 | AV84: 0 | AW84: 0 | AX84: 0 | AY84: 2 | AZ84: 0 | BA84: 0 | BB84: 0 | BC84: 0 | BD84: 0 | BE84: 0 | BF84: 0 | BG84: 0 | BH84: 0 | BI84: 0 | BJ84: 0 | BK84: 0 | BL84: 0 | BM84: 0 | BN84: 0 | BO84: 0 | BP84: 0 | BQ84: 0 | BR84: 0 | BS84: 0 | BT84: 0 | BU84: 0 | BV84: 0 | BW84: 0 | BX84: 0 | BY84: 0 | BZ84: 0 | CA84: 0 | CB84: 0 | CC84: 0 | CD84: 0 | CE84: 0 | CF84: 0 | CG84: 0 | CH84: 0 | CI84: 0 | CJ84: 0 | CK84: 0 | CL84: 0 | CM84: 0 | CN84: 0 | CO84: 0 | CP84: 0 | CQ84: 0 | CR84: 0 | CS84: 0 | CT84: 0 | CU84: 0 | CV84: 0 | CW84: 0 | CX84: 0 | CY84: 0 | CZ84: 0 | DA84: 0 | DB84: 0 | DC84: 0 | DD84: 0 | DE84: 0 | DF84: 0 | DG84: 0 | DH84: 0
C85: Ground Outdoor / Indoor Chamber Mounted; > 33 kV & < = 66 kV ; < = 15 MVA | D85: 60 | E85: 7.75 | F85: 0 | G85: 1 | H85: 1 | I85: 1 | J85: 1 | K85: 4 | L85: 2 | M85: 2 | N85: 1 | O85: 5 | P85: 2 | Q85: 6 | R85: 2 | S85: 1 | T85: 3 | U85: 3 | V85: 2 | W85: 3 | X85: 9 | Y85: 4 | Z85: 5 | AA85: 6 | AB85: 4 | AC85: 3 | AD85: 0 | AE85: 0 | AF85: 5 | AG85: 10 | AH85: 5 | AI85: 1 | AJ85: 3 | AK85: 6 | AL85: 11 | AM85: 8 | AN85: 5 | AO85: 8 | AP85: 6 | AQ85: 5 | AR85: 12 | AS85: 3 | AT85: 0 | AU85: 5 | AV85: 6 | AW85: 4 | AX85: 1 | AY85: 1 | AZ85: 5 | BA85: 3 | BB85: 2 | BC85: 3 | BD85: 2 | BE85: 4 | BF85: 2 | BG85: 3 | BH85: 5 | BI85: 1 | BJ85: 1 | BK85: 0 | BL85: 0 | BM85: 0 | BN85: 2 | BO85: 3 | BP85: 1 | BQ85: 0 | BR85: 1 | BS85: 0 | BT85: 4 | BU85: 0 | BV85: 1 | BW85: 0 | BX85: 0 | BY85: 0 | BZ85: 3 | CA85: 0 | CB85: 0 | CC85: 0 | CD85: 0 | CE85: 0 | CF85: 0 | CG85: 0 | CH85: 0 | CI85: 0 | CJ85: 0 | CK85: 0 | CL85: 0 | CM85: 0 | CN85: 0 | CO85: 0 | CP85: 0 | CQ85: 1 | CR85: 0 | CS85: 0 | CT85: 0 | CU85: 0 | CV85: 0 | CW85: 0 | CX85: 0 | CY85: 0 | CZ85: 0 | DA85: 0 | DB85: 0 | DC85: 0 | DD85: 0 | DE85: 0 | DF85: 0 | DG85: 0 | DH85: 0
C86: Ground Outdoor / Indoor Chamber Mounted; > 33 kV & < = 66 kV ; > 15 MVA and < = 40 MVA | D86: 60 | E86: 7.75 | F86: 0 | G86: 0 | H86: 0 | I86: 0 | J86: 1 | K86: 1 | L86: 0 | M86: 3 | N86: 4 | O86: 2 | P86: 11 | Q86: 6 | R86: 3 | S86: 8 | T86: 2 | U86: 0 | V86: 4 | W86: 2 | X86: 3 | Y86: 0 | Z86: 1 | AA86: 1 | AB86: 6 | AC86: 0 | AD86: 1 | AE86: 1 | AF86: 2 | AG86: 1 | AH86: 1 | AI86: 0 | AJ86: 0 | AK86: 2 | AL86: 8 | AM86: 0 | AN86: 2 | AO86: 4 | AP86: 2 | AQ86: 5 | AR86: 1 | AS86: 6 | AT86: 2 | AU86: 1 | AV86: 0 | AW86: 2 | AX86: 0 | AY86: 0 | AZ86: 2 | BA86: 0 | BB86: 1 | BC86: 0 | BD86: 1 | BE86: 0 | BF86: 0 | BG86: 0 | BH86: 0 | BI86: 0 | BJ86: 1 | BK86: 0 | BL86: 0 | BM86: 0 | BN86: 0 | BO86: 0 | BP86: 0 | BQ86: 0 | BR86: 0 | BS86: 0 | BT86: 0 | BU86: 0 | BV86: 0 | BW86: 0 | BX86: 0 | BY86: 0 | BZ86: 0 | CA86: 0 | CB86: 0 | CC86: 0 | CD86: 0 | CE86: 0 | CF86: 0 | CG86: 0 | CH86: 0 | CI86: 0 | CJ86: 0 | CK86: 0 | CL86: 0 | CM86: 0 | CN86: 0 | CO86: 0 | CP86: 0 | CQ86: 0 | CR86: 0 | CS86: 0 | CT86: 0 | CU86: 0 | CV86: 0 | CW86: 0 | CX86: 0 | CY86: 0 | CZ86: 0 | DA86: 0 | DB86: 0 | DC86: 0 | DD86: 0 | DE86: 0 | DF86: 0 | DG86: 0 | DH86: 0
C87: Ground Outdoor / Indoor Chamber Mounted; > 33 kV & < = 66 kV ; > 40 MVA | D87: 60 | E87: 7.75 | F87: 0 | G87: 0 | H87: 0 | I87: 0 | J87: 1 | K87: 0 | L87: 1 | M87: 0 | N87: 0 | O87: 0 | P87: 0 | Q87: 2 | R87: 0 | S87: 0 | T87: 0 | U87: 0 | V87: 0 | W87: 0 | X87: 0 | Y87: 0 | Z87: 0 | AA87: 0 | AB87: 0 | AC87: 0 | AD87: 0 | AE87: 0 | AF87: 0 | AG87: 0 | AH87: 0 | AI87: 0 | AJ87: 0 | AK87: 0 | AL87: 0 | AM87: 0 | AN87: 0 | AO87: 0 | AP87: 0 | AQ87: 0 | AR87: 0 | AS87: 0 | AT87: 0 | AU87: 0 | AV87: 0 | AW87: 0 | AX87: 0 | AY87: 0 | AZ87: 0 | BA87: 0 | BB87: 0 | BC87: 0 | BD87: 0 | BE87: 0 | BF87: 0 | BG87: 0 | BH87: 0 | BI87: 0 | BJ87: 0 | BK87: 0 | BL87: 0 | BM87: 0 | BN87: 0 | BO87: 0 | BP87: 0 | BQ87: 0 | BR87: 0 | BS87: 0 | BT87: 0 | BU87: 0 | BV87: 0 | BW87: 0 | BX87: 0 | BY87: 0 | BZ87: 0 | CA87: 0 | CB87: 0 | CC87: 0 | CD87: 0 | CE87: 0 | CF87: 0 | CG87: 0 | CH87: 0 | CI87: 0 | CJ87: 0 | CK87: 0 | CL87: 0 | CM87: 0 | CN87: 0 | CO87: 0 | CP87: 0 | CQ87: 0 | CR87: 0 | CS87: 0 | CT87: 0 | CU87: 0 | CV87: 0 | CW87: 0 | CX87: 0 | CY87: 0 | CZ87: 0 | DA87: 0 | DB87: 0 | DC87: 0 | DD87: 0 | DE87: 0 | DF87: 0 | DG87: 0 | DH87: 0
C88: Ground Outdoor / Indoor Chamber Mounted; > 66 kV & < = 132 kV ; < = 100 MVA | D88: 60 | E88: 7.75 | F88: 0 | G88: 0 | H88: 0 | I88: 1 | J88: 1 | K88: 1 | L88: 6 | M88: 0 | N88: 2 | O88: 4 | P88: 5 | Q88: 6 | R88: 3 | S88: 4 | T88: 3 | U88: 3 | V88: 0 | W88: 0 | X88: 2 | Y88: 1 | Z88: 2 | AA88: 3 | AB88: 0 | AC88: 0 | AD88: 0 | AE88: 1 | AF88: 1 | AG88: 3 | AH88: 0 | AI88: 2 | AJ88: 0 | AK88: 0 | AL88: 0 | AM88: 1 | AN88: 3 | AO88: 1 | AP88: 0 | AQ88: 1 | AR88: 0 | AS88: 0 | AT88: 0 | AU88: 0 | AV88: 0 | AW88: 0 | AX88: 0 | AY88: 0 | AZ88: 1 | BA88: 2 | BB88: 0 | BC88: 1 | BD88: 0 | BE88: 3 | BF88: 0 | BG88: 3 | BH88: 0 | BI88: 1 | BJ88: 0 | BK88: 0 | BL88: 0 | BM88: 0 | BN88: 0 | BO88: 2 | BP88: 0 | BQ88: 0 | BR88: 0 | BS88: 3 | BT88: 0 | BU88: 0 | BV88: 0 | BW88: 0 | BX88: 0 | BY88: 0 | BZ88: 0 | CA88: 0 | CB88: 0 | CC88: 0 | CD88: 0 | CE88: 0 | CF88: 0 | CG88: 0 | CH88: 0 | CI88: 0 | CJ88: 0 | CK88: 0 | CL88: 0 | CM88: 0 | CN88: 0 | CO88: 0 | CP88: 0 | CQ88: 0 | CR88: 0 | CS88: 0 | CT88: 0 | CU88: 0 | CV88: 0 | CW88: 0 | CX88: 0 | CY88: 0 | CZ88: 0 | DA88: 0 | DB88: 0 | DC88: 0 | DD88: 0 | DE88: 0 | DF88: 0 | DG88: 0 | DH88: 0
C89: Ground Outdoor / Indoor Chamber Mounted; > 66 kV & < = 132 kV ; > 100 MVA | D89: 60 | E89: 7.75 | F89: 0 | G89: 0 | H89: 0 | I89: 0 | J89: 0 | K89: 0 | L89: 0 | M89: 0 | N89: 0 | O89: 0 | P89: 0 | Q89: 0 | R89: 0 | S89: 0 | T89: 1 | U89: 0 | V89: 0 | W89: 0 | X89: 0 | Y89: 0 | Z89: 0 | AA89: 0 | AB89: 0 | AC89: 1 | AD89: 0 | AE89: 0 | AF89: 0 | AG89: 0 | AH89: 0 | AI89: 0 | AJ89: 0 | AK89: 0 | AL89: 0 | AM89: 0 | AN89: 0 | AO89: 0 | AP89: 0 | AQ89: 0 | AR89: 0 | AS89: 0 | AT89: 0 | AU89: 0 | AV89: 0 | AW89: 0 | AX89: 0 | AY89: 0 | AZ89: 0 | BA89: 0 | BB89: 0 | BC89: 0 | BD89: 0 | BE89: 0 | BF89: 0 | BG89: 0 | BH89: 0 | BI89: 0 | BJ89: 0 | BK89: 0 | BL89: 0 | BM89: 0 | BN89: 0 | BO89: 0 | BP89: 0 | BQ89: 0 | BR89: 0 | BS89: 0 | BT89: 0 | BU89: 0 | BV89: 0 | BW89: 0 | BX89: 0 | BY89: 0 | BZ89: 0 | CA89: 0 | CB89: 0 | CC89: 0 | CD89: 0 | CE89: 0 | CF89: 0 | CG89: 0 | CH89: 0 | CI89: 0 | CJ89: 0 | CK89: 0 | CL89: 0 | CM89: 0 | CN89: 0 | CO89: 0 | CP89: 0 | CQ89: 0 | CR89: 0 | CS89: 0 | CT89: 0 | CU89: 0 | CV89: 0 | CW89: 0 | CX89: 0 | CY89: 0 | CZ89: 0 | DA89: 0 | DB89: 0 | DC89: 0 | DD89: 0 | DE89: 0 | DF89: 0 | DG89: 0 | DH89: 0
C90: Ground Outdoor / Indoor Chamber Mounted; > 132 kV ; < = 100 MVA | D90: 0 | E90: 0 | F90: 0 | G90: 0 | H90: 0 | I90: 0 | J90: 0 | K90: 0 | L90: 0 | M90: 0 | N90: 0 | O90: 0 | P90: 0 | Q90: 0 | R90: 0 | S90: 0 | T90: 0 | U90: 0 | V90: 0 | W90: 0 | X90: 0 | Y90: 4 | Z90: 1 | AA90: 2 | AB90: 0 | AC90: 0 | AD90: 0 | AE90: 0 | AF90: 0 | AG90: 0 | AH90: 0 | AI90: 0 | AJ90: 0 | AK90: 0 | AL90: 0 | AM90: 0 | AN90: 0 | AO90: 0 | AP90: 0 | AQ90: 0 | AR90: 0 | AS90: 0 | AT90: 0 | AU90: 0 | AV90: 0 | AW90: 0 | AX90: 0 | AY90: 0 | AZ90: 0 | BA90: 0 | BB90: 0 | BC90: 0 | BD90: 0 | BE90: 0 | BF90: 0 | BG90: 0 | BH90: 0 | BI90: 0 | BJ90: 0 | BK90: 0 | BL90: 0 | BM90: 0 | BN90: 0 | BO90: 0 | BP90: 0 | BQ90: 0 | BR90: 0 | BS90: 0 | BT90: 0 | BU90: 0 | BV90: 0 | BW90: 0 | BX90: 0 | BY90: 0 | BZ90: 0 | CA90: 0 | CB90: 0 | CC90: 0 | CD90: 0 | CE90: 0 | CF90: 0 | CG90: 0 | CH90: 0 | CI90: 0 | CJ90: 0 | CK90: 0 | CL90: 0 | CM90: 0 | CN90: 0 | CO90: 0 | CP90: 0 | CQ90: 0 | CR90: 0 | CS90: 0 | CT90: 0 | CU90: 0 | CV90: 0 | CW90: 0 | CX90: 0 | CY90: 0 | CZ90: 0 | DA90: 0 | DB90: 0 | DC90: 0 | DD90: 0 | DE90: 0 | DF90: 0 | DG90: 0 | DH90: 0
C91: Ground Outdoor / Indoor Chamber Mounted; > 132 kV ; > 100 MVA | D91: 0 | E91: 0 | F91: 0 | G91: 0 | H91: 0 | I91: 0 | J91: 0 | K91: 0 | L91: 0 | M91: 0 | N91: 0 | O91: 0 | P91: 0 | Q91: 0 | R91: 0 | S91: 0 | T91: 0 | U91: 0 | V91: 0 | W91: 0 | X91: 0 | Y91: 0 | Z91: 0 | AA91: 0 | AB91: 0 | AC91: 0 | AD91: 0 | AE91: 0 | AF91: 0 | AG91: 0 | AH91: 0 | AI91: 0 | AJ91: 0 | AK91: 0 | AL91: 0 | AM91: 0 | AN91: 0 | AO91: 0 | AP91: 0 | AQ91: 0 | AR91: 0 | AS91: 0 | AT91: 0 | AU91: 0 | AV91: 0 | AW91: 0 | AX91: 0 | AY91: 0 | AZ91: 0 | BA91: 0 | BB91: 0 | BC91: 0 | BD91: 0 | BE91: 0 | BF91: 0 | BG91: 0 | BH91: 0 | BI91: 0 | BJ91: 0 | BK91: 0 | BL91: 0 | BM91: 0 | BN91: 0 | BO91: 0 | BP91: 0 | BQ91: 0 | BR91: 0 | BS91: 0 | BT91: 0 | BU91: 0 | BV91: 0 | BW91: 0 | BX91: 0 | BY91: 0 | BZ91: 0 | CA91: 0 | CB91: 0 | CC91: 0 | CD91: 0 | CE91: 0 | CF91: 0 | CG91: 0 | CH91: 0 | CI91: 0 | CJ91: 0 | CK91: 0 | CL91: 0 | CM91: 0 | CN91: 0 | CO91: 0 | CP91: 0 | CQ91: 0 | CR91: 0 | CS91: 0 | CT91: 0 | CU91: 0 | CV91: 0 | CW91: 0 | CX91: 0 | CY91: 0 | CZ91: 0 | DA91: 0 | DB91: 0 | DC91: 0 | DD91: 0 | DE91: 0 | DF91: 0 | DG91: 0 | DH91: 0
C92: Other | D92: 0 | E92: 0 | F92: 0 | G92: 0 | H92: 0 | I92: 0 | J92: 0 | K92: 0 | L92: 0 | M92: 0 | N92: 0 | O92: 0 | P92: 0 | Q92: 0 | R92: 0 | S92: 0 | T92: 0 | U92: 0 | V92: 0 | W92: 0 | X92: 0 | Y92: 0 | Z92: 0 | AA92: 0 | AB92: 0 | AC92: 0 | AD92: 0 | AE92: 0 | AF92: 0 | AG92: 0 | AH92: 0 | AI92: 0 | AJ92: 0 | AK92: 0 | AL92: 0 | AM92: 0 | AN92: 0 | AO92: 0 | AP92: 0 | AQ92: 0 | AR92: 0 | AS92: 0 | AT92: 0 | AU92: 0 | AV92: 0 | AW92: 0 | AX92: 0 | AY92: 0 | AZ92: 0 | BA92: 0 | BB92: 0 | BC92: 0 | BD92: 0 | BE92: 0 | BF92: 0 | BG92: 0 | BH92: 0 | BI92: 0 | BJ92: 0 | BK92: 0 | BL92: 0 | BM92: 0 | BN92: 0 | BO92: 0 | BP92: 0 | BQ92: 0 | BR92: 0 | BS92: 0 | BT92: 0 | BU92: 0 | BV92: 0 | BW92: 0 | BX92: 0 | BY92: 0 | BZ92: 0 | CA92: 0 | CB92: 0 | CC92: 0 | CD92: 0 | CE92: 0 | CF92: 0 | CG92: 0 | CH92: 0 | CI92: 0 | CJ92: 0 | CK92: 0 | CL92: 0 | CM92: 0 | CN92: 0 | CO92: 0 | CP92: 0 | CQ92: 0 | CR92: 0 | CS92: 0 | CT92: 0 | CU92: 0 | CV92: 0 | CW92: 0 | CX92: 0 | CY92: 0 | CZ92: 0 | DA92: 0 | DB92: 0 | DC92: 0 | DD92: 0 | DE92: 0 | DF92: 0 | DG92: 0 | DH92: 0
B93: SWITCHGEAR BY: HIGHEST OPERATING VOLTAGE ; SWITCH FUNCTION | C93: ˂ = 11 kV ; Fuse | D93: 30 | E93: 5.48 | F93: 1249.051196 | G93: 1795.446417 | H93: 2272.507396 | I93: 2920.316881 | J93: 3150.051235 | K93: 3180.061579 | L93: 3687.132901 | M93: 3659.192236 | N93: 4717.832977 | O93: 6902.379021 | P93: 6339.426369 | Q93: 2871.679428 | R93: 1827.526439 | S93: 1894.791003 | T93: 1681.614079 | U93: 1351.5003 | V93: 1001.724572 | W93: 914.7980591 | X93: 989.3064983 | Y93: 814.4186341 | Z93: 841.3244593 | AA93: 733.7011583 | AB93: 781.3037722 | AC93: 915.8328985 | AD93: 912.7283802 | AE93: 777.1644145 | AF93: 892.0315916 | AG93: 835.1154227 | AH93: 835.1154227 | AI93: 805.1050792 | AJ93: 655.0533613 | AK93: 702.6559753 | AL93: 804.0702397 | AM93: 869.265124 | AN93: 953.0871181 | AO93: 725.4224428 | AP93: 1108.313033 | AQ93: 883.7528761 | AR93: 755.4327864 | AS93: 511.2106801 | AT93: 612.6249446 | AU93: 629.1823755 | AV93: 553.6390969 | AW93: 562.9526518 | AX93: 601.2417108 | AY93: 444.9809564 | AZ93: 559.8481335 | BA93: 537.0816659 | BB93: 584.6842799 | BC93: 455.3293507 | BD93: 436.7022409 | BE93: 402.5525396 | BF93: 314.5911877 | BG93: 346.6712102 | BH93: 413.9357734 | BI93: 365.29832 | BJ93: 147.982039 | BK93: 180.0620614 | BL93: 158.3304333 | BM93: 138.6684841 | BN93: 169.7136671 | BO93: 141.7730024 | BP93: 136.5988052 | BQ93: 133.4942869 | BR93: 166.6091488 | BS93: 189.3756163 | BT93: 139.7033235 | BU93: 163.5046305 | BV93: 129.3549292 | BW93: 0 | BX93: 0 | BY93: 0 | BZ93: 0 | CA93: 0 | CB93: 0 | CC93: 0 | CD93: 0 | CE93: 0 | CF93: 0 | CG93: 0 | CH93: 0 | CI93: 0 | CJ93: 1.034839433 | CK93: 0 | CL93: 0 | CM93: 0 | CN93: 0 | CO93: 0 | CP93: 0 | CQ93: 0 | CR93: 0 | CS93: 0 | CT93: 1.034839433 | CU93: 0 | CV93: 0 | CW93: 0 | CX93: 0 | CY93: 0 | CZ93: 0 | DA93: 0 | DB93: 0 | DC93: 0 | DD93: 0 | DE93: 0 | DF93: 0 | DG93: 0 | DH93: 0
C94: ˂ = 11 kV ; Switch | D94: 40 | E94: 6.32 | F94: 478.8983946 | G94: 979.7550125 | H94: 1722.152087 | I94: 2906.850517 | J94: 3176.622975 | K94: 3907.518123 | L94: 4570.447342 | M94: 4188.792508 | N94: 4965.695362 | O94: 5954.861042 | P94: 4488.888227 | Q94: 2499.054941 | R94: 1937.551802 | S94: 1542.303782 | T94: 1549.623189 | U94: 981.8462719 | V94: 631.5603282 | W94: 359.6966108 | X94: 512.3585444 | Y94: 437.0732073 | Z94: 464.259579 | AA94: 467.3964681 | AB94: 414.0693543 | AC94: 406.7499465 | AD94: 451.7120228 | AE94: 335.6471281 | AF94: 423.4800214 | AG94: 329.37335 | AH94: 226.9016411 | AI94: 256.1792722 | AJ94: 238.4035676 | AK94: 216.4453443 | AL94: 324.1452016 | AM94: 392.1111309 | AN94: 305.3238673 | AO94: 237.3579379 | AP94: 351.3315733 | AQ94: 259.3161613 | AR94: 257.2249019 | AS94: 149.5250446 | AT94: 207.0346771 | AU94: 238.4035676 | AV94: 214.3540849 | AW94: 225.8560114 | AX94: 230.0385301 | AY94: 205.9890474 | AZ94: 185.0764538 | BA94: 287.5481627 | BB94: 250.9511238 | BC94: 249.9054941 | BD94: 189.2589725 | BE94: 143.2512665 | BF94: 124.4299322 | BG94: 155.7988227 | BH94: 141.1600071 | BI94: 148.4794149 | BJ94: 88.87852301 | BK94: 81.55911523 | BL94: 88.87852301 | BM94: 102.4717089 | BN94: 73.19407777 | BO94: 94.10667142 | BP94: 84.69600428 | BQ94: 81.55911523 | BR94: 78.42222619 | BS94: 93.06104174 | BT94: 80.51348555 | BU94: 77.3765965 | BV94: 82.60474492 | BW94: 0 | BX94: 1.045629682 | BY94: 8.36503746 | BZ94: 1.045629682 | CA94: 0 | CB94: 0 | CC94: 0 | CD94: 0 | CE94: 0 | CF94: 0 | CG94: 0 | CH94: 0 | CI94: 0 | CJ94: 0 | CK94: 0 | CL94: 0 | CM94: 0 | CN94: 0 | CO94: 0 | CP94: 0 | CQ94: 0 | CR94: 0 | CS94: 2.091259365 | CT94: 2.091259365 | CU94: 0 | CV94: 0 | CW94: 0 | CX94: 0 | CY94: 0 | CZ94: 0 | DA94: 0 | DB94: 0 | DC94: 0 | DD94: 0 | DE94: 0 | DF94: 0 | DG94: 0 | DH94: 0
C95: ˂ = 11 kV ; Circuit Breaker | D95: 50 | E95: 7.07 | F95: 28.83253589 | G95: 57.66507177 | H95: 116.359877 | I95: 423.2204375 | J95: 119.4490772 | K95: 130.7761449 | L95: 114.3004101 | M95: 89.58680793 | N95: 129.7464115 | O95: 107.0922761 | P95: 137.9842789 | Q95: 119.4490772 | R95: 111.2112098 | S95: 62.81373889 | T95: 79.28947368 | U95: 27.80280246 | V95: 194.6196172 | W95: 53.54613807 | X95: 90.61654135 | Y95: 21.62440191 | Z95: 39.12987013 | AA95: 9.26760082 | AB95: 30.89200273 | AC95: 38.10013671 | AD95: 6.178400547 | AE95: 8.237867396 | AF95: 23.68386876 | AG95: 23.68386876 | AH95: 23.68386876 | AI95: 9.26760082 | AJ95: 6.178400547 | AK95: 26.77306904 | AL95: 29.86226931 | AM95: 31.92173616 | AN95: 43.24880383 | AO95: 42.2190704 | AP95: 74.14080656 | AQ95: 49.42720437 | AR95: 37.07040328 | AS95: 19.56493506 | AT95: 11.32706767 | AU95: 1.029733424 | AV95: 15.44600137 | AW95: 15.44600137 | AX95: 1.029733424 | AY95: 14.41626794 | AZ95: 0 | BA95: 15.44600137 | BB95: 14.41626794 | BC95: 24.71360219 | BD95: 12.35680109 | BE95: 25.74333561 | BF95: 14.41626794 | BG95: 21.62440191 | BH95: 12.35680109 | BI95: 1.029733424 | BJ95: 6.178400547 | BK95: 1.029733424 | BL95: 5.148667122 | BM95: 4.118933698 | BN95: 1.029733424 | BO95: 1.029733424 | BP95: 0 | BQ95: 0 | BR95: 1.029733424 | BS95: 0 | BT95: 0 | BU95: 3.089200273 | BV95: 1.029733424 | BW95: 0 | BX95: 0 | BY95: 0 | BZ95: 0 | CA95: 0 | CB95: 0 | CC95: 0 | CD95: 0 | CE95: 0 | CF95: 0 | CG95: 0 | CH95: 0 | CI95: 0 | CJ95: 0 | CK95: 0 | CL95: 0 | CM95: 0 | CN95: 0 | CO95: 0 | CP95: 0 | CQ95: 0 | CR95: 0 | CS95: 0 | CT95: 0 | CU95: 0 | CV95: 0 | CW95: 0 | CX95: 0 | CY95: 0 | CZ95: 0 | DA95: 0 | DB95: 0 | DC95: 0 | DD95: 0 | DE95: 0 | DF95: 0 | DG95: 0 | DH95: 0
C96: > 11 kV & < = 22 kV ; Switch | D96: 40 | E96: 6.32 | F96: 377.6848571 | G96: 972.2272282 | H96: 1032.407782 | I96: 1642.51409 | J96: 1442.258108 | K96: 1706.845027 | L96: 2083.492288 | M96: 1920.589754 | N96: 2398.9214 | O96: 2959.223111 | P96: 1823.055752 | Q96: 750.1817353 | R96: 734.6177989 | S96: 598.6927542 | T96: 618.4070737 | U96: 317.5043029 | V96: 405.6999426 | W96: 351.744963 | X96: 698.3019473 | Y96: 406.7375384 | Z96: 223.0830887 | AA96: 223.0830887 | AB96: 146.3010023 | AC96: 271.8500894 | AD96: 226.1958759 | AE96: 189.8800243 | AF96: 174.3160879 | AG96: 241.7598124 | AH96: 223.0830887 | AI96: 259.3989403 | AJ96: 183.6544497 | AK96: 305.0531538 | AL96: 319.5794944 | AM96: 214.7823226 | AN96: 258.3613445 | AO96: 239.6846208 | AP96: 336.1810266 | AQ96: 344.4817927 | AR96: 212.707131 | AS96: 128.6618744 | AT96: 97.53400155 | AU96: 139.037832 | AV96: 94.42121427 | AW96: 195.0680031 | AX96: 195.0680031 | AY96: 116.2107253 | AZ96: 138.0002362 | BA96: 180.5416624 | BB96: 211.6695353 | BC96: 176.3912794 | BD96: 104.7971719 | BE96: 132.8122574 | BF96: 115.1731295 | BG96: 155.6393642 | BH96: 129.6994701 | BI96: 93.38361851 | BJ96: 44.61661773 | BK96: 37.3534474 | BL96: 47.72940502 | BM96: 47.72940502 | BN96: 26.97748979 | BO96: 37.3534474 | BP96: 30.09027707 | BQ96: 38.39104316 | BR96: 45.65421349 | BS96: 31.12787284 | BT96: 25.93989403 | BU96: 44.61661773 | BV96: 44.61661773 | BW96: 0 | BX96: 0 | BY96: 0 | BZ96: 0 | CA96: 0 | CB96: 0 | CC96: 0 | CD96: 0 | CE96: 0 | CF96: 0 | CG96: 0 | CH96: 0 | CI96: 0 | CJ96: 0 | CK96: 0 | CL96: 0 | CM96: 0 | CN96: 0 | CO96: 0 | CP96: 0 | CQ96: 0 | CR96: 0 | CS96: 0 | CT96: 4.150383045 | CU96: 0 | CV96: 0 | CW96: 0 | CX96: 0 | CY96: 0 | CZ96: 0 | DA96: 0 | DB96: 0 | DC96: 0 | DD96: 0 | DE96: 0 | DF96: 0 | DG96: 0 | DH96: 0
C97: > 11 kV & < = 22 kV ; Circuit Breaker | D97: 50 | E97: 7.07 | F97: 20.26373626 | G97: 79.02857143 | H97: 53.6989011 | I97: 144.8857143 | J97: 93.21318681 | K97: 54.71208791 | L97: 83.08131868 | M97: 71.93626374 | N97: 34.44835165 | O97: 96.25274725 | P97: 54.71208791 | Q97: 81.05494505 | R97: 84.09450549 | S97: 63.83076923 | T97: 28.36923077 | U97: 29.38241758 | V97: 103.3450549 | W97: 74.97582418 | X97: 49.64615385 | Y97: 32.42197802 | Z97: 35.46153846 | AA97: 20.26373626 | AB97: 51.67252747 | AC97: 17.22417582 | AD97: 7.092307692 | AE97: 8.105494505 | AF97: 15.1978022 | AG97: 28.36923077 | AH97: 41.54065934 | AI97: 5.065934066 | AJ97: 6.079120879 | AK97: 20.26373626 | AL97: 35.46153846 | AM97: 36.47472527 | AN97: 27.35604396 | AO97: 28.36923077 | AP97: 16.21098901 | AQ97: 13.17142857 | AR97: 3.03956044 | AS97: 10.13186813 | AT97: 3.03956044 | AU97: 1.013186813 | AV97: 4.052747253 | AW97: 15.1978022 | AX97: 6.079120879 | AY97: 2.026373626 | AZ97: 4.052747253 | BA97: 2.026373626 | BB97: 5.065934066 | BC97: 8.105494505 | BD97: 4.052747253 | BE97: 15.1978022 | BF97: 2.026373626 | BG97: 0 | BH97: 4.052747253 | BI97: 2.026373626 | BJ97: 0 | BK97: 0 | BL97: 2.026373626 | BM97: 0 | BN97: 1.013186813 | BO97: 0 | BP97: 1.013186813 | BQ97: 0 | BR97: 1.013186813 | BS97: 1.013186813 | BT97: 0 | BU97: 0 | BV97: 0 | BW97: 0 | BX97: 0 | BY97: 0 | BZ97: 0 | CA97: 0 | CB97: 0 | CC97: 0 | CD97: 0 | CE97: 0 | CF97: 0 | CG97: 0 | CH97: 0 | CI97: 0 | CJ97: 0 | CK97: 0 | CL97: 0 | CM97: 0 | CN97: 0 | CO97: 0 | CP97: 0 | CQ97: 0 | CR97: 0 | CS97: 0 | CT97: 0 | CU97: 0 | CV97: 0 | CW97: 0 | CX97: 0 | CY97: 0 | CZ97: 0 | DA97: 0 | DB97: 0 | DC97: 0 | DD97: 0 | DE97: 0 | DF97: 0 | DG97: 0 | DH97: 0
C98: > 22 kV & < = 33 kV ; Switch | D98: 40 | E98: 6.32 | F98: 86.0172043 | G98: 112.6415771 | H98: 104.4494624 | I98: 266.2437276 | J98: 196.6107527 | K98: 229.3792115 | L98: 233.4752688 | M98: 198.6587814 | N98: 100.353405 | O98: 169.9863799 | P98: 86.0172043 | Q98: 78.84910394 | R98: 34.81648746 | S98: 39.93655914 | T98: 36.86451613 | U98: 20.48028674 | V98: 38.9125448 | W98: 31.74444444 | X98: 23.55232975 | Y98: 14.33620072 | Z98: 29.69641577 | AA98: 19.4562724 | AB98: 18.43225806 | AC98: 18.43225806 | AD98: 8.192114695 | AE98: 9.216129032 | AF98: 17.40824373 | AG98: 12.28817204 | AH98: 26.62437276 | AI98: 24.57634409 | AJ98: 12.28817204 | AK98: 20.48028674 | AL98: 7.168100358 | AM98: 18.43225806 | AN98: 76.80107527 | AO98: 22.52831541 | AP98: 32.76845878 | AQ98: 32.76845878 | AR98: 25.60035842 | AS98: 6.144086022 | AT98: 2.048028674 | AU98: 5.120071685 | AV98: 17.40824373 | AW98: 9.216129032 | AX98: 6.144086022 | AY98: 2.048028674 | AZ98: 6.144086022 | BA98: 31.74444444 | BB98: 23.55232975 | BC98: 30.72043011 | BD98: 32.76845878 | BE98: 27.6483871 | BF98: 8.192114695 | BG98: 39.93655914 | BH98: 17.40824373 | BI98: 10.24014337 | BJ98: 6.144086022 | BK98: 8.192114695 | BL98: 4.096057348 | BM98: 1.024014337 | BN98: 5.120071685 | BO98: 3.072043011 | BP98: 2.048028674 | BQ98: 1.024014337 | BR98: 3.072043011 | BS98: 3.072043011 | BT98: 1.024014337 | BU98: 2.048028674 | BV98: 2.048028674 | BW98: 0 | BX98: 0 | BY98: 0 | BZ98: 0 | CA98: 0 | CB98: 0 | CC98: 0 | CD98: 0 | CE98: 2.048028674 | CF98: 0 | CG98: 0 | CH98: 0 | CI98: 0 | CJ98: 0 | CK98: 0 | CL98: 0 | CM98: 0 | CN98: 0 | CO98: 0 | CP98: 0 | CQ98: 0 | CR98: 0 | CS98: 0 | CT98: 0 | CU98: 0 | CV98: 0 | CW98: 0 | CX98: 0 | CY98: 0 | CZ98: 0 | DA98: 0 | DB98: 0 | DC98: 0 | DD98: 0 | DE98: 0 | DF98: 0 | DG98: 0 | DH98: 0
C99: > 22 kV & < = 33 kV ; Circuit Breaker | D99: 55 | E99: 7.42 | F99: 9.068877551 | G99: 19.14540816 | H99: 11.08418367 | I99: 11.08418367 | J99: 35.26785714 | K99: 24.18367347 | L99: 13.0994898 | M99: 8.06122449 | N99: 3.022959184 | O99: 34.26020408 | P99: 11.08418367 | Q99: 25.19132653 | R99: 6.045918367 | S99: 7.053571429 | T99: 18.1377551 | U99: 6.045918367 | V99: 21.16071429 | W99: 18.1377551 | X99: 7.053571429 | Y99: 5.038265306 | Z99: 5.038265306 | AA99: 0 | AB99: 4.030612245 | AC99: 16.12244898 | AD99: 2.015306122 | AE99: 0 | AF99: 1.007653061 | AG99: 0 | AH99: 0 | AI99: 1.007653061 | AJ99: 0 | AK99: 0 | AL99: 6.045918367 | AM99: 0 | AN99: 3.022959184 | AO99: 0 | AP99: 2.015306122 | AQ99: 1.007653061 | AR99: 0 | AS99: 1.007653061 | AT99: 3.022959184 | AU99: 1.007653061 | AV99: 0 | AW99: 1.007653061 | AX99: 0 | AY99: 0 | AZ99: 0 | BA99: 0 | BB99: 5.038265306 | BC99: 0 | BD99: 12.09183673 | BE99: 6.045918367 | BF99: 0 | BG99: 13.0994898 | BH99: 1.007653061 | BI99: 0 | BJ99: 0 | BK99: 0 | BL99: 0 | BM99: 2.015306122 | BN99: 0 | BO99: 0 | BP99: 0 | BQ99: 1.007653061 | BR99: 0 | BS99: 0 | BT99: 10.07653061 | BU99: 4.030612245 | BV99: 0 | BW99: 0 | BX99: 0 | BY99: 0 | BZ99: 0 | CA99: 0 | CB99: 0 | CC99: 0 | CD99: 0 | CE99: 0 | CF99: 0 | CG99: 0 | CH99: 0 | CI99: 0 | CJ99: 0 | CK99: 0 | CL99: 0 | CM99: 0 | CN99: 0 | CO99: 0 | CP99: 0 | CQ99: 0 | CR99: 0 | CS99: 0 | CT99: 0 | CU99: 0 | CV99: 0 | CW99: 0 | CX99: 0 | CY99: 0 | CZ99: 0 | DA99: 0 | DB99: 0 | DC99: 0 | DD99: 0 | DE99: 0 | DF99: 0 | DG99: 0 | DH99: 0
